Workbook

Sheet CAPA
B1: SPARTA | C1: Ver. Escassez/GD | R1: DF | S1: Sudeste/Centro Oeste
B2: Helenístico LX | C2: 0.93 | M2: =C23 -> 151 | N2: =C22 -> 404
C3: Macro Ver.
C4: 80.62
B6: EMS | C6: =VLOOKUP(B6,TabEmpresas[#Data],5,FALSE) -> NÃO SUPRIDA | L6: CodigoSamp | M6: Empresa | N6: Nome Completo | O6: IdSgtAg | P6: CodigoSamp | Q6: Supridora/suprida | R6: Financeiro 243 (TUSD) | S6: Databse Fin. 243 | T6: Contrato de Concessão | U6: Data Aditivo (Cont Novo) | V6: Cidade Sede | W6: CNPJ | X6: Novo/Antigo | AB6: Previsão de subsídio GD 2023
B7: =VLOOKUP(B6,TabEmpresas[#Data],2,FALSE) -> Energisa Mato Grosso do Sul - Distribuidora de Energia S.A. | C7: Revisão | G7: Últ. Atualização | L7: 7019 | M7: Amazonas Energia | N7: Amazonas Energia S.A. | O7: 102 | P7: 7019 | Q7: NÃO SUPRIDA | T7: 1/2019 | U7: 42579 | V7: Manaus - AM | W7: 02.341.467/0001-20 | X7: N | Z7: 26 | AA7: Eletroacre | AB7: 3317955.24 | AC7: 45273
B8: CÓDIGO DA EMPRESA | C8: ="D" & TEXT(C23-100,"00") -> D51 | F8: Info iniciais | G8: 2023-03-28T08:43:51 | L8: 31 | M8: CEA | N8: Companhia de Eletricidade do Amapá | O8: 107 | P8: 31 | Q8: NÃO SUPRIDA | T8: 01/2021 | U8: 42606 | V8: Macapá - AP | W8: 05.965.546/0001-09 | X8: N | Z8: 31 | AA8: CEA Equatorial | AB8: 1609847.7 | AC8: 45273
B9: Data do Reajuste/Revisão Anterior | C9: 44659 | F9: Energia do ano anterior (CM compra, MWh Mercado, R$ Mercado) | L9: 5707 | M9: CEEE-D | N9: Companhia Estadual de Distribuição de Energia Elétrica | O9: 110 | P9: 5707 | Q9: NÃO SUPRIDA | T9: 81/1999 | U9: 42347 | V9: Porto Alegre - RS | W9: 08.467.115/0001-00 | X9: N | Z9: 32 | AA9: ETO | AB9: 18927205.39 | AC9: 45111
B10: Data de Reajuste/Revisão em Processamento | C10: 45024 | F10: Perda de RB /Perdas Regulatórias /TUSDgONS-RB | L10: 5697 | M10: Celesc-Dis | N10: Celesc Distribuição S.A. | O10: 111 | P10: 5697 | Q10: NÃO SUPRIDA | U10: 42347 | V10: Florianópolis - SC | W10: 08.336.783/0001-90 | X10: N | Z10: 37 | AA10: Cemar | AB10: 27347860.46 | AC10: 45166
F11: Financeiros ano anterior (CVA 5º dia útil, RTE restante) | L11: 4950 | M11: Cemig-D | N11: Cemig Distribuição S.A. | O11: 118 | P11: 4950 | Q11: NÃO SUPRIDA | T11: 3/1997 | U11: 42359 | V11: Belo Horizonte - MG | W11: 06.981.180/0001-16 | X11: N | Z11: 38 | AA11: Cepisa | AB11: 24958828.8 | AC11: 45262
F12: Encargos ano anterior (não RTE) | L12: 103 | M12: CHESP | N12: Companhia Hidroelétrica São Patrício | O12: 123 | P12: 103 | Q12: SUPRIDA | T12: 44/1999 | U12: 42347 | V12: Ceres - GO | W12: 01.377.555/0001-10 | X12: N | Z12: 39 | AA12: Enel CE | AB12: 47549162.27 | AC12: 45038
F13: Dados da Revisão, Fator X e DecFec | L13: 82 | M13: Cocel | N13: Companhia Campolarguense de Energia | O13: 128 | P13: 82 | Q13: SUPRIDA | T13: 27/1998 | U13: 42347 | V13: Campo Largo - PR | W13: 75.805.895/0001-30 | X13: N | Z13: 40 | AA13: Cosern | AB13: 26285886.13 | AC13: 45038
F14: Previsão de Subsidios dos Processos Anteriores | L14: 2904 | M14: Cooperaliança | N14: Cooperativa Aliança | O14: 131 | P14: 2904 | Q14: SUPRIDA | T14: 145/2002 | U14: 42347 | V14: Iraça - SC | W14: 83.647.990/0001-81 | X14: N | Z14: 43 | AA14: Celpe | AB14: 39610666.6 | AC14: 45045
B15: Período de Referencia final | C15: =DATE(YEAR($C$10),MONTH($C$10)-1,1) -> 44986 | F15: Conexão ano anterior | L15: 2866 | M15: Copel-Dis | N15: Copel Distribuição S.A. | O15: 132 | P15: 2866 | Q15: NÃO SUPRIDA | T15: 46/1999 | U15: 42347 | V15: Curitiba - PR | W15: 04.368.898/0001-06 | X15: N | Z15: 44 | AA15: Ceal | AB15: 14300308.51 | AC15: 45049
B16: Período de Referencia inicial | C16: =DATE(YEAR($C$10)-1,MONTH($C$10),1) -> 44652 | F16: Energia (CCEAR, Bil., Itaipu) | G16: 2023-03-15T11:30:48 | L16: 63 | M16: CPFL Paulista | N16: Companhia Paulista de Força e Luz | O16: 136 | P16: 63 | Q16: NÃO SUPRIDA | T16: 14/1997 | V16: Campinas - SP | W16: 33.050.196/0001-88 | X16: A | Z16: 46 | AA16: Sulgipe | AB16: 2436350.86 | AC16: 45068
B17: Índice IGPM na data Revisão/Reajuste | C17: =VLOOKUP(C15,Índices!$B$7:$F$500,2,FALSE) -> 1163.359 | F17: CCEAR | L17: 2937 | M17: CPFL Piratininga | N17: Companhia Piratininga de Força e Luz | O17: 135 | P17: 2937 | Q17: NÃO SUPRIDA | T17: 9/2002 | V17: Sorocaba - SP | W17: 04.172.213/0001-51 | X17: A | Z17: 47 | AA17: Coelba | AB17: 60205864.61 | AC17: 45038
B18: Índice IPCA na data Revisão/Reajuste | C18: =VLOOKUP(C15,Índices!$B$7:$F$500,3,FALSE) -> 6611.932056 | L18: 1000041 | M18: CPFL Santa Cruz | N18: Companhia Jaguari de Energia | O18: 166 | P18: 1000041 | Q18: NÃO SUPRIDA | T18: 15/1999 | U18: 42347 | V18: Jaguariúna - SP | W18: 53.859.112/0001-69 | X18: N | Z18: 51 | AA18: DMED | AB18: 1916207.59 | AC18: 45252
B19: IGPM para o período de Referência | C19: =VLOOKUP(DATE(YEAR($C$10),MONTH($C$10)-1,1),Índices!$B$7:$F$500,2,FALSE)/VLOOKUP(DATE(YEAR($C$9),MONTH($C$9)-1,1),Índices!$B$7:$F$500,2,FALSE)-1 -> 0.001671232924 | F19: Itaipu (Energia, Transporte, MUST) | L19: 87 | M19: DCELT | N19: Distribuidora Catarinense de Energia Elétrica Ltda | O19: 158 | P19: 87 | Q19: NÃO SUPRIDA | T19: 50/1999 | U19: 42353 | V19: Xanxerê - SC | W19: 83.855.973/0001-30 | X19: N | Z19: 63 | AA19: CPFL Paulista | AB19: 62835386.12 | AC19: 45024
B20: IPCA para o período de Referência | C20: =VLOOKUP(DATE(YEAR(C10),MONTH(C10)-1,1),Índices!$B$7:$F$500,3,FALSE)/VLOOKUP(DATE(YEAR($C$9),MONTH($C$9)-1,1),Índices!$B$7:$F$500,3,FALSE)-1 -> 0.04686594946 | F20: Cotas Lei/Angra | L20: 95 | M20: Demei | N20: Departamento Municipal de Energia de Ijuí | O20: 138 | P20: 95 | Q20: SUPRIDA | T20: 85/2000 | U20: 42347 | V20: Ijuí - RS | W20: 95.289.500/0001-00 | X20: N | Z20: 82 | AA20: Cocel | AB20: 1380963.13 | AC20: 45106
B21: Dados Gerenciais | F21: Encargos DRP | G21: 2023-03-09T13:10:24 | L21: 51 | M21: DME-D | N21: DME Distribuição S.A. | O21: 139 | P21: 51 | Q21: NÃO SUPRIDA | T21: 49/1999 | U21: 42347 | V21: Poços de Caldas - MG | W21: 23.664.303/0001-04 | X21: N | Z21: 83 | AA21: Forcel | AB21: 735548.87 | AC21: 45164
B22: IdAgente | C22: =VLOOKUP(B6,TabEmpresas[#Data],4,FALSE) -> 404 | F22: Indicadores Econômicos / Dólar | G22: 2023-03-30T12:11:38 | L22: 26 | M22: EAC | N22: Energisa Acre - Distribuidora de Energia S.A | O22: 146 | P22: 26 | Q22: NÃO SUPRIDA | T22: 3/2018 | U22: 42579 | V22: Rio Branco - AC | W22: 04.065.033/0001-70 | X22: N | Z22: 86 | AA22: Eflul | AB22: 520396.81 | AC22: 45167
B23: ID Concessão | C23: =VLOOKUP(B6,TabEmpresas[#Data],3,FALSE) -> 151 | F23: Tudo de Mercado | G23: 2023-03-16T17:25:37 | L23: 6611 | M23: EBO | N23: Energisa Borborema - Distribuidora de Energia S.A | O23: 140 | P23: 6611 | Q23: NÃO SUPRIDA | T23: 8/2000 | V23: Campina Grande - PB | W23: 08.826.596/0001-95 | X23: A | Z23: 87 | AA23: Ienergia | AB23: 7072328.82 | AC23: 45167
F24: Rede Básica e Conexão | G24: 2023-03-21T12:05:59 | L24: 380 | M24: EDP ES | N24: EDP Espírito Santo Distribuição de Energia S.A. | O24: 154 | P24: 380 | Q24: NÃO SUPRIDA | T24: 1/1995 | V24: Vitória - ES | W24: 28.152.650/0001-71 | X24: A | Z24: 88 | AA24: EFLJC | AB24: 68129.82 | AC24: 45167
B25: Quadro para vínculos | F25: Histórico de Tarifas B1 Residencial | L25: 391 | M25: EDP SP | N25: EDP São Paulo Distribuição de Energia S.A. | O25: 104 | P25: 391 | Q25: NÃO SUPRIDA | T25: 202/1998 | V25: São Paulo - SP | W25: 02.302.100/0001-06 | X25: A | Z25: 95 | AA25: Demei | AB25: 2339298.52 | AC25: 45129
B26: Descrição | C26: valor | F26: CVA | G26: 2023-03-23T13:07:40 | L26: 86 | M26: EFLUL | N26: Empresa Força e Luz de Urussanga Ltda | O26: 144 | P26: 86 | Q26: SUPRIDA | T26: 25/1999 | U26: 42347 | V26: Urussanga - SC | W26: 86.531.175/0001-40 | X26: N | Z26: 103 | AA26: Chesp | AB26: 3143733.55 | AC26: 45252
B27: Tipo de contrato | C27: =IF(VLOOKUP(B6,TabEmpresas[],12,FALSE)="A", "Antigo","Novo") -> Antigo | F27: CUSD | G27: 2023-03-03T13:54:09 | L27: 398 | M27: Eletrocar | N27: Centrais Elétricas de Carazinho S.A. | O27: 147 | P27: 398 | Q27: SUPRIDA | T27: 84/2000 | U27: 42347 | V27: Carazinho - RS | W27: 88.446.034/0001-55 | X27: N | Z27: 369 | AA27: Ceron | AB27: 15093713.96 | AC27: 45273
B28: Contrato de concessão | C28: =VLOOKUP(B6,TabEmpresas[],8,FALSE) -> 1/1997 | F28: Suprimento: Financeiro de Ultrapassagem e Sobrecontratação | L28: 6585 | M28: EMG | N28: Energisa Minas Gerais - Distribuidora de Energia S.A. | O28: 150 | P28: 6585 | Q28: NÃO SUPRIDA | T28: 40/1999 | U28: 42347 | V28: Cataguases - MG | W28: 19.527.639/0001-58 | X28: N | Z28: 370 | AA28: Roraima Energia | AB28: - | AC28: 45231
B29: Número do Processo | C29: 48500.006880/2022-37 | F29: Uderor | G29: 2023-03-03T14:00:00 | L29: 404 | M29: EMS | N29: Energisa Mato Grosso do Sul - Distribuidora de Energia S.A. | O29: 151 | P29: 404 | Q29: NÃO SUPRIDA | T29: 1/1997 | V29: Campo Grande - MS | W29: 15.413.826/0001-50 | X29: A | Z29: 371 | AA29: Celpa | AB29: 45757056.41 | AC29: 45145
B30: Período de Referencia | C30: =TEXT(C16,"mmmm/aaaa")& " a "&TEXT(C15,"mmmm/aaaa") -> abril/2022 a março/2023 | F30: BMP/RIT | G30: 2023-03-23T13:30:55 | L30: 405 | M30: EMT | N30: Energisa Mato Grosso - Distribuidora de Energia S.A. | O30: 117 | P30: 405 | Q30: NÃO SUPRIDA | T30: 3/1997 | V30: Cuibá - MT | W30: 03.467.321/0001-99 | X30: A | Z30: 380 | AA30: EDP ES | AB30: 18533169.05 | AC30: 45145
B31: Início da vigênica por extenso | C31: =DAY(LnkTxtDRPData)&" de "&TEXT(LnkTxtDRPData,"mmmmmm")&" de "&YEAR(LnkTxtDRPData) -> 8 de abril de 2023 | L31: 39 | M31: ENEL CE | N31: Companhia Energética do Ceará | O31: 130 | P31: 39 | Q31: NÃO SUPRIDA | T31: 1/1998 | V31: Fortaleza - CE | W31: 07.047.251/0001-70 | X31: A | Z31: 381 | AA31: ELFSM | AB31: 9708893.06 | AC31: 45191
B32: CNPJ | C32: =VLOOKUP(B6,TabEmpresas[],11,FALSE) -> 15.413.826/0001-50 | L32: 6072 | M32: ENEL GO | N32: Enel Distribuição Goiás | O32: 112 | P32: 6072 | Q32: NÃO SUPRIDA | T32: 63/2000 | U32: 42367 | V32: Goiânia - GO | W32: 01.543.032/0001-04 | X32: N | Z32: 382 | AA32: Light | AB32: 55658776.51 | AC32: 45000
B33: Período de competência de previsão de subsídios | C33: =TEXT(EDATE(Aj.Subsidio!G17,12),"mmmmmm")&"/"&TEXT(EDATE(Aj.Subsidio!G17,12),"aaaa")&" a "&TEXT(EDATE(Aj.Subsidio!R17,12),"mmmmmm")&"/"&TEXT(EDATE(Aj.Subsidio!R17,12),"aaaa") -> abril/2023 a março/2024 | L33: 383 | M33: ENEL RJ | N33: Ampla Energia e Serviços S.A. | O33: 103 | P33: 383 | Q33: NÃO SUPRIDA | T33: 5/1996 | U33: 42808 | V33: Rio de Janeiro - RJ | W33: 33.050.071/0001-58 | X33: N | Z33: 383 | AA33: Enel RJ | AB33: 37000287.05 | AC33: 45000
B34: Período de competêbnc de ajuste de subsídios | C34: =TEXT(Aj.Subsidio!G17,"mmmmmm")&"/"&TEXT(Aj.Subsidio!G17,"aaaa")&" a "&TEXT(Aj.Subsidio!R17,"mmmmmm")&"/"&TEXT(Aj.Subsidio!R17,"aaaa") -> abril/2022 a março/2023 | L34: 390 | M34: ENEL SP | N34: Eletropaulo Metropolitana Eletricidade de São Paulo S.A. | O34: 148 | P34: 390 | Q34: NÃO SUPRIDA | T34: 162/1998 | V34: São Paulo - SP | W34: 61.695.227/0001-93 | X34: A | Z34: 385 | AA34: Elektro | AB34: 37215011.94 | AC34: 45165
B35: Cidade Sede | C35: =VLOOKUP(B6,TabEmpresas[],10,FALSE) -> Campo Grande - MS | L35: 6612 | M35: ENF | N35: Energisa Nova Friburgo - Distribuidora de Energia S.A. | O35: 152 | P35: 6612 | Q35: SUPRIDA | T35: 42/1999 | U35: 42347 | V35: Nova Friburgo - RJ | W35: 33.249.046/0001-06 | X35: N | Z35: 390 | AA35: Enel SP | AB35: 10828671.92 | AC35: 45111
B36: Receita | C36: =IF(Mercado!D24>2000000000,ROUND(Mercado!D24/1000000000,2)&" bilhões",IF(Mercado!D24>1000000000,ROUND(Mercado!D24/1000000000,2)&" bilhão",IF(Mercado!D24>100000000,ROUND(Mercado!D24/1000000,0)&" milhões",IF(Mercado!D24>10000000,ROUND(Mercado!D24/1000000,1)&" milhões",IF(Mercado!D24>2000000,ROUND(Mercado!D24/1000000,2)&" milhões",IF(Mercado!D24>1000000,ROUND(Mercado!D24/1000000,2)&" milhão",ROUND(Mercado!D24/1000,0)&" mil")))))) -> 3,67 bilhões | L36: 6600 | M36: EPB | N36: Energisa Paraíba - Distribuidora de Energia S.A. | O36: 153 | P36: 6600 | Q36: NÃO SUPRIDA | T36: 19/2001 | V36: João Pessoa - PB | W36: 09.095.183/0001-40 | X36: A | Z36: 391 | AA36: EDP SP | AB36: 6983044.82 | AC36: 45222
B37: Unidades Consumidoras | C37: =IF(Mercado!E38>2000000,ROUND(Mercado!E38/1000000,2)&" milhões",IF(Mercado!E38>1000000,ROUND(Mercado!E38/1000000,2)&" milhão",IF(Mercado!E38>100000,ROUND(Mercado!E38/1000,0)&" mil",IF(Mercado!E38>10000,ROUND(Mercado!E38/1000,1)&" mil",IF(Mercado!E38>1000,ROUND(Mercado!E38/1000,2)&" mil",Mercado!E38))))) -> 0 | L37: 44 | M37: Equatorial AL | N37: Equatorial Alagoas Distribuidora de Energia S.A. | O37: 108 | P37: 44 | Q37: NÃO SUPRIDA | T37: 2/2019 | U37: 42579 | V37: Maceió - AL | W37: 12.272.084/0001-00 | X37: N | Z37: 398 | AA37: Eletrocar | AB37: 4139888.59 | AC37: 45129
B38: Data SAMP | C38: =TEXT(_xlfn.MAXIFS(Mercado_Receita!K:K,Mercado_Receita!B:B,"regular"),"mmmmmm")&"/"&YEAR(_xlfn.MAXIFS(Mercado_Receita!K:K,Mercado_Receita!B:B,"regular")) -> fevereiro/2023 | L38: 37 | M38: Equatorial MA | N38: Equatorial Maranhão Distribuidora de Energia S.A. | O38: 116 | P38: 37 | Q38: NÃO SUPRIDA | T38: 60/2000 | V38: São Luís - MA | W38: 06.272.793/0001-84 | X38: A | Z38: 399 | AA38: Hidropan | AB38: 2453396.71 | AC38: 45129
L39: 371 | M39: Equatorial PA | N39: Equatorial Pará Distribuidora de Energia S.A. | O39: 113 | P39: 371 | Q39: NÃO SUPRIDA | T39: 182/1998 | V39: Belém - PA | W39: 04.895.728/0001-80 | X39: A | Z39: 400 | AA39: Uhenpal | AB39: 1310673.9 | AC39: 45129
L40: 38 | M40: Equatorial PI | N40: Equatorial Piauí Distribuidora de Energia S.A. | O40: 119 | P40: 38 | Q40: NÃO SUPRIDA | T40: 1/2018 | U40: 42579 | V40: Teresina - PI | W40: 06.840.748/0001-89 | X40: N | Z40: 401 | AA40: MuxEnergia | AB40: 841433.29 | AC40: 45129
L41: 369 | M41: ERO | N41: Energisa Rondônia - Distribuidora de Energia S.A. | O41: 120 | P41: 369 | Q41: NÃO SUPRIDA | T41: 2/2018 | U41: 42579 | V41: Porto Velho - RO | W41: 05.914.650/0001-66 | X41: N | Z41: 404 | AA41: EMS | AB41: 52892276.34 | AC41: 45024
L42: 6587 | M42: ESE | N42: Energisa Sergipe - Distribuidora de Energia S.A. | O42: 155 | P42: 6587 | Q42: NÃO SUPRIDA | T42: 7/1997 | V42: Aracajú - SE | W42: 13.017.462/0001-63 | X42: A | Z42: 405 | AA42: EMT | AB42: 111642788.8 | AC42: 45024
L43: 1000040 | M43: ESS | N43: Energisa Sul-Sudeste - Distribuidora de Energia S.A. | O43: 165 | P43: 1000040 | Q43: NÃO SUPRIDA | T43: 13/1999 | U43: 42347 | V43: Presidente Prudente - SP | W43: 07.282.377/0001-20 | X43: N | Z43: 2866 | AA43: Copel-DIS | AB43: 48787538.59 | AC43: 45101
L44: 32 | M44: ETO | N44: Energisa Tocantins Distribuidora de Energia S.A. | O44: 115 | P44: 32 | Q44: NÃO SUPRIDA | T44: 52/1999 | U44: 43805 | V44: Palmas - TO | W44: 25.086.034/0001-71 | X44: A | Z44: 2904 | AA44: Cooperaliança | AB44: 2087573.53 | AC44: 45167
L45: 83 | M45: Forcel | N45: Força e Luz Coronel Vivida Ltda. | O45: 156 | P45: 83 | Q45: SUPRIDA | T45: 69/1999 | U45: 42347 | V45: Coronel Vivida - PR | W45: 79.850.574/0001-09 | X45: N | Z45: 2937 | AA45: CPFL Piratininga | AB45: 6129874.16 | AC45: 45222
L46: 399 | M46: Hidropan | N46: Hidropan Distribuição de Energia S.A. | O46: 157 | P46: 399 | Q46: SUPRIDA | T46: 86/2000 | U46: 42347 | V46: Panambi - RS | W46: 91.982.348/0001-87 | X46: N | Z46: 4950 | AA46: Cemig-D | AB46: 192977039.4 | AC46: 45074
B47: Deslocar mercado | C47: Não | L47: 88 | M47: João Cesa | N47: Empresa Força e Luz João Cesa Ltda. | O47: 143 | P47: 88 | Q47: SUPRIDA | T47: 26/1999 | U47: 42347 | V47: Siderópolis - RS | W47: 86.301.124/0001-22 | X47: N | Z47: 5160 | AA47: Neoenergia Brasília | AB47: 11890085.01 | AC47: 45221
B48: Data de processamento em simulação | C48: 43811 | L48: 382 | M48: Light | N48: Light Serviços de Eletricidade S.A. | O48: 160 | P48: 382 | Q48: NÃO SUPRIDA | T48: 1/1996 | U48: 42803 | V48: Rio de Janeiro - RJ | W48: 60.444.437/0001-46 | X48: N | Z48: 5697 | AA48: Celesc-DIS | AB48: 43320822.77 | AC48: 45160
L49: 401 | M49: Mux Energia | N49: Muxfeldt Marin E Cia Ltda | O49: 161 | P49: 401 | Q49: SUPRIDA | T49: 87/2000 | U49: 42347 | V49: Tapejara - RS | W49: 97.578.090/0001-34 | X49: N | Z49: 5707 | AA49: CEEE-D | AB49: 13871557.23 | AC49: 45252
L50: 5160 | M50: Neoenergia Brasília | N50: Neoenergia Distribuição Brasília S.A. | O50: 109 | P50: 5160 | Q50: NÃO SUPRIDA | T50: 66/1999 | U50: 42347 | V50: Brasília - DF | W50: 07.522.669/0001-92 | X50: N | Z50: 6072 | AA50: Enel GO | AB50: 55454167.84 | AC50: 45221
L51: 47 | M51: Neoenergia Coelba | N51: Companhia de Eletricidadedo Estado da Bahia | O51: 129 | P51: 47 | Q51: NÃO SUPRIDA | T51: 10/1997 | V51: Salvador - BA | W51: 15.139.629/0001-94 | X51: A | Z51: 6585 | AA51: EMG | AB51: 12072663.7 | AC51: 45099
L52: 40 | M52: Neoenergia Cosern | N52: Companhia Energetica do Rio Grande do Norte | O52: 133 | P52: 40 | Q52: NÃO SUPRIDA | T52: 8/1997 | V52: Natal - RN | W52: 08.324.196/0001-81 | X52: A | Z52: 6587 | AA52: ESE | AB52: 6782192.37 | AC52: 45038
L53: 385 | M53: Neoenergia Elektro | N53: Elektro Redes S.A. | O53: 145 | P53: 385 | Q53: NÃO SUPRIDA | T53: 187/1998 | V53: Campinas - SP | W53: 02.328.280/0001-97 | X53: A | Z53: 6600 | AA53: EPB | AB53: 18236320.28 | AC53: 45166
L54: 43 | M54: Neoenergia Pernambuco | N54: Companhia Energética de Pernambuco | O54: 114 | P54: 43 | Q54: NÃO SUPRIDA | T54: 26/2000 | V54: Recife - PE | W54: 10.835.932/0001-08 | X54: A | Z54: 6611 | AA54: EBO | AB54: 7479490.91 | AC54: 45166
L55: 400 | M55: Nova Palma | N55: Nova Palma Energia Ltda. | O55: 164 | P55: 400 | Q55: SUPRIDA | T55: 107/2001 | U55: 42347 | V55: Faxinal do Soturno - RS | W55: 89.889.604/0001-44 | X55: N | Z55: 6612 | AA55: ENF | AB55: 4979351.98 | AC55: 45099
L56: 1000042 | M56: RGE | N56: RGE Sul Distribuidora de Energia S.A. | O56: 167 | P56: 1000042 | Q56: NÃO SUPRIDA | T56: 12/1997 | V56: São Leopoldo - RS | W56: 02.016.440/0001-62 | X56: A | Z56: 7019 | AA56: AmE | AB56: 7499249.7 | AC56: 45231
L57: 370 | M57: Roraima Energia | N57: Roraima Energia S.A. | O57: 105 | P57: 370 | Q57: NÃO SUPRIDA | T57: 4/2018 | U57: 42579 | V57: Boa Vista - RR | W57: 02.341.470/0001-44 | X57: N | Z57: 7019 | AA57: AmE | AB57: 7499249.7 | AC57: 45231
L58: 381 | M58: Santa Maria | N58: Empresa Luz e Força Santa Maria S/A | O58: 149 | P58: 381 | Q58: SUPRIDA | T58: 20/1999 | U58: 42347 | V58: Colatina - ES | W58: 27.485.069/0001-09 | X58: N | Z58: 7019 | AA58: AmE | AB58: 7499249.7 | AC58: 45231
L59: 46 | M59: Sulgipe | N59: Companhia Sul Sergipana de Eletricidade | O59: 163 | P59: 46 | Q59: SUPRIDA | T59: 91/1999 | U59: 42347 | V59: Estância - SE | W59: 13.255.658/0001-96 | X59: N | Z59: 7019 | AA59: AmE | AB59: 7499249.7 | AC59: 45231

Sheet Resultado
B1: =CAPA!C7&" "&CAPA!B6&"/"&YEAR(CAPA!$C$10) -> Revisão EMS/2023
B2: Resultado | F2: Parâmetros a serem considerados para os Reajustes subsequentes
E3: CP
B4: RA1 | D4: =D39+D44 -> 3834393117 | E4: 3982607175 | F4: FATOR X | H4: 3818481988 | I4: =D4-H4 -> 15911129.46 | K4: Última versão enviada: | L4: 28
B5: RA0 | D5: =Mercado!D24 -> 3665913449 | E5: 3791333992 | F5: Componente T do Fator X | G5: ='VPB e Fator X'!C36 -> 0.01388856819 | H5: 3665913449 | I5: =D5-H5 -> 0 | K5: Data de envio | L5: 2023-03-31T13:56:15
B6: Índice de Reposição/Reajuste (Anexo II) | D6: =D4/D5-1 -> 0.04595844124 | E6: 0.05045010099 | F6: Componente Pd do Fator X | G6: ='VPB e Fator X'!C33 -> 0.00424965535 | H6: 0.0416181507 | I6: 0.004340290539
B7: Componentes Financeiros | D7: =Financeiros!E8 -> 0.01316852954 | E7: 0.003976460223 | H7: 0.01319111845 | I7: -2.258890883e-05 | K7: Efeito Consumidor
B8: Índice de Reposição/Reajuste com Financeiros (Anexo I) | D8: =D6+D7 -> 0.05912697078 | E8: 0.05442656121 | F8: PERDAS | H8: 0.05480926915 | I8: 0.00431770163 | K8: Efeito Grupo A - Alta tensão | L8: 0.06273463184
F9: Perdas Não Técnicas | G9: =Entrada!G33 -> 0.05807046153 | K9: Efeito Grupo B - Baixa tensão | L9: 0.1046952532
C10: DRA | D10: DRP | E10: DRP | F10: Perdas Técnicas | G10: =Entrada!G34 -> 0.09949481468 | H10: DRP | K10: Efeito tarifário médio AT+BT | L10: 0.09267069214
B11: TOTAL (Parcela A + Parcela B) | C11: =C44+C39 -> 2164404387 | D11: =D44+D39 -> 3834393117 | E11: 3982607175 | H11: 3818481988 | I11: 15911129.46 | K11: Tarifa B1 - Residencial (R$) | L11: 880.3960286
B12: Financeiros para PCAT | D12: =Financeiros!D8/(1+IF(Mercado!G13>0,Mercado!G13,0)) -> 48274689.55 | E12: 15076088.81 | H12: 48357498.54 | I12: -82808.98469
B13: Total com financeiros | D13: =D12+D11 -> 3882667807 | E13: 3997683264 | H13: 3866839486 | I13: 15828320.48 | K13: Subvenção da CDE para descontos tarifários (Valores anuais)
K14: Subsídio Carga Fonte Incentivada | L14: 98411349.66
K15: Subsídio Geração Fonte Incentivada | L15: 21444624.09
B16: Parcela A | F16: Formação da Parcela B e Reposicionamento (Resumo) | K16: Subsídio Distribuição | L16: 0
K17: Subsídio Água, Esgoto e Saneamento | L17: 0
C18: DRA | D18: DRP | E18: DRP | F18: CO ativos Eletrosul | G18: ='VPB e Fator X'!F15 -> 1165533.59 | H18: DRP | K18: Subsídio Rural | L18: 678484.2395
B19: ENCARGOS | C19: =SUM(C20:C28) -> 681751770.9 | D19: =SUM(D20:D28) -> 720363833.1 | E19: 809036421.5 | F19: Custo de Administração, Operação e Manutenção (CAOM) | G19: =SUM(G20:G22) -> 791435516.2 | H19: 720240130.1 | I19: 123703.0713 | K19: Subsídio Irrigante/Aquicultor | L19: 10580880.02
B20: Reserva Global de Reversão – RGR | C20: 0 | D20: =Encargos!C16 -> 0 | E20: 0 | F20: Custos Operacionais (CO) | G20: ='VPB e Fator X'!C121 -> 766518576 | H20: 0 | I20: 0 | K20: Subsídio SCEE | L20: 52892276.34
B21: Conta de Consumo de Combustíveis – CCC | C21: 0 | D21: =Encargos!C9 -> 0 | E21: 0 | F21: Receitas Irrecuperáveis - Encargos Setoriais (Vi) | G21: ='VPB e Fator X'!C204 -> 7753817.741 | H21: 0 | I21: 0 | K21: Versão de Mercado
B22: Taxa de Fisc. de Serviços de E.E. – TFSEE | C22: =Mercado!I66 -> 7055004.65 | D22: =Encargos!C17 -> 7095920.601 | E22: 6925769.698 | F22: Demais Receitas Irrecuperáveis (Vse) | G22: ='VPB e Fator X'!C208 -> 17163122.43 | H22: 7128933.574 | I22: -33012.97298 | K22: Status de Sincronização de BDL | L22: Trabalha na pasta de rede
B23: Conta de Desenvolvimento Energético – CDE | C23: =Mercado!H66+Mercado!AA66+Mercado!AB66+Mercado!AC66+Mercado!AD66 -> 504589509.8 | D23: =Encargos!C10 -> 545699113.2 | E23: 607624246.5 | F23: Custo Anual dos Ativos (CAA) | G23: =SUM(G24:G26) -> 717911943.2 | H23: 545699113.2 | I23: 0 | K23: Última Sincronização | L23: 2023-03-03T14:27:35
B24: Compensação financeira - CFURH | C24: =Mercado!J66 -> 0 | D24: =Encargos!C11 -> 0 | E24: 0 | F24: Remuneração do Capital (RC) | G24: ='VPB e Fator X'!C95 -> 413197791 | H24: 0 | I24: 0
B25: Encargos Serv. Sist. - ESS e Energ. Reserv. - EER | C25: =Mercado!F66 -> 67143455.55 | D25: =Encargos!C12 -> 70240849.8 | E25: 95776986 | F25: Quota de Reintegração Regulatória (QRR) | G25: ='VPB e Fator X'!C77 -> 207781756.8 | H25: 70240849.8 | I25: 0
B26: PROINFA | C26: =Mercado!G66 -> 72802866.84 | D26: =Encargos!C13 -> 64812678.65 | E26: 64812678.65 | F26: Custo anual das instalações móveis e imóveis (CAIMI) | G26: ='VPB e Fator X'!C67 -> 96932395.36 | H26: 64812678.65 | I26: 0
B27: P&D e Eficiência Energética | C27: =Mercado!D66 -> 30044565.18 | D27: =Encargos!C15 -> 32386595.56 | E27: 33775705.12 | F27: Parcela B (VPB) | G27: =SUM(G23,G19)+G18 -> 1510512993 | H27: 32229879.51 | I27: 156716.0443
B28: Contribuição ONS | C28: =Mercado!E66 -> 116368.8817 | D28: =Encargos!C14 -> 128675.3555 | E28: 121035.5357 | F28: Índice de Produtividade da Parcela B | G28: ='VPB e Fator X'!C33 -> 0.00424965535 | H28: 128675.3555 | I28: 0
B29: TRANSPORTE | C29: =SUM(C30:C37) -> 295197501.1 | D29: =SUM(D30:D37) -> 358549748.5 | E29: 353281039.2 | F29: Mecanismo de Incentivo à Qualidade | G29: ='VPB1'!F42 -> -0.003532119186 | H29: 358532619.9 | I29: 17128.52374 | K29: Ajuste associado ao SCEE
B30: Rede Básica | C30: ='RB e Conexão'!D6 -> 145840962.8 | D30: ='RB e Conexão'!E6 -> 188998082 | E30: 184947365.1 | F30: Parcela B com ajustes | G30: =(1-G28-G29)*G27+G42 -> 1568375769 | H30: 188998082 | I30: 0
B31: Rede Básica Fronteira | C31: ='RB e Conexão'!D7 -> 47421721.2 | D31: ='RB e Conexão'!E7 -> 54820121.21 | E31: 53516822.6 | F31: 2. Outras Receitas (OR) | G31: ='VPB e Fator X'!D189 -> 31195612.98 | H31: 54820121.21 | I31: 0
B32: Rede Básica ONS (A2) | C32: =VLOOKUP("TUSDg ONS DRA",TUSDG[],2,FALSE) -> 1945642.44 | D32: =VLOOKUP("TUSDg ONS DRP",TUSDG[],2,FALSE) -> 1207797.29 | E32: 1207797.29 | F32: Ultrapassagem de Demanda | G32: ='VPB e Fator X'!D196 -> 1698092.931 | H32: 1207797.29 | I32: 0
B33: Rede Básica Export. (A2) | C33: =VLOOKUP("TUSDg Export DRA",TUSDG[],2,FALSE) -> 0 | D33: =VLOOKUP("TUSDg Export DRP",TUSDG[],2,FALSE) -> 0 | E33: 0 | F33: Excedente de Reativos | G33: ='VPB e Fator X'!D197 -> 2372924.528 | H33: 0 | I33: 0
B34: MUST Itaipu | C34: ='RB e Conexão'!D8 -> 17970778.58 | D34: ='RB e Conexão'!E8 -> 17882274.93 | E34: 17882274.93 | F34: Parcela B deduzidas as outras receitas | G34: =G30-G31-G32-G33 -> 1533109138 | H34: 17882274.93 | I34: 0
B35: Transporte de Itaipu | C35: =SUMPRODUCT(itaiputransporte[Potência],itaiputransporte[Tarifa DRA]) -> 21507040.65 | D35: =SUMPRODUCT(itaiputransporte[Potência],itaiputransporte[Tarifa DRP]) -> 25812206.41 | E35: 26073750.64 | H35: 25812206.41 | I35: 0
B36: Conexão | C36: =IF(YEAR(CAPA!C10)=2013,Entrada!C46,BD!C40) -> 51557950.99 | D36: ='RB e Conexão'!E9 -> 59792584.7 | E36: 59624744.32 | F36: Receita Requerida (RR) | G36: =G30+D39 -> 3869659748 | H36: 59775456.18 | I36: 17128.52374
B37: Uso do sistema de distribuição e CCD | C37: =CUSD!C14 -> 8953404.397 | D37: =CUSD!D14+CUSD!E14 -> 10036681.92 | E37: 10028284.31 | F37: Outras Receitas (OR) | G37: =G31 -> 31195612.98 | H37: 10036681.92 | I37: 0
B38: ENERGIA | C38: =Energia!C15 -> 1187455115 | D38: =Energia!D15 -> 1222370397 | E38: 1358051636 | F38: Receita Verificada (RV) | G38: =Mercado!D24 -> 3665913449 | H38: 1210526926 | I38: 11843471.46
B39: VPA (ENCARGO + TRANSPORTE + ENERGIA) | C39: =C38+C29+C19 -> 2164404387 | D39: =D19+D29+D38 -> 2301283979 | E39: 2520369097 | H39: 2289299676 | I39: 11984303.05
B41: Parcela B
F42: Ajuste de PB associado ao SCEE | G42: =G43+G44+G45 -> 58946623.58
C43: VPB0 | D43: VPB1 | E43: VPB1 | F43: Mercado de Referência 12 meses | G43: 61010957.85 | H43: VPB1
B44: ="Parcela B "&IF(CAPA!C7="Revisão","(menos Outras Receitas)",) -> Parcela B (menos Outras Receitas) | C44: ='VPB1'!C10 -> 0 | D44: ='VPB1'!C12 -> 1533109138 | E44: 1462238078 | F44: Componente Pd do Mercado de Referência | G44: -3785702.54 | H44: 1529182312 | I44: 3926826.407
F45: TUSDg | G45: 1721368.27
D48: 16119222.37
D49: =D48/LnkTxtRA -> 0.004397054811

Sheet Antecipação UDER
D3: Resumo do cálculo
D4: Total de UDER antecipado, faturado e atualizado | G4: =H65+H34 -> 96631887.12
D5: Total de spread devido à concessionária | G5: =J65+J34 -> 3630503.306
D8: UDER considerado no RTA 2022 e faturado no RTA 2023
D11: Financeiros de PB (RTA 2022)
D12: Antecipação de UDER | F12: -19747651.63
D13: Reversão de Diferimento de PB | F13: 44437305.6
D14: Financeiro de postergação de tarifas | F14: 4550358.65
D15: Total | F15: =SUM(F12:F14) -> 29240012.62
D18: Proporção UDER nos financeiros de PB | F18: =F12/SUM(F12:F14) -> -0.6753639913
E21: Faturamento PB (RTA 2023) | F21: Faturamento UDER (RTA 2023) | G21: Correção SELIC (RTA 2023) | H21: UDER Atualizado | I21: Spread pactuado (2,8% a.a.) | J21: Spread devido (R$)
D22: =CAPA!C16 -> 44652 | E22: =SUMIFS(Mercado_Receita!EC:EC,Mercado_Receita!K:K,'Antecipação UDER'!D22) -> 2514933.262 | F22: =$F$18*E22 -> -1698495.366 | G22: =VLOOKUP(CAPA!$C$15,Índices!$B$7:$F$1000,5)/VLOOKUP(EDATE(D22,-1),Índices!$B$7:$F$1000,5)-1 -> 0.1328719938 | H22: =-F22*(1+G22) -> 1924177.831 | I22: =1.028^((YEAR(LnkTxtDRPData)*12+(MONTH(LnkTxtDRPData)-YEAR(D22)*12-MONTH('Antecipação UDER'!D22)))/12)-1 -> 0.028 | J22: =I22*H22 -> 53876.97928
D23: =EDATE(D22,1) -> 44682 | E23: =SUMIFS(Mercado_Receita!EC:EC,Mercado_Receita!K:K,'Antecipação UDER'!D23) -> 2258672.271 | F23: -1525425.92 | G23: =VLOOKUP(CAPA!$C$15,Índices!$B$7:$F$1000,5)/VLOOKUP(EDATE(D23,-1),Índices!$B$7:$F$1000,5)-1 -> 0.123498416 | H23: =-F23*(1+G23) -> 1713813.605 | I23: =1.028^((YEAR(LnkTxtDRPData)*12+(MONTH(LnkTxtDRPData)-YEAR(D23)*12-MONTH('Antecipação UDER'!D23)))/12)-1 -> 0.02563702065 | J23: =I23*H23 -> 43937.07479
D24: 44713 | E24: =SUMIFS(Mercado_Receita!EC:EC,Mercado_Receita!K:K,'Antecipação UDER'!D24) -> 2030368.874 | F24: -1371238.027 | G24: =VLOOKUP(CAPA!$C$15,Índices!$B$7:$F$1000,5)/VLOOKUP(EDATE(D24,-1),Índices!$B$7:$F$1000,5)-1 -> 0.1119938136 | H24: 1524808.203 | I24: =1.028^((YEAR(LnkTxtDRPData)*12+(MONTH(LnkTxtDRPData)-YEAR(D24)*12-MONTH('Antecipação UDER'!D24)))/12)-1 -> 0.02327947289 | J24: 35496.73123
D25: 44743 | E25: =SUMIFS(Mercado_Receita!EC:EC,Mercado_Receita!K:K,'Antecipação UDER'!D25) -> 2069546.975 | F25: -1397697.505 | G25: =VLOOKUP(CAPA!$C$15,Índices!$B$7:$F$1000,5)/VLOOKUP(EDATE(D25,-1),Índices!$B$7:$F$1000,5)-1 -> 0.1008170463 | H25: 1538609.239 | I25: =1.028^((YEAR(LnkTxtDRPData)*12+(MONTH(LnkTxtDRPData)-YEAR(D25)*12-MONTH('Antecipação UDER'!D25)))/12)-1 -> 0.02092734424 | J25: 32199.00519
D26: 44774 | E26: =SUMIFS(Mercado_Receita!EC:EC,Mercado_Receita!K:K,'Antecipação UDER'!D26) -> 2237734.484 | F26: -1511285.293 | G26: =VLOOKUP(CAPA!$C$15,Índices!$B$7:$F$1000,5)/VLOOKUP(EDATE(D26,-1),Índices!$B$7:$F$1000,5)-1 -> 0.08954200329 | H26: 1646608.805 | I26: =1.028^((YEAR(LnkTxtDRPData)*12+(MONTH(LnkTxtDRPData)-YEAR(D26)*12-MONTH('Antecipação UDER'!D26)))/12)-1 -> 0.01858062222 | J26: 30595.01616
D27: 44805 | E27: =SUMIFS(Mercado_Receita!EC:EC,Mercado_Receita!K:K,'Antecipação UDER'!D27) -> 2272545.025 | F27: -1534795.078 | G27: =VLOOKUP(CAPA!$C$15,Índices!$B$7:$F$1000,5)/VLOOKUP(EDATE(D27,-1),Índices!$B$7:$F$1000,5)-1 -> 0.07694858355 | H27: 1652895.386 | I27: =1.028^((YEAR(LnkTxtDRPData)*12+(MONTH(LnkTxtDRPData)-YEAR(D27)*12-MONTH('Antecipação UDER'!D27)))/12)-1 -> 0.01623929443 | J27: 26841.85483
D28: 44835 | E28: =SUMIFS(Mercado_Receita!EC:EC,Mercado_Receita!K:K,'Antecipação UDER'!D28) -> 2183211.172 | F28: -1474462.211 | G28: =VLOOKUP(CAPA!$C$15,Índices!$B$7:$F$1000,5)/VLOOKUP(EDATE(D28,-1),Índices!$B$7:$F$1000,5)-1 -> 0.06552633045 | H28: 1571078.309 | I28: =1.028^((YEAR(LnkTxtDRPData)*12+(MONTH(LnkTxtDRPData)-YEAR(D28)*12-MONTH('Antecipação UDER'!D28)))/12)-1 -> 0.01390334845 | J28: 21843.24918
D29: 44866 | E29: =SUMIFS(Mercado_Receita!EC:EC,Mercado_Receita!K:K,'Antecipação UDER'!D29) -> 2214367.547 | F29: -1495504.105 | G29: =VLOOKUP(CAPA!$C$15,Índices!$B$7:$F$1000,5)/VLOOKUP(EDATE(D29,-1),Índices!$B$7:$F$1000,5)-1 -> 0.05476064312 | H29: 1577398.871 | I29: =1.028^((YEAR(LnkTxtDRPData)*12+(MONTH(LnkTxtDRPData)-YEAR(D29)*12-MONTH('Antecipação UDER'!D29)))/12)-1 -> 0.01157277192 | J29: 18254.87737
D30: 44896 | E30: =SUMIFS(Mercado_Receita!EC:EC,Mercado_Receita!K:K,'Antecipação UDER'!D30) -> 2407817.909 | F30: -1626153.514 | G30: =VLOOKUP(CAPA!$C$15,Índices!$B$7:$F$1000,5)/VLOOKUP(EDATE(D30,-1),Índices!$B$7:$F$1000,5)-1 -> 0.04410372834 | H30: 1697872.946 | I30: =1.028^((YEAR(LnkTxtDRPData)*12+(MONTH(LnkTxtDRPData)-YEAR(D30)*12-MONTH('Antecipação UDER'!D30)))/12)-1 -> 0.009247552498 | J30: 15701.16921
D31: 44927 | E31: =SUMIFS(Mercado_Receita!EC:EC,Mercado_Receita!K:K,'Antecipação UDER'!D31) -> 2424569.256 | F31: -1637466.77 | G31: =VLOOKUP(CAPA!$C$15,Índices!$B$7:$F$1000,5)/VLOOKUP(EDATE(D31,-1),Índices!$B$7:$F$1000,5)-1 -> 0.03250544307 | H31: 1690693.353 | I31: =1.028^((YEAR(LnkTxtDRPData)*12+(MONTH(LnkTxtDRPData)-YEAR(D31)*12-MONTH('Antecipação UDER'!D31)))/12)-1 -> 0.006927677865 | J31: 11712.57892
D32: 44958 | E32: =SUMIFS(Mercado_Receita!EC:EC,Mercado_Receita!K:K,'Antecipação UDER'!D32) -> 2421017.781 | F32: -1635068.232 | G32: =VLOOKUP(CAPA!$C$15,Índices!$B$7:$F$1000,5)/VLOOKUP(EDATE(D32,-1),Índices!$B$7:$F$1000,5)-1 -> 0.02103599578 | H32: 1669463.52 | I32: =1.028^((YEAR(LnkTxtDRPData)*12+(MONTH(LnkTxtDRPData)-YEAR(D32)*12-MONTH('Antecipação UDER'!D32)))/12)-1 -> 0.004613135738 | J32: 7701.461828
D33: 44986 | E33: =SUMIFS(Mercado_Receita!EC:EC,Mercado_Receita!K:K,'Antecipação UDER'!D33) -> 2421017.781 | F33: -1635068.232 | G33: =VLOOKUP(CAPA!$C$15,Índices!$B$7:$F$1000,5)/VLOOKUP(EDATE(D33,-1),Índices!$B$7:$F$1000,5)-1 -> 0.01174673195 | H33: 1654274.94 | I33: =1.028^((YEAR(LnkTxtDRPData)*12+(MONTH(LnkTxtDRPData)-YEAR(D33)*12-MONTH('Antecipação UDER'!D33)))/12)-1 -> 0.00230391386 | J33: 3811.306961
D34: Total | E34: =SUM(E22:E33) -> 27455802.34 | F34: =SUM(F22:F33) -> -18542660.25 | H34: =SUM(H22:H33) -> 19861695.01 | J34: =SUM(J22:J33) -> 301971.3049
D39: UDER considerado no RTA 2021 e faturado no RTA 2022
D42: Financeiros de PB (RTA 2021)
D43: Antecipação de UDER | F43: -63816315.13
D44: Reversão de créditos REN 376 e 414 | F44: -840598.71
D45: Diferimento de PB | F45: -40350000
D46: Total | F46: -105006913.8
D49: Proporção UDER nos financeiros de PB | F49: =F43/F46 -> 0.6077344129
E52: Faturamento PB (RTA 2022) | F52: Faturamento UDER (RTA 2022) | G52: Correção SELIC (RTA 2023) | H52: UDER Atualizado (RTA 2023) | I52: Spread pactuado (2,8% a.a.) | J52: Spread devido (R$)
D53: 44287 | E53: -9726454.287 | F53: =$F$49*E53 -> -5911100.986 | G53: =VLOOKUP(CAPA!$C$15,Índices!$B$7:$F$1000,5)/VLOOKUP(EDATE(D53,-1),Índices!$B$7:$F$1000,5)-1 -> 0.2059175266 | H53: =-F53*(1+G53) -> 7128300.28 | I53: =1.028^((YEAR(LnkTxtDRPData)*12+(MONTH(LnkTxtDRPData)-YEAR(D53)*12-MONTH('Antecipação UDER'!D53)))/12)-1 -> 0.056784 | J53: =I53*H53 -> 404773.4031
D54: 44317 | E54: -8434243.864 | F54: =$F$49*E54 -> -5125780.243 | G54: =VLOOKUP(CAPA!$C$15,Índices!$B$7:$F$1000,5)/VLOOKUP(EDATE(D54,-1),Índices!$B$7:$F$1000,5)-1 -> 0.2034170089 | H54: =-F54*(1+G54) -> 6168451.128 | I54: =1.028^((YEAR(LnkTxtDRPData)*12+(MONTH(LnkTxtDRPData)-YEAR(D54)*12-MONTH('Antecipação UDER'!D54)))/12)-1 -> 0.05435485723 | J54: =I54*H54 -> 335285.2804
D55: 44348 | E55: -8129888.883 | F55: -4940813.247 | G55: =VLOOKUP(CAPA!$C$15,Índices!$B$7:$F$1000,5)/VLOOKUP(EDATE(D55,-1),Índices!$B$7:$F$1000,5)-1 -> 0.2001726271 | H55: 5929828.815 | I55: =1.028^((YEAR(LnkTxtDRPData)*12+(MONTH(LnkTxtDRPData)-YEAR(D55)*12-MONTH('Antecipação UDER'!D55)))/12)-1 -> 0.05193129813 | J55: 307943.7081
D56: 44378 | E56: -7674018.685 | F56: -4663765.24 | G56: =VLOOKUP(CAPA!$C$15,Índices!$B$7:$F$1000,5)/VLOOKUP(EDATE(D56,-1),Índices!$B$7:$F$1000,5)-1 -> 0.1964900823 | H56: 5580148.855 | I56: =1.028^((YEAR(LnkTxtDRPData)*12+(MONTH(LnkTxtDRPData)-YEAR(D56)*12-MONTH('Antecipação UDER'!D56)))/12)-1 -> 0.04951330987 | J56: 276291.6394
D57: 44409 | E57: -7934333.179 | F57: -4821967.316 | G57: =VLOOKUP(CAPA!$C$15,Índices!$B$7:$F$1000,5)/VLOOKUP(EDATE(D57,-1),Índices!$B$7:$F$1000,5)-1 -> 0.1922502475 | H57: 5748991.726 | I57: =1.028^((YEAR(LnkTxtDRPData)*12+(MONTH(LnkTxtDRPData)-YEAR(D57)*12-MONTH('Antecipação UDER'!D57)))/12)-1 -> 0.04710087965 | J57: 270782.5674
D58: 44440 | E58: -9225188.195 | F58: -5606464.332 | G58: =VLOOKUP(CAPA!$C$15,Índices!$B$7:$F$1000,5)/VLOOKUP(EDATE(D58,-1),Índices!$B$7:$F$1000,5)-1 -> 0.1871697253 | H58: 6655824.72 | I58: =1.028^((YEAR(LnkTxtDRPData)*12+(MONTH(LnkTxtDRPData)-YEAR(D58)*12-MONTH('Antecipação UDER'!D58)))/12)-1 -> 0.04469399467 | J58: 297475.3946
D59: 44470 | E59: -9203997.472 | F59: -5593586 | G59: =VLOOKUP(CAPA!$C$15,Índices!$B$7:$F$1000,5)/VLOOKUP(EDATE(D59,-1),Índices!$B$7:$F$1000,5)-1 -> 0.1819455339 | H59: 6611313.991 | I59: =1.028^((YEAR(LnkTxtDRPData)*12+(MONTH(LnkTxtDRPData)-YEAR(D59)*12-MONTH('Antecipação UDER'!D59)))/12)-1 -> 0.04229264221 | J59: 279609.9371
D60: 44501 | E60: -8873919.626 | F60: -5392986.334 | G60: =VLOOKUP(CAPA!$C$15,Índices!$B$7:$F$1000,5)/VLOOKUP(EDATE(D60,-1),Índices!$B$7:$F$1000,5)-1 -> 0.1762291063 | H60: 6343387.496 | I60: =1.028^((YEAR(LnkTxtDRPData)*12+(MONTH(LnkTxtDRPData)-YEAR(D60)*12-MONTH('Antecipação UDER'!D60)))/12)-1 -> 0.03989680954 | J60: 253080.9227
D61: 44531 | E61: -9274695.132 | F61: -5636551.4 | G61: =VLOOKUP(CAPA!$C$15,Índices!$B$7:$F$1000,5)/VLOOKUP(EDATE(D61,-1),Índices!$B$7:$F$1000,5)-1 -> 0.169367851 | H61: 6591201.998 | I61: =1.028^((YEAR(LnkTxtDRPData)*12+(MONTH(LnkTxtDRPData)-YEAR(D61)*12-MONTH('Antecipação UDER'!D61)))/12)-1 -> 0.03750648397 | J61: 247212.8121
D62: 44562 | E62: -9744482.928 | F62: -5922057.611 | G62: =VLOOKUP(CAPA!$C$15,Índices!$B$7:$F$1000,5)/VLOOKUP(EDATE(D62,-1),Índices!$B$7:$F$1000,5)-1 -> 0.1604430796 | H62: 6872210.772 | I62: =1.028^((YEAR(LnkTxtDRPData)*12+(MONTH(LnkTxtDRPData)-YEAR(D62)*12-MONTH('Antecipação UDER'!D62)))/12)-1 -> 0.03512165285 | J62: 241363.401
D63: 44593 | E63: -9419855.36 | F63: -5724770.267 | G63: =VLOOKUP(CAPA!$C$15,Índices!$B$7:$F$1000,5)/VLOOKUP(EDATE(D63,-1),Índices!$B$7:$F$1000,5)-1 -> 0.1520072722 | H63: 6594976.979 | I63: =1.028^((YEAR(LnkTxtDRPData)*12+(MONTH(LnkTxtDRPData)-YEAR(D63)*12-MONTH('Antecipação UDER'!D63)))/12)-1 -> 0.03274230354 | J63: 215934.7381
D64: 44621 | E64: -9419855.36 | F64: -5724770.267 | G64: =VLOOKUP(CAPA!$C$15,Índices!$B$7:$F$1000,5)/VLOOKUP(EDATE(D64,-1),Índices!$B$7:$F$1000,5)-1 -> 0.1433743274 | H64: 6545555.353 | I64: =1.028^((YEAR(LnkTxtDRPData)*12+(MONTH(LnkTxtDRPData)-YEAR(D64)*12-MONTH('Antecipação UDER'!D64)))/12)-1 -> 0.03036842345 | J64: 198778.1967
D65: Total | E65: =SUM(E53:E64) -> -107060933 | F65: =SUM(F53:F64) -> -65064613.24 | H65: =SUM(H53:H64) -> 76770192.11 | J65: =SUM(J53:J64) -> 3328532.001

Sheet Variações de mercado
E2: Mercado TUSD MWh | H2: Mercado TUSD MW | K2: Mercado TE MWh | P2: Mercado TUSD MWh | R2: Mercado TUSD MW | T2: Mercado TE MWh
D3: =E3-1 -> 2022 | E3: =YEAR(CAPA!C15) -> 2023 | F3: Diferença | G3: 2021 | H3: 2022 | I3: Diferença | J3: 2021 | K3: 2022 | L3: Diferença | P3: =D3 -> 2022 | Q3: =E3 -> 2023 | R3: =G3 -> 2021 | S3: =H3 -> 2022 | T3: =J3 -> 2021 | U3: =K3 -> 2022
B4: =B40 -> cativo | C4: A1 | D4: =AG40 -> 0 | E4: =P40 -> 0 | F4: =IF(D4=0,"",(E4-D4)/D4) ->  | G4: =AG136 -> 0 | H4: =P136 -> 0 | I4: =IF(G4=0,"",(H4-G4)/G4) ->  | J4: =AG232 -> 0 | K4: =P232 -> 0 | L4: =IF(J4=0,"",(K4-J4)/J4) ->  | N4: =B4 -> cativo | O4: =C4 -> A1 | P4: =AG103 ->  | Q4: =P103 ->  | R4: =AG199 ->  | S4: =P199 ->  | T4: =AG294 ->  | U4: =P294 -> 
B5: cativo | C5: A2 | D5: =AG41 -> 3849.138 | E5: =P41 -> 2030.006 | F5: =IF(D5=0,"",(E5-D5)/D5) -> -0.4726076332 | G5: =AG137 -> 66338 | H5: =P137 -> 30427 | I5: =IF(G5=0,"",(H5-G5)/G5) -> -0.5413337755 | J5: =AG233 -> 3849.138 | K5: =P233 -> 2030.006 | L5: =IF(J5=0,"",(K5-J5)/J5) -> -0.4726076332 | N5: =B5 -> cativo | O5: A2 | P5: =AG104 -> 0 | Q5: =P104 -> 0 | R5: =AG200 -> 0 | S5: =P200 -> 0 | T5: =AG295 -> 0 | U5: =P295 -> 0
B6: cativo | C6: A3 | D6: 18253.605 | E6: =P42 -> 16704.838 | F6: -0.08484718498 | G6: 58870 | H6: 57287 | I6: -0.02688975709 | J6: 18253.605 | K6: 16704.838 | L6: -0.08484718498 | N6: cativo | O6: A3 | P6: -0.05969051045 | Q6: -0.03 | R6: -0.05853235944 | S6: -0.03 | T6: -0.05969051045 | U6: -0.03
B7: cativo | C7: A3a | D7: 205141.092 | E7: 185297.379 | F7: -0.09673202383 | G7: 1231411 | H7: 1330248 | I7: 0.08026321025 | J7: 205141.092 | K7: 185297.379 | L7: -0.09673202383 | N7: cativo | O7: A3a | P7: -0.1155324586 | Q7: -0.09084758686 | R7: -0.01807076273 | S7: -0.009493582625 | T7: -0.1155324586 | U7: -0.09084758686
B8: cativo | C8: A4 | D8: 683713.963 | E8: 633775.948 | F8: -0.07303933765 | G8: 3750447 | H8: 3754325 | I8: 0.001034010079 | J8: 683713.963 | K8: 633775.948 | L8: -0.07303933765 | N8: cativo | O8: A4 | P8: -0.02548230428 | Q8: -0.01869897197 | R8: -0.009090105473 | S8: -0.004859367796 | T8: -0.02548230428 | U8: -0.01869897197
B9: cativo | C9: As | D9: 0 | E9: 0 | G9: 0 | H9: 0 | J9: 0 | K9: 0 | N9: cativo | O9: As
B10: cativo | C10: Total AT Cativo | D10: 910957.798 | E10: 837808.171 | F10: -0.08029968804 | G10: 5107066 | H10: 5172287 | I10: 0.01277073764 | J10: 910957.798 | K10: 837808.171 | L10: -0.08029968804 | N10: cativo | O10: Total AT Cativo | P10: -0.04633873167 | Q10: -0.0348360455 | R10: -0.01170736677 | S10: -0.006301095686 | T10: -0.04633873167 | U10: -0.0348360455
B11: cativo | C11: B4 | D11: 207056.33 | E11: 208623.712 | F11: 0.007569833774 | G11: 0 | H11: 0 | J11: 207056.33 | K11: 208623.712 | L11: 0.007569833774 | N11: cativo | O11: B4 | P11: 0 | Q11: 0 | T11: 0 | U11: 0
B12: cativo | C12: B3 | D12: 795048.216 | E12: 740047.736 | F12: -0.06917879808 | G12: 0 | H12: 0 | J12: 795048.216 | K12: 740047.736 | L12: -0.06917879808 | N12: cativo | O12: B3 | P12: -0.002257459389 | Q12: -0.001161290722 | T12: -0.002257459389 | U12: -0.001161290722
B13: cativo | C13: B2 | D13: 434187.86 | E13: =P49 -> 354851.857 | F13: -0.1827227574 | G13: 0 | H13: 0 | J13: 434187.86 | K13: 354851.857 | L13: -0.1827227574 | N13: cativo | O13: B2 | P13: -0.005047108226 | Q13: -0.007117099827 | T13: -0.005047108226 | U13: -0.007117099827
B14: cativo | C14: B1 | D14: 2075059.431 | E14: 1957013.328 | F14: -0.05688805884 | G14: 0 | H14: 0 | J14: 2075059.431 | K14: 1957013.328 | L14: -0.05688805884 | N14: cativo | O14: B1 | P14: 0 | Q14: 0 | T14: 0 | U14: 0
B15: cativo | C15: Total BT Cativo | D15: 3511351.837 | E15: 3260536.633 | F15: -0.07142981269 | G15: 0 | H15: 0 | J15: 3511351.837 | K15: 3260536.633 | L15: -0.07142981269 | N15: cativo | O15: Total BT Cativo | P15: -0.001135227219 | Q15: -0.00103815017 | T15: -0.001135227219 | U15: -0.00103815017
B16: Suprimento | C16: Suprimento (TE) | D16: 0 | E16: 0 | G16: 0 | H16: 0 | J16: 0 | K16: 0 | N16: Suprimento | O16: Suprimento (TE)
B17: Livre | C17: A1 | D17: 0 | E17: 0 | G17: 0 | H17: 0 | J17: 0 | K17: 0 | N17: Livre | O17: A1
B18: Livre | C18: - | D18: 1341788.364 | E18: 1463931.814 | F18: 0.09103033927 | G18: 5571266 | H18: 6181353 | I18: 0.1095059902 | J18: 0 | K18: 0 | N18: Livre | O18: - | P18: -0.01484159728 | Q18: -0.01443510749 | R18: -0.2636696356 | S18: -0.2734862403
B19: Livre APE | C19: - | D19: 103426.725 | E19: 83337.275 | F19: -0.1942384814 | G19: 0 | H19: 0 | J19: 0 | K19: 0 | N19: Livre APE | O19: - | P19: 0 | Q19: 0
B20: =B56 -> ERC | C20: - | D20: 0 | E20: 0 | G20: 0 | H20: 0 | J20: 0 | K20: 0 | N20: ERC | O20: -
B21: Livres | C21: =C57 -> Total Livres | D21: 1445215.089 | E21: 1547269.089 | F21: 0.07061509444 | G21: 5571266 | H21: 6181353 | I21: 0.1095059902 | J21: 0 | K21: 0 | N21: Livres | O21: Total Livres | P21: -0.01377945932 | Q21: -0.01365761989 | R21: -0.2636696356 | S21: -0.2734862403
B22: Distribuição | C22: =C58 -> DISTRIBUIÇÃO | D22: 23586.621 | E22: 24029.513 | F22: 0.01877725512 | G22: 131523 | H22: 134844 | I22: 0.02525033644 | J22: 0 | K22: 0 | N22: Distribuição | O22: DISTRIBUIÇÃO | P22: 0 | Q22: 0 | R22: 0 | S22: 0
B23: Geração | C23: =C59 -> GERADOR | D23: 0 | E23: 0 | G23: 8107730 | H23: 7621102 | I23: -0.06002025228 | J23: 0 | K23: 0 | N23: Geração | O23: GERADOR | R23: -0.2958542447 | S23: -0.3416823094
C24: =C60 -> TOTAL | D24: 5891111.345 | E24: 5669643.406 | F24: =IF(D24=0,"",(E24-D24)/D24) -> -0.03759357548 | G24: 18917585 | H24: 19109586 | I24: 0.01014933989 | J24: 4422309.635 | K24: 4098344.804 | L24: -0.07325693082 | O24: TOTAL | P24: -0.0112225164 | Q24: -0.009472000171 | R24: -0.207609497 | S24: -0.2264361875 | T24: -0.01044676085 | U24: -0.007947318193
D25: 0 | E25: 0 | G25: 0 | H25: 0 | J25: 0 | K25: 0
B26: =B62 -> Residencial baixa renda – faixa 01 | D26: 65293.266 | E26: 76787.739 | F26: 0.1760437746 | G26: 0 | H26: 0 | J26: 65293.266 | K26: 76787.739 | L26: 0.1760437746 | N26: Residencial baixa renda – faixa 01 | P26: 0 | Q26: 0 | T26: 0 | U26: 0
B27: Residencial baixa renda – faixa 02 | D27: 129182.671 | E27: 151842.532 | F27: 0.1754094479 | G27: 0 | H27: 0 | J27: 129182.671 | K27: 151842.532 | L27: 0.1754094479 | N27: Residencial baixa renda – faixa 02 | P27: 0 | Q27: 0 | T27: 0 | U27: 0
B28: Residencial baixa renda – faixa 03 | D28: 113040.17 | E28: 129049.251 | F28: 0.1416229381 | G28: 0 | H28: 0 | J28: 113040.17 | K28: 129049.251 | L28: 0.1416229381 | N28: Residencial baixa renda – faixa 03 | P28: 0 | Q28: 0 | R28: =AG223 ->  | T28: =AG318 -> 0 | U28: 0
B29: Residencial baixa renda – faixa 04 | D29: 47821.671 | E29: 45839.288 | F29: -0.04145365393 | G29: 0 | H29: 0 | J29: 47821.671 | K29: 45839.288 | L29: -0.04145365393 | N29: Residencial baixa renda – faixa 04 | P29: 0 | Q29: 0 | R29: =AG224 ->  | T29: =AG319 -> 0 | U29: 0
C30: =C66 -> Total Baixa renda | D30: 355337.778 | E30: 403518.81 | F30: 0.1355922026 | G30: 0 | H30: 0 | J30: 355337.778 | K30: 403518.81 | L30: 0.1355922026 | O30: =C30 -> Total Baixa renda | P30: 0 | Q30: 0 | T30: 0 | U30: 0
D32: =D39 -> 44986 | E32: =E39 -> 44958 | F32: 44927 | G32: 44896 | H32: 44866 | I32: 44835 | J32: 44805 | K32: 44774 | L32: 44743 | M32: 44713 | N32: 44682 | O32: 44652 | P32: Total
C33: =C47 -> B4 | D33: =D47/U47-1 -> 0.1323935361 | E33: =E47/V47-1 -> 0.1323935361 | F33: -0.01029142689 | G33: 0.02046150651 | H33: -0.03905392446 | I33: -0.08221690828 | J33: -0.018665509 | K33: 0.003670928468 | L33: 0.00256983151 | M33: -0.01844710334 | N33: 0.01548096143 | O33: -0.004632507532 | P33: =P47/AG47-1 -> 0.007569833774
C34: =C48 -> B3 | D34: =D48/U48-1 -> -0.09596634296 | E34: =E48/V48-1 -> -0.09596634296 | F34: =F48/W48-1 -> -0.1363944783 | G34: =G48/X48-1 -> -0.08643863372 | H34: =H48/Y48-1 -> -0.1338722454 | I34: =I48/Z48-1 -> -0.1794653114 | J34: =J48/AA48-1 -> -0.1432581049 | K34: =K48/AB48-1 -> 0.08942539238 | L34: =L48/AC48-1 -> 0.03374422119 | M34: =M48/AD48-1 -> -0.08090730479 | N34: =N48/AE48-1 -> 0.04521154211 | O34: =O48/AF48-1 -> 0.03448784189 | P34: -0.06917879808
C35: B2 | D35: -0.2001777774 | E35: -0.2001777774 | F35: -0.1988738693 | G35: -0.2022858003 | H35: -0.2252776743 | I35: -0.219238931 | J35: -0.1937670778 | K35: -0.162919664 | L35: -0.1898126174 | M35: -0.1886905389 | N35: -0.1395284819 | O35: -0.08026819358 | P35: -0.1827227574
C36: B1 | D36: -0.03155700809 | E36: -0.03155700809 | F36: -0.09294246083 | G36: -0.01700169467 | H36: -0.06869301245 | I36: -0.1306985039 | J36: -0.1219719447 | K36: 0.05388048094 | L36: -0.004727432424 | M36: -0.1119748944 | N36: -0.008539335651 | O36: -0.08569035935 | P36: -0.05688805884
B37: Mercado TUSD MWh | C37: =C51 -> Total BT Cativo | D37: -0.05895334575 | E37: -0.05895334575 | F37: -0.1104658498 | G37: -0.05245718301 | H37: -0.1012781468 | I37: -0.1497460515 | J37: -0.1292118978 | K37: 0.02845958664 | L37: -0.02177385875 | M37: -0.1094153462 | N37: -0.01308680614 | O37: -0.05455433227 | P37: -0.07142981269 | S37: Mercado TUSD MWh
D39: =CAPA!C15 -> 44986 | E39: =EDATE(D39,-1) -> 44958 | F39: =EDATE(E39,-1) -> 44927 | G39: 44896 | H39: 44866 | I39: 44835 | J39: 44805 | K39: 44774 | L39: 44743 | M39: 44713 | N39: 44682 | O39: 44652 | P39: Total | U39: 44621 | V39: 44593 | W39: 44562 | X39: 44531 | Y39: 44501 | Z39: 44470 | AA39: 44440 | AB39: 44409 | AC39: 44378 | AD39: 44348 | AE39: 44317 | AF39: 44287 | AG39: Total
B40: cativo | C40: A1 | D40: 0 | E40: 0 | F40: 0 | G40: 0 | H40: =SUMIFS(DADOS_MercadoBase[TUSD_E],DADOS_MercadoBase[OPÇÃO],'Variações de mercado'!$B40,DADOS_MercadoBase[Subgrupo],'Variações de mercado'!$C40,DADOS_MercadoBase[AnoMes],'Variações de mercado'!H$39) -> 0 | I40: =SUMIFS(DADOS_MercadoBase[TUSD_E],DADOS_MercadoBase[OPÇÃO],'Variações de mercado'!$B40,DADOS_MercadoBase[Subgrupo],'Variações de mercado'!$C40,DADOS_MercadoBase[AnoMes],'Variações de mercado'!I$39) -> 0 | J40: =SUMIFS(DADOS_MercadoBase[TUSD_E],DADOS_MercadoBase[OPÇÃO],'Variações de mercado'!$B40,DADOS_MercadoBase[Subgrupo],'Variações de mercado'!$C40,DADOS_MercadoBase[AnoMes],'Variações de mercado'!J$39) -> 0 | K40: =SUMIFS(DADOS_MercadoBase[TUSD_E],DADOS_MercadoBase[OPÇÃO],'Variações de mercado'!$B40,DADOS_MercadoBase[Subgrupo],'Variações de mercado'!$C40,DADOS_MercadoBase[AnoMes],'Variações de mercado'!K$39) -> 0 | L40: =SUMIFS(DADOS_MercadoBase[TUSD_E],DADOS_MercadoBase[OPÇÃO],'Variações de mercado'!$B40,DADOS_MercadoBase[Subgrupo],'Variações de mercado'!$C40,DADOS_MercadoBase[AnoMes],'Variações de mercado'!L$39) -> 0 | M40: =SUMIFS(DADOS_MercadoBase[TUSD_E],DADOS_MercadoBase[OPÇÃO],'Variações de mercado'!$B40,DADOS_MercadoBase[Subgrupo],'Variações de mercado'!$C40,DADOS_MercadoBase[AnoMes],'Variações de mercado'!M$39) -> 0 | N40: =SUMIFS(DADOS_MercadoBase[TUSD_E],DADOS_MercadoBase[OPÇÃO],'Variações de mercado'!$B40,DADOS_MercadoBase[Subgrupo],'Variações de mercado'!$C40,DADOS_MercadoBase[AnoMes],'Variações de mercado'!N$39) -> 0 | O40: =SUMIFS(DADOS_MercadoBase[TUSD_E],DADOS_MercadoBase[OPÇÃO],'Variações de mercado'!$B40,DADOS_MercadoBase[Subgrupo],'Variações de mercado'!$C40,DADOS_MercadoBase[AnoMes],'Variações de mercado'!O$39) -> 0 | P40: =SUM(D40:O40) -> 0 | S40: cativo | T40: A1 | U40: 0 | V40: 0 | W40: 0 | X40: 0 | Y40: 0 | Z40: 0 | AA40: 0 | AB40: 0 | AC40: 0 | AD40: 0 | AE40: 0 | AF40: 0 | AG40: 0
B41: cativo | C41: A2 | D41: =SUMIFS(DADOS_MercadoBase[TUSD_E],DADOS_MercadoBase[OPÇÃO],'Variações de mercado'!$B41,DADOS_MercadoBase[Subgrupo],'Variações de mercado'!$C41,DADOS_MercadoBase[AnoMes],'Variações de mercado'!D$39) -> 82.458 | E41: =SUMIFS(DADOS_MercadoBase[TUSD_E],DADOS_MercadoBase[OPÇÃO],'Variações de mercado'!$B41,DADOS_MercadoBase[Subgrupo],'Variações de mercado'!$C41,DADOS_MercadoBase[AnoMes],'Variações de mercado'!E$39) -> 82.458 | F41: =SUMIFS(DADOS_MercadoBase[TUSD_E],DADOS_MercadoBase[OPÇÃO],'Variações de mercado'!$B41,DADOS_MercadoBase[Subgrupo],'Variações de mercado'!$C41,DADOS_MercadoBase[AnoMes],'Variações de mercado'!F$39) -> 85.495 | G41: =SUMIFS(DADOS_MercadoBase[TUSD_E],DADOS_MercadoBase[OPÇÃO],'Variações de mercado'!$B41,DADOS_MercadoBase[Subgrupo],'Variações de mercado'!$C41,DADOS_MercadoBase[AnoMes],'Variações de mercado'!G$39) -> 86.755 | H41: =SUMIFS(DADOS_MercadoBase[TUSD_E],DADOS_MercadoBase[OPÇÃO],'Variações de mercado'!$B41,DADOS_MercadoBase[Subgrupo],'Variações de mercado'!$C41,DADOS_MercadoBase[AnoMes],'Variações de mercado'!H$39) -> 88.67 | I41: =SUMIFS(DADOS_MercadoBase[TUSD_E],DADOS_MercadoBase[OPÇÃO],'Variações de mercado'!$B41,DADOS_MercadoBase[Subgrupo],'Variações de mercado'!$C41,DADOS_MercadoBase[AnoMes],'Variações de mercado'!I$39) -> 83.992 | J41: =SUMIFS(DADOS_MercadoBase[TUSD_E],DADOS_MercadoBase[OPÇÃO],'Variações de mercado'!$B41,DADOS_MercadoBase[Subgrupo],'Variações de mercado'!$C41,DADOS_MercadoBase[AnoMes],'Variações de mercado'!J$39) -> 106.717 | K41: =SUMIFS(DADOS_MercadoBase[TUSD_E],DADOS_MercadoBase[OPÇÃO],'Variações de mercado'!$B41,DADOS_MercadoBase[Subgrupo],'Variações de mercado'!$C41,DADOS_MercadoBase[AnoMes],'Variações de mercado'!K$39) -> 113.022 | L41: =SUMIFS(DADOS_MercadoBase[TUSD_E],DADOS_MercadoBase[OPÇÃO],'Variações de mercado'!$B41,DADOS_MercadoBase[Subgrupo],'Variações de mercado'!$C41,DADOS_MercadoBase[AnoMes],'Variações de mercado'!L$39) -> 290.258 | M41: =SUMIFS(DADOS_MercadoBase[TUSD_E],DADOS_MercadoBase[OPÇÃO],'Variações de mercado'!$B41,DADOS_MercadoBase[Subgrupo],'Variações de mercado'!$C41,DADOS_MercadoBase[AnoMes],'Variações de mercado'!M$39) -> 343.998 | N41: =SUMIFS(DADOS_MercadoBase[TUSD_E],DADOS_MercadoBase[OPÇÃO],'Variações de mercado'!$B41,DADOS_MercadoBase[Subgrupo],'Variações de mercado'!$C41,DADOS_MercadoBase[AnoMes],'Variações de mercado'!N$39) -> 326.68 | O41: =SUMIFS(DADOS_MercadoBase[TUSD_E],DADOS_MercadoBase[OPÇÃO],'Variações de mercado'!$B41,DADOS_MercadoBase[Subgrupo],'Variações de mercado'!$C41,DADOS_MercadoBase[AnoMes],'Variações de mercado'!O$39) -> 339.503 | P41: =SUM(D41:O41) -> 2030.006 | S41: cativo | T41: A2 | U41: 287.569 | V41: 287.569 | W41: 315.76 | X41: 339.254 | Y41: 294.95 | Z41: 306.042 | AA41: 359.065 | AB41: 333.529 | AC41: 312.384 | AD41: 342.744 | AE41: 326.365 | AF41: 343.907 | AG41: 3849.138
B42: cativo | C42: A3 | D42: =SUMIFS(DADOS_MercadoBase[TUSD_E],DADOS_MercadoBase[OPÇÃO],'Variações de mercado'!$B42,DADOS_MercadoBase[Subgrupo],'Variações de mercado'!$C42,DADOS_MercadoBase[AnoMes],'Variações de mercado'!D$39) -> 1365.441 | E42: =SUMIFS(DADOS_MercadoBase[TUSD_E],DADOS_MercadoBase[OPÇÃO],'Variações de mercado'!$B42,DADOS_MercadoBase[Subgrupo],'Variações de mercado'!$C42,DADOS_MercadoBase[AnoMes],'Variações de mercado'!E$39) -> 1365.441 | F42: =SUMIFS(DADOS_MercadoBase[TUSD_E],DADOS_MercadoBase[OPÇÃO],'Variações de mercado'!$B42,DADOS_MercadoBase[Subgrupo],'Variações de mercado'!$C42,DADOS_MercadoBase[AnoMes],'Variações de mercado'!F$39) -> 1451.543 | G42: =SUMIFS(DADOS_MercadoBase[TUSD_E],DADOS_MercadoBase[OPÇÃO],'Variações de mercado'!$B42,DADOS_MercadoBase[Subgrupo],'Variações de mercado'!$C42,DADOS_MercadoBase[AnoMes],'Variações de mercado'!G$39) -> 1402.771 | H42: =SUMIFS(DADOS_MercadoBase[TUSD_E],DADOS_MercadoBase[OPÇÃO],'Variações de mercado'!$B42,DADOS_MercadoBase[Subgrupo],'Variações de mercado'!$C42,DADOS_MercadoBase[AnoMes],'Variações de mercado'!H$39) -> 1346.416 | I42: =SUMIFS(DADOS_MercadoBase[TUSD_E],DADOS_MercadoBase[OPÇÃO],'Variações de mercado'!$B42,DADOS_MercadoBase[Subgrupo],'Variações de mercado'!$C42,DADOS_MercadoBase[AnoMes],'Variações de mercado'!I$39) -> 1286.803 | J42: =SUMIFS(DADOS_MercadoBase[TUSD_E],DADOS_MercadoBase[OPÇÃO],'Variações de mercado'!$B42,DADOS_MercadoBase[Subgrupo],'Variações de mercado'!$C42,DADOS_MercadoBase[AnoMes],'Variações de mercado'!J$39) -> 1367.473 | K42: =SUMIFS(DADOS_MercadoBase[TUSD_E],DADOS_MercadoBase[OPÇÃO],'Variações de mercado'!$B42,DADOS_MercadoBase[Subgrupo],'Variações de mercado'!$C42,DADOS_MercadoBase[AnoMes],'Variações de mercado'!K$39) -> 1402.705 | L42: =SUMIFS(DADOS_MercadoBase[TUSD_E],DADOS_MercadoBase[OPÇÃO],'Variações de mercado'!$B42,DADOS_MercadoBase[Subgrupo],'Variações de mercado'!$C42,DADOS_MercadoBase[AnoMes],'Variações de mercado'!L$39) -> 1325.158 | M42: =SUMIFS(DADOS_MercadoBase[TUSD_E],DADOS_MercadoBase[OPÇÃO],'Variações de mercado'!$B42,DADOS_MercadoBase[Subgrupo],'Variações de mercado'!$C42,DADOS_MercadoBase[AnoMes],'Variações de mercado'!M$39) -> 1409.779 | N42: =SUMIFS(DADOS_MercadoBase[TUSD_E],DADOS_MercadoBase[OPÇÃO],'Variações de mercado'!$B42,DADOS_MercadoBase[Subgrupo],'Variações de mercado'!$C42,DADOS_MercadoBase[AnoMes],'Variações de mercado'!N$39) -> 1426.458 | O42: =SUMIFS(DADOS_MercadoBase[TUSD_E],DADOS_MercadoBase[OPÇÃO],'Variações de mercado'!$B42,DADOS_MercadoBase[Subgrupo],'Variações de mercado'!$C42,DADOS_MercadoBase[AnoMes],'Variações de mercado'!O$39) -> 1554.85 | P42: 16704.838 | S42: cativo | T42: A3 | U42: 1607.225 | V42: 1607.225 | W42: 1582 | X42: 1512 | Y42: 1442 | Z42: 1456 | AA42: 1505 | AB42: 1522.5 | AC42: 1373.971 | AD42: 1589.937 | AE42: 1505.084 | AF42: 1550.663 | AG42: 18253.605
B43: cativo | C43: A3a | D43: =SUMIFS(DADOS_MercadoBase[TUSD_E],DADOS_MercadoBase[OPÇÃO],'Variações de mercado'!$B43,DADOS_MercadoBase[Subgrupo],'Variações de mercado'!$C43,DADOS_MercadoBase[AnoMes],'Variações de mercado'!D$39) -> 12218.636 | E43: =SUMIFS(DADOS_MercadoBase[TUSD_E],DADOS_MercadoBase[OPÇÃO],'Variações de mercado'!$B43,DADOS_MercadoBase[Subgrupo],'Variações de mercado'!$C43,DADOS_MercadoBase[AnoMes],'Variações de mercado'!E$39) -> 12218.636 | F43: =SUMIFS(DADOS_MercadoBase[TUSD_E],DADOS_MercadoBase[OPÇÃO],'Variações de mercado'!$B43,DADOS_MercadoBase[Subgrupo],'Variações de mercado'!$C43,DADOS_MercadoBase[AnoMes],'Variações de mercado'!F$39) -> 13872.92 | G43: =SUMIFS(DADOS_MercadoBase[TUSD_E],DADOS_MercadoBase[OPÇÃO],'Variações de mercado'!$B43,DADOS_MercadoBase[Subgrupo],'Variações de mercado'!$C43,DADOS_MercadoBase[AnoMes],'Variações de mercado'!G$39) -> 14435.908 | H43: =SUMIFS(DADOS_MercadoBase[TUSD_E],DADOS_MercadoBase[OPÇÃO],'Variações de mercado'!$B43,DADOS_MercadoBase[Subgrupo],'Variações de mercado'!$C43,DADOS_MercadoBase[AnoMes],'Variações de mercado'!H$39) -> 14120.772 | I43: =SUMIFS(DADOS_MercadoBase[TUSD_E],DADOS_MercadoBase[OPÇÃO],'Variações de mercado'!$B43,DADOS_MercadoBase[Subgrupo],'Variações de mercado'!$C43,DADOS_MercadoBase[AnoMes],'Variações de mercado'!I$39) -> 13909.172 | J43: =SUMIFS(DADOS_MercadoBase[TUSD_E],DADOS_MercadoBase[OPÇÃO],'Variações de mercado'!$B43,DADOS_MercadoBase[Subgrupo],'Variações de mercado'!$C43,DADOS_MercadoBase[AnoMes],'Variações de mercado'!J$39) -> 19613.716 | K43: =SUMIFS(DADOS_MercadoBase[TUSD_E],DADOS_MercadoBase[OPÇÃO],'Variações de mercado'!$B43,DADOS_MercadoBase[Subgrupo],'Variações de mercado'!$C43,DADOS_MercadoBase[AnoMes],'Variações de mercado'!K$39) -> 21919.742 | L43: =SUMIFS(DADOS_MercadoBase[TUSD_E],DADOS_MercadoBase[OPÇÃO],'Variações de mercado'!$B43,DADOS_MercadoBase[Subgrupo],'Variações de mercado'!$C43,DADOS_MercadoBase[AnoMes],'Variações de mercado'!L$39) -> 16347.774 | M43: =SUMIFS(DADOS_MercadoBase[TUSD_E],DADOS_MercadoBase[OPÇÃO],'Variações de mercado'!$B43,DADOS_MercadoBase[Subgrupo],'Variações de mercado'!$C43,DADOS_MercadoBase[AnoMes],'Variações de mercado'!M$39) -> 14154.657 | N43: =SUMIFS(DADOS_MercadoBase[TUSD_E],DADOS_MercadoBase[OPÇÃO],'Variações de mercado'!$B43,DADOS_MercadoBase[Subgrupo],'Variações de mercado'!$C43,DADOS_MercadoBase[AnoMes],'Variações de mercado'!N$39) -> 15398.935 | O43: =SUMIFS(DADOS_MercadoBase[TUSD_E],DADOS_MercadoBase[OPÇÃO],'Variações de mercado'!$B43,DADOS_MercadoBase[Subgrupo],'Variações de mercado'!$C43,DADOS_MercadoBase[AnoMes],'Variações de mercado'!O$39) -> 17086.511 | P43: 185297.379 | S43: cativo | T43: A3a | U43: 15717.535 | V43: 15717.535 | W43: 15408.369 | X43: 15355.997 | Y43: 14103.13 | Z43: 16727.112 | AA43: 20656.872 | AB43: 18136.836 | AC43: 15759.638 | AD43: 17068.33 | AE43: 19712.688 | AF43: 20777.05 | AG43: 205141.092
B44: cativo | C44: A4 | D44: =SUMIFS(DADOS_MercadoBase[TUSD_E],DADOS_MercadoBase[OPÇÃO],'Variações de mercado'!$B44,DADOS_MercadoBase[Subgrupo],'Variações de mercado'!$C44,DADOS_MercadoBase[AnoMes],'Variações de mercado'!D$39) -> 52161.636 | E44: =SUMIFS(DADOS_MercadoBase[TUSD_E],DADOS_MercadoBase[OPÇÃO],'Variações de mercado'!$B44,DADOS_MercadoBase[Subgrupo],'Variações de mercado'!$C44,DADOS_MercadoBase[AnoMes],'Variações de mercado'!E$39) -> 52161.636 | F44: =SUMIFS(DADOS_MercadoBase[TUSD_E],DADOS_MercadoBase[OPÇÃO],'Variações de mercado'!$B44,DADOS_MercadoBase[Subgrupo],'Variações de mercado'!$C44,DADOS_MercadoBase[AnoMes],'Variações de mercado'!F$39) -> 56951.673 | G44: =SUMIFS(DADOS_MercadoBase[TUSD_E],DADOS_MercadoBase[OPÇÃO],'Variações de mercado'!$B44,DADOS_MercadoBase[Subgrupo],'Variações de mercado'!$C44,DADOS_MercadoBase[AnoMes],'Variações de mercado'!G$39) -> 53427.229 | H44: =SUMIFS(DADOS_MercadoBase[TUSD_E],DADOS_MercadoBase[OPÇÃO],'Variações de mercado'!$B44,DADOS_MercadoBase[Subgrupo],'Variações de mercado'!$C44,DADOS_MercadoBase[AnoMes],'Variações de mercado'!H$39) -> 51290.473 | I44: =SUMIFS(DADOS_MercadoBase[TUSD_E],DADOS_MercadoBase[OPÇÃO],'Variações de mercado'!$B44,DADOS_MercadoBase[Subgrupo],'Variações de mercado'!$C44,DADOS_MercadoBase[AnoMes],'Variações de mercado'!I$39) -> 51101.364 | J44: =SUMIFS(DADOS_MercadoBase[TUSD_E],DADOS_MercadoBase[OPÇÃO],'Variações de mercado'!$B44,DADOS_MercadoBase[Subgrupo],'Variações de mercado'!$C44,DADOS_MercadoBase[AnoMes],'Variações de mercado'!J$39) -> 53096.925 | K44: =SUMIFS(DADOS_MercadoBase[TUSD_E],DADOS_MercadoBase[OPÇÃO],'Variações de mercado'!$B44,DADOS_MercadoBase[Subgrupo],'Variações de mercado'!$C44,DADOS_MercadoBase[AnoMes],'Variações de mercado'!K$39) -> 55025.649 | L44: =SUMIFS(DADOS_MercadoBase[TUSD_E],DADOS_MercadoBase[OPÇÃO],'Variações de mercado'!$B44,DADOS_MercadoBase[Subgrupo],'Variações de mercado'!$C44,DADOS_MercadoBase[AnoMes],'Variações de mercado'!L$39) -> 46481.436 | M44: =SUMIFS(DADOS_MercadoBase[TUSD_E],DADOS_MercadoBase[OPÇÃO],'Variações de mercado'!$B44,DADOS_MercadoBase[Subgrupo],'Variações de mercado'!$C44,DADOS_MercadoBase[AnoMes],'Variações de mercado'!M$39) -> 47860.947 | N44: =SUMIFS(DADOS_MercadoBase[TUSD_E],DADOS_MercadoBase[OPÇÃO],'Variações de mercado'!$B44,DADOS_MercadoBase[Subgrupo],'Variações de mercado'!$C44,DADOS_MercadoBase[AnoMes],'Variações de mercado'!N$39) -> 53238.104 | O44: =SUMIFS(DADOS_MercadoBase[TUSD_E],DADOS_MercadoBase[OPÇÃO],'Variações de mercado'!$B44,DADOS_MercadoBase[Subgrupo],'Variações de mercado'!$C44,DADOS_MercadoBase[AnoMes],'Variações de mercado'!O$39) -> 60978.876 | P44: 633775.948 | S44: cativo | T44: A4 | U44: 60250.474 | V44: 60250.474 | W44: 61581.494 | X44: 59503.494 | Y44: 56418.231 | Z44: 59484.431 | AA44: 57277.312 | AB44: 49152.282 | AC44: 46647.279 | AD44: 51422.435 | AE44: 56053.387 | AF44: 65672.67 | AG44: 683713.963
B45: cativo | C45: As | D45: =SUMIFS(DADOS_MercadoBase[TUSD_E],DADOS_MercadoBase[OPÇÃO],'Variações de mercado'!$B45,DADOS_MercadoBase[Subgrupo],'Variações de mercado'!$C45,DADOS_MercadoBase[AnoMes],'Variações de mercado'!D$39) -> 0 | E45: =SUMIFS(DADOS_MercadoBase[TUSD_E],DADOS_MercadoBase[OPÇÃO],'Variações de mercado'!$B45,DADOS_MercadoBase[Subgrupo],'Variações de mercado'!$C45,DADOS_MercadoBase[AnoMes],'Variações de mercado'!E$39) -> 0 | F45: =SUMIFS(DADOS_MercadoBase[TUSD_E],DADOS_MercadoBase[OPÇÃO],'Variações de mercado'!$B45,DADOS_MercadoBase[Subgrupo],'Variações de mercado'!$C45,DADOS_MercadoBase[AnoMes],'Variações de mercado'!F$39) -> 0 | G45: =SUMIFS(DADOS_MercadoBase[TUSD_E],DADOS_MercadoBase[OPÇÃO],'Variações de mercado'!$B45,DADOS_MercadoBase[Subgrupo],'Variações de mercado'!$C45,DADOS_MercadoBase[AnoMes],'Variações de mercado'!G$39) -> 0 | H45: =SUMIFS(DADOS_MercadoBase[TUSD_E],DADOS_MercadoBase[OPÇÃO],'Variações de mercado'!$B45,DADOS_MercadoBase[Subgrupo],'Variações de mercado'!$C45,DADOS_MercadoBase[AnoMes],'Variações de mercado'!H$39) -> 0 | I45: =SUMIFS(DADOS_MercadoBase[TUSD_E],DADOS_MercadoBase[OPÇÃO],'Variações de mercado'!$B45,DADOS_MercadoBase[Subgrupo],'Variações de mercado'!$C45,DADOS_MercadoBase[AnoMes],'Variações de mercado'!I$39) -> 0 | J45: =SUMIFS(DADOS_MercadoBase[TUSD_E],DADOS_MercadoBase[OPÇÃO],'Variações de mercado'!$B45,DADOS_MercadoBase[Subgrupo],'Variações de mercado'!$C45,DADOS_MercadoBase[AnoMes],'Variações de mercado'!J$39) -> 0 | K45: =SUMIFS(DADOS_MercadoBase[TUSD_E],DADOS_MercadoBase[OPÇÃO],'Variações de mercado'!$B45,DADOS_MercadoBase[Subgrupo],'Variações de mercado'!$C45,DADOS_MercadoBase[AnoMes],'Variações de mercado'!K$39) -> 0 | L45: =SUMIFS(DADOS_MercadoBase[TUSD_E],DADOS_MercadoBase[OPÇÃO],'Variações de mercado'!$B45,DADOS_MercadoBase[Subgrupo],'Variações de mercado'!$C45,DADOS_MercadoBase[AnoMes],'Variações de mercado'!L$39) -> 0 | M45: =SUMIFS(DADOS_MercadoBase[TUSD_E],DADOS_MercadoBase[OPÇÃO],'Variações de mercado'!$B45,DADOS_MercadoBase[Subgrupo],'Variações de mercado'!$C45,DADOS_MercadoBase[AnoMes],'Variações de mercado'!M$39) -> 0 | N45: =SUMIFS(DADOS_MercadoBase[TUSD_E],DADOS_MercadoBase[OPÇÃO],'Variações de mercado'!$B45,DADOS_MercadoBase[Subgrupo],'Variações de mercado'!$C45,DADOS_MercadoBase[AnoMes],'Variações de mercado'!N$39) -> 0 | O45: =SUMIFS(DADOS_MercadoBase[TUSD_E],DADOS_MercadoBase[OPÇÃO],'Variações de mercado'!$B45,DADOS_MercadoBase[Subgrupo],'Variações de mercado'!$C45,DADOS_MercadoBase[AnoMes],'Variações de mercado'!O$39) -> 0 | P45: 0 | S45: cativo | T45: As | U45: 0 | V45: 0 | W45: 0 | X45: 0 | Y45: 0 | Z45: 0 | AA45: 0 | AB45: 0 | AC45: 0 | AD45: 0 | AE45: 0 | AF45: 0 | AG45: 0
B46: cativo | C46: Total AT Cativo | D46: =SUM(D40:D45) -> 65828.171 | E46: =SUM(E40:E45) -> 65828.171 | F46: 72361.631 | G46: 69352.663 | H46: 66846.331 | I46: 66381.331 | J46: 74184.831 | K46: 78461.118 | L46: 64444.626 | M46: 63769.381 | N46: 70390.177 | O46: 79959.74 | P46: 837808.171 | S46: cativo | T46: Total AT Cativo | U46: 77862.803 | V46: 77862.803 | W46: 78887.623 | X46: 76710.745 | Y46: 72258.311 | Z46: 77973.585 | AA46: 79798.249 | AB46: 69145.147 | AC46: 64093.272 | AD46: 70423.446 | AE46: 77597.524 | AF46: 88344.29 | AG46: 910957.798
B47: cativo | C47: B4 | D47: =SUMIFS(DADOS_MercadoBase[TUSD_E],DADOS_MercadoBase[OPÇÃO],'Variações de mercado'!$B47,DADOS_MercadoBase[Subgrupo],'Variações de mercado'!$C47,DADOS_MercadoBase[AnoMes],'Variações de mercado'!D$39) -> 16847.306 | E47: =SUMIFS(DADOS_MercadoBase[TUSD_E],DADOS_MercadoBase[OPÇÃO],'Variações de mercado'!$B47,DADOS_MercadoBase[Subgrupo],'Variações de mercado'!$C47,DADOS_MercadoBase[AnoMes],'Variações de mercado'!E$39) -> 16847.306 | F47: =SUMIFS(DADOS_MercadoBase[TUSD_E],DADOS_MercadoBase[OPÇÃO],'Variações de mercado'!$B47,DADOS_MercadoBase[Subgrupo],'Variações de mercado'!$C47,DADOS_MercadoBase[AnoMes],'Variações de mercado'!F$39) -> 17005.625 | G47: =SUMIFS(DADOS_MercadoBase[TUSD_E],DADOS_MercadoBase[OPÇÃO],'Variações de mercado'!$B47,DADOS_MercadoBase[Subgrupo],'Variações de mercado'!$C47,DADOS_MercadoBase[AnoMes],'Variações de mercado'!G$39) -> 17671.137 | H47: =SUMIFS(DADOS_MercadoBase[TUSD_E],DADOS_MercadoBase[OPÇÃO],'Variações de mercado'!$B47,DADOS_MercadoBase[Subgrupo],'Variações de mercado'!$C47,DADOS_MercadoBase[AnoMes],'Variações de mercado'!H$39) -> 16349.771 | I47: =SUMIFS(DADOS_MercadoBase[TUSD_E],DADOS_MercadoBase[OPÇÃO],'Variações de mercado'!$B47,DADOS_MercadoBase[Subgrupo],'Variações de mercado'!$C47,DADOS_MercadoBase[AnoMes],'Variações de mercado'!I$39) -> 17171.807 | J47: =SUMIFS(DADOS_MercadoBase[TUSD_E],DADOS_MercadoBase[OPÇÃO],'Variações de mercado'!$B47,DADOS_MercadoBase[Subgrupo],'Variações de mercado'!$C47,DADOS_MercadoBase[AnoMes],'Variações de mercado'!J$39) -> 17356.082 | K47: =SUMIFS(DADOS_MercadoBase[TUSD_E],DADOS_MercadoBase[OPÇÃO],'Variações de mercado'!$B47,DADOS_MercadoBase[Subgrupo],'Variações de mercado'!$C47,DADOS_MercadoBase[AnoMes],'Variações de mercado'!K$39) -> 18494.043 | L47: =SUMIFS(DADOS_MercadoBase[TUSD_E],DADOS_MercadoBase[OPÇÃO],'Variações de mercado'!$B47,DADOS_MercadoBase[Subgrupo],'Variações de mercado'!$C47,DADOS_MercadoBase[AnoMes],'Variações de mercado'!L$39) -> 18578.798 | M47: =SUMIFS(DADOS_MercadoBase[TUSD_E],DADOS_MercadoBase[OPÇÃO],'Variações de mercado'!$B47,DADOS_MercadoBase[Subgrupo],'Variações de mercado'!$C47,DADOS_MercadoBase[AnoMes],'Variações de mercado'!M$39) -> 17295.443 | N47: =SUMIFS(DADOS_MercadoBase[TUSD_E],DADOS_MercadoBase[OPÇÃO],'Variações de mercado'!$B47,DADOS_MercadoBase[Subgrupo],'Variações de mercado'!$C47,DADOS_MercadoBase[AnoMes],'Variações de mercado'!N$39) -> 17894.051 | O47: =SUMIFS(DADOS_MercadoBase[TUSD_E],DADOS_MercadoBase[OPÇÃO],'Variações de mercado'!$B47,DADOS_MercadoBase[Subgrupo],'Variações de mercado'!$C47,DADOS_MercadoBase[AnoMes],'Variações de mercado'!O$39) -> 17112.343 | P47: 208623.712 | S47: cativo | T47: B4 | U47: 14877.607 | V47: 14877.607 | W47: 17182.457 | X47: 17316.809 | Y47: 17014.244 | Z47: 18710.093 | AA47: 17686.204 | AB47: 18426.401 | AC47: 18531.176 | AD47: 17620.49 | AE47: 17621.257 | AF47: 17191.985 | AG47: 207056.33
B48: cativo | C48: B3 | D48: =SUMIFS(DADOS_MercadoBase[TUSD_E],DADOS_MercadoBase[OPÇÃO],'Variações de mercado'!$B48,DADOS_MercadoBase[Subgrupo],'Variações de mercado'!$C48,DADOS_MercadoBase[AnoMes],'Variações de mercado'!D$39) -> 65132.243 | E48: =SUMIFS(DADOS_MercadoBase[TUSD_E],DADOS_MercadoBase[OPÇÃO],'Variações de mercado'!$B48,DADOS_MercadoBase[Subgrupo],'Variações de mercado'!$C48,DADOS_MercadoBase[AnoMes],'Variações de mercado'!E$39) -> 65132.243 | F48: =SUMIFS(DADOS_MercadoBase[TUSD_E],DADOS_MercadoBase[OPÇÃO],'Variações de mercado'!$B48,DADOS_MercadoBase[Subgrupo],'Variações de mercado'!$C48,DADOS_MercadoBase[AnoMes],'Variações de mercado'!F$39) -> 64332.396 | G48: =SUMIFS(DADOS_MercadoBase[TUSD_E],DADOS_MercadoBase[OPÇÃO],'Variações de mercado'!$B48,DADOS_MercadoBase[Subgrupo],'Variações de mercado'!$C48,DADOS_MercadoBase[AnoMes],'Variações de mercado'!G$39) -> 67695.238 | H48: =SUMIFS(DADOS_MercadoBase[TUSD_E],DADOS_MercadoBase[OPÇÃO],'Variações de mercado'!$B48,DADOS_MercadoBase[Subgrupo],'Variações de mercado'!$C48,DADOS_MercadoBase[AnoMes],'Variações de mercado'!H$39) -> 60160.534 | I48: =SUMIFS(DADOS_MercadoBase[TUSD_E],DADOS_MercadoBase[OPÇÃO],'Variações de mercado'!$B48,DADOS_MercadoBase[Subgrupo],'Variações de mercado'!$C48,DADOS_MercadoBase[AnoMes],'Variações de mercado'!I$39) -> 58374.766 | J48: =SUMIFS(DADOS_MercadoBase[TUSD_E],DADOS_MercadoBase[OPÇÃO],'Variações de mercado'!$B48,DADOS_MercadoBase[Subgrupo],'Variações de mercado'!$C48,DADOS_MercadoBase[AnoMes],'Variações de mercado'!J$39) -> 57953.83 | K48: =SUMIFS(DADOS_MercadoBase[TUSD_E],DADOS_MercadoBase[OPÇÃO],'Variações de mercado'!$B48,DADOS_MercadoBase[Subgrupo],'Variações de mercado'!$C48,DADOS_MercadoBase[AnoMes],'Variações de mercado'!K$39) -> 58716.634 | L48: =SUMIFS(DADOS_MercadoBase[TUSD_E],DADOS_MercadoBase[OPÇÃO],'Variações de mercado'!$B48,DADOS_MercadoBase[Subgrupo],'Variações de mercado'!$C48,DADOS_MercadoBase[AnoMes],'Variações de mercado'!L$39) -> 53865.98 | M48: =SUMIFS(DADOS_MercadoBase[TUSD_E],DADOS_MercadoBase[OPÇÃO],'Variações de mercado'!$B48,DADOS_MercadoBase[Subgrupo],'Variações de mercado'!$C48,DADOS_MercadoBase[AnoMes],'Variações de mercado'!M$39) -> 52313.066 | N48: =SUMIFS(DADOS_MercadoBase[TUSD_E],DADOS_MercadoBase[OPÇÃO],'Variações de mercado'!$B48,DADOS_MercadoBase[Subgrupo],'Variações de mercado'!$C48,DADOS_MercadoBase[AnoMes],'Variações de mercado'!N$39) -> 63584.978 | O48: =SUMIFS(DADOS_MercadoBase[TUSD_E],DADOS_MercadoBase[OPÇÃO],'Variações de mercado'!$B48,DADOS_MercadoBase[Subgrupo],'Variações de mercado'!$C48,DADOS_MercadoBase[AnoMes],'Variações de mercado'!O$39) -> 72785.828 | P48: 740047.736 | S48: cativo | T48: B3 | U48: 72046.259 | V48: 72046.259 | W48: 74492.803 | X48: 74100.373 | Y48: 69459.192 | Z48: 71142.35 | AA48: 67644.445 | AB48: 53896.884 | AC48: 52107.648 | AD48: 56918.161 | AE48: 60834.554 | AF48: 70359.288 | AG48: 795048.216
B49: cativo | C49: B2 | D49: =SUMIFS(DADOS_MercadoBase[TUSD_E],DADOS_MercadoBase[OPÇÃO],'Variações de mercado'!$B49,DADOS_MercadoBase[Subgrupo],'Variações de mercado'!$C49,DADOS_MercadoBase[AnoMes],'Variações de mercado'!D$39) -> 30292.726 | E49: =SUMIFS(DADOS_MercadoBase[TUSD_E],DADOS_MercadoBase[OPÇÃO],'Variações de mercado'!$B49,DADOS_MercadoBase[Subgrupo],'Variações de mercado'!$C49,DADOS_MercadoBase[AnoMes],'Variações de mercado'!E$39) -> 30292.726 | F49: =SUMIFS(DADOS_MercadoBase[TUSD_E],DADOS_MercadoBase[OPÇÃO],'Variações de mercado'!$B49,DADOS_MercadoBase[Subgrupo],'Variações de mercado'!$C49,DADOS_MercadoBase[AnoMes],'Variações de mercado'!F$39) -> 29826.461 | G49: =SUMIFS(DADOS_MercadoBase[TUSD_E],DADOS_MercadoBase[OPÇÃO],'Variações de mercado'!$B49,DADOS_MercadoBase[Subgrupo],'Variações de mercado'!$C49,DADOS_MercadoBase[AnoMes],'Variações de mercado'!G$39) -> 27956.218 | H49: =SUMIFS(DADOS_MercadoBase[TUSD_E],DADOS_MercadoBase[OPÇÃO],'Variações de mercado'!$B49,DADOS_MercadoBase[Subgrupo],'Variações de mercado'!$C49,DADOS_MercadoBase[AnoMes],'Variações de mercado'!H$39) -> 27306.393 | I49: =SUMIFS(DADOS_MercadoBase[TUSD_E],DADOS_MercadoBase[OPÇÃO],'Variações de mercado'!$B49,DADOS_MercadoBase[Subgrupo],'Variações de mercado'!$C49,DADOS_MercadoBase[AnoMes],'Variações de mercado'!I$39) -> 27926.429 | J49: =SUMIFS(DADOS_MercadoBase[TUSD_E],DADOS_MercadoBase[OPÇÃO],'Variações de mercado'!$B49,DADOS_MercadoBase[Subgrupo],'Variações de mercado'!$C49,DADOS_MercadoBase[AnoMes],'Variações de mercado'!J$39) -> 28345.941 | K49: =SUMIFS(DADOS_MercadoBase[TUSD_E],DADOS_MercadoBase[OPÇÃO],'Variações de mercado'!$B49,DADOS_MercadoBase[Subgrupo],'Variações de mercado'!$C49,DADOS_MercadoBase[AnoMes],'Variações de mercado'!K$39) -> 28210.503 | L49: =SUMIFS(DADOS_MercadoBase[TUSD_E],DADOS_MercadoBase[OPÇÃO],'Variações de mercado'!$B49,DADOS_MercadoBase[Subgrupo],'Variações de mercado'!$C49,DADOS_MercadoBase[AnoMes],'Variações de mercado'!L$39) -> 27681.887 | M49: =SUMIFS(DADOS_MercadoBase[TUSD_E],DADOS_MercadoBase[OPÇÃO],'Variações de mercado'!$B49,DADOS_MercadoBase[Subgrupo],'Variações de mercado'!$C49,DADOS_MercadoBase[AnoMes],'Variações de mercado'!M$39) -> 28969.719 | N49: =SUMIFS(DADOS_MercadoBase[TUSD_E],DADOS_MercadoBase[OPÇÃO],'Variações de mercado'!$B49,DADOS_MercadoBase[Subgrupo],'Variações de mercado'!$C49,DADOS_MercadoBase[AnoMes],'Variações de mercado'!N$39) -> 32490.014 | O49: =SUMIFS(DADOS_MercadoBase[TUSD_E],DADOS_MercadoBase[OPÇÃO],'Variações de mercado'!$B49,DADOS_MercadoBase[Subgrupo],'Variações de mercado'!$C49,DADOS_MercadoBase[AnoMes],'Variações de mercado'!O$39) -> 35552.84 | P49: 354851.857 | S49: cativo | T49: B2 | U49: 37874.324 | V49: 37874.324 | W49: 37230.668 | X49: 35045.406 | Y49: 35246.684 | Z49: 35768.214 | AA49: 35158.501 | AB49: 33701.07 | AC49: 34167.265 | AD49: 35707.36 | AE49: 37758.384 | AF49: 38655.66 | AG49: 434187.86
B50: cativo | C50: B1 | D50: =SUMIFS(DADOS_MercadoBase[TUSD_E],DADOS_MercadoBase[OPÇÃO],'Variações de mercado'!$B50,DADOS_MercadoBase[Subgrupo],'Variações de mercado'!$C50,DADOS_MercadoBase[AnoMes],'Variações de mercado'!D$39) -> 182708.261 | E50: =SUMIFS(DADOS_MercadoBase[TUSD_E],DADOS_MercadoBase[OPÇÃO],'Variações de mercado'!$B50,DADOS_MercadoBase[Subgrupo],'Variações de mercado'!$C50,DADOS_MercadoBase[AnoMes],'Variações de mercado'!E$39) -> 182708.261 | F50: =SUMIFS(DADOS_MercadoBase[TUSD_E],DADOS_MercadoBase[OPÇÃO],'Variações de mercado'!$B50,DADOS_MercadoBase[Subgrupo],'Variações de mercado'!$C50,DADOS_MercadoBase[AnoMes],'Variações de mercado'!F$39) -> 181259.602 | G50: =SUMIFS(DADOS_MercadoBase[TUSD_E],DADOS_MercadoBase[OPÇÃO],'Variações de mercado'!$B50,DADOS_MercadoBase[Subgrupo],'Variações de mercado'!$C50,DADOS_MercadoBase[AnoMes],'Variações de mercado'!G$39) -> 180381.347 | H50: =SUMIFS(DADOS_MercadoBase[TUSD_E],DADOS_MercadoBase[OPÇÃO],'Variações de mercado'!$B50,DADOS_MercadoBase[Subgrupo],'Variações de mercado'!$C50,DADOS_MercadoBase[AnoMes],'Variações de mercado'!H$39) -> 159361.411 | I50: =SUMIFS(DADOS_MercadoBase[TUSD_E],DADOS_MercadoBase[OPÇÃO],'Variações de mercado'!$B50,DADOS_MercadoBase[Subgrupo],'Variações de mercado'!$C50,DADOS_MercadoBase[AnoMes],'Variações de mercado'!I$39) -> 152270.921 | J50: =SUMIFS(DADOS_MercadoBase[TUSD_E],DADOS_MercadoBase[OPÇÃO],'Variações de mercado'!$B50,DADOS_MercadoBase[Subgrupo],'Variações de mercado'!$C50,DADOS_MercadoBase[AnoMes],'Variações de mercado'!J$39) -> 153372.758 | K50: =SUMIFS(DADOS_MercadoBase[TUSD_E],DADOS_MercadoBase[OPÇÃO],'Variações de mercado'!$B50,DADOS_MercadoBase[Subgrupo],'Variações de mercado'!$C50,DADOS_MercadoBase[AnoMes],'Variações de mercado'!K$39) -> 150099.485 | L50: =SUMIFS(DADOS_MercadoBase[TUSD_E],DADOS_MercadoBase[OPÇÃO],'Variações de mercado'!$B50,DADOS_MercadoBase[Subgrupo],'Variações de mercado'!$C50,DADOS_MercadoBase[AnoMes],'Variações de mercado'!L$39) -> 139974.061 | M50: =SUMIFS(DADOS_MercadoBase[TUSD_E],DADOS_MercadoBase[OPÇÃO],'Variações de mercado'!$B50,DADOS_MercadoBase[Subgrupo],'Variações de mercado'!$C50,DADOS_MercadoBase[AnoMes],'Variações de mercado'!M$39) -> 136982.088 | N50: =SUMIFS(DADOS_MercadoBase[TUSD_E],DADOS_MercadoBase[OPÇÃO],'Variações de mercado'!$B50,DADOS_MercadoBase[Subgrupo],'Variações de mercado'!$C50,DADOS_MercadoBase[AnoMes],'Variações de mercado'!N$39) -> 157910.754 | O50: =SUMIFS(DADOS_MercadoBase[TUSD_E],DADOS_MercadoBase[OPÇÃO],'Variações de mercado'!$B50,DADOS_MercadoBase[Subgrupo],'Variações de mercado'!$C50,DADOS_MercadoBase[AnoMes],'Variações de mercado'!O$39) -> 179984.379 | P50: 1957013.328 | S50: cativo | T50: B1 | U50: 188661.865 | V50: 188661.865 | W50: 199832.529 | X50: 183501.178 | Y50: 171115.876 | Z50: 175164.683 | AA50: 174678.653 | AB50: 142425.529 | AC50: 140638.922 | AD50: 154254.747 | AE50: 159270.821 | AF50: 196852.763 | AG50: 2075059.431
B51: cativo | C51: Total BT Cativo | D51: =SUM(D47:D50) -> 294980.536 | E51: =SUM(E47:E50) -> 294980.536 | F51: 292424.084 | G51: 293703.94 | H51: 263178.109 | I51: 255743.923 | J51: 257028.611 | K51: 255520.665 | L51: 240100.726 | M51: 235560.316 | N51: 271879.797 | O51: 305435.39 | P51: 3260536.633 | S51: cativo | T51: Total BT Cativo | U51: 313460.055 | V51: 313460.055 | W51: 328738.457 | X51: 309963.766 | Y51: 292835.996 | Z51: 300785.34 | AA51: 295167.803 | AB51: 248449.884 | AC51: 245445.011 | AD51: 264500.758 | AE51: 275485.016 | AF51: 323059.696 | AG51: 3511351.837
B52: Suprimento | C52: Suprimento (TE) | D52: =SUMIFS(DADOS_MercadoBase[TUSD_E],DADOS_MercadoBase[OPÇÃO],'Variações de mercado'!$B52,DADOS_MercadoBase[AnoMes],'Variações de mercado'!D$39) -> 0 | E52: =SUMIFS(DADOS_MercadoBase[TUSD_E],DADOS_MercadoBase[OPÇÃO],'Variações de mercado'!$B52,DADOS_MercadoBase[AnoMes],'Variações de mercado'!E$39) -> 0 | F52: =SUMIFS(DADOS_MercadoBase[TUSD_E],DADOS_MercadoBase[OPÇÃO],'Variações de mercado'!$B52,DADOS_MercadoBase[AnoMes],'Variações de mercado'!F$39) -> 0 | G52: =SUMIFS(DADOS_MercadoBase[TUSD_E],DADOS_MercadoBase[OPÇÃO],'Variações de mercado'!$B52,DADOS_MercadoBase[AnoMes],'Variações de mercado'!G$39) -> 0 | H52: =SUMIFS(DADOS_MercadoBase[TUSD_E],DADOS_MercadoBase[OPÇÃO],'Variações de mercado'!$B52,DADOS_MercadoBase[AnoMes],'Variações de mercado'!H$39) -> 0 | I52: =SUMIFS(DADOS_MercadoBase[TUSD_E],DADOS_MercadoBase[OPÇÃO],'Variações de mercado'!$B52,DADOS_MercadoBase[AnoMes],'Variações de mercado'!I$39) -> 0 | J52: =SUMIFS(DADOS_MercadoBase[TUSD_E],DADOS_MercadoBase[OPÇÃO],'Variações de mercado'!$B52,DADOS_MercadoBase[AnoMes],'Variações de mercado'!J$39) -> 0 | K52: =SUMIFS(DADOS_MercadoBase[TUSD_E],DADOS_MercadoBase[OPÇÃO],'Variações de mercado'!$B52,DADOS_MercadoBase[AnoMes],'Variações de mercado'!K$39) -> 0 | L52: =SUMIFS(DADOS_MercadoBase[TUSD_E],DADOS_MercadoBase[OPÇÃO],'Variações de mercado'!$B52,DADOS_MercadoBase[AnoMes],'Variações de mercado'!L$39) -> 0 | M52: =SUMIFS(DADOS_MercadoBase[TUSD_E],DADOS_MercadoBase[OPÇÃO],'Variações de mercado'!$B52,DADOS_MercadoBase[AnoMes],'Variações de mercado'!M$39) -> 0 | N52: =SUMIFS(DADOS_MercadoBase[TUSD_E],DADOS_MercadoBase[OPÇÃO],'Variações de mercado'!$B52,DADOS_MercadoBase[AnoMes],'Variações de mercado'!N$39) -> 0 | O52: =SUMIFS(DADOS_MercadoBase[TUSD_E],DADOS_MercadoBase[OPÇÃO],'Variações de mercado'!$B52,DADOS_MercadoBase[AnoMes],'Variações de mercado'!O$39) -> 0 | P52: 0 | S52: Suprimento | T52: Suprimento (TE) | U52: 0 | V52: 0 | W52: 0 | X52: 0 | Y52: 0 | Z52: 0 | AA52: 0 | AB52: 0 | AC52: 0 | AD52: 0 | AE52: 0 | AF52: 0 | AG52: 0
B53: Livre | C53: A1 | D53: =SUMIFS(DADOS_MercadoBase[TUSD_E],DADOS_MercadoBase[OPÇÃO],'Variações de mercado'!$B53,DADOS_MercadoBase[Subgrupo],'Variações de mercado'!$C53,DADOS_MercadoBase[AnoMes],'Variações de mercado'!D$39) -> 0 | E53: =SUMIFS(DADOS_MercadoBase[TUSD_E],DADOS_MercadoBase[OPÇÃO],'Variações de mercado'!$B53,DADOS_MercadoBase[Subgrupo],'Variações de mercado'!$C53,DADOS_MercadoBase[AnoMes],'Variações de mercado'!E$39) -> 0 | F53: =SUMIFS(DADOS_MercadoBase[TUSD_E],DADOS_MercadoBase[OPÇÃO],'Variações de mercado'!$B53,DADOS_MercadoBase[Subgrupo],'Variações de mercado'!$C53,DADOS_MercadoBase[AnoMes],'Variações de mercado'!F$39) -> 0 | G53: =SUMIFS(DADOS_MercadoBase[TUSD_E],DADOS_MercadoBase[OPÇÃO],'Variações de mercado'!$B53,DADOS_MercadoBase[Subgrupo],'Variações de mercado'!$C53,DADOS_MercadoBase[AnoMes],'Variações de mercado'!G$39) -> 0 | H53: =SUMIFS(DADOS_MercadoBase[TUSD_E],DADOS_MercadoBase[OPÇÃO],'Variações de mercado'!$B53,DADOS_MercadoBase[Subgrupo],'Variações de mercado'!$C53,DADOS_MercadoBase[AnoMes],'Variações de mercado'!H$39) -> 0 | I53: =SUMIFS(DADOS_MercadoBase[TUSD_E],DADOS_MercadoBase[OPÇÃO],'Variações de mercado'!$B53,DADOS_MercadoBase[Subgrupo],'Variações de mercado'!$C53,DADOS_MercadoBase[AnoMes],'Variações de mercado'!I$39) -> 0 | J53: =SUMIFS(DADOS_MercadoBase[TUSD_E],DADOS_MercadoBase[OPÇÃO],'Variações de mercado'!$B53,DADOS_MercadoBase[Subgrupo],'Variações de mercado'!$C53,DADOS_MercadoBase[AnoMes],'Variações de mercado'!J$39) -> 0 | K53: =SUMIFS(DADOS_MercadoBase[TUSD_E],DADOS_MercadoBase[OPÇÃO],'Variações de mercado'!$B53,DADOS_MercadoBase[Subgrupo],'Variações de mercado'!$C53,DADOS_MercadoBase[AnoMes],'Variações de mercado'!K$39) -> 0 | L53: =SUMIFS(DADOS_MercadoBase[TUSD_E],DADOS_MercadoBase[OPÇÃO],'Variações de mercado'!$B53,DADOS_MercadoBase[Subgrupo],'Variações de mercado'!$C53,DADOS_MercadoBase[AnoMes],'Variações de mercado'!L$39) -> 0 | M53: =SUMIFS(DADOS_MercadoBase[TUSD_E],DADOS_MercadoBase[OPÇÃO],'Variações de mercado'!$B53,DADOS_MercadoBase[Subgrupo],'Variações de mercado'!$C53,DADOS_MercadoBase[AnoMes],'Variações de mercado'!M$39) -> 0 | N53: =SUMIFS(DADOS_MercadoBase[TUSD_E],DADOS_MercadoBase[OPÇÃO],'Variações de mercado'!$B53,DADOS_MercadoBase[Subgrupo],'Variações de mercado'!$C53,DADOS_MercadoBase[AnoMes],'Variações de mercado'!N$39) -> 0 | O53: =SUMIFS(DADOS_MercadoBase[TUSD_E],DADOS_MercadoBase[OPÇÃO],'Variações de mercado'!$B53,DADOS_MercadoBase[Subgrupo],'Variações de mercado'!$C53,DADOS_MercadoBase[AnoMes],'Variações de mercado'!O$39) -> 0 | P53: 0 | S53: Livre | T53: A1 | U53: 0 | V53: 0 | W53: 0 | X53: 0 | Y53: 0 | Z53: 0 | AA53: 0 | AB53: 0 | AC53: 0 | AD53: 0 | AE53: 0 | AF53: 0 | AG53: 0
B54: Livre | D54: =SUMIFS(DADOS_MercadoBase[TUSD_E],DADOS_MercadoBase[OPÇÃO],'Variações de mercado'!$B54,DADOS_MercadoBase[AnoMes],'Variações de mercado'!D$39)-D53 -> 128053.826 | E54: =SUMIFS(DADOS_MercadoBase[TUSD_E],DADOS_MercadoBase[OPÇÃO],'Variações de mercado'!$B54,DADOS_MercadoBase[AnoMes],'Variações de mercado'!E$39)-E53 -> 128053.826 | F54: =SUMIFS(DADOS_MercadoBase[TUSD_E],DADOS_MercadoBase[OPÇÃO],'Variações de mercado'!$B54,DADOS_MercadoBase[AnoMes],'Variações de mercado'!F$39)-F53 -> 121467.617 | G54: =SUMIFS(DADOS_MercadoBase[TUSD_E],DADOS_MercadoBase[OPÇÃO],'Variações de mercado'!$B54,DADOS_MercadoBase[AnoMes],'Variações de mercado'!G$39)-G53 -> 116440.1 | H54: =SUMIFS(DADOS_MercadoBase[TUSD_E],DADOS_MercadoBase[OPÇÃO],'Variações de mercado'!$B54,DADOS_MercadoBase[AnoMes],'Variações de mercado'!H$39)-H53 -> 122322.106 | I54: =SUMIFS(DADOS_MercadoBase[TUSD_E],DADOS_MercadoBase[OPÇÃO],'Variações de mercado'!$B54,DADOS_MercadoBase[AnoMes],'Variações de mercado'!I$39)-I53 -> 116323.778 | J54: =SUMIFS(DADOS_MercadoBase[TUSD_E],DADOS_MercadoBase[OPÇÃO],'Variações de mercado'!$B54,DADOS_MercadoBase[AnoMes],'Variações de mercado'!J$39)-J53 -> 133065.068 | K54: =SUMIFS(DADOS_MercadoBase[TUSD_E],DADOS_MercadoBase[OPÇÃO],'Variações de mercado'!$B54,DADOS_MercadoBase[AnoMes],'Variações de mercado'!K$39)-K53 -> 129150.211 | L54: =SUMIFS(DADOS_MercadoBase[TUSD_E],DADOS_MercadoBase[OPÇÃO],'Variações de mercado'!$B54,DADOS_MercadoBase[AnoMes],'Variações de mercado'!L$39)-L53 -> 109353.006 | M54: =SUMIFS(DADOS_MercadoBase[TUSD_E],DADOS_MercadoBase[OPÇÃO],'Variações de mercado'!$B54,DADOS_MercadoBase[AnoMes],'Variações de mercado'!M$39)-M53 -> 116187.476 | N54: =SUMIFS(DADOS_MercadoBase[TUSD_E],DADOS_MercadoBase[OPÇÃO],'Variações de mercado'!$B54,DADOS_MercadoBase[AnoMes],'Variações de mercado'!N$39)-N53 -> 115041.414 | O54: =SUMIFS(DADOS_MercadoBase[TUSD_E],DADOS_MercadoBase[OPÇÃO],'Variações de mercado'!$B54,DADOS_MercadoBase[AnoMes],'Variações de mercado'!O$39)-O53 -> 128473.386 | P54: 1463931.814 | S54: Livre | U54: 113561.846 | V54: 113561.846 | W54: 112471.292 | X54: 108360.263 | Y54: 108432.568 | Z54: 109764.69 | AA54: 117971.269 | AB54: 111847.565 | AC54: 107760.904 | AD54: 107074.87 | AE54: 109401.532 | AF54: 121579.719 | AG54: 1341788.364
B55: Livre APE | D55: =SUMIFS(DADOS_MercadoBase[TUSD_E],DADOS_MercadoBase[OPÇÃO],'Variações de mercado'!$B55,DADOS_MercadoBase[AnoMes],'Variações de mercado'!D$39) -> 4685.302 | E55: =SUMIFS(DADOS_MercadoBase[TUSD_E],DADOS_MercadoBase[OPÇÃO],'Variações de mercado'!$B55,DADOS_MercadoBase[AnoMes],'Variações de mercado'!E$39) -> 4685.302 | F55: =SUMIFS(DADOS_MercadoBase[TUSD_E],DADOS_MercadoBase[OPÇÃO],'Variações de mercado'!$B55,DADOS_MercadoBase[AnoMes],'Variações de mercado'!F$39) -> 6408.577 | G55: =SUMIFS(DADOS_MercadoBase[TUSD_E],DADOS_MercadoBase[OPÇÃO],'Variações de mercado'!$B55,DADOS_MercadoBase[AnoMes],'Variações de mercado'!G$39) -> 6020.318 | H55: =SUMIFS(DADOS_MercadoBase[TUSD_E],DADOS_MercadoBase[OPÇÃO],'Variações de mercado'!$B55,DADOS_MercadoBase[AnoMes],'Variações de mercado'!H$39) -> 5622.471 | I55: =SUMIFS(DADOS_MercadoBase[TUSD_E],DADOS_MercadoBase[OPÇÃO],'Variações de mercado'!$B55,DADOS_MercadoBase[AnoMes],'Variações de mercado'!I$39) -> 7211.226 | J55: =SUMIFS(DADOS_MercadoBase[TUSD_E],DADOS_MercadoBase[OPÇÃO],'Variações de mercado'!$B55,DADOS_MercadoBase[AnoMes],'Variações de mercado'!J$39) -> 7066.319 | K55: =SUMIFS(DADOS_MercadoBase[TUSD_E],DADOS_MercadoBase[OPÇÃO],'Variações de mercado'!$B55,DADOS_MercadoBase[AnoMes],'Variações de mercado'!K$39) -> 8255.795 | L55: =SUMIFS(DADOS_MercadoBase[TUSD_E],DADOS_MercadoBase[OPÇÃO],'Variações de mercado'!$B55,DADOS_MercadoBase[AnoMes],'Variações de mercado'!L$39) -> 10051.833 | M55: =SUMIFS(DADOS_MercadoBase[TUSD_E],DADOS_MercadoBase[OPÇÃO],'Variações de mercado'!$B55,DADOS_MercadoBase[AnoMes],'Variações de mercado'!M$39) -> 7252.249 | N55: =SUMIFS(DADOS_MercadoBase[TUSD_E],DADOS_MercadoBase[OPÇÃO],'Variações de mercado'!$B55,DADOS_MercadoBase[AnoMes],'Variações de mercado'!N$39) -> 7951.097 | O55: =SUMIFS(DADOS_MercadoBase[TUSD_E],DADOS_MercadoBase[OPÇÃO],'Variações de mercado'!$B55,DADOS_MercadoBase[AnoMes],'Variações de mercado'!O$39) -> 8126.786 | P55: 83337.275 | S55: Livre APE | U55: 6503.257 | V55: 6503.257 | W55: 14060.881 | X55: 14060.881 | Y55: 10627.497 | Z55: 8888.665 | AA55: 9321.074 | AB55: 8272.901 | AC55: 4668.125 | AD55: 7808.025 | AE55: 6486.448 | AF55: 6225.714 | AG55: 103426.725
B56: ERC | D56: =SUMIFS(DADOS_MercadoBase[TUSD_E],DADOS_MercadoBase[OPÇÃO],'Variações de mercado'!$B56,DADOS_MercadoBase[AnoMes],'Variações de mercado'!D$39) -> 0 | E56: =SUMIFS(DADOS_MercadoBase[TUSD_E],DADOS_MercadoBase[OPÇÃO],'Variações de mercado'!$B56,DADOS_MercadoBase[AnoMes],'Variações de mercado'!E$39) -> 0 | F56: =SUMIFS(DADOS_MercadoBase[TUSD_E],DADOS_MercadoBase[OPÇÃO],'Variações de mercado'!$B56,DADOS_MercadoBase[AnoMes],'Variações de mercado'!F$39) -> 0 | G56: =SUMIFS(DADOS_MercadoBase[TUSD_E],DADOS_MercadoBase[OPÇÃO],'Variações de mercado'!$B56,DADOS_MercadoBase[AnoMes],'Variações de mercado'!G$39) -> 0 | H56: =SUMIFS(DADOS_MercadoBase[TUSD_E],DADOS_MercadoBase[OPÇÃO],'Variações de mercado'!$B56,DADOS_MercadoBase[AnoMes],'Variações de mercado'!H$39) -> 0 | I56: =SUMIFS(DADOS_MercadoBase[TUSD_E],DADOS_MercadoBase[OPÇÃO],'Variações de mercado'!$B56,DADOS_MercadoBase[AnoMes],'Variações de mercado'!I$39) -> 0 | J56: =SUMIFS(DADOS_MercadoBase[TUSD_E],DADOS_MercadoBase[OPÇÃO],'Variações de mercado'!$B56,DADOS_MercadoBase[AnoMes],'Variações de mercado'!J$39) -> 0 | K56: =SUMIFS(DADOS_MercadoBase[TUSD_E],DADOS_MercadoBase[OPÇÃO],'Variações de mercado'!$B56,DADOS_MercadoBase[AnoMes],'Variações de mercado'!K$39) -> 0 | L56: =SUMIFS(DADOS_MercadoBase[TUSD_E],DADOS_MercadoBase[OPÇÃO],'Variações de mercado'!$B56,DADOS_MercadoBase[AnoMes],'Variações de mercado'!L$39) -> 0 | M56: =SUMIFS(DADOS_MercadoBase[TUSD_E],DADOS_MercadoBase[OPÇÃO],'Variações de mercado'!$B56,DADOS_MercadoBase[AnoMes],'Variações de mercado'!M$39) -> 0 | N56: =SUMIFS(DADOS_MercadoBase[TUSD_E],DADOS_MercadoBase[OPÇÃO],'Variações de mercado'!$B56,DADOS_MercadoBase[AnoMes],'Variações de mercado'!N$39) -> 0 | O56: =SUMIFS(DADOS_MercadoBase[TUSD_E],DADOS_MercadoBase[OPÇÃO],'Variações de mercado'!$B56,DADOS_MercadoBase[AnoMes],'Variações de mercado'!O$39) -> 0 | P56: 0 | S56: ERC | U56: 0 | V56: 0 | W56: 0 | X56: 0 | Y56: 0 | Z56: 0 | AA56: 0 | AB56: 0 | AC56: 0 | AD56: 0 | AE56: 0 | AF56: 0 | AG56: 0
B57: Livres | C57: Total Livres | D57: =SUM(D53:D56) -> 132739.128 | E57: =SUM(E53:E56) -> 132739.128 | F57: 127876.194 | G57: 122460.418 | H57: 127944.577 | I57: 123535.004 | J57: 140131.387 | K57: 137406.006 | L57: 119404.839 | M57: 123439.725 | N57: 122992.511 | O57: 136600.172 | P57: 1547269.089 | S57: Livres | T57: Total Livres | U57: 120065.103 | V57: 120065.103 | W57: 126532.173 | X57: 122421.144 | Y57: 119060.065 | Z57: 118653.355 | AA57: 127292.343 | AB57: 120120.466 | AC57: 112429.029 | AD57: 114882.895 | AE57: 115887.98 | AF57: 127805.433 | AG57: 1445215.089
B58: Distribuição | C58: DISTRIBUIÇÃO | D58: =SUMIFS(DADOS_MercadoBase[TUSD_E],DADOS_MercadoBase[OPÇÃO],'Variações de mercado'!$B58,DADOS_MercadoBase[AnoMes],'Variações de mercado'!D$39) -> 2008.051 | E58: =SUMIFS(DADOS_MercadoBase[TUSD_E],DADOS_MercadoBase[OPÇÃO],'Variações de mercado'!$B58,DADOS_MercadoBase[AnoMes],'Variações de mercado'!E$39) -> 2008.051 | F58: =SUMIFS(DADOS_MercadoBase[TUSD_E],DADOS_MercadoBase[OPÇÃO],'Variações de mercado'!$B58,DADOS_MercadoBase[AnoMes],'Variações de mercado'!F$39) -> 2228.964 | G58: =SUMIFS(DADOS_MercadoBase[TUSD_E],DADOS_MercadoBase[OPÇÃO],'Variações de mercado'!$B58,DADOS_MercadoBase[AnoMes],'Variações de mercado'!G$39) -> 2059.181 | H58: =SUMIFS(DADOS_MercadoBase[TUSD_E],DADOS_MercadoBase[OPÇÃO],'Variações de mercado'!$B58,DADOS_MercadoBase[AnoMes],'Variações de mercado'!H$39) -> 1922.254 | I58: =SUMIFS(DADOS_MercadoBase[TUSD_E],DADOS_MercadoBase[OPÇÃO],'Variações de mercado'!$B58,DADOS_MercadoBase[AnoMes],'Variações de mercado'!I$39) -> 2114.599 | J58: =SUMIFS(DADOS_MercadoBase[TUSD_E],DADOS_MercadoBase[OPÇÃO],'Variações de mercado'!$B58,DADOS_MercadoBase[AnoMes],'Variações de mercado'!J$39) -> 2002.322 | K58: =SUMIFS(DADOS_MercadoBase[TUSD_E],DADOS_MercadoBase[OPÇÃO],'Variações de mercado'!$B58,DADOS_MercadoBase[AnoMes],'Variações de mercado'!K$39) -> 1982.283 | L58: =SUMIFS(DADOS_MercadoBase[TUSD_E],DADOS_MercadoBase[OPÇÃO],'Variações de mercado'!$B58,DADOS_MercadoBase[AnoMes],'Variações de mercado'!L$39) -> 1717.348 | M58: =SUMIFS(DADOS_MercadoBase[TUSD_E],DADOS_MercadoBase[OPÇÃO],'Variações de mercado'!$B58,DADOS_MercadoBase[AnoMes],'Variações de mercado'!M$39) -> 1786.045 | N58: =SUMIFS(DADOS_MercadoBase[TUSD_E],DADOS_MercadoBase[OPÇÃO],'Variações de mercado'!$B58,DADOS_MercadoBase[AnoMes],'Variações de mercado'!N$39) -> 2041.542 | O58: =SUMIFS(DADOS_MercadoBase[TUSD_E],DADOS_MercadoBase[OPÇÃO],'Variações de mercado'!$B58,DADOS_MercadoBase[AnoMes],'Variações de mercado'!O$39) -> 2158.873 | P58: 24029.513 | S58: Distribuição | T58: DISTRIBUIÇÃO | U58: 2114.824 | V58: 2114.824 | W58: 2145.238 | X58: 2052.501 | Y58: 1428.782 | Z58: 2293.08 | AA58: 2059.37 | AB58: 1866.774 | AC58: 1790.876 | AD58: 1820.285 | AE58: 1917.958 | AF58: 1982.109 | AG58: 23586.621
B59: Geração | C59: GERADOR | D59: =SUMIFS(DADOS_MercadoBase[TUSD_E],DADOS_MercadoBase[OPÇÃO],'Variações de mercado'!$B59,DADOS_MercadoBase[AnoMes],'Variações de mercado'!D$39) -> 0 | E59: =SUMIFS(DADOS_MercadoBase[TUSD_E],DADOS_MercadoBase[OPÇÃO],'Variações de mercado'!$B59,DADOS_MercadoBase[AnoMes],'Variações de mercado'!E$39) -> 0 | F59: =SUMIFS(DADOS_MercadoBase[TUSD_E],DADOS_MercadoBase[OPÇÃO],'Variações de mercado'!$B59,DADOS_MercadoBase[AnoMes],'Variações de mercado'!F$39) -> 0 | G59: =SUMIFS(DADOS_MercadoBase[TUSD_E],DADOS_MercadoBase[OPÇÃO],'Variações de mercado'!$B59,DADOS_MercadoBase[AnoMes],'Variações de mercado'!G$39) -> 0 | H59: =SUMIFS(DADOS_MercadoBase[TUSD_E],DADOS_MercadoBase[OPÇÃO],'Variações de mercado'!$B59,DADOS_MercadoBase[AnoMes],'Variações de mercado'!H$39) -> 0 | I59: =SUMIFS(DADOS_MercadoBase[TUSD_E],DADOS_MercadoBase[OPÇÃO],'Variações de mercado'!$B59,DADOS_MercadoBase[AnoMes],'Variações de mercado'!I$39) -> 0 | J59: =SUMIFS(DADOS_MercadoBase[TUSD_E],DADOS_MercadoBase[OPÇÃO],'Variações de mercado'!$B59,DADOS_MercadoBase[AnoMes],'Variações de mercado'!J$39) -> 0 | K59: =SUMIFS(DADOS_MercadoBase[TUSD_E],DADOS_MercadoBase[OPÇÃO],'Variações de mercado'!$B59,DADOS_MercadoBase[AnoMes],'Variações de mercado'!K$39) -> 0 | L59: =SUMIFS(DADOS_MercadoBase[TUSD_E],DADOS_MercadoBase[OPÇÃO],'Variações de mercado'!$B59,DADOS_MercadoBase[AnoMes],'Variações de mercado'!L$39) -> 0 | M59: =SUMIFS(DADOS_MercadoBase[TUSD_E],DADOS_MercadoBase[OPÇÃO],'Variações de mercado'!$B59,DADOS_MercadoBase[AnoMes],'Variações de mercado'!M$39) -> 0 | N59: =SUMIFS(DADOS_MercadoBase[TUSD_E],DADOS_MercadoBase[OPÇÃO],'Variações de mercado'!$B59,DADOS_MercadoBase[AnoMes],'Variações de mercado'!N$39) -> 0 | O59: =SUMIFS(DADOS_MercadoBase[TUSD_E],DADOS_MercadoBase[OPÇÃO],'Variações de mercado'!$B59,DADOS_MercadoBase[AnoMes],'Variações de mercado'!O$39) -> 0 | P59: 0 | S59: Geração | T59: GERADOR | U59: 0 | V59: 0 | W59: 0 | X59: 0 | Y59: 0 | Z59: 0 | AA59: 0 | AB59: 0 | AC59: 0 | AD59: 0 | AE59: 0 | AF59: 0 | AG59: 0
C60: =Mercado!B24 -> TOTAL | D60: =SUMIFS(DADOS_MercadoBase[TUSD_E],DADOS_MercadoBase[AnoMes],'Variações de mercado'!D$39) -> 495555.886 | E60: =SUMIFS(DADOS_MercadoBase[TUSD_E],DADOS_MercadoBase[AnoMes],'Variações de mercado'!E$39) -> 495555.886 | F60: =SUMIFS(DADOS_MercadoBase[TUSD_E],DADOS_MercadoBase[AnoMes],'Variações de mercado'!F$39) -> 494890.873 | G60: =SUMIFS(DADOS_MercadoBase[TUSD_E],DADOS_MercadoBase[AnoMes],'Variações de mercado'!G$39) -> 487576.202 | H60: =SUMIFS(DADOS_MercadoBase[TUSD_E],DADOS_MercadoBase[AnoMes],'Variações de mercado'!H$39) -> 459891.271 | I60: =SUMIFS(DADOS_MercadoBase[TUSD_E],DADOS_MercadoBase[AnoMes],'Variações de mercado'!I$39) -> 447774.857 | J60: =SUMIFS(DADOS_MercadoBase[TUSD_E],DADOS_MercadoBase[AnoMes],'Variações de mercado'!J$39) -> 473347.151 | K60: =SUMIFS(DADOS_MercadoBase[TUSD_E],DADOS_MercadoBase[AnoMes],'Variações de mercado'!K$39) -> 473370.072 | L60: =SUMIFS(DADOS_MercadoBase[TUSD_E],DADOS_MercadoBase[AnoMes],'Variações de mercado'!L$39) -> 425667.539 | M60: =SUMIFS(DADOS_MercadoBase[TUSD_E],DADOS_MercadoBase[AnoMes],'Variações de mercado'!M$39) -> 424555.467 | N60: =SUMIFS(DADOS_MercadoBase[TUSD_E],DADOS_MercadoBase[AnoMes],'Variações de mercado'!N$39) -> 467304.027 | O60: =SUMIFS(DADOS_MercadoBase[TUSD_E],DADOS_MercadoBase[AnoMes],'Variações de mercado'!O$39) -> 524154.175 | P60: 5669643.406 | T60: TOTAL | U60: 513502.785 | V60: 513502.785 | W60: 536303.491 | X60: 511148.156 | Y60: 485583.154 | Z60: 499705.36 | AA60: 504317.765 | AB60: 439582.271 | AC60: 423758.188 | AD60: 451627.384 | AE60: 470888.478 | AF60: 541191.528 | AG60: 5891111.345
B62: Residencial baixa renda – faixa 01 | C62: B1 | D62: =SUMIFS(DADOS_MercadoBase[TUSD_E],DADOS_MercadoBase[Subclasse],'Variações de mercado'!$B62,DADOS_MercadoBase[AnoMes],D$39) -> 6788.069 | E62: =SUMIFS(DADOS_MercadoBase[TUSD_E],DADOS_MercadoBase[Subclasse],'Variações de mercado'!$B62,DADOS_MercadoBase[AnoMes],E$39) -> 6788.069 | F62: =SUMIFS(DADOS_MercadoBase[TUSD_E],DADOS_MercadoBase[Subclasse],'Variações de mercado'!$B62,DADOS_MercadoBase[AnoMes],F$39) -> 6688.155 | G62: =SUMIFS(DADOS_MercadoBase[TUSD_E],DADOS_MercadoBase[Subclasse],'Variações de mercado'!$B62,DADOS_MercadoBase[AnoMes],G$39) -> 6644.556 | H62: =SUMIFS(DADOS_MercadoBase[TUSD_E],DADOS_MercadoBase[Subclasse],'Variações de mercado'!$B62,DADOS_MercadoBase[AnoMes],H$39) -> 6524.842 | I62: =SUMIFS(DADOS_MercadoBase[TUSD_E],DADOS_MercadoBase[Subclasse],'Variações de mercado'!$B62,DADOS_MercadoBase[AnoMes],I$39) -> 6343.651 | J62: =SUMIFS(DADOS_MercadoBase[TUSD_E],DADOS_MercadoBase[Subclasse],'Variações de mercado'!$B62,DADOS_MercadoBase[AnoMes],J$39) -> 6404.432 | K62: =SUMIFS(DADOS_MercadoBase[TUSD_E],DADOS_MercadoBase[Subclasse],'Variações de mercado'!$B62,DADOS_MercadoBase[AnoMes],K$39) -> 6274.394 | L62: =SUMIFS(DADOS_MercadoBase[TUSD_E],DADOS_MercadoBase[Subclasse],'Variações de mercado'!$B62,DADOS_MercadoBase[AnoMes],L$39) -> 6149.467 | M62: =SUMIFS(DADOS_MercadoBase[TUSD_E],DADOS_MercadoBase[Subclasse],'Variações de mercado'!$B62,DADOS_MercadoBase[AnoMes],M$39) -> 6075.327 | N62: =SUMIFS(DADOS_MercadoBase[TUSD_E],DADOS_MercadoBase[Subclasse],'Variações de mercado'!$B62,DADOS_MercadoBase[AnoMes],N$39) -> 5869.757 | O62: =SUMIFS(DADOS_MercadoBase[TUSD_E],DADOS_MercadoBase[Subclasse],'Variações de mercado'!$B62,DADOS_MercadoBase[AnoMes],O$39) -> 6237.02 | P62: 76787.739 | S62: Residencial baixa renda – faixa 01 | T62: B1 | U62: 5879.357 | V62: 5879.357 | W62: 5530.809 | X62: 5361.282 | Y62: 5339.911 | Z62: 5314.372 | AA62: 5245.833 | AB62: 5515.539 | AC62: 5398.195 | AD62: 5348.535 | AE62: 5285.911 | AF62: 5194.165 | AG62: 65293.266
B63: Residencial baixa renda – faixa 02 | C63: B1 | D63: =SUMIFS(DADOS_MercadoBase[TUSD_E],DADOS_MercadoBase[Subclasse],'Variações de mercado'!$B63,DADOS_MercadoBase[AnoMes],D$39) -> 13834.852 | E63: =SUMIFS(DADOS_MercadoBase[TUSD_E],DADOS_MercadoBase[Subclasse],'Variações de mercado'!$B63,DADOS_MercadoBase[AnoMes],E$39) -> 13834.852 | F63: =SUMIFS(DADOS_MercadoBase[TUSD_E],DADOS_MercadoBase[Subclasse],'Variações de mercado'!$B63,DADOS_MercadoBase[AnoMes],F$39) -> 13602.051 | G63: =SUMIFS(DADOS_MercadoBase[TUSD_E],DADOS_MercadoBase[Subclasse],'Variações de mercado'!$B63,DADOS_MercadoBase[AnoMes],G$39) -> 13510.092 | H63: =SUMIFS(DADOS_MercadoBase[TUSD_E],DADOS_MercadoBase[Subclasse],'Variações de mercado'!$B63,DADOS_MercadoBase[AnoMes],H$39) -> 12977.33 | I63: =SUMIFS(DADOS_MercadoBase[TUSD_E],DADOS_MercadoBase[Subclasse],'Variações de mercado'!$B63,DADOS_MercadoBase[AnoMes],I$39) -> 12460.138 | J63: =SUMIFS(DADOS_MercadoBase[TUSD_E],DADOS_MercadoBase[Subclasse],'Variações de mercado'!$B63,DADOS_MercadoBase[AnoMes],J$39) -> 12535.725 | K63: =SUMIFS(DADOS_MercadoBase[TUSD_E],DADOS_MercadoBase[Subclasse],'Variações de mercado'!$B63,DADOS_MercadoBase[AnoMes],K$39) -> 12127.75 | L63: =SUMIFS(DADOS_MercadoBase[TUSD_E],DADOS_MercadoBase[Subclasse],'Variações de mercado'!$B63,DADOS_MercadoBase[AnoMes],L$39) -> 11638.413 | M63: =SUMIFS(DADOS_MercadoBase[TUSD_E],DADOS_MercadoBase[Subclasse],'Variações de mercado'!$B63,DADOS_MercadoBase[AnoMes],M$39) -> 11302.142 | N63: =SUMIFS(DADOS_MercadoBase[TUSD_E],DADOS_MercadoBase[Subclasse],'Variações de mercado'!$B63,DADOS_MercadoBase[AnoMes],N$39) -> 11415.489 | O63: =SUMIFS(DADOS_MercadoBase[TUSD_E],DADOS_MercadoBase[Subclasse],'Variações de mercado'!$B63,DADOS_MercadoBase[AnoMes],O$39) -> 12603.698 | P63: 151842.532 | S63: Residencial baixa renda – faixa 02 | T63: B1 | U63: 11919.275 | V63: 11919.275 | W63: 11321.744 | X63: 10697.567 | Y63: 10599.946 | Z63: 10583.493 | AA63: 10441.414 | AB63: 10349.379 | AC63: 10028 | AD63: 10368.219 | AE63: 10367.427 | AF63: 10586.932 | AG63: 129182.671
B64: Residencial baixa renda – faixa 03 | C64: B1 | D64: =SUMIFS(DADOS_MercadoBase[TUSD_E],DADOS_MercadoBase[Subclasse],'Variações de mercado'!$B64,DADOS_MercadoBase[AnoMes],D$39) -> 13496.996 | E64: =SUMIFS(DADOS_MercadoBase[TUSD_E],DADOS_MercadoBase[Subclasse],'Variações de mercado'!$B64,DADOS_MercadoBase[AnoMes],E$39) -> 13496.996 | F64: =SUMIFS(DADOS_MercadoBase[TUSD_E],DADOS_MercadoBase[Subclasse],'Variações de mercado'!$B64,DADOS_MercadoBase[AnoMes],F$39) -> 13096.622 | G64: =SUMIFS(DADOS_MercadoBase[TUSD_E],DADOS_MercadoBase[Subclasse],'Variações de mercado'!$B64,DADOS_MercadoBase[AnoMes],G$39) -> 12780.059 | H64: =SUMIFS(DADOS_MercadoBase[TUSD_E],DADOS_MercadoBase[Subclasse],'Variações de mercado'!$B64,DADOS_MercadoBase[AnoMes],H$39) -> 10874.943 | I64: =SUMIFS(DADOS_MercadoBase[TUSD_E],DADOS_MercadoBase[Subclasse],'Variações de mercado'!$B64,DADOS_MercadoBase[AnoMes],I$39) -> 9988.954 | J64: =SUMIFS(DADOS_MercadoBase[TUSD_E],DADOS_MercadoBase[Subclasse],'Variações de mercado'!$B64,DADOS_MercadoBase[AnoMes],J$39) -> 9937.825 | K64: =SUMIFS(DADOS_MercadoBase[TUSD_E],DADOS_MercadoBase[Subclasse],'Variações de mercado'!$B64,DADOS_MercadoBase[AnoMes],K$39) -> 9276.438 | L64: =SUMIFS(DADOS_MercadoBase[TUSD_E],DADOS_MercadoBase[Subclasse],'Variações de mercado'!$B64,DADOS_MercadoBase[AnoMes],L$39) -> 8136.239 | M64: =SUMIFS(DADOS_MercadoBase[TUSD_E],DADOS_MercadoBase[Subclasse],'Variações de mercado'!$B64,DADOS_MercadoBase[AnoMes],M$39) -> 7291.595 | N64: =SUMIFS(DADOS_MercadoBase[TUSD_E],DADOS_MercadoBase[Subclasse],'Variações de mercado'!$B64,DADOS_MercadoBase[AnoMes],N$39) -> 8916.525 | O64: =SUMIFS(DADOS_MercadoBase[TUSD_E],DADOS_MercadoBase[Subclasse],'Variações de mercado'!$B64,DADOS_MercadoBase[AnoMes],O$39) -> 11756.059 | P64: 129049.251 | S64: Residencial baixa renda – faixa 03 | T64: B1 | U64: 11367.778 | V64: 11367.778 | W64: 11486.486 | X64: 9791.591 | Y64: 9298.448 | Z64: 9291.489 | AA64: 9181.346 | AB64: 7241.167 | AC64: 6837.305 | AD64: 8184.266 | AE64: 8485.579 | AF64: 10506.937 | AG64: 113040.17
B65: Residencial baixa renda – faixa 04 | C65: B1 | D65: =SUMIFS(DADOS_MercadoBase[TUSD_E],DADOS_MercadoBase[Subclasse],'Variações de mercado'!$B65,DADOS_MercadoBase[AnoMes],D$39) -> 5615.041 | E65: =SUMIFS(DADOS_MercadoBase[TUSD_E],DADOS_MercadoBase[Subclasse],'Variações de mercado'!$B65,DADOS_MercadoBase[AnoMes],E$39) -> 5615.041 | F65: =SUMIFS(DADOS_MercadoBase[TUSD_E],DADOS_MercadoBase[Subclasse],'Variações de mercado'!$B65,DADOS_MercadoBase[AnoMes],F$39) -> 5667.263 | G65: =SUMIFS(DADOS_MercadoBase[TUSD_E],DADOS_MercadoBase[Subclasse],'Variações de mercado'!$B65,DADOS_MercadoBase[AnoMes],G$39) -> 5304.723 | H65: =SUMIFS(DADOS_MercadoBase[TUSD_E],DADOS_MercadoBase[Subclasse],'Variações de mercado'!$B65,DADOS_MercadoBase[AnoMes],H$39) -> 3450.117 | I65: =SUMIFS(DADOS_MercadoBase[TUSD_E],DADOS_MercadoBase[Subclasse],'Variações de mercado'!$B65,DADOS_MercadoBase[AnoMes],I$39) -> 2993.921 | J65: =SUMIFS(DADOS_MercadoBase[TUSD_E],DADOS_MercadoBase[Subclasse],'Variações de mercado'!$B65,DADOS_MercadoBase[AnoMes],J$39) -> 2927.029 | K65: =SUMIFS(DADOS_MercadoBase[TUSD_E],DADOS_MercadoBase[Subclasse],'Variações de mercado'!$B65,DADOS_MercadoBase[AnoMes],K$39) -> 2586.924 | L65: =SUMIFS(DADOS_MercadoBase[TUSD_E],DADOS_MercadoBase[Subclasse],'Variações de mercado'!$B65,DADOS_MercadoBase[AnoMes],L$39) -> 2083.929 | M65: =SUMIFS(DADOS_MercadoBase[TUSD_E],DADOS_MercadoBase[Subclasse],'Variações de mercado'!$B65,DADOS_MercadoBase[AnoMes],M$39) -> 1814.367 | N65: =SUMIFS(DADOS_MercadoBase[TUSD_E],DADOS_MercadoBase[Subclasse],'Variações de mercado'!$B65,DADOS_MercadoBase[AnoMes],N$39) -> 2889.905 | O65: =SUMIFS(DADOS_MercadoBase[TUSD_E],DADOS_MercadoBase[Subclasse],'Variações de mercado'!$B65,DADOS_MercadoBase[AnoMes],O$39) -> 4891.028 | P65: 45839.288 | S65: Residencial baixa renda – faixa 04 | T65: B1 | U65: 5516.093 | V65: 5516.093 | W65: 6377.765 | X65: 4483.844 | Y65: 3782.056 | Z65: 3819.59 | AA65: 3645.758 | AB65: 2083.192 | AC65: 1947.003 | AD65: 2595.632 | AE65: 2884.712 | AF65: 5169.933 | AG65: 47821.671
C66: Total Baixa renda | D66: =SUM(D62:D65) -> 39734.958 | E66: =SUM(E62:E65) -> 39734.958 | F66: 39054.091 | G66: 38239.43 | H66: 33827.232 | I66: 31786.664 | J66: 31805.011 | K66: 30265.506 | L66: 28008.048 | M66: 26483.431 | N66: 29091.676 | O66: 35487.805 | P66: 403518.81 | T66: Total Baixa renda | U66: 34682.503 | V66: 34682.503 | W66: 34716.804 | X66: 30334.284 | Y66: 29020.361 | Z66: 29008.944 | AA66: 28514.351 | AB66: 25189.277 | AC66: 24210.503 | AD66: 26496.652 | AE66: 27023.629 | AF66: 31457.967 | AG66: 355337.778
B69: Mercado TUSD MWh (ajustado) | S69: Mercado TUSD MWh (ajustado)
D71: =D39 -> 44986 | E71: =EDATE(D71,-1) -> 44958 | F71: =EDATE(E71,-1) -> 44927 | G71: 44896 | H71: 44866 | I71: 44835 | J71: 44805 | K71: 44774 | L71: 44743 | M71: 44713 | N71: 44682 | O71: 44652 | P71: Total | U71: 44621 | V71: 44593 | W71: 44562 | X71: 44531 | Y71: 44501 | Z71: 44470 | AA71: 44440 | AB71: 44409 | AC71: 44378 | AD71: 44348 | AE71: 44317 | AF71: 44287 | AG71: Total
B72: cativo | C72: A1 | D72: =SUMIFS(DADOS_MercadoBase[TUSD_Eaj],DADOS_MercadoBase[OPÇÃO],'Variações de mercado'!$B40,DADOS_MercadoBase[Subgrupo],'Variações de mercado'!$C40,DADOS_MercadoBase[AnoMes],'Variações de mercado'!D$71) -> 0 | E72: =SUMIFS(DADOS_MercadoBase[TUSD_E],DADOS_MercadoBase[OPÇÃO],'Variações de mercado'!$B40,DADOS_MercadoBase[Subgrupo],'Variações de mercado'!$C40,DADOS_MercadoBase[AnoMes],'Variações de mercado'!E$71) -> 0 | F72: =SUMIFS(DADOS_MercadoBase[TUSD_Eaj],DADOS_MercadoBase[OPÇÃO],'Variações de mercado'!$B40,DADOS_MercadoBase[Subgrupo],'Variações de mercado'!$C40,DADOS_MercadoBase[AnoMes],'Variações de mercado'!F$71) -> 0 | G72: =SUMIFS(DADOS_MercadoBase[TUSD_Eaj],DADOS_MercadoBase[OPÇÃO],'Variações de mercado'!$B40,DADOS_MercadoBase[Subgrupo],'Variações de mercado'!$C40,DADOS_MercadoBase[AnoMes],'Variações de mercado'!G$71) -> 0 | H72: =SUMIFS(DADOS_MercadoBase[TUSD_Eaj],DADOS_MercadoBase[OPÇÃO],'Variações de mercado'!$B40,DADOS_MercadoBase[Subgrupo],'Variações de mercado'!$C40,DADOS_MercadoBase[AnoMes],'Variações de mercado'!H$71) -> 0 | I72: =SUMIFS(DADOS_MercadoBase[TUSD_Eaj],DADOS_MercadoBase[OPÇÃO],'Variações de mercado'!$B40,DADOS_MercadoBase[Subgrupo],'Variações de mercado'!$C40,DADOS_MercadoBase[AnoMes],'Variações de mercado'!I$71) -> 0 | J72: =SUMIFS(DADOS_MercadoBase[TUSD_Eaj],DADOS_MercadoBase[OPÇÃO],'Variações de mercado'!$B40,DADOS_MercadoBase[Subgrupo],'Variações de mercado'!$C40,DADOS_MercadoBase[AnoMes],'Variações de mercado'!J$71) -> 0 | K72: =SUMIFS(DADOS_MercadoBase[TUSD_Eaj],DADOS_MercadoBase[OPÇÃO],'Variações de mercado'!$B40,DADOS_MercadoBase[Subgrupo],'Variações de mercado'!$C40,DADOS_MercadoBase[AnoMes],'Variações de mercado'!K$71) -> 0 | L72: =SUMIFS(DADOS_MercadoBase[TUSD_Eaj],DADOS_MercadoBase[OPÇÃO],'Variações de mercado'!$B40,DADOS_MercadoBase[Subgrupo],'Variações de mercado'!$C40,DADOS_MercadoBase[AnoMes],'Variações de mercado'!L$71) -> 0 | M72: =SUMIFS(DADOS_MercadoBase[TUSD_Eaj],DADOS_MercadoBase[OPÇÃO],'Variações de mercado'!$B40,DADOS_MercadoBase[Subgrupo],'Variações de mercado'!$C40,DADOS_MercadoBase[AnoMes],'Variações de mercado'!M$71) -> 0 | N72: =SUMIFS(DADOS_MercadoBase[TUSD_Eaj],DADOS_MercadoBase[OPÇÃO],'Variações de mercado'!$B40,DADOS_MercadoBase[Subgrupo],'Variações de mercado'!$C40,DADOS_MercadoBase[AnoMes],'Variações de mercado'!N$71) -> 0 | O72: =SUMIFS(DADOS_MercadoBase[TUSD_Eaj],DADOS_MercadoBase[OPÇÃO],'Variações de mercado'!$B40,DADOS_MercadoBase[Subgrupo],'Variações de mercado'!$C40,DADOS_MercadoBase[AnoMes],'Variações de mercado'!O$71) -> 0 | P72: =SUM(D72:O72) -> 0 | S72: cativo | T72: A1 | U72: 0 | V72: 0 | W72: 0 | X72: 0 | Y72: 0 | Z72: 0 | AA72: 0 | AB72: 0 | AC72: 0 | AD72: 0 | AE72: 0 | AF72: 0 | AG72: 0
B73: cativo | C73: A2 | D73: =SUMIFS(DADOS_MercadoBase[TUSD_Eaj],DADOS_MercadoBase[OPÇÃO],'Variações de mercado'!$B41,DADOS_MercadoBase[Subgrupo],'Variações de mercado'!$C41,DADOS_MercadoBase[AnoMes],'Variações de mercado'!D$71) -> 82.458 | E73: =SUMIFS(DADOS_MercadoBase[TUSD_E],DADOS_MercadoBase[OPÇÃO],'Variações de mercado'!$B41,DADOS_MercadoBase[Subgrupo],'Variações de mercado'!$C41,DADOS_MercadoBase[AnoMes],'Variações de mercado'!E$71) -> 82.458 | F73: =SUMIFS(DADOS_MercadoBase[TUSD_Eaj],DADOS_MercadoBase[OPÇÃO],'Variações de mercado'!$B41,DADOS_MercadoBase[Subgrupo],'Variações de mercado'!$C41,DADOS_MercadoBase[AnoMes],'Variações de mercado'!F$71) -> 85.495 | G73: =SUMIFS(DADOS_MercadoBase[TUSD_Eaj],DADOS_MercadoBase[OPÇÃO],'Variações de mercado'!$B41,DADOS_MercadoBase[Subgrupo],'Variações de mercado'!$C41,DADOS_MercadoBase[AnoMes],'Variações de mercado'!G$71) -> 86.755 | H73: =SUMIFS(DADOS_MercadoBase[TUSD_Eaj],DADOS_MercadoBase[OPÇÃO],'Variações de mercado'!$B41,DADOS_MercadoBase[Subgrupo],'Variações de mercado'!$C41,DADOS_MercadoBase[AnoMes],'Variações de mercado'!H$71) -> 88.67 | I73: =SUMIFS(DADOS_MercadoBase[TUSD_Eaj],DADOS_MercadoBase[OPÇÃO],'Variações de mercado'!$B41,DADOS_MercadoBase[Subgrupo],'Variações de mercado'!$C41,DADOS_MercadoBase[AnoMes],'Variações de mercado'!I$71) -> 83.992 | J73: =SUMIFS(DADOS_MercadoBase[TUSD_Eaj],DADOS_MercadoBase[OPÇÃO],'Variações de mercado'!$B41,DADOS_MercadoBase[Subgrupo],'Variações de mercado'!$C41,DADOS_MercadoBase[AnoMes],'Variações de mercado'!J$71) -> 106.717 | K73: =SUMIFS(DADOS_MercadoBase[TUSD_Eaj],DADOS_MercadoBase[OPÇÃO],'Variações de mercado'!$B41,DADOS_MercadoBase[Subgrupo],'Variações de mercado'!$C41,DADOS_MercadoBase[AnoMes],'Variações de mercado'!K$71) -> 113.022 | L73: =SUMIFS(DADOS_MercadoBase[TUSD_Eaj],DADOS_MercadoBase[OPÇÃO],'Variações de mercado'!$B41,DADOS_MercadoBase[Subgrupo],'Variações de mercado'!$C41,DADOS_MercadoBase[AnoMes],'Variações de mercado'!L$71) -> 290.258 | M73: =SUMIFS(DADOS_MercadoBase[TUSD_Eaj],DADOS_MercadoBase[OPÇÃO],'Variações de mercado'!$B41,DADOS_MercadoBase[Subgrupo],'Variações de mercado'!$C41,DADOS_MercadoBase[AnoMes],'Variações de mercado'!M$71) -> 343.998 | N73: =SUMIFS(DADOS_MercadoBase[TUSD_Eaj],DADOS_MercadoBase[OPÇÃO],'Variações de mercado'!$B41,DADOS_MercadoBase[Subgrupo],'Variações de mercado'!$C41,DADOS_MercadoBase[AnoMes],'Variações de mercado'!N$71) -> 326.68 | O73: =SUMIFS(DADOS_MercadoBase[TUSD_Eaj],DADOS_MercadoBase[OPÇÃO],'Variações de mercado'!$B41,DADOS_MercadoBase[Subgrupo],'Variações de mercado'!$C41,DADOS_MercadoBase[AnoMes],'Variações de mercado'!O$71) -> 339.503 | P73: =SUM(D73:O73) -> 2030.006 | S73: cativo | T73: A2 | U73: 287.569 | V73: 287.569 | W73: 315.76 | X73: 339.254 | Y73: 294.95 | Z73: 306.042 | AA73: 359.065 | AB73: 333.529 | AC73: 312.384 | AD73: 342.744 | AE73: 326.365 | AF73: 343.907 | AG73: 3849.138
B74: cativo | C74: A3 | D74: =SUMIFS(DADOS_MercadoBase[TUSD_Eaj],DADOS_MercadoBase[OPÇÃO],'Variações de mercado'!$B42,DADOS_MercadoBase[Subgrupo],'Variações de mercado'!$C42,DADOS_MercadoBase[AnoMes],'Variações de mercado'!D$71) -> 1324.47777 | E74: =SUMIFS(DADOS_MercadoBase[TUSD_Eaj],DADOS_MercadoBase[OPÇÃO],'Variações de mercado'!$B42,DADOS_MercadoBase[Subgrupo],'Variações de mercado'!$C42,DADOS_MercadoBase[AnoMes],'Variações de mercado'!E$71) -> 1324.47777 | F74: =SUMIFS(DADOS_MercadoBase[TUSD_Eaj],DADOS_MercadoBase[OPÇÃO],'Variações de mercado'!$B42,DADOS_MercadoBase[Subgrupo],'Variações de mercado'!$C42,DADOS_MercadoBase[AnoMes],'Variações de mercado'!F$71) -> 1407.99671 | G74: =SUMIFS(DADOS_MercadoBase[TUSD_Eaj],DADOS_MercadoBase[OPÇÃO],'Variações de mercado'!$B42,DADOS_MercadoBase[Subgrupo],'Variações de mercado'!$C42,DADOS_MercadoBase[AnoMes],'Variações de mercado'!G$71) -> 1360.68787 | H74: =SUMIFS(DADOS_MercadoBase[TUSD_Eaj],DADOS_MercadoBase[OPÇÃO],'Variações de mercado'!$B42,DADOS_MercadoBase[Subgrupo],'Variações de mercado'!$C42,DADOS_MercadoBase[AnoMes],'Variações de mercado'!H$71) -> 1306.02352 | I74: =SUMIFS(DADOS_MercadoBase[TUSD_Eaj],DADOS_MercadoBase[OPÇÃO],'Variações de mercado'!$B42,DADOS_MercadoBase[Subgrupo],'Variações de mercado'!$C42,DADOS_MercadoBase[AnoMes],'Variações de mercado'!I$71) -> 1248.19891 | J74: =SUMIFS(DADOS_MercadoBase[TUSD_Eaj],DADOS_MercadoBase[OPÇÃO],'Variações de mercado'!$B42,DADOS_MercadoBase[Subgrupo],'Variações de mercado'!$C42,DADOS_MercadoBase[AnoMes],'Variações de mercado'!J$71) -> 1326.44881 | K74: =SUMIFS(DADOS_MercadoBase[TUSD_Eaj],DADOS_MercadoBase[OPÇÃO],'Variações de mercado'!$B42,DADOS_MercadoBase[Subgrupo],'Variações de mercado'!$C42,DADOS_MercadoBase[AnoMes],'Variações de mercado'!K$71) -> 1360.62385 | L74: =SUMIFS(DADOS_MercadoBase[TUSD_Eaj],DADOS_MercadoBase[OPÇÃO],'Variações de mercado'!$B42,DADOS_MercadoBase[Subgrupo],'Variações de mercado'!$C42,DADOS_MercadoBase[AnoMes],'Variações de mercado'!L$71) -> 1285.40326 | M74: =SUMIFS(DADOS_MercadoBase[TUSD_Eaj],DADOS_MercadoBase[OPÇÃO],'Variações de mercado'!$B42,DADOS_MercadoBase[Subgrupo],'Variações de mercado'!$C42,DADOS_MercadoBase[AnoMes],'Variações de mercado'!M$71) -> 1367.48563 | N74: =SUMIFS(DADOS_MercadoBase[TUSD_Eaj],DADOS_MercadoBase[OPÇÃO],'Variações de mercado'!$B42,DADOS_MercadoBase[Subgrupo],'Variações de mercado'!$C42,DADOS_MercadoBase[AnoMes],'Variações de mercado'!N$71) -> 1383.66426 | O74: =SUMIFS(DADOS_MercadoBase[TUSD_Eaj],DADOS_MercadoBase[OPÇÃO],'Variações de mercado'!$B42,DADOS_MercadoBase[Subgrupo],'Variações de mercado'!$C42,DADOS_MercadoBase[AnoMes],'Variações de mercado'!O$71) -> 1508.2045 | P74: 16203.69286 | S74: cativo | T74: A3 | U74: 1510.7915 | V74: 1510.7915 | W74: 1487.08 | X74: 1421.28 | Y74: 1355.48 | Z74: 1368.64 | AA74: 1414.7 | AB74: 1431.15 | AC74: 1292.911 | AD74: 1496.067 | AE74: 1416.044 | AF74: 1459.103 | AG74: 17164.038
B75: cativo | C75: A3a | D75: =SUMIFS(DADOS_MercadoBase[TUSD_Eaj],DADOS_MercadoBase[OPÇÃO],'Variações de mercado'!$B43,DADOS_MercadoBase[Subgrupo],'Variações de mercado'!$C43,DADOS_MercadoBase[AnoMes],'Variações de mercado'!D$71) -> 11180.63952 | E75: =SUMIFS(DADOS_MercadoBase[TUSD_Eaj],DADOS_MercadoBase[OPÇÃO],'Variações de mercado'!$B43,DADOS_MercadoBase[Subgrupo],'Variações de mercado'!$C43,DADOS_MercadoBase[AnoMes],'Variações de mercado'!E$71) -> 11180.63952 | F75: =SUMIFS(DADOS_MercadoBase[TUSD_Eaj],DADOS_MercadoBase[OPÇÃO],'Variações de mercado'!$B43,DADOS_MercadoBase[Subgrupo],'Variações de mercado'!$C43,DADOS_MercadoBase[AnoMes],'Variações de mercado'!F$71) -> 12023.50082 | G75: =SUMIFS(DADOS_MercadoBase[TUSD_Eaj],DADOS_MercadoBase[OPÇÃO],'Variações de mercado'!$B43,DADOS_MercadoBase[Subgrupo],'Variações de mercado'!$C43,DADOS_MercadoBase[AnoMes],'Variações de mercado'!G$71) -> 12005.91505 | H75: =SUMIFS(DADOS_MercadoBase[TUSD_Eaj],DADOS_MercadoBase[OPÇÃO],'Variações de mercado'!$B43,DADOS_MercadoBase[Subgrupo],'Variações de mercado'!$C43,DADOS_MercadoBase[AnoMes],'Variações de mercado'!H$71) -> 12968.23501 | I75: =SUMIFS(DADOS_MercadoBase[TUSD_Eaj],DADOS_MercadoBase[OPÇÃO],'Variações de mercado'!$B43,DADOS_MercadoBase[Subgrupo],'Variações de mercado'!$C43,DADOS_MercadoBase[AnoMes],'Variações de mercado'!I$71) -> 13196.94187 | J75: =SUMIFS(DADOS_MercadoBase[TUSD_Eaj],DADOS_MercadoBase[OPÇÃO],'Variações de mercado'!$B43,DADOS_MercadoBase[Subgrupo],'Variações de mercado'!$C43,DADOS_MercadoBase[AnoMes],'Variações de mercado'!J$71) -> 18433.30424 | K75: =SUMIFS(DADOS_MercadoBase[TUSD_Eaj],DADOS_MercadoBase[OPÇÃO],'Variações de mercado'!$B43,DADOS_MercadoBase[Subgrupo],'Variações de mercado'!$C43,DADOS_MercadoBase[AnoMes],'Variações de mercado'!K$71) -> 20099.04995 | L75: =SUMIFS(DADOS_MercadoBase[TUSD_Eaj],DADOS_MercadoBase[OPÇÃO],'Variações de mercado'!$B43,DADOS_MercadoBase[Subgrupo],'Variações de mercado'!$C43,DADOS_MercadoBase[AnoMes],'Variações de mercado'!L$71) -> 15183.76161 | M75: =SUMIFS(DADOS_MercadoBase[TUSD_Eaj],DADOS_MercadoBase[OPÇÃO],'Variações de mercado'!$B43,DADOS_MercadoBase[Subgrupo],'Variações de mercado'!$C43,DADOS_MercadoBase[AnoMes],'Variações de mercado'!M$71) -> 12509.73558 | N75: =SUMIFS(DADOS_MercadoBase[TUSD_Eaj],DADOS_MercadoBase[OPÇÃO],'Variações de mercado'!$B43,DADOS_MercadoBase[Subgrupo],'Variações de mercado'!$C43,DADOS_MercadoBase[AnoMes],'Variações de mercado'!N$71) -> 13760.06477 | O75: =SUMIFS(DADOS_MercadoBase[TUSD_Eaj],DADOS_MercadoBase[OPÇÃO],'Variações de mercado'!$B43,DADOS_MercadoBase[Subgrupo],'Variações de mercado'!$C43,DADOS_MercadoBase[AnoMes],'Variações de mercado'!O$71) -> 15921.77133 | P75: 168463.5593 | S75: cativo | T75: A3a | U75: 13612.85883 | V75: 13612.85883 | W75: 12827.0278 | X75: 13295.02087 | Y75: 12891.88888 | Z75: 15039.43614 | AA75: 18897.62932 | AB75: 16585.62586 | AC75: 14235.73592 | AD75: 14725.80828 | AE75: 16859.29288 | AF75: 18857.45366 | AG75: 181440.6373
B76: cativo | C76: A4 | D76: =SUMIFS(DADOS_MercadoBase[TUSD_Eaj],DADOS_MercadoBase[OPÇÃO],'Variações de mercado'!$B44,DADOS_MercadoBase[Subgrupo],'Variações de mercado'!$C44,DADOS_MercadoBase[AnoMes],'Variações de mercado'!D$71) -> 51258.67904 | E76: =SUMIFS(DADOS_MercadoBase[TUSD_Eaj],DADOS_MercadoBase[OPÇÃO],'Variações de mercado'!$B44,DADOS_MercadoBase[Subgrupo],'Variações de mercado'!$C44,DADOS_MercadoBase[AnoMes],'Variações de mercado'!E$71) -> 51258.67904 | F76: =SUMIFS(DADOS_MercadoBase[TUSD_Eaj],DADOS_MercadoBase[OPÇÃO],'Variações de mercado'!$B44,DADOS_MercadoBase[Subgrupo],'Variações de mercado'!$C44,DADOS_MercadoBase[AnoMes],'Variações de mercado'!F$71) -> 55641.4583 | G76: =SUMIFS(DADOS_MercadoBase[TUSD_Eaj],DADOS_MercadoBase[OPÇÃO],'Variações de mercado'!$B44,DADOS_MercadoBase[Subgrupo],'Variações de mercado'!$C44,DADOS_MercadoBase[AnoMes],'Variações de mercado'!G$71) -> 52104.88461 | H76: =SUMIFS(DADOS_MercadoBase[TUSD_Eaj],DADOS_MercadoBase[OPÇÃO],'Variações de mercado'!$B44,DADOS_MercadoBase[Subgrupo],'Variações de mercado'!$C44,DADOS_MercadoBase[AnoMes],'Variações de mercado'!H$71) -> 50505.77493 | I76: =SUMIFS(DADOS_MercadoBase[TUSD_Eaj],DADOS_MercadoBase[OPÇÃO],'Variações de mercado'!$B44,DADOS_MercadoBase[Subgrupo],'Variações de mercado'!$C44,DADOS_MercadoBase[AnoMes],'Variações de mercado'!I$71) -> 50187.05566 | J76: =SUMIFS(DADOS_MercadoBase[TUSD_Eaj],DADOS_MercadoBase[OPÇÃO],'Variações de mercado'!$B44,DADOS_MercadoBase[Subgrupo],'Variações de mercado'!$C44,DADOS_MercadoBase[AnoMes],'Variações de mercado'!J$71) -> 52166.21366 | K76: =SUMIFS(DADOS_MercadoBase[TUSD_Eaj],DADOS_MercadoBase[OPÇÃO],'Variações de mercado'!$B44,DADOS_MercadoBase[Subgrupo],'Variações de mercado'!$C44,DADOS_MercadoBase[AnoMes],'Variações de mercado'!K$71) -> 54045.86074 | L76: =SUMIFS(DADOS_MercadoBase[TUSD_Eaj],DADOS_MercadoBase[OPÇÃO],'Variações de mercado'!$B44,DADOS_MercadoBase[Subgrupo],'Variações de mercado'!$C44,DADOS_MercadoBase[AnoMes],'Variações de mercado'!L$71) -> 45726.64439 | M76: =SUMIFS(DADOS_MercadoBase[TUSD_Eaj],DADOS_MercadoBase[OPÇÃO],'Variações de mercado'!$B44,DADOS_MercadoBase[Subgrupo],'Variações de mercado'!$C44,DADOS_MercadoBase[AnoMes],'Variações de mercado'!M$71) -> 46853.80879 | N76: =SUMIFS(DADOS_MercadoBase[TUSD_Eaj],DADOS_MercadoBase[OPÇÃO],'Variações de mercado'!$B44,DADOS_MercadoBase[Subgrupo],'Variações de mercado'!$C44,DADOS_MercadoBase[AnoMes],'Variações de mercado'!N$71) -> 52251.68581 | O76: =SUMIFS(DADOS_MercadoBase[TUSD_Eaj],DADOS_MercadoBase[OPÇÃO],'Variações de mercado'!$B44,DADOS_MercadoBase[Subgrupo],'Variações de mercado'!$C44,DADOS_MercadoBase[AnoMes],'Variações de mercado'!O$71) -> 59924.24433 | P76: 621924.9893 | S76: cativo | T76: A4 | U76: 58360.00243 | V76: 58360.00243 | W76: 59849.67584 | X76: 57930.47039 | Y76: 55138.86691 | Z76: 58197.42595 | AA76: 56007.5437 | AB76: 48028.67521 | AC76: 45497.31744 | AD76: 49941.36652 | AE76: 54446.3448 | AF76: 64533.66411 | AG76: 666291.3558
B77: cativo | C77: As | D77: =SUMIFS(DADOS_MercadoBase[TUSD_Eaj],DADOS_MercadoBase[OPÇÃO],'Variações de mercado'!$B45,DADOS_MercadoBase[Subgrupo],'Variações de mercado'!$C45,DADOS_MercadoBase[AnoMes],'Variações de mercado'!D$71) -> 0 | E77: =SUMIFS(DADOS_MercadoBase[TUSD_Eaj],DADOS_MercadoBase[OPÇÃO],'Variações de mercado'!$B45,DADOS_MercadoBase[Subgrupo],'Variações de mercado'!$C45,DADOS_MercadoBase[AnoMes],'Variações de mercado'!E$71) -> 0 | F77: =SUMIFS(DADOS_MercadoBase[TUSD_Eaj],DADOS_MercadoBase[OPÇÃO],'Variações de mercado'!$B45,DADOS_MercadoBase[Subgrupo],'Variações de mercado'!$C45,DADOS_MercadoBase[AnoMes],'Variações de mercado'!F$71) -> 0 | G77: =SUMIFS(DADOS_MercadoBase[TUSD_Eaj],DADOS_MercadoBase[OPÇÃO],'Variações de mercado'!$B45,DADOS_MercadoBase[Subgrupo],'Variações de mercado'!$C45,DADOS_MercadoBase[AnoMes],'Variações de mercado'!G$71) -> 0 | H77: =SUMIFS(DADOS_MercadoBase[TUSD_Eaj],DADOS_MercadoBase[OPÇÃO],'Variações de mercado'!$B45,DADOS_MercadoBase[Subgrupo],'Variações de mercado'!$C45,DADOS_MercadoBase[AnoMes],'Variações de mercado'!H$71) -> 0 | I77: =SUMIFS(DADOS_MercadoBase[TUSD_Eaj],DADOS_MercadoBase[OPÇÃO],'Variações de mercado'!$B45,DADOS_MercadoBase[Subgrupo],'Variações de mercado'!$C45,DADOS_MercadoBase[AnoMes],'Variações de mercado'!I$71) -> 0 | J77: =SUMIFS(DADOS_MercadoBase[TUSD_Eaj],DADOS_MercadoBase[OPÇÃO],'Variações de mercado'!$B45,DADOS_MercadoBase[Subgrupo],'Variações de mercado'!$C45,DADOS_MercadoBase[AnoMes],'Variações de mercado'!J$71) -> 0 | K77: =SUMIFS(DADOS_MercadoBase[TUSD_Eaj],DADOS_MercadoBase[OPÇÃO],'Variações de mercado'!$B45,DADOS_MercadoBase[Subgrupo],'Variações de mercado'!$C45,DADOS_MercadoBase[AnoMes],'Variações de mercado'!K$71) -> 0 | L77: =SUMIFS(DADOS_MercadoBase[TUSD_Eaj],DADOS_MercadoBase[OPÇÃO],'Variações de mercado'!$B45,DADOS_MercadoBase[Subgrupo],'Variações de mercado'!$C45,DADOS_MercadoBase[AnoMes],'Variações de mercado'!L$71) -> 0 | M77: =SUMIFS(DADOS_MercadoBase[TUSD_Eaj],DADOS_MercadoBase[OPÇÃO],'Variações de mercado'!$B45,DADOS_MercadoBase[Subgrupo],'Variações de mercado'!$C45,DADOS_MercadoBase[AnoMes],'Variações de mercado'!M$71) -> 0 | N77: =SUMIFS(DADOS_MercadoBase[TUSD_Eaj],DADOS_MercadoBase[OPÇÃO],'Variações de mercado'!$B45,DADOS_MercadoBase[Subgrupo],'Variações de mercado'!$C45,DADOS_MercadoBase[AnoMes],'Variações de mercado'!N$71) -> 0 | O77: =SUMIFS(DADOS_MercadoBase[TUSD_Eaj],DADOS_MercadoBase[OPÇÃO],'Variações de mercado'!$B45,DADOS_MercadoBase[Subgrupo],'Variações de mercado'!$C45,DADOS_MercadoBase[AnoMes],'Variações de mercado'!O$71) -> 0 | P77: 0 | S77: cativo | T77: As | U77: 0 | V77: 0 | W77: 0 | X77: 0 | Y77: 0 | Z77: 0 | AA77: 0 | AB77: 0 | AC77: 0 | AD77: 0 | AE77: 0 | AF77: 0 | AG77: 0
B78: cativo | C78: Total AT Cativo | D78: =SUM(D72:D77) -> 63846.25433 | E78: =SUM(E72:E77) -> 63846.25433 | F78: 69158.45084 | G78: 65558.24252 | H78: 64868.70346 | I78: 64716.18844 | J78: 72032.68371 | K78: 75618.55653 | L78: 62486.06726 | M78: 61075.02801 | N78: 67722.09484 | O78: 77693.72317 | P78: 808622.2474 | S78: cativo | T78: Total AT Cativo | U78: 73771.22177 | V78: 73771.22177 | W78: 74479.54365 | X78: 72986.02526 | Y78: 69681.18579 | Z78: 74911.54409 | AA78: 76678.93802 | AB78: 66378.98007 | AC78: 61338.34836 | AD78: 66505.9858 | AE78: 73048.04668 | AF78: 85194.12777 | AG78: 868745.169
B79: cativo | C79: B4 | D79: =SUMIFS(DADOS_MercadoBase[TUSD_Eaj],DADOS_MercadoBase[OPÇÃO],'Variações de mercado'!$B47,DADOS_MercadoBase[Subgrupo],'Variações de mercado'!$C47,DADOS_MercadoBase[AnoMes],'Variações de mercado'!D$71) -> 16847.306 | E79: =SUMIFS(DADOS_MercadoBase[TUSD_Eaj],DADOS_MercadoBase[OPÇÃO],'Variações de mercado'!$B47,DADOS_MercadoBase[Subgrupo],'Variações de mercado'!$C47,DADOS_MercadoBase[AnoMes],'Variações de mercado'!E$71) -> 16847.306 | F79: =SUMIFS(DADOS_MercadoBase[TUSD_Eaj],DADOS_MercadoBase[OPÇÃO],'Variações de mercado'!$B47,DADOS_MercadoBase[Subgrupo],'Variações de mercado'!$C47,DADOS_MercadoBase[AnoMes],'Variações de mercado'!F$71) -> 17005.625 | G79: =SUMIFS(DADOS_MercadoBase[TUSD_Eaj],DADOS_MercadoBase[OPÇÃO],'Variações de mercado'!$B47,DADOS_MercadoBase[Subgrupo],'Variações de mercado'!$C47,DADOS_MercadoBase[AnoMes],'Variações de mercado'!G$71) -> 17671.137 | H79: =SUMIFS(DADOS_MercadoBase[TUSD_Eaj],DADOS_MercadoBase[OPÇÃO],'Variações de mercado'!$B47,DADOS_MercadoBase[Subgrupo],'Variações de mercado'!$C47,DADOS_MercadoBase[AnoMes],'Variações de mercado'!H$71) -> 16349.771 | I79: =SUMIFS(DADOS_MercadoBase[TUSD_Eaj],DADOS_MercadoBase[OPÇÃO],'Variações de mercado'!$B47,DADOS_MercadoBase[Subgrupo],'Variações de mercado'!$C47,DADOS_MercadoBase[AnoMes],'Variações de mercado'!I$71) -> 17171.807 | J79: =SUMIFS(DADOS_MercadoBase[TUSD_Eaj],DADOS_MercadoBase[OPÇÃO],'Variações de mercado'!$B47,DADOS_MercadoBase[Subgrupo],'Variações de mercado'!$C47,DADOS_MercadoBase[AnoMes],'Variações de mercado'!J$71) -> 17356.082 | K79: =SUMIFS(DADOS_MercadoBase[TUSD_Eaj],DADOS_MercadoBase[OPÇÃO],'Variações de mercado'!$B47,DADOS_MercadoBase[Subgrupo],'Variações de mercado'!$C47,DADOS_MercadoBase[AnoMes],'Variações de mercado'!K$71) -> 18494.043 | L79: =SUMIFS(DADOS_MercadoBase[TUSD_Eaj],DADOS_MercadoBase[OPÇÃO],'Variações de mercado'!$B47,DADOS_MercadoBase[Subgrupo],'Variações de mercado'!$C47,DADOS_MercadoBase[AnoMes],'Variações de mercado'!L$71) -> 18578.798 | M79: =SUMIFS(DADOS_MercadoBase[TUSD_Eaj],DADOS_MercadoBase[OPÇÃO],'Variações de mercado'!$B47,DADOS_MercadoBase[Subgrupo],'Variações de mercado'!$C47,DADOS_MercadoBase[AnoMes],'Variações de mercado'!M$71) -> 17295.443 | N79: =SUMIFS(DADOS_MercadoBase[TUSD_Eaj],DADOS_MercadoBase[OPÇÃO],'Variações de mercado'!$B47,DADOS_MercadoBase[Subgrupo],'Variações de mercado'!$C47,DADOS_MercadoBase[AnoMes],'Variações de mercado'!N$71) -> 17894.051 | O79: =SUMIFS(DADOS_MercadoBase[TUSD_Eaj],DADOS_MercadoBase[OPÇÃO],'Variações de mercado'!$B47,DADOS_MercadoBase[Subgrupo],'Variações de mercado'!$C47,DADOS_MercadoBase[AnoMes],'Variações de mercado'!O$71) -> 17112.343 | P79: 208623.712 | S79: cativo | T79: B4 | U79: 14877.607 | V79: 14877.607 | W79: 17182.457 | X79: 17316.809 | Y79: 17014.244 | Z79: 18710.093 | AA79: 17686.204 | AB79: 18426.401 | AC79: 18531.176 | AD79: 17620.49 | AE79: 17621.257 | AF79: 17191.985 | AG79: 207056.33
B80: cativo | C80: B3 | D80: =SUMIFS(DADOS_MercadoBase[TUSD_Eaj],DADOS_MercadoBase[OPÇÃO],'Variações de mercado'!$B48,DADOS_MercadoBase[Subgrupo],'Variações de mercado'!$C48,DADOS_MercadoBase[AnoMes],'Variações de mercado'!D$71) -> 65067.16562 | E80: =SUMIFS(DADOS_MercadoBase[TUSD_Eaj],DADOS_MercadoBase[OPÇÃO],'Variações de mercado'!$B48,DADOS_MercadoBase[Subgrupo],'Variações de mercado'!$C48,DADOS_MercadoBase[AnoMes],'Variações de mercado'!E$71) -> 65067.16562 | F80: =SUMIFS(DADOS_MercadoBase[TUSD_Eaj],DADOS_MercadoBase[OPÇÃO],'Variações de mercado'!$B48,DADOS_MercadoBase[Subgrupo],'Variações de mercado'!$C48,DADOS_MercadoBase[AnoMes],'Variações de mercado'!F$71) -> 64266.36015 | G80: =SUMIFS(DADOS_MercadoBase[TUSD_Eaj],DADOS_MercadoBase[OPÇÃO],'Variações de mercado'!$B48,DADOS_MercadoBase[Subgrupo],'Variações de mercado'!$C48,DADOS_MercadoBase[AnoMes],'Variações de mercado'!G$71) -> 67630.01368 | H80: =SUMIFS(DADOS_MercadoBase[TUSD_Eaj],DADOS_MercadoBase[OPÇÃO],'Variações de mercado'!$B48,DADOS_MercadoBase[Subgrupo],'Variações de mercado'!$C48,DADOS_MercadoBase[AnoMes],'Variações de mercado'!H$71) -> 60089.40745 | I80: =SUMIFS(DADOS_MercadoBase[TUSD_Eaj],DADOS_MercadoBase[OPÇÃO],'Variações de mercado'!$B48,DADOS_MercadoBase[Subgrupo],'Variações de mercado'!$C48,DADOS_MercadoBase[AnoMes],'Variações de mercado'!I$71) -> 58301.56768 | J80: =SUMIFS(DADOS_MercadoBase[TUSD_Eaj],DADOS_MercadoBase[OPÇÃO],'Variações de mercado'!$B48,DADOS_MercadoBase[Subgrupo],'Variações de mercado'!$C48,DADOS_MercadoBase[AnoMes],'Variações de mercado'!J$71) -> 57875.48332 | K80: =SUMIFS(DADOS_MercadoBase[TUSD_Eaj],DADOS_MercadoBase[OPÇÃO],'Variações de mercado'!$B48,DADOS_MercadoBase[Subgrupo],'Variações de mercado'!$C48,DADOS_MercadoBase[AnoMes],'Variações de mercado'!K$71) -> 58641.12412 | L80: =SUMIFS(DADOS_MercadoBase[TUSD_Eaj],DADOS_MercadoBase[OPÇÃO],'Variações de mercado'!$B48,DADOS_MercadoBase[Subgrupo],'Variações de mercado'!$C48,DADOS_MercadoBase[AnoMes],'Variações de mercado'!L$71) -> 53792.33957 | M80: =SUMIFS(DADOS_MercadoBase[TUSD_Eaj],DADOS_MercadoBase[OPÇÃO],'Variações de mercado'!$B48,DADOS_MercadoBase[Subgrupo],'Variações de mercado'!$C48,DADOS_MercadoBase[AnoMes],'Variações de mercado'!M$71) -> 52239.04013 | N80: =SUMIFS(DADOS_MercadoBase[TUSD_Eaj],DADOS_MercadoBase[OPÇÃO],'Variações de mercado'!$B48,DADOS_MercadoBase[Subgrupo],'Variações de mercado'!$C48,DADOS_MercadoBase[AnoMes],'Variações de mercado'!N$71) -> 63510.27623 | O80: =SUMIFS(DADOS_MercadoBase[TUSD_Eaj],DADOS_MercadoBase[OPÇÃO],'Variações de mercado'!$B48,DADOS_MercadoBase[Subgrupo],'Variações de mercado'!$C48,DADOS_MercadoBase[AnoMes],'Variações de mercado'!O$71) -> 72708.38186 | P80: 739188.3254 | S80: cativo | T80: B3 | U80: 71897.94608 | V80: 71897.94608 | W80: 74338.54354 | X80: 73955.78962 | Y80: 69317.92548 | Z80: 70992.89702 | AA80: 67489.72318 | AB80: 53747.58504 | AC80: 51956.57454 | AD80: 56766.9289 | AE80: 60686.33468 | AF80: 70205.23278 | AG80: 793253.4269
B81: cativo | C81: B2 | D81: =SUMIFS(DADOS_MercadoBase[TUSD_Eaj],DADOS_MercadoBase[OPÇÃO],'Variações de mercado'!$B49,DADOS_MercadoBase[Subgrupo],'Variações de mercado'!$C49,DADOS_MercadoBase[AnoMes],'Variações de mercado'!D$71) -> 30064.21111 | E81: =SUMIFS(DADOS_MercadoBase[TUSD_Eaj],DADOS_MercadoBase[OPÇÃO],'Variações de mercado'!$B49,DADOS_MercadoBase[Subgrupo],'Variações de mercado'!$C49,DADOS_MercadoBase[AnoMes],'Variações de mercado'!E$71) -> 30064.21111 | F81: =SUMIFS(DADOS_MercadoBase[TUSD_Eaj],DADOS_MercadoBase[OPÇÃO],'Variações de mercado'!$B49,DADOS_MercadoBase[Subgrupo],'Variações de mercado'!$C49,DADOS_MercadoBase[AnoMes],'Variações de mercado'!F$71) -> 29585.06603 | G81: =SUMIFS(DADOS_MercadoBase[TUSD_Eaj],DADOS_MercadoBase[OPÇÃO],'Variações de mercado'!$B49,DADOS_MercadoBase[Subgrupo],'Variações de mercado'!$C49,DADOS_MercadoBase[AnoMes],'Variações de mercado'!G$71) -> 27751.9082 | H81: =SUMIFS(DADOS_MercadoBase[TUSD_Eaj],DADOS_MercadoBase[OPÇÃO],'Variações de mercado'!$B49,DADOS_MercadoBase[Subgrupo],'Variações de mercado'!$C49,DADOS_MercadoBase[AnoMes],'Variações de mercado'!H$71) -> 27152.06922 | I81: =SUMIFS(DADOS_MercadoBase[TUSD_Eaj],DADOS_MercadoBase[OPÇÃO],'Variações de mercado'!$B49,DADOS_MercadoBase[Subgrupo],'Variações de mercado'!$C49,DADOS_MercadoBase[AnoMes],'Variações de mercado'!I$71) -> 27740.95424 | J81: =SUMIFS(DADOS_MercadoBase[TUSD_Eaj],DADOS_MercadoBase[OPÇÃO],'Variações de mercado'!$B49,DADOS_MercadoBase[Subgrupo],'Variações de mercado'!$C49,DADOS_MercadoBase[AnoMes],'Variações de mercado'!J$71) -> 28148.61997 | K81: =SUMIFS(DADOS_MercadoBase[TUSD_Eaj],DADOS_MercadoBase[OPÇÃO],'Variações de mercado'!$B49,DADOS_MercadoBase[Subgrupo],'Variações de mercado'!$C49,DADOS_MercadoBase[AnoMes],'Variações de mercado'!K$71) -> 28024.5646 | L81: =SUMIFS(DADOS_MercadoBase[TUSD_Eaj],DADOS_MercadoBase[OPÇÃO],'Variações de mercado'!$B49,DADOS_MercadoBase[Subgrupo],'Variações de mercado'!$C49,DADOS_MercadoBase[AnoMes],'Variações de mercado'!L$71) -> 27467.37578 | M81: =SUMIFS(DADOS_MercadoBase[TUSD_Eaj],DADOS_MercadoBase[OPÇÃO],'Variações de mercado'!$B49,DADOS_MercadoBase[Subgrupo],'Variações de mercado'!$C49,DADOS_MercadoBase[AnoMes],'Variações de mercado'!M$71) -> 28778.50435 | N81: =SUMIFS(DADOS_MercadoBase[TUSD_Eaj],DADOS_MercadoBase[OPÇÃO],'Variações de mercado'!$B49,DADOS_MercadoBase[Subgrupo],'Variações de mercado'!$C49,DADOS_MercadoBase[AnoMes],'Variações de mercado'!N$71) -> 32266.27688 | O81: =SUMIFS(DADOS_MercadoBase[TUSD_Eaj],DADOS_MercadoBase[OPÇÃO],'Variações de mercado'!$B49,DADOS_MercadoBase[Subgrupo],'Variações de mercado'!$C49,DADOS_MercadoBase[AnoMes],'Variações de mercado'!O$71) -> 35282.57942 | P81: 352326.3409 | S81: cativo | T81: B2 | U81: 37579.0148 | V81: 37579.0148 | W81: 37023.66815 | X81: 34873.28166 | Y81: 35113.19789 | Z81: 35601.57495 | AA81: 34985.4132 | AB81: 33525.23319 | AC81: 34013.10403 | AD81: 35550.87815 | AE81: 37600.92998 | AF81: 38551.15608 | AG81: 431996.4669
B82: cativo | C82: B1 | D82: =SUMIFS(DADOS_MercadoBase[TUSD_Eaj],DADOS_MercadoBase[OPÇÃO],'Variações de mercado'!$B50,DADOS_MercadoBase[Subgrupo],'Variações de mercado'!$C50,DADOS_MercadoBase[AnoMes],'Variações de mercado'!D$71) -> 182708.261 | E82: =SUMIFS(DADOS_MercadoBase[TUSD_Eaj],DADOS_MercadoBase[OPÇÃO],'Variações de mercado'!$B50,DADOS_MercadoBase[Subgrupo],'Variações de mercado'!$C50,DADOS_MercadoBase[AnoMes],'Variações de mercado'!E$71) -> 182708.261 | F82: =SUMIFS(DADOS_MercadoBase[TUSD_Eaj],DADOS_MercadoBase[OPÇÃO],'Variações de mercado'!$B50,DADOS_MercadoBase[Subgrupo],'Variações de mercado'!$C50,DADOS_MercadoBase[AnoMes],'Variações de mercado'!F$71) -> 181259.602 | G82: =SUMIFS(DADOS_MercadoBase[TUSD_Eaj],DADOS_MercadoBase[OPÇÃO],'Variações de mercado'!$B50,DADOS_MercadoBase[Subgrupo],'Variações de mercado'!$C50,DADOS_MercadoBase[AnoMes],'Variações de mercado'!G$71) -> 180381.347 | H82: =SUMIFS(DADOS_MercadoBase[TUSD_Eaj],DADOS_MercadoBase[OPÇÃO],'Variações de mercado'!$B50,DADOS_MercadoBase[Subgrupo],'Variações de mercado'!$C50,DADOS_MercadoBase[AnoMes],'Variações de mercado'!H$71) -> 159361.411 | I82: =SUMIFS(DADOS_MercadoBase[TUSD_Eaj],DADOS_MercadoBase[OPÇÃO],'Variações de mercado'!$B50,DADOS_MercadoBase[Subgrupo],'Variações de mercado'!$C50,DADOS_MercadoBase[AnoMes],'Variações de mercado'!I$71) -> 152270.921 | J82: =SUMIFS(DADOS_MercadoBase[TUSD_Eaj],DADOS_MercadoBase[OPÇÃO],'Variações de mercado'!$B50,DADOS_MercadoBase[Subgrupo],'Variações de mercado'!$C50,DADOS_MercadoBase[AnoMes],'Variações de mercado'!J$71) -> 153372.758 | K82: =SUMIFS(DADOS_MercadoBase[TUSD_Eaj],DADOS_MercadoBase[OPÇÃO],'Variações de mercado'!$B50,DADOS_MercadoBase[Subgrupo],'Variações de mercado'!$C50,DADOS_MercadoBase[AnoMes],'Variações de mercado'!K$71) -> 150099.485 | L82: =SUMIFS(DADOS_MercadoBase[TUSD_Eaj],DADOS_MercadoBase[OPÇÃO],'Variações de mercado'!$B50,DADOS_MercadoBase[Subgrupo],'Variações de mercado'!$C50,DADOS_MercadoBase[AnoMes],'Variações de mercado'!L$71) -> 139974.061 | M82: =SUMIFS(DADOS_MercadoBase[TUSD_Eaj],DADOS_MercadoBase[OPÇÃO],'Variações de mercado'!$B50,DADOS_MercadoBase[Subgrupo],'Variações de mercado'!$C50,DADOS_MercadoBase[AnoMes],'Variações de mercado'!M$71) -> 136982.088 | N82: =SUMIFS(DADOS_MercadoBase[TUSD_Eaj],DADOS_MercadoBase[OPÇÃO],'Variações de mercado'!$B50,DADOS_MercadoBase[Subgrupo],'Variações de mercado'!$C50,DADOS_MercadoBase[AnoMes],'Variações de mercado'!N$71) -> 157910.754 | O82: =SUMIFS(DADOS_MercadoBase[TUSD_Eaj],DADOS_MercadoBase[OPÇÃO],'Variações de mercado'!$B50,DADOS_MercadoBase[Subgrupo],'Variações de mercado'!$C50,DADOS_MercadoBase[AnoMes],'Variações de mercado'!O$71) -> 179984.379 | P82: 1957013.328 | S82: cativo | T82: B1 | U82: 188661.865 | V82: 188661.865 | W82: 199832.529 | X82: 183501.178 | Y82: 171115.876 | Z82: 175164.683 | AA82: 174678.653 | AB82: 142425.529 | AC82: 140638.922 | AD82: 154254.747 | AE82: 159270.821 | AF82: 196852.763 | AG82: 2075059.431
B83: cativo | C83: Total BT Cativo | D83: =SUM(D79:D82) -> 294686.9437 | E83: =SUM(E79:E82) -> 294686.9437 | F83: 292116.6532 | G83: 293434.4059 | H83: 262952.6587 | I83: 255485.2499 | J83: 256752.9433 | K83: 255259.2167 | L83: 239812.5743 | M83: 235295.0755 | N83: 271581.3581 | O83: 305087.6833 | P83: 3257151.706 | S83: cativo | T83: Total BT Cativo | U83: 313016.4329 | V83: 313016.4329 | W83: 328377.1977 | X83: 309647.0583 | Y83: 292561.2434 | Z83: 300469.248 | AA83: 294839.9934 | AB83: 248124.7482 | AC83: 245139.7766 | AD83: 264193.0441 | AE83: 275179.3427 | AF83: 322801.1369 | AG83: 3507365.655
B84: Suprimento | C84: Suprimento (TE) | D84: =SUMIFS(DADOS_MercadoBase[TUSD_Eaj],DADOS_MercadoBase[OPÇÃO],'Variações de mercado'!$B52,DADOS_MercadoBase[AnoMes],'Variações de mercado'!D$71) -> 0 | E84: =SUMIFS(DADOS_MercadoBase[TUSD_Eaj],DADOS_MercadoBase[OPÇÃO],'Variações de mercado'!$B52,DADOS_MercadoBase[AnoMes],'Variações de mercado'!E$71) -> 0 | F84: =SUMIFS(DADOS_MercadoBase[TUSD_Eaj],DADOS_MercadoBase[OPÇÃO],'Variações de mercado'!$B52,DADOS_MercadoBase[AnoMes],'Variações de mercado'!F$71) -> 0 | G84: =SUMIFS(DADOS_MercadoBase[TUSD_Eaj],DADOS_MercadoBase[OPÇÃO],'Variações de mercado'!$B52,DADOS_MercadoBase[AnoMes],'Variações de mercado'!G$71) -> 0 | H84: =SUMIFS(DADOS_MercadoBase[TUSD_Eaj],DADOS_MercadoBase[OPÇÃO],'Variações de mercado'!$B52,DADOS_MercadoBase[AnoMes],'Variações de mercado'!H$71) -> 0 | I84: =SUMIFS(DADOS_MercadoBase[TUSD_Eaj],DADOS_MercadoBase[OPÇÃO],'Variações de mercado'!$B52,DADOS_MercadoBase[AnoMes],'Variações de mercado'!I$71) -> 0 | J84: =SUMIFS(DADOS_MercadoBase[TUSD_Eaj],DADOS_MercadoBase[OPÇÃO],'Variações de mercado'!$B52,DADOS_MercadoBase[AnoMes],'Variações de mercado'!J$71) -> 0 | K84: =SUMIFS(DADOS_MercadoBase[TUSD_Eaj],DADOS_MercadoBase[OPÇÃO],'Variações de mercado'!$B52,DADOS_MercadoBase[AnoMes],'Variações de mercado'!K$71) -> 0 | L84: =SUMIFS(DADOS_MercadoBase[TUSD_Eaj],DADOS_MercadoBase[OPÇÃO],'Variações de mercado'!$B52,DADOS_MercadoBase[AnoMes],'Variações de mercado'!L$71) -> 0 | M84: =SUMIFS(DADOS_MercadoBase[TUSD_Eaj],DADOS_MercadoBase[OPÇÃO],'Variações de mercado'!$B52,DADOS_MercadoBase[AnoMes],'Variações de mercado'!M$71) -> 0 | N84: =SUMIFS(DADOS_MercadoBase[TUSD_Eaj],DADOS_MercadoBase[OPÇÃO],'Variações de mercado'!$B52,DADOS_MercadoBase[AnoMes],'Variações de mercado'!N$71) -> 0 | O84: =SUMIFS(DADOS_MercadoBase[TUSD_Eaj],DADOS_MercadoBase[OPÇÃO],'Variações de mercado'!$B52,DADOS_MercadoBase[AnoMes],'Variações de mercado'!O$71) -> 0 | P84: 0 | S84: Suprimento | T84: Suprimento (TE) | U84: 0 | V84: 0 | W84: 0 | X84: 0 | Y84: 0 | Z84: 0 | AA84: 0 | AB84: 0 | AC84: 0 | AD84: 0 | AE84: 0 | AF84: 0 | AG84: 0
B85: Livre | C85: A1 | D85: =SUMIFS(DADOS_MercadoBase[TUSD_Eaj],DADOS_MercadoBase[OPÇÃO],'Variações de mercado'!$B53,DADOS_MercadoBase[Subgrupo],'Variações de mercado'!$C53,DADOS_MercadoBase[AnoMes],'Variações de mercado'!D$71) -> 0 | E85: =SUMIFS(DADOS_MercadoBase[TUSD_Eaj],DADOS_MercadoBase[OPÇÃO],'Variações de mercado'!$B53,DADOS_MercadoBase[Subgrupo],'Variações de mercado'!$C53,DADOS_MercadoBase[AnoMes],'Variações de mercado'!E$71) -> 0 | F85: =SUMIFS(DADOS_MercadoBase[TUSD_Eaj],DADOS_MercadoBase[OPÇÃO],'Variações de mercado'!$B53,DADOS_MercadoBase[Subgrupo],'Variações de mercado'!$C53,DADOS_MercadoBase[AnoMes],'Variações de mercado'!F$71) -> 0 | G85: =SUMIFS(DADOS_MercadoBase[TUSD_Eaj],DADOS_MercadoBase[OPÇÃO],'Variações de mercado'!$B53,DADOS_MercadoBase[Subgrupo],'Variações de mercado'!$C53,DADOS_MercadoBase[AnoMes],'Variações de mercado'!G$71) -> 0 | H85: =SUMIFS(DADOS_MercadoBase[TUSD_Eaj],DADOS_MercadoBase[OPÇÃO],'Variações de mercado'!$B53,DADOS_MercadoBase[Subgrupo],'Variações de mercado'!$C53,DADOS_MercadoBase[AnoMes],'Variações de mercado'!H$71) -> 0 | I85: =SUMIFS(DADOS_MercadoBase[TUSD_Eaj],DADOS_MercadoBase[OPÇÃO],'Variações de mercado'!$B53,DADOS_MercadoBase[Subgrupo],'Variações de mercado'!$C53,DADOS_MercadoBase[AnoMes],'Variações de mercado'!I$71) -> 0 | J85: =SUMIFS(DADOS_MercadoBase[TUSD_Eaj],DADOS_MercadoBase[OPÇÃO],'Variações de mercado'!$B53,DADOS_MercadoBase[Subgrupo],'Variações de mercado'!$C53,DADOS_MercadoBase[AnoMes],'Variações de mercado'!J$71) -> 0 | K85: =SUMIFS(DADOS_MercadoBase[TUSD_Eaj],DADOS_MercadoBase[OPÇÃO],'Variações de mercado'!$B53,DADOS_MercadoBase[Subgrupo],'Variações de mercado'!$C53,DADOS_MercadoBase[AnoMes],'Variações de mercado'!K$71) -> 0 | L85: =SUMIFS(DADOS_MercadoBase[TUSD_Eaj],DADOS_MercadoBase[OPÇÃO],'Variações de mercado'!$B53,DADOS_MercadoBase[Subgrupo],'Variações de mercado'!$C53,DADOS_MercadoBase[AnoMes],'Variações de mercado'!L$71) -> 0 | M85: =SUMIFS(DADOS_MercadoBase[TUSD_Eaj],DADOS_MercadoBase[OPÇÃO],'Variações de mercado'!$B53,DADOS_MercadoBase[Subgrupo],'Variações de mercado'!$C53,DADOS_MercadoBase[AnoMes],'Variações de mercado'!M$71) -> 0 | N85: =SUMIFS(DADOS_MercadoBase[TUSD_Eaj],DADOS_MercadoBase[OPÇÃO],'Variações de mercado'!$B53,DADOS_MercadoBase[Subgrupo],'Variações de mercado'!$C53,DADOS_MercadoBase[AnoMes],'Variações de mercado'!N$71) -> 0 | O85: =SUMIFS(DADOS_MercadoBase[TUSD_Eaj],DADOS_MercadoBase[OPÇÃO],'Variações de mercado'!$B53,DADOS_MercadoBase[Subgrupo],'Variações de mercado'!$C53,DADOS_MercadoBase[AnoMes],'Variações de mercado'!O$71) -> 0 | P85: 0 | S85: Livre | T85: A1 | U85: 0 | V85: 0 | W85: 0 | X85: 0 | Y85: 0 | Z85: 0 | AA85: 0 | AB85: 0 | AC85: 0 | AD85: 0 | AE85: 0 | AF85: 0 | AG85: 0
B86: Livre | D86: =SUMIFS(DADOS_MercadoBase[TUSD_Eaj],DADOS_MercadoBase[OPÇÃO],'Variações de mercado'!$B54,DADOS_MercadoBase[AnoMes],'Variações de mercado'!D$71)-D85 -> 126305.0423 | E86: =SUMIFS(DADOS_MercadoBase[TUSD_Eaj],DADOS_MercadoBase[OPÇÃO],'Variações de mercado'!$B54,DADOS_MercadoBase[AnoMes],'Variações de mercado'!E$71)-E85 -> 126305.0423 | F86: =SUMIFS(DADOS_MercadoBase[TUSD_Eaj],DADOS_MercadoBase[OPÇÃO],'Variações de mercado'!$B54,DADOS_MercadoBase[AnoMes],'Variações de mercado'!F$71)-F85 -> 119707.2941 | G86: =SUMIFS(DADOS_MercadoBase[TUSD_Eaj],DADOS_MercadoBase[OPÇÃO],'Variações de mercado'!$B54,DADOS_MercadoBase[AnoMes],'Variações de mercado'!G$71)-G85 -> 114768.52 | H86: =SUMIFS(DADOS_MercadoBase[TUSD_Eaj],DADOS_MercadoBase[OPÇÃO],'Variações de mercado'!$B54,DADOS_MercadoBase[AnoMes],'Variações de mercado'!H$71)-H85 -> 120764.8295 | I86: =SUMIFS(DADOS_MercadoBase[TUSD_Eaj],DADOS_MercadoBase[OPÇÃO],'Variações de mercado'!$B54,DADOS_MercadoBase[AnoMes],'Variações de mercado'!I$71)-I85 -> 114622.0592 | J86: =SUMIFS(DADOS_MercadoBase[TUSD_Eaj],DADOS_MercadoBase[OPÇÃO],'Variações de mercado'!$B54,DADOS_MercadoBase[AnoMes],'Variações de mercado'!J$71)-J85 -> 130802.9919 | K86: =SUMIFS(DADOS_MercadoBase[TUSD_Eaj],DADOS_MercadoBase[OPÇÃO],'Variações de mercado'!$B54,DADOS_MercadoBase[AnoMes],'Variações de mercado'!K$71)-K85 -> 127157.4192 | L86: =SUMIFS(DADOS_MercadoBase[TUSD_Eaj],DADOS_MercadoBase[OPÇÃO],'Variações de mercado'!$B54,DADOS_MercadoBase[AnoMes],'Variações de mercado'!L$71)-L85 -> 107827.2959 | M86: =SUMIFS(DADOS_MercadoBase[TUSD_Eaj],DADOS_MercadoBase[OPÇÃO],'Variações de mercado'!$B54,DADOS_MercadoBase[AnoMes],'Variações de mercado'!M$71)-M85 -> 114579.2273 | N86: =SUMIFS(DADOS_MercadoBase[TUSD_Eaj],DADOS_MercadoBase[OPÇÃO],'Variações de mercado'!$B54,DADOS_MercadoBase[AnoMes],'Variações de mercado'!N$71)-N85 -> 113475.5545 | O86: =SUMIFS(DADOS_MercadoBase[TUSD_Eaj],DADOS_MercadoBase[OPÇÃO],'Variações de mercado'!$B54,DADOS_MercadoBase[AnoMes],'Variações de mercado'!O$71)-O85 -> 126484.5247 | P86: 1442799.801 | S86: Livre | U86: 111838.7762 | V86: 111838.7762 | W86: 110714.3309 | X86: 106795.7052 | Y86: 106976.4575 | Z86: 108126.6013 | AA86: 115960.5693 | AB86: 110152.1003 | AC86: 106333.3231 | AD86: 105564.2252 | AE86: 107877.0475 | AF86: 119696.1689 | AG86: 1321874.081
B87: Livre APE | D87: =SUMIFS(DADOS_MercadoBase[TUSD_Eaj],DADOS_MercadoBase[OPÇÃO],'Variações de mercado'!$B55,DADOS_MercadoBase[AnoMes],'Variações de mercado'!D$71) -> 4685.302 | E87: =SUMIFS(DADOS_MercadoBase[TUSD_Eaj],DADOS_MercadoBase[OPÇÃO],'Variações de mercado'!$B55,DADOS_MercadoBase[AnoMes],'Variações de mercado'!E$71) -> 4685.302 | F87: =SUMIFS(DADOS_MercadoBase[TUSD_Eaj],DADOS_MercadoBase[OPÇÃO],'Variações de mercado'!$B55,DADOS_MercadoBase[AnoMes],'Variações de mercado'!F$71) -> 6408.577 | G87: =SUMIFS(DADOS_MercadoBase[TUSD_Eaj],DADOS_MercadoBase[OPÇÃO],'Variações de mercado'!$B55,DADOS_MercadoBase[AnoMes],'Variações de mercado'!G$71) -> 6020.318 | H87: =SUMIFS(DADOS_MercadoBase[TUSD_Eaj],DADOS_MercadoBase[OPÇÃO],'Variações de mercado'!$B55,DADOS_MercadoBase[AnoMes],'Variações de mercado'!H$71) -> 5622.471 | I87: =SUMIFS(DADOS_MercadoBase[TUSD_Eaj],DADOS_MercadoBase[OPÇÃO],'Variações de mercado'!$B55,DADOS_MercadoBase[AnoMes],'Variações de mercado'!I$71) -> 7211.226 | J87: =SUMIFS(DADOS_MercadoBase[TUSD_Eaj],DADOS_MercadoBase[OPÇÃO],'Variações de mercado'!$B55,DADOS_MercadoBase[AnoMes],'Variações de mercado'!J$71) -> 7066.319 | K87: =SUMIFS(DADOS_MercadoBase[TUSD_Eaj],DADOS_MercadoBase[OPÇÃO],'Variações de mercado'!$B55,DADOS_MercadoBase[AnoMes],'Variações de mercado'!K$71) -> 8255.795 | L87: =SUMIFS(DADOS_MercadoBase[TUSD_Eaj],DADOS_MercadoBase[OPÇÃO],'Variações de mercado'!$B55,DADOS_MercadoBase[AnoMes],'Variações de mercado'!L$71) -> 10051.833 | M87: =SUMIFS(DADOS_MercadoBase[TUSD_Eaj],DADOS_MercadoBase[OPÇÃO],'Variações de mercado'!$B55,DADOS_MercadoBase[AnoMes],'Variações de mercado'!M$71) -> 7252.249 | N87: =SUMIFS(DADOS_MercadoBase[TUSD_Eaj],DADOS_MercadoBase[OPÇÃO],'Variações de mercado'!$B55,DADOS_MercadoBase[AnoMes],'Variações de mercado'!N$71) -> 7951.097 | O87: =SUMIFS(DADOS_MercadoBase[TUSD_Eaj],DADOS_MercadoBase[OPÇÃO],'Variações de mercado'!$B55,DADOS_MercadoBase[AnoMes],'Variações de mercado'!O$71) -> 8126.786 | P87: 83337.275 | S87: Livre APE | U87: 6503.257 | V87: 6503.257 | W87: 14060.881 | X87: 14060.881 | Y87: 10627.497 | Z87: 8888.665 | AA87: 9321.074 | AB87: 8272.901 | AC87: 4668.125 | AD87: 7808.025 | AE87: 6486.448 | AF87: 6225.714 | AG87: 103426.725
B88: ERC | D88: =SUMIFS(DADOS_MercadoBase[TUSD_Eaj],DADOS_MercadoBase[OPÇÃO],'Variações de mercado'!$B56,DADOS_MercadoBase[AnoMes],'Variações de mercado'!D$71) -> 0 | E88: =SUMIFS(DADOS_MercadoBase[TUSD_Eaj],DADOS_MercadoBase[OPÇÃO],'Variações de mercado'!$B56,DADOS_MercadoBase[AnoMes],'Variações de mercado'!E$71) -> 0 | F88: =SUMIFS(DADOS_MercadoBase[TUSD_Eaj],DADOS_MercadoBase[OPÇÃO],'Variações de mercado'!$B56,DADOS_MercadoBase[AnoMes],'Variações de mercado'!F$71) -> 0 | G88: =SUMIFS(DADOS_MercadoBase[TUSD_Eaj],DADOS_MercadoBase[OPÇÃO],'Variações de mercado'!$B56,DADOS_MercadoBase[AnoMes],'Variações de mercado'!G$71) -> 0 | H88: =SUMIFS(DADOS_MercadoBase[TUSD_Eaj],DADOS_MercadoBase[OPÇÃO],'Variações de mercado'!$B56,DADOS_MercadoBase[AnoMes],'Variações de mercado'!H$71) -> 0 | I88: =SUMIFS(DADOS_MercadoBase[TUSD_Eaj],DADOS_MercadoBase[OPÇÃO],'Variações de mercado'!$B56,DADOS_MercadoBase[AnoMes],'Variações de mercado'!I$71) -> 0 | J88: =SUMIFS(DADOS_MercadoBase[TUSD_Eaj],DADOS_MercadoBase[OPÇÃO],'Variações de mercado'!$B56,DADOS_MercadoBase[AnoMes],'Variações de mercado'!J$71) -> 0 | K88: =SUMIFS(DADOS_MercadoBase[TUSD_Eaj],DADOS_MercadoBase[OPÇÃO],'Variações de mercado'!$B56,DADOS_MercadoBase[AnoMes],'Variações de mercado'!K$71) -> 0 | L88: =SUMIFS(DADOS_MercadoBase[TUSD_Eaj],DADOS_MercadoBase[OPÇÃO],'Variações de mercado'!$B56,DADOS_MercadoBase[AnoMes],'Variações de mercado'!L$71) -> 0 | M88: =SUMIFS(DADOS_MercadoBase[TUSD_Eaj],DADOS_MercadoBase[OPÇÃO],'Variações de mercado'!$B56,DADOS_MercadoBase[AnoMes],'Variações de mercado'!M$71) -> 0 | N88: =SUMIFS(DADOS_MercadoBase[TUSD_Eaj],DADOS_MercadoBase[OPÇÃO],'Variações de mercado'!$B56,DADOS_MercadoBase[AnoMes],'Variações de mercado'!N$71) -> 0 | O88: =SUMIFS(DADOS_MercadoBase[TUSD_Eaj],DADOS_MercadoBase[OPÇÃO],'Variações de mercado'!$B56,DADOS_MercadoBase[AnoMes],'Variações de mercado'!O$71) -> 0 | P88: 0 | S88: ERC | U88: 0 | V88: 0 | W88: 0 | X88: 0 | Y88: 0 | Z88: 0 | AA88: 0 | AB88: 0 | AC88: 0 | AD88: 0 | AE88: 0 | AF88: 0 | AG88: 0
B89: Livres | C89: Total Livres | D89: =SUM(D85:D88) -> 130990.3443 | E89: =SUM(E85:E88) -> 130990.3443 | F89: 126115.8711 | G89: 120788.838 | H89: 126387.3005 | I89: 121833.2852 | J89: 137869.3109 | K89: 135413.2142 | L89: 117879.1289 | M89: 121831.4763 | N89: 121426.6515 | O89: 134611.3107 | P89: 1526137.076 | S89: Livres | T89: Total Livres | U89: 118342.0332 | V89: 118342.0332 | W89: 124775.2119 | X89: 120856.5862 | Y89: 117603.9545 | Z89: 117015.2663 | AA89: 125281.6433 | AB89: 118425.0013 | AC89: 111001.4481 | AD89: 113372.2502 | AE89: 114363.4955 | AF89: 125921.8829 | AG89: 1425300.806
B90: Distribuição | C90: DISTRIBUIÇÃO | D90: =SUMIFS(DADOS_MercadoBase[TUSD_Eaj],DADOS_MercadoBase[OPÇÃO],'Variações de mercado'!$B58,DADOS_MercadoBase[AnoMes],'Variações de mercado'!D$71) -> 2008.051 | E90: =SUMIFS(DADOS_MercadoBase[TUSD_Eaj],DADOS_MercadoBase[OPÇÃO],'Variações de mercado'!$B58,DADOS_MercadoBase[AnoMes],'Variações de mercado'!E$71) -> 2008.051 | F90: =SUMIFS(DADOS_MercadoBase[TUSD_Eaj],DADOS_MercadoBase[OPÇÃO],'Variações de mercado'!$B58,DADOS_MercadoBase[AnoMes],'Variações de mercado'!F$71) -> 2228.964 | G90: =SUMIFS(DADOS_MercadoBase[TUSD_Eaj],DADOS_MercadoBase[OPÇÃO],'Variações de mercado'!$B58,DADOS_MercadoBase[AnoMes],'Variações de mercado'!G$71) -> 2059.181 | H90: =SUMIFS(DADOS_MercadoBase[TUSD_Eaj],DADOS_MercadoBase[OPÇÃO],'Variações de mercado'!$B58,DADOS_MercadoBase[AnoMes],'Variações de mercado'!H$71) -> 1922.254 | I90: =SUMIFS(DADOS_MercadoBase[TUSD_Eaj],DADOS_MercadoBase[OPÇÃO],'Variações de mercado'!$B58,DADOS_MercadoBase[AnoMes],'Variações de mercado'!I$71) -> 2114.599 | J90: =SUMIFS(DADOS_MercadoBase[TUSD_Eaj],DADOS_MercadoBase[OPÇÃO],'Variações de mercado'!$B58,DADOS_MercadoBase[AnoMes],'Variações de mercado'!J$71) -> 2002.322 | K90: =SUMIFS(DADOS_MercadoBase[TUSD_Eaj],DADOS_MercadoBase[OPÇÃO],'Variações de mercado'!$B58,DADOS_MercadoBase[AnoMes],'Variações de mercado'!K$71) -> 1982.283 | L90: =SUMIFS(DADOS_MercadoBase[TUSD_Eaj],DADOS_MercadoBase[OPÇÃO],'Variações de mercado'!$B58,DADOS_MercadoBase[AnoMes],'Variações de mercado'!L$71) -> 1717.348 | M90: =SUMIFS(DADOS_MercadoBase[TUSD_Eaj],DADOS_MercadoBase[OPÇÃO],'Variações de mercado'!$B58,DADOS_MercadoBase[AnoMes],'Variações de mercado'!M$71) -> 1786.045 | N90: =SUMIFS(DADOS_MercadoBase[TUSD_Eaj],DADOS_MercadoBase[OPÇÃO],'Variações de mercado'!$B58,DADOS_MercadoBase[AnoMes],'Variações de mercado'!N$71) -> 2041.542 | O90: =SUMIFS(DADOS_MercadoBase[TUSD_Eaj],DADOS_MercadoBase[OPÇÃO],'Variações de mercado'!$B58,DADOS_MercadoBase[AnoMes],'Variações de mercado'!O$71) -> 2158.873 | P90: 24029.513 | S90: Distribuição | T90: DISTRIBUIÇÃO | U90: 2114.824 | V90: 2114.824 | W90: 2145.238 | X90: 2052.501 | Y90: 1428.782 | Z90: 2293.08 | AA90: 2059.37 | AB90: 1866.774 | AC90: 1790.876 | AD90: 1820.285 | AE90: 1917.958 | AF90: 1982.109 | AG90: 23586.621
B91: Geração | C91: GERADOR | D91: =SUMIFS(DADOS_MercadoBase[TUSD_Eaj],DADOS_MercadoBase[OPÇÃO],'Variações de mercado'!$B59,DADOS_MercadoBase[AnoMes],'Variações de mercado'!D$71) -> 0 | E91: =SUMIFS(DADOS_MercadoBase[TUSD_Eaj],DADOS_MercadoBase[OPÇÃO],'Variações de mercado'!$B59,DADOS_MercadoBase[AnoMes],'Variações de mercado'!E$71) -> 0 | F91: =SUMIFS(DADOS_MercadoBase[TUSD_Eaj],DADOS_MercadoBase[OPÇÃO],'Variações de mercado'!$B59,DADOS_MercadoBase[AnoMes],'Variações de mercado'!F$71) -> 0 | G91: =SUMIFS(DADOS_MercadoBase[TUSD_Eaj],DADOS_MercadoBase[OPÇÃO],'Variações de mercado'!$B59,DADOS_MercadoBase[AnoMes],'Variações de mercado'!G$71) -> 0 | H91: =SUMIFS(DADOS_MercadoBase[TUSD_Eaj],DADOS_MercadoBase[OPÇÃO],'Variações de mercado'!$B59,DADOS_MercadoBase[AnoMes],'Variações de mercado'!H$71) -> 0 | I91: =SUMIFS(DADOS_MercadoBase[TUSD_Eaj],DADOS_MercadoBase[OPÇÃO],'Variações de mercado'!$B59,DADOS_MercadoBase[AnoMes],'Variações de mercado'!I$71) -> 0 | J91: =SUMIFS(DADOS_MercadoBase[TUSD_Eaj],DADOS_MercadoBase[OPÇÃO],'Variações de mercado'!$B59,DADOS_MercadoBase[AnoMes],'Variações de mercado'!J$71) -> 0 | K91: =SUMIFS(DADOS_MercadoBase[TUSD_Eaj],DADOS_MercadoBase[OPÇÃO],'Variações de mercado'!$B59,DADOS_MercadoBase[AnoMes],'Variações de mercado'!K$71) -> 0 | L91: =SUMIFS(DADOS_MercadoBase[TUSD_Eaj],DADOS_MercadoBase[OPÇÃO],'Variações de mercado'!$B59,DADOS_MercadoBase[AnoMes],'Variações de mercado'!L$71) -> 0 | M91: =SUMIFS(DADOS_MercadoBase[TUSD_Eaj],DADOS_MercadoBase[OPÇÃO],'Variações de mercado'!$B59,DADOS_MercadoBase[AnoMes],'Variações de mercado'!M$71) -> 0 | N91: =SUMIFS(DADOS_MercadoBase[TUSD_Eaj],DADOS_MercadoBase[OPÇÃO],'Variações de mercado'!$B59,DADOS_MercadoBase[AnoMes],'Variações de mercado'!N$71) -> 0 | O91: =SUMIFS(DADOS_MercadoBase[TUSD_Eaj],DADOS_MercadoBase[OPÇÃO],'Variações de mercado'!$B59,DADOS_MercadoBase[AnoMes],'Variações de mercado'!O$71) -> 0 | P91: 0 | S91: Geração | T91: GERADOR | U91: 0 | V91: 0 | W91: 0 | X91: 0 | Y91: 0 | Z91: 0 | AA91: 0 | AB91: 0 | AC91: 0 | AD91: 0 | AE91: 0 | AF91: 0 | AG91: 0
C92: TOTAL Geral | D92: =SUMIFS(DADOS_MercadoBase[TUSD_Eaj],DADOS_MercadoBase[AnoMes],'Variações de mercado'!D$71) -> 491531.5933 | E92: =SUMIFS(DADOS_MercadoBase[TUSD_Eaj],DADOS_MercadoBase[AnoMes],'Variações de mercado'!E$71) -> 491531.5933 | F92: =SUMIFS(DADOS_MercadoBase[TUSD_Eaj],DADOS_MercadoBase[AnoMes],'Variações de mercado'!F$71) -> 489619.9392 | G92: =SUMIFS(DADOS_MercadoBase[TUSD_Eaj],DADOS_MercadoBase[AnoMes],'Variações de mercado'!G$71) -> 481840.6674 | H92: =SUMIFS(DADOS_MercadoBase[TUSD_Eaj],DADOS_MercadoBase[AnoMes],'Variações de mercado'!H$71) -> 456130.9166 | I92: =SUMIFS(DADOS_MercadoBase[TUSD_Eaj],DADOS_MercadoBase[AnoMes],'Variações de mercado'!I$71) -> 444149.3226 | J92: =SUMIFS(DADOS_MercadoBase[TUSD_Eaj],DADOS_MercadoBase[AnoMes],'Variações de mercado'!J$71) -> 468657.2599 | K92: =SUMIFS(DADOS_MercadoBase[TUSD_Eaj],DADOS_MercadoBase[AnoMes],'Variações de mercado'!K$71) -> 468273.2705 | L92: =SUMIFS(DADOS_MercadoBase[TUSD_Eaj],DADOS_MercadoBase[AnoMes],'Variações de mercado'!L$71) -> 421895.1185 | M92: =SUMIFS(DADOS_MercadoBase[TUSD_Eaj],DADOS_MercadoBase[AnoMes],'Variações de mercado'!M$71) -> 419987.6248 | N92: =SUMIFS(DADOS_MercadoBase[TUSD_Eaj],DADOS_MercadoBase[AnoMes],'Variações de mercado'!N$71) -> 462771.6465 | O92: =SUMIFS(DADOS_MercadoBase[TUSD_Eaj],DADOS_MercadoBase[AnoMes],'Variações de mercado'!O$71) -> 519551.5901 | P92: 5615940.543 | T92: TOTAL Geral | U92: 507244.5118 | V92: 507244.5118 | W92: 529777.1912 | X92: 505542.1707 | Y92: 481275.1657 | Z92: 494689.1383 | AA92: 498859.9447 | AB92: 434795.5036 | AC92: 419270.4491 | AD92: 445891.5651 | AE92: 464508.8429 | AF92: 535899.2565 | AG92: 5824998.251
B94: Residencial baixa renda – faixa 01 | D94: =SUMIFS(DADOS_MercadoBase[TUSD_Eaj],DADOS_MercadoBase[Subclasse],'Variações de mercado'!$B62,DADOS_MercadoBase[AnoMes],D$71) -> 6788.069 | E94: =SUMIFS(DADOS_MercadoBase[TUSD_Eaj],DADOS_MercadoBase[Subclasse],'Variações de mercado'!$B62,DADOS_MercadoBase[AnoMes],E$71) -> 6788.069 | F94: =SUMIFS(DADOS_MercadoBase[TUSD_Eaj],DADOS_MercadoBase[Subclasse],'Variações de mercado'!$B62,DADOS_MercadoBase[AnoMes],F$71) -> 6688.155 | G94: =SUMIFS(DADOS_MercadoBase[TUSD_Eaj],DADOS_MercadoBase[Subclasse],'Variações de mercado'!$B62,DADOS_MercadoBase[AnoMes],G$71) -> 6644.556 | H94: =SUMIFS(DADOS_MercadoBase[TUSD_Eaj],DADOS_MercadoBase[Subclasse],'Variações de mercado'!$B62,DADOS_MercadoBase[AnoMes],H$71) -> 6524.842 | I94: =SUMIFS(DADOS_MercadoBase[TUSD_Eaj],DADOS_MercadoBase[Subclasse],'Variações de mercado'!$B62,DADOS_MercadoBase[AnoMes],I$71) -> 6343.651 | J94: =SUMIFS(DADOS_MercadoBase[TUSD_Eaj],DADOS_MercadoBase[Subclasse],'Variações de mercado'!$B62,DADOS_MercadoBase[AnoMes],J$71) -> 6404.432 | K94: =SUMIFS(DADOS_MercadoBase[TUSD_Eaj],DADOS_MercadoBase[Subclasse],'Variações de mercado'!$B62,DADOS_MercadoBase[AnoMes],K$71) -> 6274.394 | L94: =SUMIFS(DADOS_MercadoBase[TUSD_Eaj],DADOS_MercadoBase[Subclasse],'Variações de mercado'!$B62,DADOS_MercadoBase[AnoMes],L$71) -> 6149.467 | M94: =SUMIFS(DADOS_MercadoBase[TUSD_Eaj],DADOS_MercadoBase[Subclasse],'Variações de mercado'!$B62,DADOS_MercadoBase[AnoMes],M$71) -> 6075.327 | N94: =SUMIFS(DADOS_MercadoBase[TUSD_Eaj],DADOS_MercadoBase[Subclasse],'Variações de mercado'!$B62,DADOS_MercadoBase[AnoMes],N$71) -> 5869.757 | O94: =SUMIFS(DADOS_MercadoBase[TUSD_Eaj],DADOS_MercadoBase[Subclasse],'Variações de mercado'!$B62,DADOS_MercadoBase[AnoMes],O$71) -> 6237.02 | P94: =SUM(D94:O94) -> 76787.739 | S94: Residencial baixa renda – faixa 01 | U94: 5879.357 | V94: 5879.357 | W94: 5530.809 | X94: 5361.282 | Y94: 5339.911 | Z94: 5314.372 | AA94: 5245.833 | AB94: 5515.539 | AC94: 5398.195 | AD94: 5348.535 | AE94: 5285.911 | AF94: 5194.165 | AG94: 65293.266
B95: Residencial baixa renda – faixa 02 | D95: =SUMIFS(DADOS_MercadoBase[TUSD_Eaj],DADOS_MercadoBase[Subclasse],'Variações de mercado'!$B63,DADOS_MercadoBase[AnoMes],D$71) -> 13834.852 | E95: =SUMIFS(DADOS_MercadoBase[TUSD_Eaj],DADOS_MercadoBase[Subclasse],'Variações de mercado'!$B63,DADOS_MercadoBase[AnoMes],E$71) -> 13834.852 | F95: =SUMIFS(DADOS_MercadoBase[TUSD_Eaj],DADOS_MercadoBase[Subclasse],'Variações de mercado'!$B63,DADOS_MercadoBase[AnoMes],F$71) -> 13602.051 | G95: =SUMIFS(DADOS_MercadoBase[TUSD_Eaj],DADOS_MercadoBase[Subclasse],'Variações de mercado'!$B63,DADOS_MercadoBase[AnoMes],G$71) -> 13510.092 | H95: =SUMIFS(DADOS_MercadoBase[TUSD_Eaj],DADOS_MercadoBase[Subclasse],'Variações de mercado'!$B63,DADOS_MercadoBase[AnoMes],H$71) -> 12977.33 | I95: =SUMIFS(DADOS_MercadoBase[TUSD_Eaj],DADOS_MercadoBase[Subclasse],'Variações de mercado'!$B63,DADOS_MercadoBase[AnoMes],I$71) -> 12460.138 | J95: =SUMIFS(DADOS_MercadoBase[TUSD_Eaj],DADOS_MercadoBase[Subclasse],'Variações de mercado'!$B63,DADOS_MercadoBase[AnoMes],J$71) -> 12535.725 | K95: =SUMIFS(DADOS_MercadoBase[TUSD_Eaj],DADOS_MercadoBase[Subclasse],'Variações de mercado'!$B63,DADOS_MercadoBase[AnoMes],K$71) -> 12127.75 | L95: =SUMIFS(DADOS_MercadoBase[TUSD_Eaj],DADOS_MercadoBase[Subclasse],'Variações de mercado'!$B63,DADOS_MercadoBase[AnoMes],L$71) -> 11638.413 | M95: =SUMIFS(DADOS_MercadoBase[TUSD_Eaj],DADOS_MercadoBase[Subclasse],'Variações de mercado'!$B63,DADOS_MercadoBase[AnoMes],M$71) -> 11302.142 | N95: =SUMIFS(DADOS_MercadoBase[TUSD_Eaj],DADOS_MercadoBase[Subclasse],'Variações de mercado'!$B63,DADOS_MercadoBase[AnoMes],N$71) -> 11415.489 | O95: =SUMIFS(DADOS_MercadoBase[TUSD_Eaj],DADOS_MercadoBase[Subclasse],'Variações de mercado'!$B63,DADOS_MercadoBase[AnoMes],O$71) -> 12603.698 | P95: 151842.532 | S95: Residencial baixa renda – faixa 02 | U95: 11919.275 | V95: 11919.275 | W95: 11321.744 | X95: 10697.567 | Y95: 10599.946 | Z95: 10583.493 | AA95: 10441.414 | AB95: 10349.379 | AC95: 10028 | AD95: 10368.219 | AE95: 10367.427 | AF95: 10586.932 | AG95: 129182.671
B96: Residencial baixa renda – faixa 03 | D96: =SUMIFS(DADOS_MercadoBase[TUSD_Eaj],DADOS_MercadoBase[Subclasse],'Variações de mercado'!$B64,DADOS_MercadoBase[AnoMes],D$71) -> 13496.996 | E96: =SUMIFS(DADOS_MercadoBase[TUSD_Eaj],DADOS_MercadoBase[Subclasse],'Variações de mercado'!$B64,DADOS_MercadoBase[AnoMes],E$71) -> 13496.996 | F96: =SUMIFS(DADOS_MercadoBase[TUSD_Eaj],DADOS_MercadoBase[Subclasse],'Variações de mercado'!$B64,DADOS_MercadoBase[AnoMes],F$71) -> 13096.622 | G96: =SUMIFS(DADOS_MercadoBase[TUSD_Eaj],DADOS_MercadoBase[Subclasse],'Variações de mercado'!$B64,DADOS_MercadoBase[AnoMes],G$71) -> 12780.059 | H96: =SUMIFS(DADOS_MercadoBase[TUSD_Eaj],DADOS_MercadoBase[Subclasse],'Variações de mercado'!$B64,DADOS_MercadoBase[AnoMes],H$71) -> 10874.943 | I96: =SUMIFS(DADOS_MercadoBase[TUSD_Eaj],DADOS_MercadoBase[Subclasse],'Variações de mercado'!$B64,DADOS_MercadoBase[AnoMes],I$71) -> 9988.954 | J96: =SUMIFS(DADOS_MercadoBase[TUSD_Eaj],DADOS_MercadoBase[Subclasse],'Variações de mercado'!$B64,DADOS_MercadoBase[AnoMes],J$71) -> 9937.825 | K96: =SUMIFS(DADOS_MercadoBase[TUSD_Eaj],DADOS_MercadoBase[Subclasse],'Variações de mercado'!$B64,DADOS_MercadoBase[AnoMes],K$71) -> 9276.438 | L96: =SUMIFS(DADOS_MercadoBase[TUSD_Eaj],DADOS_MercadoBase[Subclasse],'Variações de mercado'!$B64,DADOS_MercadoBase[AnoMes],L$71) -> 8136.239 | M96: =SUMIFS(DADOS_MercadoBase[TUSD_Eaj],DADOS_MercadoBase[Subclasse],'Variações de mercado'!$B64,DADOS_MercadoBase[AnoMes],M$71) -> 7291.595 | N96: =SUMIFS(DADOS_MercadoBase[TUSD_Eaj],DADOS_MercadoBase[Subclasse],'Variações de mercado'!$B64,DADOS_MercadoBase[AnoMes],N$71) -> 8916.525 | O96: =SUMIFS(DADOS_MercadoBase[TUSD_Eaj],DADOS_MercadoBase[Subclasse],'Variações de mercado'!$B64,DADOS_MercadoBase[AnoMes],O$71) -> 11756.059 | P96: 129049.251 | S96: Residencial baixa renda – faixa 03 | U96: 11367.778 | V96: 11367.778 | W96: 11486.486 | X96: 9791.591 | Y96: 9298.448 | Z96: 9291.489 | AA96: 9181.346 | AB96: 7241.167 | AC96: 6837.305 | AD96: 8184.266 | AE96: 8485.579 | AF96: 10506.937 | AG96: 113040.17
B97: Residencial baixa renda – faixa 04 | D97: =SUMIFS(DADOS_MercadoBase[TUSD_Eaj],DADOS_MercadoBase[Subclasse],'Variações de mercado'!$B65,DADOS_MercadoBase[AnoMes],D$71) -> 5615.041 | E97: =SUMIFS(DADOS_MercadoBase[TUSD_Eaj],DADOS_MercadoBase[Subclasse],'Variações de mercado'!$B65,DADOS_MercadoBase[AnoMes],E$71) -> 5615.041 | F97: =SUMIFS(DADOS_MercadoBase[TUSD_Eaj],DADOS_MercadoBase[Subclasse],'Variações de mercado'!$B65,DADOS_MercadoBase[AnoMes],F$71) -> 5667.263 | G97: =SUMIFS(DADOS_MercadoBase[TUSD_Eaj],DADOS_MercadoBase[Subclasse],'Variações de mercado'!$B65,DADOS_MercadoBase[AnoMes],G$71) -> 5304.723 | H97: =SUMIFS(DADOS_MercadoBase[TUSD_Eaj],DADOS_MercadoBase[Subclasse],'Variações de mercado'!$B65,DADOS_MercadoBase[AnoMes],H$71) -> 3450.117 | I97: =SUMIFS(DADOS_MercadoBase[TUSD_Eaj],DADOS_MercadoBase[Subclasse],'Variações de mercado'!$B65,DADOS_MercadoBase[AnoMes],I$71) -> 2993.921 | J97: =SUMIFS(DADOS_MercadoBase[TUSD_Eaj],DADOS_MercadoBase[Subclasse],'Variações de mercado'!$B65,DADOS_MercadoBase[AnoMes],J$71) -> 2927.029 | K97: =SUMIFS(DADOS_MercadoBase[TUSD_Eaj],DADOS_MercadoBase[Subclasse],'Variações de mercado'!$B65,DADOS_MercadoBase[AnoMes],K$71) -> 2586.924 | L97: =SUMIFS(DADOS_MercadoBase[TUSD_Eaj],DADOS_MercadoBase[Subclasse],'Variações de mercado'!$B65,DADOS_MercadoBase[AnoMes],L$71) -> 2083.929 | M97: =SUMIFS(DADOS_MercadoBase[TUSD_Eaj],DADOS_MercadoBase[Subclasse],'Variações de mercado'!$B65,DADOS_MercadoBase[AnoMes],M$71) -> 1814.367 | N97: =SUMIFS(DADOS_MercadoBase[TUSD_Eaj],DADOS_MercadoBase[Subclasse],'Variações de mercado'!$B65,DADOS_MercadoBase[AnoMes],N$71) -> 2889.905 | O97: =SUMIFS(DADOS_MercadoBase[TUSD_Eaj],DADOS_MercadoBase[Subclasse],'Variações de mercado'!$B65,DADOS_MercadoBase[AnoMes],O$71) -> 4891.028 | P97: 45839.288 | S97: Residencial baixa renda – faixa 04 | U97: 5516.093 | V97: 5516.093 | W97: 6377.765 | X97: 4483.844 | Y97: 3782.056 | Z97: 3819.59 | AA97: 3645.758 | AB97: 2083.192 | AC97: 1947.003 | AD97: 2595.632 | AE97: 2884.712 | AF97: 5169.933 | AG97: 47821.671
C98: Total Baixa renda | D98: =SUM(D94:D97) -> 39734.958 | E98: =SUM(E94:E97) -> 39734.958 | F98: 39054.091 | G98: 38239.43 | H98: 33827.232 | I98: 31786.664 | J98: 31805.011 | K98: 30265.506 | L98: 28008.048 | M98: 26483.431 | N98: 29091.676 | O98: 35487.805 | P98: =SUM(P94:P97) -> 403518.81 | T98: Total Baixa renda | U98: 34682.503 | V98: 34682.503 | W98: 34716.804 | X98: 30334.284 | Y98: 29020.361 | Z98: 29008.944 | AA98: 28514.351 | AB98: 25189.277 | AC98: 24210.503 | AD98: 26496.652 | AE98: 27023.629 | AF98: 31457.967 | AG98: 355337.778
B100: Descontos médios (Mercado TUSD MWh) | S100: Descontos médios (Mercado TUSD MWh)
D102: =D71 -> 44986 | E102: 44958 | F102: 44927 | G102: 44896 | H102: 44866 | I102: 44835 | J102: 44805 | K102: 44774 | L102: 44743 | M102: 44713 | N102: 44682 | O102: 44652 | P102: Total | U102: 44621 | V102: 44593 | W102: 44562 | X102: 44531 | Y102: 44501 | Z102: 44470 | AA102: 44440 | AB102: 44409 | AC102: 44378 | AD102: 44348 | AE102: 44317 | AF102: 44287 | AG102: Total
B103: cativo | C103: A1 | D103: =IF(D40=0,"",(D72-D40)/D40) -> 
B104: cativo | C104: A2 | D104: 0 | E104: 0 | F104: 0 | G104: 0 | H104: 0 | I104: 0 | J104: 0 | K104: 0 | L104: 0 | M104: 0 | N104: 0 | O104: 0 | P104: 0 | U104: 0 | V104: 0 | W104: 0 | X104: 0 | Y104: 0 | Z104: 0 | AA104: 0 | AB104: 0 | AC104: 0 | AD104: 0 | AE104: 0 | AF104: 0 | AG104: 0
B105: cativo | C105: A3 | D105: -0.03 | E105: -0.03 | F105: -0.03 | G105: -0.03 | H105: -0.03 | I105: -0.03 | J105: -0.03 | K105: -0.03 | L105: -0.03 | M105: -0.03 | N105: -0.03 | O105: -0.03 | P105: -0.03 | U105: -0.06 | V105: -0.06 | W105: -0.06 | X105: -0.06 | Y105: -0.06 | Z105: -0.06 | AA105: -0.06 | AB105: -0.06 | AC105: -0.05899687839 | AD105: -0.05904007517 | AE105: -0.05915948877 | AF105: -0.05904571142 | AG105: -0.05969051045
B106: cativo | C106: A3a | D106: -0.08495191145 | E106: -0.08495191145 | F106: -0.133311457 | G106: -0.1683297618 | H106: -0.08161997011 | I106: -0.05120578891 | J106: -0.06018297415 | K106: -0.08306174647 | L106: -0.07120311242 | M106: -0.1162106166 | N106: -0.106427505 | O106: -0.06816720311 | P106: -0.09084758686 | U106: -0.1339062497 | V106: -0.1339062497 | W106: -0.1675285163 | X106: -0.134213111 | Y106: -0.08588456026 | Z106: -0.1008946349 | AA106: -0.08516500853 | AB106: -0.08552815607 | AC106: -0.09669651549 | AD106: -0.1372437561 | AE106: -0.1447491646 | AF106: -0.09239022575 | AG106: -0.1155324586
B107: cativo | C107: A4 | D107: -0.01731074839 | E107: -0.01731074839 | F107: -0.02300572795 | G107: -0.02475038322 | H107: -0.01529909995 | I107: -0.01789205362 | J107: -0.01752853551 | K107: -0.01780602833 | L107: -0.0162385605 | M107: -0.02104300627 | N107: -0.01852842445 | O107: -0.01729503288 | P107: -0.01869897197 | U107: -0.03137687459 | V107: -0.03137687459 | W107: -0.02812237969 | X107: -0.02643581914 | Y107: -0.02267643041 | Z107: -0.02163599827 | AA107: -0.02216878298 | AB107: -0.02285970746 | AC107: -0.02465227512 | AD107: -0.0288019905 | AE107: -0.02866985006 | AF107: -0.01734368174 | AG107: -0.02548230428
B108: cativo | C108: As
B109: cativo | C109: Total AT Cativo | D109: -0.03010742422 | E109: -0.03010742422 | F109: -0.04426627922 | G109: -0.05471196509 | H109: -0.02958468343 | I109: -0.02508450094 | J109: -0.02901061119 | K109: -0.03622891873 | L109: -0.03039134312 | M109: -0.04225151558 | N109: -0.03790418312 | O109: -0.02833947223 | P109: -0.0348360455 | U109: -0.05254859927 | V109: -0.05254859927 | W109: -0.05587795887 | X109: -0.04855538473 | Y109: -0.03566545041 | Z109: -0.0392702337 | AA109: -0.03908996774 | AB109: -0.04000522159 | AC109: -0.0429830394 | AD109: -0.05562721546 | AE109: -0.05862915575 | AF109: -0.03565779099 | AG109: -0.04633873167
B110: cativo | C110: B4 | D110: 0 | E110: 0 | F110: 0 | G110: 0 | H110: 0 | I110: 0 | J110: 0 | K110: 0 | L110: 0 | M110: 0 | N110: 0 | O110: 0 | P110: 0 | U110: 0 | V110: 0 | W110: 0 | X110: 0 | Y110: 0 | Z110: 0 | AA110: 0 | AB110: 0 | AC110: 0 | AD110: 0 | AE110: 0 | AF110: 0 | AG110: 0
B111: cativo | C111: B3 | D111: -0.0009991576676 | E111: -0.0009991576676 | F111: -0.001026478945 | G111: -0.0009634993823 | H111: -0.001182279233 | I111: -0.001253937703 | J111: -0.001351880971 | K111: -0.001286004916 | L111: -0.001367104618 | M111: -0.001415055084 | N111: -0.001174833622 | O111: -0.001064027739 | P111: -0.001161290722 | U111: -0.002058579058 | V111: -0.002058579058 | W111: -0.002070796826 | X111: -0.001951182891 | Y111: -0.002033805979 | Z111: -0.002100759674 | AA111: -0.0022872805 | AB111: -0.002770085187 | AC111: -0.002899256938 | AD111: -0.002657009597 | AE111: -0.002436433084 | AF111: -0.002189550582 | AG111: -0.002257459389
B112: cativo | C112: B2 | D112: =IF(D49=0,"",(D81-D49)/D49) -> -0.007543556496 | E112: -0.007543556496 | F112: -0.008093315865 | G112: -0.007308205996 | H112: -0.005651562255 | I112: -0.00664154948 | J112: -0.006961174088 | K112: -0.006591105447 | L112: -0.007749154528 | M112: -0.006600500681 | N112: -0.006886334983 | O112: -0.007601659389 | P112: -0.007117099827 | U112: -0.007797081738 | V112: -0.007797081738 | W112: -0.005559928444 | X112: -0.00491146657 | Y112: -0.003787196265 | Z112: -0.004658858561 | AA112: -0.004923071095 | AB112: -0.005217543835 | AC112: -0.004511949376 | AD112: -0.004382341624 | AE112: -0.004170041281 | AF112: -0.002703457139 | AG112: -0.005047108226
B113: cativo | C113: B1 | D113: 0 | E113: 0 | F113: 0 | G113: 0 | H113: 0 | I113: 0 | J113: 0 | K113: 0 | L113: 0 | M113: 0 | N113: 0 | O113: 0 | P113: 0 | U113: 0 | V113: 0 | W113: 0 | X113: 0 | Y113: 0 | Z113: 0 | AA113: 0 | AB113: 0 | AC113: 0 | AD113: 0 | AE113: 0 | AF113: 0 | AG113: 0
B114: cativo | C114: Total BT Cativo | D114: -0.000995293703 | E114: -0.000995293703 | F114: -0.0010513184 | G114: -0.0009177068581 | H114: -0.0008566454515 | I114: -0.001011453476 | J114: -0.001072517604 | K114: -0.001023198182 | L114: -0.001200128191 | M114: -0.00112599832 | N114: -0.001097686894 | O114: -0.001138396962 | P114: -0.00103815017 | U114: -0.001415242909 | V114: -0.001415242909 | W114: -0.00109892622 | X114: -0.001021757233 | Y114: -0.0009382474619 | Z114: -0.001050889083 | AA114: -0.001110587322 | AB114: -0.001308657363 | AC114: -0.001243595984 | AD114: -0.001163376439 | AE114: -0.001109582454 | AF114: -0.0008003447759 | AG114: -0.001135227219
B115: Suprimento | C115: Suprimento (TE)
B116: Livre | C116: A1
B117: Livre | D117: -0.01365663021 | E117: -0.01365663021 | F117: -0.01449211651 | G117: -0.01435570744 | H117: -0.01273094904 | I117: -0.01462915657 | J117: -0.01699977432 | K117: -0.01543003102 | L117: -0.01395215498 | M117: -0.01384184198 | N117: -0.01361126759 | O117: -0.01548072641 | P117: -0.01443510749 | U117: -0.01517296425 | V117: -0.01517296425 | W117: -0.01562141862 | X117: -0.01443848294 | Y117: -0.01342871896 | Z117: -0.01492364001 | AA117: -0.01704397812 | AB117: -0.01515870926 | AC117: -0.01324766987 | AD117: -0.01410830376 | AE117: -0.01393476346 | AF117: -0.01549230538 | AG117: -0.01484159728
B118: Livre APE | D118: 0 | E118: 0 | F118: 0 | G118: 0 | H118: 0 | I118: 0 | J118: 0 | K118: 0 | L118: 0 | M118: 0 | N118: 0 | O118: 0 | P118: 0 | U118: 0 | V118: 0 | W118: 0 | X118: 0 | Y118: 0 | Z118: 0 | AA118: 0 | AB118: 0 | AC118: 0 | AD118: 0 | AE118: 0 | AF118: 0 | AG118: 0
B119: ERC | D119: =IF(D56=0,"",(D88-D56)/D56) -> 
B120: Livres | C120: Total Livres | D120: -0.01317459121 | E120: -0.01317459121 | F120: -0.01376583712 | G120: -0.01364996166 | H120: -0.01217149281 | I120: -0.01377519493 | J120: -0.01614253719 | K120: -0.0145029451 | L120: -0.01277762359 | M120: -0.01302861524 | N120: -0.01273133996 | O120: -0.01455972793 | P120: -0.01365761989 | U120: -0.0143511294 | V120: -0.0143511294 | W120: -0.01388548931 | X120: -0.01278012733 | Y120: -0.01223004944 | Z120: -0.0138056671 | AA120: -0.01579592048 | AB120: -0.01411470314 | AC120: -0.01269761817 | AD120: -0.01314943179 | AE120: -0.01315481097 | AF120: -0.01473763744 | AG120: -0.01377945932
B121: Distribuição | C121: DISTRIBUIÇÃO | D121: 0 | E121: 0 | F121: 0 | G121: 0 | H121: 0 | I121: 0 | J121: 0 | K121: 0 | L121: 0 | M121: 0 | N121: 0 | O121: 0 | P121: 0 | U121: 0 | V121: 0 | W121: 0 | X121: 0 | Y121: 0 | Z121: 0 | AA121: 0 | AB121: 0 | AC121: 0 | AD121: 0 | AE121: 0 | AF121: 0 | AG121: 0
B122: Geração | C122: GERADOR
C123: TOTAL Geral | D123: -0.008120764583 | E123: -0.008120764583 | F123: -0.01065069923 | G123: -0.01176336044 | H123: -0.008176616098 | I123: -0.008096779764 | J123: -0.009907931451 | K123: -0.01076705481 | L123: -0.00886236354 | M123: -0.0107591176 | N123: -0.00969899735 | O123: -0.008780975351 | P123: -0.009472000171 | U123: -0.01218741819 | V123: -0.01218741819 | W123: -0.01216904217 | X123: -0.01096743713 | Y123: -0.008871782894 | Z123: -0.01003835871 | AA123: -0.01082218535 | AB123: -0.01088935504 | AC123: -0.01059032975 | AD123: -0.01270033472 | AE123: -0.01354808076 | AF123: -0.009778925257 | AG123: -0.0112225164
B125: Residencial baixa renda – faixa 01 | D125: 0 | E125: 0 | F125: 0 | G125: 0 | H125: 0 | I125: 0 | J125: 0 | K125: 0 | L125: 0 | M125: 0 | N125: 0 | O125: 0 | P125: 0 | U125: 0 | V125: 0 | W125: 0 | X125: 0 | Y125: 0 | Z125: 0 | AA125: 0 | AB125: 0 | AC125: 0 | AD125: 0 | AE125: 0 | AF125: 0 | AG125: 0
B126: Residencial baixa renda – faixa 02 | D126: 0 | E126: 0 | F126: 0 | G126: 0 | H126: 0 | I126: 0 | J126: 0 | K126: 0 | L126: 0 | M126: 0 | N126: 0 | O126: 0 | P126: 0 | U126: 0 | V126: 0 | W126: 0 | X126: 0 | Y126: 0 | Z126: 0 | AA126: 0 | AB126: 0 | AC126: 0 | AD126: 0 | AE126: 0 | AF126: 0 | AG126: 0
B127: Residencial baixa renda – faixa 03 | D127: 0 | E127: 0 | F127: 0 | G127: 0 | H127: 0 | I127: 0 | J127: 0 | K127: 0 | L127: 0 | M127: 0 | N127: 0 | O127: 0 | P127: 0 | U127: 0 | V127: 0 | W127: 0 | X127: 0 | Y127: 0 | Z127: 0 | AA127: 0 | AB127: 0 | AC127: 0 | AD127: 0 | AE127: 0 | AF127: 0 | AG127: 0
B128: Residencial baixa renda – faixa 04 | D128: 0 | E128: 0 | F128: 0 | G128: 0 | H128: 0 | I128: 0 | J128: 0 | K128: 0 | L128: 0 | M128: 0 | N128: 0 | O128: 0 | P128: 0 | U128: 0 | V128: 0 | W128: 0 | X128: 0 | Y128: 0 | Z128: 0 | AA128: 0 | AB128: 0 | AC128: 0 | AD128: 0 | AE128: 0 | AF128: 0 | AG128: 0
C129: Total Baixa renda | D129: 0 | E129: 0 | F129: 0 | G129: 0 | H129: 0 | I129: 0 | J129: 0 | K129: 0 | L129: 0 | M129: 0 | N129: 0 | O129: 0 | P129: 0 | U129: 0 | V129: 0 | W129: 0 | X129: 0 | Y129: 0 | Z129: 0 | AA129: 0 | AB129: 0 | AC129: 0 | AD129: 0 | AE129: 0 | AF129: 0 | AG129: 0
B133: Mercado TUSD MW | S133: Mercado TUSD MW
D135: =D39 -> 44986 | E135: =EDATE(D135,-1) -> 44958 | F135: =EDATE(E135,-1) -> 44927 | G135: 44896 | H135: 44866 | I135: 44835 | J135: 44805 | K135: 44774 | L135: 44743 | M135: 44713 | N135: 44682 | O135: 44652 | P135: Total | U135: 44621 | V135: 44593 | W135: 44562 | X135: 44531 | Y135: 44501 | Z135: 44470 | AA135: 44440 | AB135: 44409 | AC135: 44378 | AD135: 44348 | AE135: 44317 | AF135: 44287 | AG135: Total
B136: cativo | C136: A1 | D136: =SUMIFS(DADOS_MercadoBase[D],DADOS_MercadoBase[OPÇÃO],$B136,DADOS_MercadoBase[Subgrupo],$C136,DADOS_MercadoBase[AnoMes],D$39) -> 0 | E136: =SUMIFS(DADOS_MercadoBase[D],DADOS_MercadoBase[OPÇÃO],$B136,DADOS_MercadoBase[Subgrupo],$C136,DADOS_MercadoBase[AnoMes],E$39) -> 0 | F136: =SUMIFS(DADOS_MercadoBase[D],DADOS_MercadoBase[OPÇÃO],$B136,DADOS_MercadoBase[Subgrupo],$C136,DADOS_MercadoBase[AnoMes],F$39) -> 0 | G136: =SUMIFS(DADOS_MercadoBase[D],DADOS_MercadoBase[OPÇÃO],$B136,DADOS_MercadoBase[Subgrupo],$C136,DADOS_MercadoBase[AnoMes],G$39) -> 0 | H136: =SUMIFS(DADOS_MercadoBase[D],DADOS_MercadoBase[OPÇÃO],$B136,DADOS_MercadoBase[Subgrupo],$C136,DADOS_MercadoBase[AnoMes],H$39) -> 0 | I136: =SUMIFS(DADOS_MercadoBase[D],DADOS_MercadoBase[OPÇÃO],$B136,DADOS_MercadoBase[Subgrupo],$C136,DADOS_MercadoBase[AnoMes],I$39) -> 0 | J136: =SUMIFS(DADOS_MercadoBase[D],DADOS_MercadoBase[OPÇÃO],$B136,DADOS_MercadoBase[Subgrupo],$C136,DADOS_MercadoBase[AnoMes],J$39) -> 0 | K136: =SUMIFS(DADOS_MercadoBase[D],DADOS_MercadoBase[OPÇÃO],$B136,DADOS_MercadoBase[Subgrupo],$C136,DADOS_MercadoBase[AnoMes],K$39) -> 0 | L136: =SUMIFS(DADOS_MercadoBase[D],DADOS_MercadoBase[OPÇÃO],$B136,DADOS_MercadoBase[Subgrupo],$C136,DADOS_MercadoBase[AnoMes],L$39) -> 0 | M136: =SUMIFS(DADOS_MercadoBase[D],DADOS_MercadoBase[OPÇÃO],$B136,DADOS_MercadoBase[Subgrupo],$C136,DADOS_MercadoBase[AnoMes],M$39) -> 0 | N136: =SUMIFS(DADOS_MercadoBase[D],DADOS_MercadoBase[OPÇÃO],$B136,DADOS_MercadoBase[Subgrupo],$C136,DADOS_MercadoBase[AnoMes],N$39) -> 0 | O136: =SUMIFS(DADOS_MercadoBase[D],DADOS_MercadoBase[OPÇÃO],$B136,DADOS_MercadoBase[Subgrupo],$C136,DADOS_MercadoBase[AnoMes],O$39) -> 0 | P136: =SUM(D136:O136) -> 0 | S136: cativo | T136: A1 | U136: 0 | V136: 0 | W136: 0 | X136: 0 | Y136: 0 | Z136: 0 | AA136: 0 | AB136: 0 | AC136: 0 | AD136: 0 | AE136: 0 | AF136: 0 | AG136: 0
B137: cativo | C137: A2 | D137: =SUMIFS(DADOS_MercadoBase[D],DADOS_MercadoBase[OPÇÃO],$B137,DADOS_MercadoBase[Subgrupo],$C137,DADOS_MercadoBase[AnoMes],D$39) -> 1806 | E137: =SUMIFS(DADOS_MercadoBase[D],DADOS_MercadoBase[OPÇÃO],$B137,DADOS_MercadoBase[Subgrupo],$C137,DADOS_MercadoBase[AnoMes],E$39) -> 1806 | F137: =SUMIFS(DADOS_MercadoBase[D],DADOS_MercadoBase[OPÇÃO],$B137,DADOS_MercadoBase[Subgrupo],$C137,DADOS_MercadoBase[AnoMes],F$39) -> 1748 | G137: =SUMIFS(DADOS_MercadoBase[D],DADOS_MercadoBase[OPÇÃO],$B137,DADOS_MercadoBase[Subgrupo],$C137,DADOS_MercadoBase[AnoMes],G$39) -> 1758 | H137: =SUMIFS(DADOS_MercadoBase[D],DADOS_MercadoBase[OPÇÃO],$B137,DADOS_MercadoBase[Subgrupo],$C137,DADOS_MercadoBase[AnoMes],H$39) -> 1710 | I137: =SUMIFS(DADOS_MercadoBase[D],DADOS_MercadoBase[OPÇÃO],$B137,DADOS_MercadoBase[Subgrupo],$C137,DADOS_MercadoBase[AnoMes],I$39) -> 1702 | J137: =SUMIFS(DADOS_MercadoBase[D],DADOS_MercadoBase[OPÇÃO],$B137,DADOS_MercadoBase[Subgrupo],$C137,DADOS_MercadoBase[AnoMes],J$39) -> 1691 | K137: =SUMIFS(DADOS_MercadoBase[D],DADOS_MercadoBase[OPÇÃO],$B137,DADOS_MercadoBase[Subgrupo],$C137,DADOS_MercadoBase[AnoMes],K$39) -> 1783 | L137: =SUMIFS(DADOS_MercadoBase[D],DADOS_MercadoBase[OPÇÃO],$B137,DADOS_MercadoBase[Subgrupo],$C137,DADOS_MercadoBase[AnoMes],L$39) -> 4085 | M137: =SUMIFS(DADOS_MercadoBase[D],DADOS_MercadoBase[OPÇÃO],$B137,DADOS_MercadoBase[Subgrupo],$C137,DADOS_MercadoBase[AnoMes],M$39) -> 4191 | N137: =SUMIFS(DADOS_MercadoBase[D],DADOS_MercadoBase[OPÇÃO],$B137,DADOS_MercadoBase[Subgrupo],$C137,DADOS_MercadoBase[AnoMes],N$39) -> 4062 | O137: =SUMIFS(DADOS_MercadoBase[D],DADOS_MercadoBase[OPÇÃO],$B137,DADOS_MercadoBase[Subgrupo],$C137,DADOS_MercadoBase[AnoMes],O$39) -> 4085 | P137: =SUM(D137:O137) -> 30427 | S137: cativo | T137: A2 | U137: 4270 | V137: 4270 | W137: 4128 | X137: 4291 | Y137: 4305 | Z137: 4175 | AA137: 4327 | AB137: 7304 | AC137: 7292 | AD137: 7317 | AE137: 7307 | AF137: 7352 | AG137: 66338
B138: cativo | C138: A3 | D138: =SUMIFS(DADOS_MercadoBase[D],DADOS_MercadoBase[OPÇÃO],$B138,DADOS_MercadoBase[Subgrupo],$C138,DADOS_MercadoBase[AnoMes],D$39) -> 4766 | E138: =SUMIFS(DADOS_MercadoBase[D],DADOS_MercadoBase[OPÇÃO],$B138,DADOS_MercadoBase[Subgrupo],$C138,DADOS_MercadoBase[AnoMes],E$39) -> 4766 | F138: =SUMIFS(DADOS_MercadoBase[D],DADOS_MercadoBase[OPÇÃO],$B138,DADOS_MercadoBase[Subgrupo],$C138,DADOS_MercadoBase[AnoMes],F$39) -> 4766 | G138: =SUMIFS(DADOS_MercadoBase[D],DADOS_MercadoBase[OPÇÃO],$B138,DADOS_MercadoBase[Subgrupo],$C138,DADOS_MercadoBase[AnoMes],G$39) -> 4762 | H138: =SUMIFS(DADOS_MercadoBase[D],DADOS_MercadoBase[OPÇÃO],$B138,DADOS_MercadoBase[Subgrupo],$C138,DADOS_MercadoBase[AnoMes],H$39) -> 4808 | I138: =SUMIFS(DADOS_MercadoBase[D],DADOS_MercadoBase[OPÇÃO],$B138,DADOS_MercadoBase[Subgrupo],$C138,DADOS_MercadoBase[AnoMes],I$39) -> 4771 | J138: =SUMIFS(DADOS_MercadoBase[D],DADOS_MercadoBase[OPÇÃO],$B138,DADOS_MercadoBase[Subgrupo],$C138,DADOS_MercadoBase[AnoMes],J$39) -> 4803 | K138: =SUMIFS(DADOS_MercadoBase[D],DADOS_MercadoBase[OPÇÃO],$B138,DADOS_MercadoBase[Subgrupo],$C138,DADOS_MercadoBase[AnoMes],K$39) -> 4736 | L138: =SUMIFS(DADOS_MercadoBase[D],DADOS_MercadoBase[OPÇÃO],$B138,DADOS_MercadoBase[Subgrupo],$C138,DADOS_MercadoBase[AnoMes],L$39) -> 4778 | M138: =SUMIFS(DADOS_MercadoBase[D],DADOS_MercadoBase[OPÇÃO],$B138,DADOS_MercadoBase[Subgrupo],$C138,DADOS_MercadoBase[AnoMes],M$39) -> 4774 | N138: =SUMIFS(DADOS_MercadoBase[D],DADOS_MercadoBase[OPÇÃO],$B138,DADOS_MercadoBase[Subgrupo],$C138,DADOS_MercadoBase[AnoMes],N$39) -> 4774 | O138: =SUMIFS(DADOS_MercadoBase[D],DADOS_MercadoBase[OPÇÃO],$B138,DADOS_MercadoBase[Subgrupo],$C138,DADOS_MercadoBase[AnoMes],O$39) -> 4783 | P138: 57287 | S138: cativo | T138: A3 | U138: 4775 | V138: 4775 | W138: 4760 | X138: 4830 | Y138: 4760 | Z138: 4760 | AA138: 4760 | AB138: 4865 | AC138: 5190 | AD138: 5190 | AE138: 5155 | AF138: 5050 | AG138: 58870
B139: cativo | C139: A3a | D139: =SUMIFS(DADOS_MercadoBase[D],DADOS_MercadoBase[OPÇÃO],$B139,DADOS_MercadoBase[Subgrupo],$C139,DADOS_MercadoBase[AnoMes],D$39) -> 103442 | E139: =SUMIFS(DADOS_MercadoBase[D],DADOS_MercadoBase[OPÇÃO],$B139,DADOS_MercadoBase[Subgrupo],$C139,DADOS_MercadoBase[AnoMes],E$39) -> 103442 | F139: =SUMIFS(DADOS_MercadoBase[D],DADOS_MercadoBase[OPÇÃO],$B139,DADOS_MercadoBase[Subgrupo],$C139,DADOS_MercadoBase[AnoMes],F$39) -> 110984 | G139: =SUMIFS(DADOS_MercadoBase[D],DADOS_MercadoBase[OPÇÃO],$B139,DADOS_MercadoBase[Subgrupo],$C139,DADOS_MercadoBase[AnoMes],G$39) -> 116102 | H139: =SUMIFS(DADOS_MercadoBase[D],DADOS_MercadoBase[OPÇÃO],$B139,DADOS_MercadoBase[Subgrupo],$C139,DADOS_MercadoBase[AnoMes],H$39) -> 110353 | I139: =SUMIFS(DADOS_MercadoBase[D],DADOS_MercadoBase[OPÇÃO],$B139,DADOS_MercadoBase[Subgrupo],$C139,DADOS_MercadoBase[AnoMes],I$39) -> 109269 | J139: =SUMIFS(DADOS_MercadoBase[D],DADOS_MercadoBase[OPÇÃO],$B139,DADOS_MercadoBase[Subgrupo],$C139,DADOS_MercadoBase[AnoMes],J$39) -> 117118 | K139: =SUMIFS(DADOS_MercadoBase[D],DADOS_MercadoBase[OPÇÃO],$B139,DADOS_MercadoBase[Subgrupo],$C139,DADOS_MercadoBase[AnoMes],K$39) -> 123964 | L139: =SUMIFS(DADOS_MercadoBase[D],DADOS_MercadoBase[OPÇÃO],$B139,DADOS_MercadoBase[Subgrupo],$C139,DADOS_MercadoBase[AnoMes],L$39) -> 117614 | M139: =SUMIFS(DADOS_MercadoBase[D],DADOS_MercadoBase[OPÇÃO],$B139,DADOS_MercadoBase[Subgrupo],$C139,DADOS_MercadoBase[AnoMes],M$39) -> 100757 | N139: =SUMIFS(DADOS_MercadoBase[D],DADOS_MercadoBase[OPÇÃO],$B139,DADOS_MercadoBase[Subgrupo],$C139,DADOS_MercadoBase[AnoMes],N$39) -> 105361 | O139: =SUMIFS(DADOS_MercadoBase[D],DADOS_MercadoBase[OPÇÃO],$B139,DADOS_MercadoBase[Subgrupo],$C139,DADOS_MercadoBase[AnoMes],O$39) -> 111842 | P139: 1330248 | S139: cativo | T139: A3a | U139: 99569 | V139: 99569 | W139: 98701 | X139: 97253 | Y139: 99557 | Z139: 106452 | AA139: 112423 | AB139: 105927 | AC139: 100728 | AD139: 102704 | AE139: 106074 | AF139: 102454 | AG139: 1231411
B140: cativo | C140: A4 | D140: =SUMIFS(DADOS_MercadoBase[D],DADOS_MercadoBase[OPÇÃO],$B140,DADOS_MercadoBase[Subgrupo],$C140,DADOS_MercadoBase[AnoMes],D$39) -> 318778 | E140: =SUMIFS(DADOS_MercadoBase[D],DADOS_MercadoBase[OPÇÃO],$B140,DADOS_MercadoBase[Subgrupo],$C140,DADOS_MercadoBase[AnoMes],E$39) -> 318778 | F140: =SUMIFS(DADOS_MercadoBase[D],DADOS_MercadoBase[OPÇÃO],$B140,DADOS_MercadoBase[Subgrupo],$C140,DADOS_MercadoBase[AnoMes],F$39) -> 318786 | G140: =SUMIFS(DADOS_MercadoBase[D],DADOS_MercadoBase[OPÇÃO],$B140,DADOS_MercadoBase[Subgrupo],$C140,DADOS_MercadoBase[AnoMes],G$39) -> 319274 | H140: =SUMIFS(DADOS_MercadoBase[D],DADOS_MercadoBase[OPÇÃO],$B140,DADOS_MercadoBase[Subgrupo],$C140,DADOS_MercadoBase[AnoMes],H$39) -> 317163 | I140: =SUMIFS(DADOS_MercadoBase[D],DADOS_MercadoBase[OPÇÃO],$B140,DADOS_MercadoBase[Subgrupo],$C140,DADOS_MercadoBase[AnoMes],I$39) -> 310691 | J140: =SUMIFS(DADOS_MercadoBase[D],DADOS_MercadoBase[OPÇÃO],$B140,DADOS_MercadoBase[Subgrupo],$C140,DADOS_MercadoBase[AnoMes],J$39) -> 312285 | K140: =SUMIFS(DADOS_MercadoBase[D],DADOS_MercadoBase[OPÇÃO],$B140,DADOS_MercadoBase[Subgrupo],$C140,DADOS_MercadoBase[AnoMes],K$39) -> 312069 | L140: =SUMIFS(DADOS_MercadoBase[D],DADOS_MercadoBase[OPÇÃO],$B140,DADOS_MercadoBase[Subgrupo],$C140,DADOS_MercadoBase[AnoMes],L$39) -> 304152 | M140: =SUMIFS(DADOS_MercadoBase[D],DADOS_MercadoBase[OPÇÃO],$B140,DADOS_MercadoBase[Subgrupo],$C140,DADOS_MercadoBase[AnoMes],M$39) -> 303243 | N140: =SUMIFS(DADOS_MercadoBase[D],DADOS_MercadoBase[OPÇÃO],$B140,DADOS_MercadoBase[Subgrupo],$C140,DADOS_MercadoBase[AnoMes],N$39) -> 306477 | O140: =SUMIFS(DADOS_MercadoBase[D],DADOS_MercadoBase[OPÇÃO],$B140,DADOS_MercadoBase[Subgrupo],$C140,DADOS_MercadoBase[AnoMes],O$39) -> 312629 | P140: 3754325 | S140: cativo | T140: A4 | U140: 308058 | V140: 308058 | W140: 310487 | X140: 308445 | Y140: 311703 | Z140: 319394 | AA140: 317282 | AB140: 327874 | AC140: 304712 | AD140: 298993 | AE140: 313806 | AF140: 321635 | AG140: 3750447
B141: cativo | C141: As | D141: =SUMIFS(DADOS_MercadoBase[D],DADOS_MercadoBase[OPÇÃO],$B141,DADOS_MercadoBase[Subgrupo],$C141,DADOS_MercadoBase[AnoMes],D$39) -> 0 | E141: =SUMIFS(DADOS_MercadoBase[D],DADOS_MercadoBase[OPÇÃO],$B141,DADOS_MercadoBase[Subgrupo],$C141,DADOS_MercadoBase[AnoMes],E$39) -> 0 | F141: =SUMIFS(DADOS_MercadoBase[D],DADOS_MercadoBase[OPÇÃO],$B141,DADOS_MercadoBase[Subgrupo],$C141,DADOS_MercadoBase[AnoMes],F$39) -> 0 | G141: =SUMIFS(DADOS_MercadoBase[D],DADOS_MercadoBase[OPÇÃO],$B141,DADOS_MercadoBase[Subgrupo],$C141,DADOS_MercadoBase[AnoMes],G$39) -> 0 | H141: =SUMIFS(DADOS_MercadoBase[D],DADOS_MercadoBase[OPÇÃO],$B141,DADOS_MercadoBase[Subgrupo],$C141,DADOS_MercadoBase[AnoMes],H$39) -> 0 | I141: =SUMIFS(DADOS_MercadoBase[D],DADOS_MercadoBase[OPÇÃO],$B141,DADOS_MercadoBase[Subgrupo],$C141,DADOS_MercadoBase[AnoMes],I$39) -> 0 | J141: =SUMIFS(DADOS_MercadoBase[D],DADOS_MercadoBase[OPÇÃO],$B141,DADOS_MercadoBase[Subgrupo],$C141,DADOS_MercadoBase[AnoMes],J$39) -> 0 | K141: =SUMIFS(DADOS_MercadoBase[D],DADOS_MercadoBase[OPÇÃO],$B141,DADOS_MercadoBase[Subgrupo],$C141,DADOS_MercadoBase[AnoMes],K$39) -> 0 | L141: =SUMIFS(DADOS_MercadoBase[D],DADOS_MercadoBase[OPÇÃO],$B141,DADOS_MercadoBase[Subgrupo],$C141,DADOS_MercadoBase[AnoMes],L$39) -> 0 | M141: =SUMIFS(DADOS_MercadoBase[D],DADOS_MercadoBase[OPÇÃO],$B141,DADOS_MercadoBase[Subgrupo],$C141,DADOS_MercadoBase[AnoMes],M$39) -> 0 | N141: =SUMIFS(DADOS_MercadoBase[D],DADOS_MercadoBase[OPÇÃO],$B141,DADOS_MercadoBase[Subgrupo],$C141,DADOS_MercadoBase[AnoMes],N$39) -> 0 | O141: =SUMIFS(DADOS_MercadoBase[D],DADOS_MercadoBase[OPÇÃO],$B141,DADOS_MercadoBase[Subgrupo],$C141,DADOS_MercadoBase[AnoMes],O$39) -> 0 | P141: 0 | S141: cativo | T141: As | U141: 0 | V141: 0 | W141: 0 | X141: 0 | Y141: 0 | Z141: 0 | AA141: 0 | AB141: 0 | AC141: 0 | AD141: 0 | AE141: 0 | AF141: 0 | AG141: 0
B142: cativo | C142: Total AT Cativo | D142: =SUM(D136:D141) -> 428792 | E142: =SUM(E136:E141) -> 428792 | F142: 436284 | G142: 441896 | H142: 434034 | I142: 426433 | J142: 435897 | K142: 442552 | L142: 430629 | M142: 412965 | N142: 420674 | O142: 433339 | P142: 5172287 | S142: cativo | T142: Total AT Cativo | U142: 416672 | V142: 416672 | W142: 418076 | X142: 414819 | Y142: 420325 | Z142: 434781 | AA142: 438792 | AB142: 445970 | AC142: 417922 | AD142: 414204 | AE142: 432342 | AF142: 436491 | AG142: 5107066
B143: cativo | C143: B4 | D143: =SUMIFS(DADOS_MercadoBase[D],DADOS_MercadoBase[OPÇÃO],$B143,DADOS_MercadoBase[Subgrupo],$C143,DADOS_MercadoBase[AnoMes],D$39) -> 0 | E143: =SUMIFS(DADOS_MercadoBase[D],DADOS_MercadoBase[OPÇÃO],$B143,DADOS_MercadoBase[Subgrupo],$C143,DADOS_MercadoBase[AnoMes],E$39) -> 0 | F143: =SUMIFS(DADOS_MercadoBase[D],DADOS_MercadoBase[OPÇÃO],$B143,DADOS_MercadoBase[Subgrupo],$C143,DADOS_MercadoBase[AnoMes],F$39) -> 0 | G143: =SUMIFS(DADOS_MercadoBase[D],DADOS_MercadoBase[OPÇÃO],$B143,DADOS_MercadoBase[Subgrupo],$C143,DADOS_MercadoBase[AnoMes],G$39) -> 0 | H143: =SUMIFS(DADOS_MercadoBase[D],DADOS_MercadoBase[OPÇÃO],$B143,DADOS_MercadoBase[Subgrupo],$C143,DADOS_MercadoBase[AnoMes],H$39) -> 0 | I143: =SUMIFS(DADOS_MercadoBase[D],DADOS_MercadoBase[OPÇÃO],$B143,DADOS_MercadoBase[Subgrupo],$C143,DADOS_MercadoBase[AnoMes],I$39) -> 0 | J143: =SUMIFS(DADOS_MercadoBase[D],DADOS_MercadoBase[OPÇÃO],$B143,DADOS_MercadoBase[Subgrupo],$C143,DADOS_MercadoBase[AnoMes],J$39) -> 0 | K143: =SUMIFS(DADOS_MercadoBase[D],DADOS_MercadoBase[OPÇÃO],$B143,DADOS_MercadoBase[Subgrupo],$C143,DADOS_MercadoBase[AnoMes],K$39) -> 0 | L143: =SUMIFS(DADOS_MercadoBase[D],DADOS_MercadoBase[OPÇÃO],$B143,DADOS_MercadoBase[Subgrupo],$C143,DADOS_MercadoBase[AnoMes],L$39) -> 0 | M143: =SUMIFS(DADOS_MercadoBase[D],DADOS_MercadoBase[OPÇÃO],$B143,DADOS_MercadoBase[Subgrupo],$C143,DADOS_MercadoBase[AnoMes],M$39) -> 0 | N143: =SUMIFS(DADOS_MercadoBase[D],DADOS_MercadoBase[OPÇÃO],$B143,DADOS_MercadoBase[Subgrupo],$C143,DADOS_MercadoBase[AnoMes],N$39) -> 0 | O143: =SUMIFS(DADOS_MercadoBase[D],DADOS_MercadoBase[OPÇÃO],$B143,DADOS_MercadoBase[Subgrupo],$C143,DADOS_MercadoBase[AnoMes],O$39) -> 0 | P143: 0 | S143: cativo | T143: B4 | U143: 0 | V143: 0 | W143: 0 | X143: 0 | Y143: 0 | Z143: 0 | AA143: 0 | AB143: 0 | AC143: 0 | AD143: 0 | AE143: 0 | AF143: 0 | AG143: 0
B144: cativo | C144: B3 | D144: =SUMIFS(DADOS_MercadoBase[D],DADOS_MercadoBase[OPÇÃO],$B144,DADOS_MercadoBase[Subgrupo],$C144,DADOS_MercadoBase[AnoMes],D$39) -> 0 | E144: =SUMIFS(DADOS_MercadoBase[D],DADOS_MercadoBase[OPÇÃO],$B144,DADOS_MercadoBase[Subgrupo],$C144,DADOS_MercadoBase[AnoMes],E$39) -> 0 | F144: =SUMIFS(DADOS_MercadoBase[D],DADOS_MercadoBase[OPÇÃO],$B144,DADOS_MercadoBase[Subgrupo],$C144,DADOS_MercadoBase[AnoMes],F$39) -> 0 | G144: =SUMIFS(DADOS_MercadoBase[D],DADOS_MercadoBase[OPÇÃO],$B144,DADOS_MercadoBase[Subgrupo],$C144,DADOS_MercadoBase[AnoMes],G$39) -> 0 | H144: =SUMIFS(DADOS_MercadoBase[D],DADOS_MercadoBase[OPÇÃO],$B144,DADOS_MercadoBase[Subgrupo],$C144,DADOS_MercadoBase[AnoMes],H$39) -> 0 | I144: =SUMIFS(DADOS_MercadoBase[D],DADOS_MercadoBase[OPÇÃO],$B144,DADOS_MercadoBase[Subgrupo],$C144,DADOS_MercadoBase[AnoMes],I$39) -> 0 | J144: =SUMIFS(DADOS_MercadoBase[D],DADOS_MercadoBase[OPÇÃO],$B144,DADOS_MercadoBase[Subgrupo],$C144,DADOS_MercadoBase[AnoMes],J$39) -> 0 | K144: =SUMIFS(DADOS_MercadoBase[D],DADOS_MercadoBase[OPÇÃO],$B144,DADOS_MercadoBase[Subgrupo],$C144,DADOS_MercadoBase[AnoMes],K$39) -> 0 | L144: =SUMIFS(DADOS_MercadoBase[D],DADOS_MercadoBase[OPÇÃO],$B144,DADOS_MercadoBase[Subgrupo],$C144,DADOS_MercadoBase[AnoMes],L$39) -> 0 | M144: =SUMIFS(DADOS_MercadoBase[D],DADOS_MercadoBase[OPÇÃO],$B144,DADOS_MercadoBase[Subgrupo],$C144,DADOS_MercadoBase[AnoMes],M$39) -> 0 | N144: =SUMIFS(DADOS_MercadoBase[D],DADOS_MercadoBase[OPÇÃO],$B144,DADOS_MercadoBase[Subgrupo],$C144,DADOS_MercadoBase[AnoMes],N$39) -> 0 | O144: =SUMIFS(DADOS_MercadoBase[D],DADOS_MercadoBase[OPÇÃO],$B144,DADOS_MercadoBase[Subgrupo],$C144,DADOS_MercadoBase[AnoMes],O$39) -> 0 | P144: 0 | S144: cativo | T144: B3 | U144: 0 | V144: 0 | W144: 0 | X144: 0 | Y144: 0 | Z144: 0 | AA144: 0 | AB144: 0 | AC144: 0 | AD144: 0 | AE144: 0 | AF144: 0 | AG144: 0
B145: cativo | C145: B2 | D145: =SUMIFS(DADOS_MercadoBase[D],DADOS_MercadoBase[OPÇÃO],$B145,DADOS_MercadoBase[Subgrupo],$C145,DADOS_MercadoBase[AnoMes],D$39) -> 0 | E145: =SUMIFS(DADOS_MercadoBase[D],DADOS_MercadoBase[OPÇÃO],$B145,DADOS_MercadoBase[Subgrupo],$C145,DADOS_MercadoBase[AnoMes],E$39) -> 0 | F145: =SUMIFS(DADOS_MercadoBase[D],DADOS_MercadoBase[OPÇÃO],$B145,DADOS_MercadoBase[Subgrupo],$C145,DADOS_MercadoBase[AnoMes],F$39) -> 0 | G145: =SUMIFS(DADOS_MercadoBase[D],DADOS_MercadoBase[OPÇÃO],$B145,DADOS_MercadoBase[Subgrupo],$C145,DADOS_MercadoBase[AnoMes],G$39) -> 0 | H145: =SUMIFS(DADOS_MercadoBase[D],DADOS_MercadoBase[OPÇÃO],$B145,DADOS_MercadoBase[Subgrupo],$C145,DADOS_MercadoBase[AnoMes],H$39) -> 0 | I145: =SUMIFS(DADOS_MercadoBase[D],DADOS_MercadoBase[OPÇÃO],$B145,DADOS_MercadoBase[Subgrupo],$C145,DADOS_MercadoBase[AnoMes],I$39) -> 0 | J145: =SUMIFS(DADOS_MercadoBase[D],DADOS_MercadoBase[OPÇÃO],$B145,DADOS_MercadoBase[Subgrupo],$C145,DADOS_MercadoBase[AnoMes],J$39) -> 0 | K145: =SUMIFS(DADOS_MercadoBase[D],DADOS_MercadoBase[OPÇÃO],$B145,DADOS_MercadoBase[Subgrupo],$C145,DADOS_MercadoBase[AnoMes],K$39) -> 0 | L145: =SUMIFS(DADOS_MercadoBase[D],DADOS_MercadoBase[OPÇÃO],$B145,DADOS_MercadoBase[Subgrupo],$C145,DADOS_MercadoBase[AnoMes],L$39) -> 0 | M145: =SUMIFS(DADOS_MercadoBase[D],DADOS_MercadoBase[OPÇÃO],$B145,DADOS_MercadoBase[Subgrupo],$C145,DADOS_MercadoBase[AnoMes],M$39) -> 0 | N145: =SUMIFS(DADOS_MercadoBase[D],DADOS_MercadoBase[OPÇÃO],$B145,DADOS_MercadoBase[Subgrupo],$C145,DADOS_MercadoBase[AnoMes],N$39) -> 0 | O145: =SUMIFS(DADOS_MercadoBase[D],DADOS_MercadoBase[OPÇÃO],$B145,DADOS_MercadoBase[Subgrupo],$C145,DADOS_MercadoBase[AnoMes],O$39) -> 0 | P145: 0 | S145: cativo | T145: B2 | U145: 0 | V145: 0 | W145: 0 | X145: 0 | Y145: 0 | Z145: 0 | AA145: 0 | AB145: 0 | AC145: 0 | AD145: 0 | AE145: 0 | AF145: 0 | AG145: 0
B146: cativo | C146: B1 | D146: =SUMIFS(DADOS_MercadoBase[D],DADOS_MercadoBase[OPÇÃO],$B146,DADOS_MercadoBase[Subgrupo],$C146,DADOS_MercadoBase[AnoMes],D$39) -> 0 | E146: =SUMIFS(DADOS_MercadoBase[D],DADOS_MercadoBase[OPÇÃO],$B146,DADOS_MercadoBase[Subgrupo],$C146,DADOS_MercadoBase[AnoMes],E$39) -> 0 | F146: =SUMIFS(DADOS_MercadoBase[D],DADOS_MercadoBase[OPÇÃO],$B146,DADOS_MercadoBase[Subgrupo],$C146,DADOS_MercadoBase[AnoMes],F$39) -> 0 | G146: =SUMIFS(DADOS_MercadoBase[D],DADOS_MercadoBase[OPÇÃO],$B146,DADOS_MercadoBase[Subgrupo],$C146,DADOS_MercadoBase[AnoMes],G$39) -> 0 | H146: =SUMIFS(DADOS_MercadoBase[D],DADOS_MercadoBase[OPÇÃO],$B146,DADOS_MercadoBase[Subgrupo],$C146,DADOS_MercadoBase[AnoMes],H$39) -> 0 | I146: =SUMIFS(DADOS_MercadoBase[D],DADOS_MercadoBase[OPÇÃO],$B146,DADOS_MercadoBase[Subgrupo],$C146,DADOS_MercadoBase[AnoMes],I$39) -> 0 | J146: =SUMIFS(DADOS_MercadoBase[D],DADOS_MercadoBase[OPÇÃO],$B146,DADOS_MercadoBase[Subgrupo],$C146,DADOS_MercadoBase[AnoMes],J$39) -> 0 | K146: =SUMIFS(DADOS_MercadoBase[D],DADOS_MercadoBase[OPÇÃO],$B146,DADOS_MercadoBase[Subgrupo],$C146,DADOS_MercadoBase[AnoMes],K$39) -> 0 | L146: =SUMIFS(DADOS_MercadoBase[D],DADOS_MercadoBase[OPÇÃO],$B146,DADOS_MercadoBase[Subgrupo],$C146,DADOS_MercadoBase[AnoMes],L$39) -> 0 | M146: =SUMIFS(DADOS_MercadoBase[D],DADOS_MercadoBase[OPÇÃO],$B146,DADOS_MercadoBase[Subgrupo],$C146,DADOS_MercadoBase[AnoMes],M$39) -> 0 | N146: =SUMIFS(DADOS_MercadoBase[D],DADOS_MercadoBase[OPÇÃO],$B146,DADOS_MercadoBase[Subgrupo],$C146,DADOS_MercadoBase[AnoMes],N$39) -> 0 | O146: =SUMIFS(DADOS_MercadoBase[D],DADOS_MercadoBase[OPÇÃO],$B146,DADOS_MercadoBase[Subgrupo],$C146,DADOS_MercadoBase[AnoMes],O$39) -> 0 | P146: 0 | S146: cativo | T146: B1 | U146: 0 | V146: 0 | W146: 0 | X146: 0 | Y146: 0 | Z146: 0 | AA146: 0 | AB146: 0 | AC146: 0 | AD146: 0 | AE146: 0 | AF146: 0 | AG146: 0
B147: cativo | C147: Total BT Cativo | D147: =SUM(D143:D146) -> 0 | E147: =SUM(E143:E146) -> 0 | F147: 0 | G147: 0 | H147: 0 | I147: 0 | J147: 0 | K147: 0 | L147: 0 | M147: 0 | N147: 0 | O147: 0 | P147: 0 | S147: cativo | T147: Total BT Cativo | U147: 0 | V147: 0 | W147: 0 | X147: 0 | Y147: 0 | Z147: 0 | AA147: 0 | AB147: 0 | AC147: 0 | AD147: 0 | AE147: 0 | AF147: 0 | AG147: 0
B148: Suprimento | C148: Suprimento (TE) | D148: =SUMIFS(DADOS_MercadoBase[D],DADOS_MercadoBase[OPÇÃO],$B148,DADOS_MercadoBase[AnoMes],D$39) -> 0 | E148: =SUMIFS(DADOS_MercadoBase[D],DADOS_MercadoBase[OPÇÃO],$B148,DADOS_MercadoBase[AnoMes],E$39) -> 0 | F148: =SUMIFS(DADOS_MercadoBase[D],DADOS_MercadoBase[OPÇÃO],$B148,DADOS_MercadoBase[AnoMes],F$39) -> 0 | G148: =SUMIFS(DADOS_MercadoBase[D],DADOS_MercadoBase[OPÇÃO],$B148,DADOS_MercadoBase[AnoMes],G$39) -> 0 | H148: =SUMIFS(DADOS_MercadoBase[D],DADOS_MercadoBase[OPÇÃO],$B148,DADOS_MercadoBase[AnoMes],H$39) -> 0 | I148: =SUMIFS(DADOS_MercadoBase[D],DADOS_MercadoBase[OPÇÃO],$B148,DADOS_MercadoBase[AnoMes],I$39) -> 0 | J148: =SUMIFS(DADOS_MercadoBase[D],DADOS_MercadoBase[OPÇÃO],$B148,DADOS_MercadoBase[AnoMes],J$39) -> 0 | K148: =SUMIFS(DADOS_MercadoBase[D],DADOS_MercadoBase[OPÇÃO],$B148,DADOS_MercadoBase[AnoMes],K$39) -> 0 | L148: =SUMIFS(DADOS_MercadoBase[D],DADOS_MercadoBase[OPÇÃO],$B148,DADOS_MercadoBase[AnoMes],L$39) -> 0 | M148: =SUMIFS(DADOS_MercadoBase[D],DADOS_MercadoBase[OPÇÃO],$B148,DADOS_MercadoBase[AnoMes],M$39) -> 0 | N148: =SUMIFS(DADOS_MercadoBase[D],DADOS_MercadoBase[OPÇÃO],$B148,DADOS_MercadoBase[AnoMes],N$39) -> 0 | O148: =SUMIFS(DADOS_MercadoBase[D],DADOS_MercadoBase[OPÇÃO],$B148,DADOS_MercadoBase[AnoMes],O$39) -> 0 | P148: 0 | S148: Suprimento | T148: Suprimento (TE) | U148: 0 | V148: 0 | W148: 0 | X148: 0 | Y148: 0 | Z148: 0 | AA148: 0 | AB148: 0 | AC148: 0 | AD148: 0 | AE148: 0 | AF148: 0 | AG148: 0
B149: Livre | C149: A1 | D149: =SUMIFS(DADOS_MercadoBase[D],DADOS_MercadoBase[OPÇÃO],$B149,DADOS_MercadoBase[Subgrupo],$C149,DADOS_MercadoBase[AnoMes],D$39) -> 0 | E149: =SUMIFS(DADOS_MercadoBase[D],DADOS_MercadoBase[OPÇÃO],$B149,DADOS_MercadoBase[Subgrupo],$C149,DADOS_MercadoBase[AnoMes],E$39) -> 0 | F149: =SUMIFS(DADOS_MercadoBase[D],DADOS_MercadoBase[OPÇÃO],$B149,DADOS_MercadoBase[Subgrupo],$C149,DADOS_MercadoBase[AnoMes],F$39) -> 0 | G149: =SUMIFS(DADOS_MercadoBase[D],DADOS_MercadoBase[OPÇÃO],$B149,DADOS_MercadoBase[Subgrupo],$C149,DADOS_MercadoBase[AnoMes],G$39) -> 0 | H149: =SUMIFS(DADOS_MercadoBase[D],DADOS_MercadoBase[OPÇÃO],$B149,DADOS_MercadoBase[Subgrupo],$C149,DADOS_MercadoBase[AnoMes],H$39) -> 0 | I149: =SUMIFS(DADOS_MercadoBase[D],DADOS_MercadoBase[OPÇÃO],$B149,DADOS_MercadoBase[Subgrupo],$C149,DADOS_MercadoBase[AnoMes],I$39) -> 0 | J149: =SUMIFS(DADOS_MercadoBase[D],DADOS_MercadoBase[OPÇÃO],$B149,DADOS_MercadoBase[Subgrupo],$C149,DADOS_MercadoBase[AnoMes],J$39) -> 0 | K149: =SUMIFS(DADOS_MercadoBase[D],DADOS_MercadoBase[OPÇÃO],$B149,DADOS_MercadoBase[Subgrupo],$C149,DADOS_MercadoBase[AnoMes],K$39) -> 0 | L149: =SUMIFS(DADOS_MercadoBase[D],DADOS_MercadoBase[OPÇÃO],$B149,DADOS_MercadoBase[Subgrupo],$C149,DADOS_MercadoBase[AnoMes],L$39) -> 0 | M149: =SUMIFS(DADOS_MercadoBase[D],DADOS_MercadoBase[OPÇÃO],$B149,DADOS_MercadoBase[Subgrupo],$C149,DADOS_MercadoBase[AnoMes],M$39) -> 0 | N149: =SUMIFS(DADOS_MercadoBase[D],DADOS_MercadoBase[OPÇÃO],$B149,DADOS_MercadoBase[Subgrupo],$C149,DADOS_MercadoBase[AnoMes],N$39) -> 0 | O149: =SUMIFS(DADOS_MercadoBase[D],DADOS_MercadoBase[OPÇÃO],$B149,DADOS_MercadoBase[Subgrupo],$C149,DADOS_MercadoBase[AnoMes],O$39) -> 0 | P149: 0 | S149: Livre | T149: A1 | U149: 0 | V149: 0 | W149: 0 | X149: 0 | Y149: 0 | Z149: 0 | AA149: 0 | AB149: 0 | AC149: 0 | AD149: 0 | AE149: 0 | AF149: 0 | AG149: 0
B150: Livre | D150: =SUMIFS(DADOS_MercadoBase[D],DADOS_MercadoBase[OPÇÃO],$B150,DADOS_MercadoBase[AnoMes],D$39)-D149 -> 515523 | E150: =SUMIFS(DADOS_MercadoBase[D],DADOS_MercadoBase[OPÇÃO],$B150,DADOS_MercadoBase[AnoMes],E$39)-E149 -> 515523 | F150: =SUMIFS(DADOS_MercadoBase[D],DADOS_MercadoBase[OPÇÃO],$B150,DADOS_MercadoBase[AnoMes],F$39)-F149 -> 517730 | G150: =SUMIFS(DADOS_MercadoBase[D],DADOS_MercadoBase[OPÇÃO],$B150,DADOS_MercadoBase[AnoMes],G$39)-G149 -> 506197 | H150: =SUMIFS(DADOS_MercadoBase[D],DADOS_MercadoBase[OPÇÃO],$B150,DADOS_MercadoBase[AnoMes],H$39)-H149 -> 518182 | I150: =SUMIFS(DADOS_MercadoBase[D],DADOS_MercadoBase[OPÇÃO],$B150,DADOS_MercadoBase[AnoMes],I$39)-I149 -> 518820 | J150: =SUMIFS(DADOS_MercadoBase[D],DADOS_MercadoBase[OPÇÃO],$B150,DADOS_MercadoBase[AnoMes],J$39)-J149 -> 548174 | K150: =SUMIFS(DADOS_MercadoBase[D],DADOS_MercadoBase[OPÇÃO],$B150,DADOS_MercadoBase[AnoMes],K$39)-K149 -> 522938 | L150: =SUMIFS(DADOS_MercadoBase[D],DADOS_MercadoBase[OPÇÃO],$B150,DADOS_MercadoBase[AnoMes],L$39)-L149 -> 508695 | M150: =SUMIFS(DADOS_MercadoBase[D],DADOS_MercadoBase[OPÇÃO],$B150,DADOS_MercadoBase[AnoMes],M$39)-M149 -> 499312 | N150: =SUMIFS(DADOS_MercadoBase[D],DADOS_MercadoBase[OPÇÃO],$B150,DADOS_MercadoBase[AnoMes],N$39)-N149 -> 512070 | O150: =SUMIFS(DADOS_MercadoBase[D],DADOS_MercadoBase[OPÇÃO],$B150,DADOS_MercadoBase[AnoMes],O$39)-O149 -> 498189 | P150: 6181353 | S150: Livre | U150: 465024 | V150: 465024 | W150: 459023 | X150: 463994 | Y150: 467392 | Z150: 479377 | AA150: 482216 | AB150: 447143 | AC150: 469007 | AD150: 457529 | AE150: 457400 | AF150: 458137 | AG150: 5571266
B151: Livre APE | D151: =SUMIFS(DADOS_MercadoBase[D],DADOS_MercadoBase[OPÇÃO],$B151,DADOS_MercadoBase[AnoMes],D$39) -> 0 | E151: =SUMIFS(DADOS_MercadoBase[D],DADOS_MercadoBase[OPÇÃO],$B151,DADOS_MercadoBase[AnoMes],E$39) -> 0 | F151: =SUMIFS(DADOS_MercadoBase[D],DADOS_MercadoBase[OPÇÃO],$B151,DADOS_MercadoBase[AnoMes],F$39) -> 0 | G151: =SUMIFS(DADOS_MercadoBase[D],DADOS_MercadoBase[OPÇÃO],$B151,DADOS_MercadoBase[AnoMes],G$39) -> 0 | H151: =SUMIFS(DADOS_MercadoBase[D],DADOS_MercadoBase[OPÇÃO],$B151,DADOS_MercadoBase[AnoMes],H$39) -> 0 | I151: =SUMIFS(DADOS_MercadoBase[D],DADOS_MercadoBase[OPÇÃO],$B151,DADOS_MercadoBase[AnoMes],I$39) -> 0 | J151: =SUMIFS(DADOS_MercadoBase[D],DADOS_MercadoBase[OPÇÃO],$B151,DADOS_MercadoBase[AnoMes],J$39) -> 0 | K151: =SUMIFS(DADOS_MercadoBase[D],DADOS_MercadoBase[OPÇÃO],$B151,DADOS_MercadoBase[AnoMes],K$39) -> 0 | L151: =SUMIFS(DADOS_MercadoBase[D],DADOS_MercadoBase[OPÇÃO],$B151,DADOS_MercadoBase[AnoMes],L$39) -> 0 | M151: =SUMIFS(DADOS_MercadoBase[D],DADOS_MercadoBase[OPÇÃO],$B151,DADOS_MercadoBase[AnoMes],M$39) -> 0 | N151: =SUMIFS(DADOS_MercadoBase[D],DADOS_MercadoBase[OPÇÃO],$B151,DADOS_MercadoBase[AnoMes],N$39) -> 0 | O151: =SUMIFS(DADOS_MercadoBase[D],DADOS_MercadoBase[OPÇÃO],$B151,DADOS_MercadoBase[AnoMes],O$39) -> 0 | P151: 0 | S151: Livre APE | U151: 0 | V151: 0 | W151: 0 | X151: 0 | Y151: 0 | Z151: 0 | AA151: 0 | AB151: 0 | AC151: 0 | AD151: 0 | AE151: 0 | AF151: 0 | AG151: 0
B152: ERC | D152: =SUMIFS(DADOS_MercadoBase[D],DADOS_MercadoBase[OPÇÃO],$B152,DADOS_MercadoBase[AnoMes],D$39) -> 0 | E152: =SUMIFS(DADOS_MercadoBase[D],DADOS_MercadoBase[OPÇÃO],$B152,DADOS_MercadoBase[AnoMes],E$39) -> 0 | F152: =SUMIFS(DADOS_MercadoBase[D],DADOS_MercadoBase[OPÇÃO],$B152,DADOS_MercadoBase[AnoMes],F$39) -> 0 | G152: =SUMIFS(DADOS_MercadoBase[D],DADOS_MercadoBase[OPÇÃO],$B152,DADOS_MercadoBase[AnoMes],G$39) -> 0 | H152: =SUMIFS(DADOS_MercadoBase[D],DADOS_MercadoBase[OPÇÃO],$B152,DADOS_MercadoBase[AnoMes],H$39) -> 0 | I152: =SUMIFS(DADOS_MercadoBase[D],DADOS_MercadoBase[OPÇÃO],$B152,DADOS_MercadoBase[AnoMes],I$39) -> 0 | J152: =SUMIFS(DADOS_MercadoBase[D],DADOS_MercadoBase[OPÇÃO],$B152,DADOS_MercadoBase[AnoMes],J$39) -> 0 | K152: =SUMIFS(DADOS_MercadoBase[D],DADOS_MercadoBase[OPÇÃO],$B152,DADOS_MercadoBase[AnoMes],K$39) -> 0 | L152: =SUMIFS(DADOS_MercadoBase[D],DADOS_MercadoBase[OPÇÃO],$B152,DADOS_MercadoBase[AnoMes],L$39) -> 0 | M152: =SUMIFS(DADOS_MercadoBase[D],DADOS_MercadoBase[OPÇÃO],$B152,DADOS_MercadoBase[AnoMes],M$39) -> 0 | N152: =SUMIFS(DADOS_MercadoBase[D],DADOS_MercadoBase[OPÇÃO],$B152,DADOS_MercadoBase[AnoMes],N$39) -> 0 | O152: =SUMIFS(DADOS_MercadoBase[D],DADOS_MercadoBase[OPÇÃO],$B152,DADOS_MercadoBase[AnoMes],O$39) -> 0 | P152: 0 | S152: ERC | U152: 0 | V152: 0 | W152: 0 | X152: 0 | Y152: 0 | Z152: 0 | AA152: 0 | AB152: 0 | AC152: 0 | AD152: 0 | AE152: 0 | AF152: 0 | AG152: 0
B153: Livres | C153: Total Livres | D153: =SUM(D149:D152) -> 515523 | E153: =SUM(E149:E152) -> 515523 | F153: 517730 | G153: 506197 | H153: 518182 | I153: 518820 | J153: 548174 | K153: 522938 | L153: 508695 | M153: 499312 | N153: 512070 | O153: 498189 | P153: 6181353 | S153: Livres | T153: Total Livres | U153: 465024 | V153: 465024 | W153: 459023 | X153: 463994 | Y153: 467392 | Z153: 479377 | AA153: 482216 | AB153: 447143 | AC153: 469007 | AD153: 457529 | AE153: 457400 | AF153: 458137 | AG153: 5571266
B154: Distribuição | C154: DISTRIBUIÇÃO | D154: =SUMIFS(DADOS_MercadoBase[D],DADOS_MercadoBase[OPÇÃO],$B154,DADOS_MercadoBase[AnoMes],D$39) -> 11800 | E154: =SUMIFS(DADOS_MercadoBase[D],DADOS_MercadoBase[OPÇÃO],$B154,DADOS_MercadoBase[AnoMes],E$39) -> 11800 | F154: =SUMIFS(DADOS_MercadoBase[D],DADOS_MercadoBase[OPÇÃO],$B154,DADOS_MercadoBase[AnoMes],F$39) -> 11209 | G154: =SUMIFS(DADOS_MercadoBase[D],DADOS_MercadoBase[OPÇÃO],$B154,DADOS_MercadoBase[AnoMes],G$39) -> 11032 | H154: =SUMIFS(DADOS_MercadoBase[D],DADOS_MercadoBase[OPÇÃO],$B154,DADOS_MercadoBase[AnoMes],H$39) -> 10912 | I154: =SUMIFS(DADOS_MercadoBase[D],DADOS_MercadoBase[OPÇÃO],$B154,DADOS_MercadoBase[AnoMes],I$39) -> 10900 | J154: =SUMIFS(DADOS_MercadoBase[D],DADOS_MercadoBase[OPÇÃO],$B154,DADOS_MercadoBase[AnoMes],J$39) -> 10900 | K154: =SUMIFS(DADOS_MercadoBase[D],DADOS_MercadoBase[OPÇÃO],$B154,DADOS_MercadoBase[AnoMes],K$39) -> 12066 | L154: =SUMIFS(DADOS_MercadoBase[D],DADOS_MercadoBase[OPÇÃO],$B154,DADOS_MercadoBase[AnoMes],L$39) -> 11125 | M154: =SUMIFS(DADOS_MercadoBase[D],DADOS_MercadoBase[OPÇÃO],$B154,DADOS_MercadoBase[AnoMes],M$39) -> 10900 | N154: =SUMIFS(DADOS_MercadoBase[D],DADOS_MercadoBase[OPÇÃO],$B154,DADOS_MercadoBase[AnoMes],N$39) -> 11300 | O154: =SUMIFS(DADOS_MercadoBase[D],DADOS_MercadoBase[OPÇÃO],$B154,DADOS_MercadoBase[AnoMes],O$39) -> 10900 | P154: 134844 | S154: Distribuição | T154: DISTRIBUIÇÃO | U154: 10977 | V154: 10977 | W154: 11469 | X154: 10900 | Y154: 10900 | Z154: 10900 | AA154: 10900 | AB154: 10900 | AC154: 10900 | AD154: 10900 | AE154: 10900 | AF154: 10900 | AG154: 131523
B155: Geração | C155: GERADOR | D155: =SUMIFS(DADOS_MercadoBase[D],DADOS_MercadoBase[OPÇÃO],$B155,DADOS_MercadoBase[AnoMes],D$39) -> 635489 | E155: =SUMIFS(DADOS_MercadoBase[D],DADOS_MercadoBase[OPÇÃO],$B155,DADOS_MercadoBase[AnoMes],E$39) -> 635489 | F155: =SUMIFS(DADOS_MercadoBase[D],DADOS_MercadoBase[OPÇÃO],$B155,DADOS_MercadoBase[AnoMes],F$39) -> 640442 | G155: =SUMIFS(DADOS_MercadoBase[D],DADOS_MercadoBase[OPÇÃO],$B155,DADOS_MercadoBase[AnoMes],G$39) -> 640981 | H155: =SUMIFS(DADOS_MercadoBase[D],DADOS_MercadoBase[OPÇÃO],$B155,DADOS_MercadoBase[AnoMes],H$39) -> 614148 | I155: =SUMIFS(DADOS_MercadoBase[D],DADOS_MercadoBase[OPÇÃO],$B155,DADOS_MercadoBase[AnoMes],I$39) -> 638226 | J155: =SUMIFS(DADOS_MercadoBase[D],DADOS_MercadoBase[OPÇÃO],$B155,DADOS_MercadoBase[AnoMes],J$39) -> 639476 | K155: =SUMIFS(DADOS_MercadoBase[D],DADOS_MercadoBase[OPÇÃO],$B155,DADOS_MercadoBase[AnoMes],K$39) -> 640485 | L155: =SUMIFS(DADOS_MercadoBase[D],DADOS_MercadoBase[OPÇÃO],$B155,DADOS_MercadoBase[AnoMes],L$39) -> 639506 | M155: =SUMIFS(DADOS_MercadoBase[D],DADOS_MercadoBase[OPÇÃO],$B155,DADOS_MercadoBase[AnoMes],M$39) -> 641496 | N155: =SUMIFS(DADOS_MercadoBase[D],DADOS_MercadoBase[OPÇÃO],$B155,DADOS_MercadoBase[AnoMes],N$39) -> 639149 | O155: =SUMIFS(DADOS_MercadoBase[D],DADOS_MercadoBase[OPÇÃO],$B155,DADOS_MercadoBase[AnoMes],O$39) -> 616215 | P155: 7621102 | S155: Geração | T155: GERADOR | U155: 662650 | V155: 662650 | W155: 620884 | X155: 686437 | Y155: 760218 | Z155: 768850 | AA155: 776109 | AB155: 729117 | AC155: 610438 | AD155: 611731 | AE155: 606053 | AF155: 612593 | AG155: 8107730
C156: =C60 -> TOTAL | D156: =SUMIFS(DADOS_MercadoBase[D],DADOS_MercadoBase[AnoMes],D$39) -> 1591604 | E156: =SUMIFS(DADOS_MercadoBase[D],DADOS_MercadoBase[AnoMes],E$39) -> 1591604 | F156: =SUMIFS(DADOS_MercadoBase[D],DADOS_MercadoBase[AnoMes],F$39) -> 1605665 | G156: =SUMIFS(DADOS_MercadoBase[D],DADOS_MercadoBase[AnoMes],G$39) -> 1600106 | H156: =SUMIFS(DADOS_MercadoBase[D],DADOS_MercadoBase[AnoMes],H$39) -> 1577276 | I156: =SUMIFS(DADOS_MercadoBase[D],DADOS_MercadoBase[AnoMes],I$39) -> 1594379 | J156: =SUMIFS(DADOS_MercadoBase[D],DADOS_MercadoBase[AnoMes],J$39) -> 1634447 | K156: =SUMIFS(DADOS_MercadoBase[D],DADOS_MercadoBase[AnoMes],K$39) -> 1618041 | L156: =SUMIFS(DADOS_MercadoBase[D],DADOS_MercadoBase[AnoMes],L$39) -> 1589955 | M156: =SUMIFS(DADOS_MercadoBase[D],DADOS_MercadoBase[AnoMes],M$39) -> 1564673 | N156: =SUMIFS(DADOS_MercadoBase[D],DADOS_MercadoBase[AnoMes],N$39) -> 1583193 | O156: =SUMIFS(DADOS_MercadoBase[D],DADOS_MercadoBase[AnoMes],O$39) -> 1558643 | P156: 19109586 | T156: TOTAL | U156: 1555323 | V156: 1555323 | W156: 1509452 | X156: 1576150 | Y156: 1658835 | Z156: 1693908 | AA156: 1708017 | AB156: 1633130 | AC156: 1508267 | AD156: 1494364 | AE156: 1506695 | AF156: 1518121 | AG156: 18917585
B158: Residencial baixa renda – faixa 01 | D158: =SUMIFS(DADOS_MercadoBase[D],DADOS_MercadoBase[Subclasse],$B158,DADOS_MercadoBase[AnoMes],D$39) -> 0 | E158: =SUMIFS(DADOS_MercadoBase[D],DADOS_MercadoBase[Subclasse],$B158,DADOS_MercadoBase[AnoMes],E$39) -> 0 | F158: =SUMIFS(DADOS_MercadoBase[D],DADOS_MercadoBase[Subclasse],$B158,DADOS_MercadoBase[AnoMes],F$39) -> 0 | G158: =SUMIFS(DADOS_MercadoBase[D],DADOS_MercadoBase[Subclasse],$B158,DADOS_MercadoBase[AnoMes],G$39) -> 0 | H158: =SUMIFS(DADOS_MercadoBase[D],DADOS_MercadoBase[Subclasse],$B158,DADOS_MercadoBase[AnoMes],H$39) -> 0 | I158: =SUMIFS(DADOS_MercadoBase[D],DADOS_MercadoBase[Subclasse],$B158,DADOS_MercadoBase[AnoMes],I$39) -> 0 | J158: =SUMIFS(DADOS_MercadoBase[D],DADOS_MercadoBase[Subclasse],$B158,DADOS_MercadoBase[AnoMes],J$39) -> 0 | K158: =SUMIFS(DADOS_MercadoBase[D],DADOS_MercadoBase[Subclasse],$B158,DADOS_MercadoBase[AnoMes],K$39) -> 0 | L158: =SUMIFS(DADOS_MercadoBase[D],DADOS_MercadoBase[Subclasse],$B158,DADOS_MercadoBase[AnoMes],L$39) -> 0 | M158: =SUMIFS(DADOS_MercadoBase[D],DADOS_MercadoBase[Subclasse],$B158,DADOS_MercadoBase[AnoMes],M$39) -> 0 | N158: =SUMIFS(DADOS_MercadoBase[D],DADOS_MercadoBase[Subclasse],$B158,DADOS_MercadoBase[AnoMes],N$39) -> 0 | O158: =SUMIFS(DADOS_MercadoBase[D],DADOS_MercadoBase[Subclasse],$B158,DADOS_MercadoBase[AnoMes],O$39) -> 0 | P158: 0 | S158: Residencial baixa renda – faixa 01 | U158: 0 | V158: 0 | W158: 0 | X158: 0 | Y158: 0 | Z158: 0 | AA158: 0 | AB158: 0 | AC158: 0 | AD158: 0 | AE158: 0 | AF158: 0 | AG158: 0
B159: Residencial baixa renda – faixa 02 | D159: =SUMIFS(DADOS_MercadoBase[D],DADOS_MercadoBase[Subclasse],$B159,DADOS_MercadoBase[AnoMes],D$39) -> 0 | E159: =SUMIFS(DADOS_MercadoBase[D],DADOS_MercadoBase[Subclasse],$B159,DADOS_MercadoBase[AnoMes],E$39) -> 0 | F159: =SUMIFS(DADOS_MercadoBase[D],DADOS_MercadoBase[Subclasse],$B159,DADOS_MercadoBase[AnoMes],F$39) -> 0 | G159: =SUMIFS(DADOS_MercadoBase[D],DADOS_MercadoBase[Subclasse],$B159,DADOS_MercadoBase[AnoMes],G$39) -> 0 | H159: =SUMIFS(DADOS_MercadoBase[D],DADOS_MercadoBase[Subclasse],$B159,DADOS_MercadoBase[AnoMes],H$39) -> 0 | I159: =SUMIFS(DADOS_MercadoBase[D],DADOS_MercadoBase[Subclasse],$B159,DADOS_MercadoBase[AnoMes],I$39) -> 0 | J159: =SUMIFS(DADOS_MercadoBase[D],DADOS_MercadoBase[Subclasse],$B159,DADOS_MercadoBase[AnoMes],J$39) -> 0 | K159: =SUMIFS(DADOS_MercadoBase[D],DADOS_MercadoBase[Subclasse],$B159,DADOS_MercadoBase[AnoMes],K$39) -> 0 | L159: =SUMIFS(DADOS_MercadoBase[D],DADOS_MercadoBase[Subclasse],$B159,DADOS_MercadoBase[AnoMes],L$39) -> 0 | M159: =SUMIFS(DADOS_MercadoBase[D],DADOS_MercadoBase[Subclasse],$B159,DADOS_MercadoBase[AnoMes],M$39) -> 0 | N159: =SUMIFS(DADOS_MercadoBase[D],DADOS_MercadoBase[Subclasse],$B159,DADOS_MercadoBase[AnoMes],N$39) -> 0 | O159: =SUMIFS(DADOS_MercadoBase[D],DADOS_MercadoBase[Subclasse],$B159,DADOS_MercadoBase[AnoMes],O$39) -> 0 | P159: 0 | S159: Residencial baixa renda – faixa 02 | U159: 0 | V159: 0 | W159: 0 | X159: 0 | Y159: 0 | Z159: 0 | AA159: 0 | AB159: 0 | AC159: 0 | AD159: 0 | AE159: 0 | AF159: 0 | AG159: 0
B160: Residencial baixa renda – faixa 03 | D160: =SUMIFS(DADOS_MercadoBase[D],DADOS_MercadoBase[Subclasse],$B160,DADOS_MercadoBase[AnoMes],D$39) -> 0 | E160: =SUMIFS(DADOS_MercadoBase[D],DADOS_MercadoBase[Subclasse],$B160,DADOS_MercadoBase[AnoMes],E$39) -> 0 | F160: =SUMIFS(DADOS_MercadoBase[D],DADOS_MercadoBase[Subclasse],$B160,DADOS_MercadoBase[AnoMes],F$39) -> 0 | G160: =SUMIFS(DADOS_MercadoBase[D],DADOS_MercadoBase[Subclasse],$B160,DADOS_MercadoBase[AnoMes],G$39) -> 0 | H160: =SUMIFS(DADOS_MercadoBase[D],DADOS_MercadoBase[Subclasse],$B160,DADOS_MercadoBase[AnoMes],H$39) -> 0 | I160: =SUMIFS(DADOS_MercadoBase[D],DADOS_MercadoBase[Subclasse],$B160,DADOS_MercadoBase[AnoMes],I$39) -> 0 | J160: =SUMIFS(DADOS_MercadoBase[D],DADOS_MercadoBase[Subclasse],$B160,DADOS_MercadoBase[AnoMes],J$39) -> 0 | K160: =SUMIFS(DADOS_MercadoBase[D],DADOS_MercadoBase[Subclasse],$B160,DADOS_MercadoBase[AnoMes],K$39) -> 0 | L160: =SUMIFS(DADOS_MercadoBase[D],DADOS_MercadoBase[Subclasse],$B160,DADOS_MercadoBase[AnoMes],L$39) -> 0 | M160: =SUMIFS(DADOS_MercadoBase[D],DADOS_MercadoBase[Subclasse],$B160,DADOS_MercadoBase[AnoMes],M$39) -> 0 | N160: =SUMIFS(DADOS_MercadoBase[D],DADOS_MercadoBase[Subclasse],$B160,DADOS_MercadoBase[AnoMes],N$39) -> 0 | O160: =SUMIFS(DADOS_MercadoBase[D],DADOS_MercadoBase[Subclasse],$B160,DADOS_MercadoBase[AnoMes],O$39) -> 0 | P160: 0 | S160: Residencial baixa renda – faixa 03 | U160: 0 | V160: 0 | W160: 0 | X160: 0 | Y160: 0 | Z160: 0 | AA160: 0 | AB160: 0 | AC160: 0 | AD160: 0 | AE160: 0 | AF160: 0 | AG160: 0
B161: Residencial baixa renda – faixa 04 | D161: =SUMIFS(DADOS_MercadoBase[D],DADOS_MercadoBase[Subclasse],$B161,DADOS_MercadoBase[AnoMes],D$39) -> 0 | E161: =SUMIFS(DADOS_MercadoBase[D],DADOS_MercadoBase[Subclasse],$B161,DADOS_MercadoBase[AnoMes],E$39) -> 0 | F161: =SUMIFS(DADOS_MercadoBase[D],DADOS_MercadoBase[Subclasse],$B161,DADOS_MercadoBase[AnoMes],F$39) -> 0 | G161: =SUMIFS(DADOS_MercadoBase[D],DADOS_MercadoBase[Subclasse],$B161,DADOS_MercadoBase[AnoMes],G$39) -> 0 | H161: =SUMIFS(DADOS_MercadoBase[D],DADOS_MercadoBase[Subclasse],$B161,DADOS_MercadoBase[AnoMes],H$39) -> 0 | I161: =SUMIFS(DADOS_MercadoBase[D],DADOS_MercadoBase[Subclasse],$B161,DADOS_MercadoBase[AnoMes],I$39) -> 0 | J161: =SUMIFS(DADOS_MercadoBase[D],DADOS_MercadoBase[Subclasse],$B161,DADOS_MercadoBase[AnoMes],J$39) -> 0 | K161: =SUMIFS(DADOS_MercadoBase[D],DADOS_MercadoBase[Subclasse],$B161,DADOS_MercadoBase[AnoMes],K$39) -> 0 | L161: =SUMIFS(DADOS_MercadoBase[D],DADOS_MercadoBase[Subclasse],$B161,DADOS_MercadoBase[AnoMes],L$39) -> 0 | M161: =SUMIFS(DADOS_MercadoBase[D],DADOS_MercadoBase[Subclasse],$B161,DADOS_MercadoBase[AnoMes],M$39) -> 0 | N161: =SUMIFS(DADOS_MercadoBase[D],DADOS_MercadoBase[Subclasse],$B161,DADOS_MercadoBase[AnoMes],N$39) -> 0 | O161: =SUMIFS(DADOS_MercadoBase[D],DADOS_MercadoBase[Subclasse],$B161,DADOS_MercadoBase[AnoMes],O$39) -> 0 | P161: 0 | S161: Residencial baixa renda – faixa 04 | U161: 0 | V161: 0 | W161: 0 | X161: 0 | Y161: 0 | Z161: 0 | AA161: 0 | AB161: 0 | AC161: 0 | AD161: 0 | AE161: 0 | AF161: 0 | AG161: 0
C162: Total Baixa renda | D162: =SUM(D158:D161) -> 0 | E162: =SUM(E158:E161) -> 0 | F162: 0 | G162: 0 | H162: 0 | I162: 0 | J162: 0 | K162: 0 | L162: 0 | M162: 0 | N162: 0 | O162: 0 | P162: 0 | T162: Total Baixa renda | U162: 0 | V162: 0 | W162: 0 | X162: 0 | Y162: 0 | Z162: 0 | AA162: 0 | AB162: 0 | AC162: 0 | AD162: 0 | AE162: 0 | AF162: 0 | AG162: 0
B165: Mercado TUSD MW (ajustado) | S165: Mercado TUSD MW (ajustado)
D167: =D135 -> 44986 | E167: =EDATE(D167,-1) -> 44958 | F167: =EDATE(E167,-1) -> 44927 | G167: 44896 | H167: 44866 | I167: 44835 | J167: 44805 | K167: 44774 | L167: 44743 | M167: 44713 | N167: 44682 | O167: 44652 | P167: Total | U167: 44621 | V167: 44593 | W167: 44562 | X167: 44531 | Y167: 44501 | Z167: 44470 | AA167: 44440 | AB167: 44409 | AC167: 44378 | AD167: 44348 | AE167: 44317 | AF167: 44287 | AG167: Total
B168: cativo | C168: A1 | D168: =SUMIFS(DADOS_MercadoBase[Daj],DADOS_MercadoBase[OPÇÃO],$B136,DADOS_MercadoBase[Subgrupo],$C136,DADOS_MercadoBase[AnoMes],D$71) -> 0 | E168: =SUMIFS(DADOS_MercadoBase[D],DADOS_MercadoBase[OPÇÃO],$B136,DADOS_MercadoBase[Subgrupo],$C136,DADOS_MercadoBase[AnoMes],E$71) -> 0 | F168: =SUMIFS(DADOS_MercadoBase[Daj],DADOS_MercadoBase[OPÇÃO],$B136,DADOS_MercadoBase[Subgrupo],$C136,DADOS_MercadoBase[AnoMes],F$71) -> 0 | G168: =SUMIFS(DADOS_MercadoBase[Daj],DADOS_MercadoBase[OPÇÃO],$B136,DADOS_MercadoBase[Subgrupo],$C136,DADOS_MercadoBase[AnoMes],G$71) -> 0 | H168: =SUMIFS(DADOS_MercadoBase[Daj],DADOS_MercadoBase[OPÇÃO],$B136,DADOS_MercadoBase[Subgrupo],$C136,DADOS_MercadoBase[AnoMes],H$71) -> 0 | I168: =SUMIFS(DADOS_MercadoBase[Daj],DADOS_MercadoBase[OPÇÃO],$B136,DADOS_MercadoBase[Subgrupo],$C136,DADOS_MercadoBase[AnoMes],I$71) -> 0 | J168: =SUMIFS(DADOS_MercadoBase[Daj],DADOS_MercadoBase[OPÇÃO],$B136,DADOS_MercadoBase[Subgrupo],$C136,DADOS_MercadoBase[AnoMes],J$71) -> 0 | K168: =SUMIFS(DADOS_MercadoBase[Daj],DADOS_MercadoBase[OPÇÃO],$B136,DADOS_MercadoBase[Subgrupo],$C136,DADOS_MercadoBase[AnoMes],K$71) -> 0 | L168: =SUMIFS(DADOS_MercadoBase[Daj],DADOS_MercadoBase[OPÇÃO],$B136,DADOS_MercadoBase[Subgrupo],$C136,DADOS_MercadoBase[AnoMes],L$71) -> 0 | M168: =SUMIFS(DADOS_MercadoBase[Daj],DADOS_MercadoBase[OPÇÃO],$B136,DADOS_MercadoBase[Subgrupo],$C136,DADOS_MercadoBase[AnoMes],M$71) -> 0 | N168: =SUMIFS(DADOS_MercadoBase[Daj],DADOS_MercadoBase[OPÇÃO],$B136,DADOS_MercadoBase[Subgrupo],$C136,DADOS_MercadoBase[AnoMes],N$71) -> 0 | O168: =SUMIFS(DADOS_MercadoBase[Daj],DADOS_MercadoBase[OPÇÃO],$B136,DADOS_MercadoBase[Subgrupo],$C136,DADOS_MercadoBase[AnoMes],O$71) -> 0 | P168: =SUM(D168:O168) -> 0 | S168: cativo | T168: A1 | U168: 0 | V168: 0 | W168: 0 | X168: 0 | Y168: 0 | Z168: 0 | AA168: 0 | AB168: 0 | AC168: 0 | AD168: 0 | AE168: 0 | AF168: 0 | AG168: 0
B169: cativo | C169: A2 | D169: =SUMIFS(DADOS_MercadoBase[Daj],DADOS_MercadoBase[OPÇÃO],$B137,DADOS_MercadoBase[Subgrupo],$C137,DADOS_MercadoBase[AnoMes],D$71) -> 1806 | E169: =SUMIFS(DADOS_MercadoBase[D],DADOS_MercadoBase[OPÇÃO],$B137,DADOS_MercadoBase[Subgrupo],$C137,DADOS_MercadoBase[AnoMes],E$71) -> 1806 | F169: =SUMIFS(DADOS_MercadoBase[Daj],DADOS_MercadoBase[OPÇÃO],$B137,DADOS_MercadoBase[Subgrupo],$C137,DADOS_MercadoBase[AnoMes],F$71) -> 1748 | G169: =SUMIFS(DADOS_MercadoBase[Daj],DADOS_MercadoBase[OPÇÃO],$B137,DADOS_MercadoBase[Subgrupo],$C137,DADOS_MercadoBase[AnoMes],G$71) -> 1758 | H169: =SUMIFS(DADOS_MercadoBase[Daj],DADOS_MercadoBase[OPÇÃO],$B137,DADOS_MercadoBase[Subgrupo],$C137,DADOS_MercadoBase[AnoMes],H$71) -> 1710 | I169: =SUMIFS(DADOS_MercadoBase[Daj],DADOS_MercadoBase[OPÇÃO],$B137,DADOS_MercadoBase[Subgrupo],$C137,DADOS_MercadoBase[AnoMes],I$71) -> 1702 | J169: =SUMIFS(DADOS_MercadoBase[Daj],DADOS_MercadoBase[OPÇÃO],$B137,DADOS_MercadoBase[Subgrupo],$C137,DADOS_MercadoBase[AnoMes],J$71) -> 1691 | K169: =SUMIFS(DADOS_MercadoBase[Daj],DADOS_MercadoBase[OPÇÃO],$B137,DADOS_MercadoBase[Subgrupo],$C137,DADOS_MercadoBase[AnoMes],K$71) -> 1783 | L169: =SUMIFS(DADOS_MercadoBase[Daj],DADOS_MercadoBase[OPÇÃO],$B137,DADOS_MercadoBase[Subgrupo],$C137,DADOS_MercadoBase[AnoMes],L$71) -> 4085 | M169: =SUMIFS(DADOS_MercadoBase[Daj],DADOS_MercadoBase[OPÇÃO],$B137,DADOS_MercadoBase[Subgrupo],$C137,DADOS_MercadoBase[AnoMes],M$71) -> 4191 | N169: =SUMIFS(DADOS_MercadoBase[Daj],DADOS_MercadoBase[OPÇÃO],$B137,DADOS_MercadoBase[Subgrupo],$C137,DADOS_MercadoBase[AnoMes],N$71) -> 4062 | O169: =SUMIFS(DADOS_MercadoBase[Daj],DADOS_MercadoBase[OPÇÃO],$B137,DADOS_MercadoBase[Subgrupo],$C137,DADOS_MercadoBase[AnoMes],O$71) -> 4085 | P169: =SUM(D169:O169) -> 30427 | S169: cativo | T169: A2 | U169: 4270 | V169: 4270 | W169: 4128 | X169: 4291 | Y169: 4305 | Z169: 4175 | AA169: 4327 | AB169: 7304 | AC169: 7292 | AD169: 7317 | AE169: 7307 | AF169: 7352 | AG169: 66338
B170: cativo | C170: A3 | D170: =SUMIFS(DADOS_MercadoBase[Daj],DADOS_MercadoBase[OPÇÃO],$B138,DADOS_MercadoBase[Subgrupo],$C138,DADOS_MercadoBase[AnoMes],D$71) -> 4623.02 | E170: =SUMIFS(DADOS_MercadoBase[Daj],DADOS_MercadoBase[OPÇÃO],$B138,DADOS_MercadoBase[Subgrupo],$C138,DADOS_MercadoBase[AnoMes],E$71) -> 4623.02 | F170: =SUMIFS(DADOS_MercadoBase[Daj],DADOS_MercadoBase[OPÇÃO],$B138,DADOS_MercadoBase[Subgrupo],$C138,DADOS_MercadoBase[AnoMes],F$71) -> 4623.02 | G170: =SUMIFS(DADOS_MercadoBase[Daj],DADOS_MercadoBase[OPÇÃO],$B138,DADOS_MercadoBase[Subgrupo],$C138,DADOS_MercadoBase[AnoMes],G$71) -> 4619.14 | H170: =SUMIFS(DADOS_MercadoBase[Daj],DADOS_MercadoBase[OPÇÃO],$B138,DADOS_MercadoBase[Subgrupo],$C138,DADOS_MercadoBase[AnoMes],H$71) -> 4663.76 | I170: =SUMIFS(DADOS_MercadoBase[Daj],DADOS_MercadoBase[OPÇÃO],$B138,DADOS_MercadoBase[Subgrupo],$C138,DADOS_MercadoBase[AnoMes],I$71) -> 4627.87 | J170: =SUMIFS(DADOS_MercadoBase[Daj],DADOS_MercadoBase[OPÇÃO],$B138,DADOS_MercadoBase[Subgrupo],$C138,DADOS_MercadoBase[AnoMes],J$71) -> 4658.91 | K170: =SUMIFS(DADOS_MercadoBase[Daj],DADOS_MercadoBase[OPÇÃO],$B138,DADOS_MercadoBase[Subgrupo],$C138,DADOS_MercadoBase[AnoMes],K$71) -> 4593.92 | L170: =SUMIFS(DADOS_MercadoBase[Daj],DADOS_MercadoBase[OPÇÃO],$B138,DADOS_MercadoBase[Subgrupo],$C138,DADOS_MercadoBase[AnoMes],L$71) -> 4634.66 | M170: =SUMIFS(DADOS_MercadoBase[Daj],DADOS_MercadoBase[OPÇÃO],$B138,DADOS_MercadoBase[Subgrupo],$C138,DADOS_MercadoBase[AnoMes],M$71) -> 4630.78 | N170: =SUMIFS(DADOS_MercadoBase[Daj],DADOS_MercadoBase[OPÇÃO],$B138,DADOS_MercadoBase[Subgrupo],$C138,DADOS_MercadoBase[AnoMes],N$71) -> 4630.78 | O170: =SUMIFS(DADOS_MercadoBase[Daj],DADOS_MercadoBase[OPÇÃO],$B138,DADOS_MercadoBase[Subgrupo],$C138,DADOS_MercadoBase[AnoMes],O$71) -> 4639.51 | P170: 55568.39 | S170: cativo | T170: A3 | U170: 4488.5 | V170: 4488.5 | W170: 4474.4 | X170: 4540.2 | Y170: 4474.4 | Z170: 4474.4 | AA170: 4474.4 | AB170: 4573.1 | AC170: 4900.2 | AD170: 4900.2 | AE170: 4867.3 | AF170: 4768.6 | AG170: 55424.2
B171: cativo | C171: A3a | D171: =SUMIFS(DADOS_MercadoBase[Daj],DADOS_MercadoBase[OPÇÃO],$B139,DADOS_MercadoBase[Subgrupo],$C139,DADOS_MercadoBase[AnoMes],D$71) -> 102644.9041 | E171: =SUMIFS(DADOS_MercadoBase[Daj],DADOS_MercadoBase[OPÇÃO],$B139,DADOS_MercadoBase[Subgrupo],$C139,DADOS_MercadoBase[AnoMes],E$71) -> 102644.9041 | F171: =SUMIFS(DADOS_MercadoBase[Daj],DADOS_MercadoBase[OPÇÃO],$B139,DADOS_MercadoBase[Subgrupo],$C139,DADOS_MercadoBase[AnoMes],F$71) -> 109825.8912 | G171: =SUMIFS(DADOS_MercadoBase[Daj],DADOS_MercadoBase[OPÇÃO],$B139,DADOS_MercadoBase[Subgrupo],$C139,DADOS_MercadoBase[AnoMes],G$71) -> 114877.6017 | H171: =SUMIFS(DADOS_MercadoBase[Daj],DADOS_MercadoBase[OPÇÃO],$B139,DADOS_MercadoBase[Subgrupo],$C139,DADOS_MercadoBase[AnoMes],H$71) -> 109237.7818 | I171: =SUMIFS(DADOS_MercadoBase[Daj],DADOS_MercadoBase[OPÇÃO],$B139,DADOS_MercadoBase[Subgrupo],$C139,DADOS_MercadoBase[AnoMes],I$71) -> 108310.1515 | J171: =SUMIFS(DADOS_MercadoBase[Daj],DADOS_MercadoBase[OPÇÃO],$B139,DADOS_MercadoBase[Subgrupo],$C139,DADOS_MercadoBase[AnoMes],J$71) -> 115959.5721 | K171: =SUMIFS(DADOS_MercadoBase[Daj],DADOS_MercadoBase[OPÇÃO],$B139,DADOS_MercadoBase[Subgrupo],$C139,DADOS_MercadoBase[AnoMes],K$71) -> 122746.3289 | L171: =SUMIFS(DADOS_MercadoBase[Daj],DADOS_MercadoBase[OPÇÃO],$B139,DADOS_MercadoBase[Subgrupo],$C139,DADOS_MercadoBase[AnoMes],L$71) -> 116537.8666 | M171: =SUMIFS(DADOS_MercadoBase[Daj],DADOS_MercadoBase[OPÇÃO],$B139,DADOS_MercadoBase[Subgrupo],$C139,DADOS_MercadoBase[AnoMes],M$71) -> 99819.9853 | N171: =SUMIFS(DADOS_MercadoBase[Daj],DADOS_MercadoBase[OPÇÃO],$B139,DADOS_MercadoBase[Subgrupo],$C139,DADOS_MercadoBase[AnoMes],N$71) -> 104289.2419 | O171: =SUMIFS(DADOS_MercadoBase[Daj],DADOS_MercadoBase[OPÇÃO],$B139,DADOS_MercadoBase[Subgrupo],$C139,DADOS_MercadoBase[AnoMes],O$71) -> 110724.9515 | P171: 1317619.181 | S171: cativo | T171: A3a | U171: 97896.2602 | V171: 97896.2602 | W171: 96702.0732 | X171: 95404.8692 | Y171: 97506.0076 | Z171: 104222.7336 | AA171: 110420.16 | AB171: 104090.62 | AC171: 99127.14 | AD171: 100986.38 | AE171: 104239.9 | AF171: 100666.06 | AG171: 1209158.464
B172: cativo | C172: A4 | D172: =SUMIFS(DADOS_MercadoBase[Daj],DADOS_MercadoBase[OPÇÃO],$B140,DADOS_MercadoBase[Subgrupo],$C140,DADOS_MercadoBase[AnoMes],D$71) -> 317315.3926 | E172: =SUMIFS(DADOS_MercadoBase[Daj],DADOS_MercadoBase[OPÇÃO],$B140,DADOS_MercadoBase[Subgrupo],$C140,DADOS_MercadoBase[AnoMes],E$71) -> 317315.3926 | F172: =SUMIFS(DADOS_MercadoBase[Daj],DADOS_MercadoBase[OPÇÃO],$B140,DADOS_MercadoBase[Subgrupo],$C140,DADOS_MercadoBase[AnoMes],F$71) -> 317195.755 | G172: =SUMIFS(DADOS_MercadoBase[Daj],DADOS_MercadoBase[OPÇÃO],$B140,DADOS_MercadoBase[Subgrupo],$C140,DADOS_MercadoBase[AnoMes],G$71) -> 317641.8412 | H172: =SUMIFS(DADOS_MercadoBase[Daj],DADOS_MercadoBase[OPÇÃO],$B140,DADOS_MercadoBase[Subgrupo],$C140,DADOS_MercadoBase[AnoMes],H$71) -> 315354.5372 | I172: =SUMIFS(DADOS_MercadoBase[Daj],DADOS_MercadoBase[OPÇÃO],$B140,DADOS_MercadoBase[Subgrupo],$C140,DADOS_MercadoBase[AnoMes],I$71) -> 309257.127 | J172: =SUMIFS(DADOS_MercadoBase[Daj],DADOS_MercadoBase[OPÇÃO],$B140,DADOS_MercadoBase[Subgrupo],$C140,DADOS_MercadoBase[AnoMes],J$71) -> 310816.2564 | K172: =SUMIFS(DADOS_MercadoBase[Daj],DADOS_MercadoBase[OPÇÃO],$B140,DADOS_MercadoBase[Subgrupo],$C140,DADOS_MercadoBase[AnoMes],K$71) -> 310719.761 | L172: =SUMIFS(DADOS_MercadoBase[Daj],DADOS_MercadoBase[OPÇÃO],$B140,DADOS_MercadoBase[Subgrupo],$C140,DADOS_MercadoBase[AnoMes],L$71) -> 302522.5228 | M172: =SUMIFS(DADOS_MercadoBase[Daj],DADOS_MercadoBase[OPÇÃO],$B140,DADOS_MercadoBase[Subgrupo],$C140,DADOS_MercadoBase[AnoMes],M$71) -> 301764.5116 | N172: =SUMIFS(DADOS_MercadoBase[Daj],DADOS_MercadoBase[OPÇÃO],$B140,DADOS_MercadoBase[Subgrupo],$C140,DADOS_MercadoBase[AnoMes],N$71) -> 305058.0788 | O172: =SUMIFS(DADOS_MercadoBase[Daj],DADOS_MercadoBase[OPÇÃO],$B140,DADOS_MercadoBase[Subgrupo],$C140,DADOS_MercadoBase[AnoMes],O$71) -> 311120.1778 | P172: 3736081.354 | S172: cativo | T172: A4 | U172: 305204.8316 | V172: 305204.8316 | W172: 307837.5704 | X172: 305567.7604 | Y172: 308152.1 | Z172: 316416.1016 | AA172: 314326.8212 | AB172: 325078.7436 | AC172: 302019.916 | AD172: 296553.4464 | AE172: 310907.0324 | AF172: 319085.886 | AG172: 3716355.041
B173: cativo | C173: As | D173: =SUMIFS(DADOS_MercadoBase[Daj],DADOS_MercadoBase[OPÇÃO],$B141,DADOS_MercadoBase[Subgrupo],$C141,DADOS_MercadoBase[AnoMes],D$71) -> 0 | E173: =SUMIFS(DADOS_MercadoBase[Daj],DADOS_MercadoBase[OPÇÃO],$B141,DADOS_MercadoBase[Subgrupo],$C141,DADOS_MercadoBase[AnoMes],E$71) -> 0 | F173: =SUMIFS(DADOS_MercadoBase[Daj],DADOS_MercadoBase[OPÇÃO],$B141,DADOS_MercadoBase[Subgrupo],$C141,DADOS_MercadoBase[AnoMes],F$71) -> 0 | G173: =SUMIFS(DADOS_MercadoBase[Daj],DADOS_MercadoBase[OPÇÃO],$B141,DADOS_MercadoBase[Subgrupo],$C141,DADOS_MercadoBase[AnoMes],G$71) -> 0 | H173: =SUMIFS(DADOS_MercadoBase[Daj],DADOS_MercadoBase[OPÇÃO],$B141,DADOS_MercadoBase[Subgrupo],$C141,DADOS_MercadoBase[AnoMes],H$71) -> 0 | I173: =SUMIFS(DADOS_MercadoBase[Daj],DADOS_MercadoBase[OPÇÃO],$B141,DADOS_MercadoBase[Subgrupo],$C141,DADOS_MercadoBase[AnoMes],I$71) -> 0 | J173: =SUMIFS(DADOS_MercadoBase[Daj],DADOS_MercadoBase[OPÇÃO],$B141,DADOS_MercadoBase[Subgrupo],$C141,DADOS_MercadoBase[AnoMes],J$71) -> 0 | K173: =SUMIFS(DADOS_MercadoBase[Daj],DADOS_MercadoBase[OPÇÃO],$B141,DADOS_MercadoBase[Subgrupo],$C141,DADOS_MercadoBase[AnoMes],K$71) -> 0 | L173: =SUMIFS(DADOS_MercadoBase[Daj],DADOS_MercadoBase[OPÇÃO],$B141,DADOS_MercadoBase[Subgrupo],$C141,DADOS_MercadoBase[AnoMes],L$71) -> 0 | M173: =SUMIFS(DADOS_MercadoBase[Daj],DADOS_MercadoBase[OPÇÃO],$B141,DADOS_MercadoBase[Subgrupo],$C141,DADOS_MercadoBase[AnoMes],M$71) -> 0 | N173: =SUMIFS(DADOS_MercadoBase[Daj],DADOS_MercadoBase[OPÇÃO],$B141,DADOS_MercadoBase[Subgrupo],$C141,DADOS_MercadoBase[AnoMes],N$71) -> 0 | O173: =SUMIFS(DADOS_MercadoBase[Daj],DADOS_MercadoBase[OPÇÃO],$B141,DADOS_MercadoBase[Subgrupo],$C141,DADOS_MercadoBase[AnoMes],O$71) -> 0 | P173: 0 | S173: cativo | T173: As | U173: 0 | V173: 0 | W173: 0 | X173: 0 | Y173: 0 | Z173: 0 | AA173: 0 | AB173: 0 | AC173: 0 | AD173: 0 | AE173: 0 | AF173: 0 | AG173: 0
B174: cativo | C174: Total AT Cativo | D174: =SUM(D168:D173) -> 426389.3167 | E174: =SUM(E168:E173) -> 426389.3167 | F174: 433392.6662 | G174: 438896.5829 | H174: 430966.079 | I174: 423897.1485 | J174: 433125.7385 | K174: 439843.0099 | L174: 427780.0494 | M174: 410406.2769 | N174: 418040.1007 | O174: 430569.6393 | P174: 5139695.925 | S174: cativo | T174: Total AT Cativo | U174: 411859.5918 | V174: 411859.5918 | W174: 413142.0436 | X174: 409803.8296 | Y174: 414437.5076 | Z174: 429288.2352 | AA174: 433548.3812 | AB174: 441046.4636 | AC174: 413339.256 | AD174: 409757.0264 | AE174: 427321.2324 | AF174: 431872.546 | AG174: 5047275.705
B175: cativo | C175: B4 | D175: =SUMIFS(DADOS_MercadoBase[Daj],DADOS_MercadoBase[OPÇÃO],$B143,DADOS_MercadoBase[Subgrupo],$C143,DADOS_MercadoBase[AnoMes],D$71) -> 0 | E175: =SUMIFS(DADOS_MercadoBase[Daj],DADOS_MercadoBase[OPÇÃO],$B143,DADOS_MercadoBase[Subgrupo],$C143,DADOS_MercadoBase[AnoMes],E$71) -> 0 | F175: =SUMIFS(DADOS_MercadoBase[Daj],DADOS_MercadoBase[OPÇÃO],$B143,DADOS_MercadoBase[Subgrupo],$C143,DADOS_MercadoBase[AnoMes],F$71) -> 0 | G175: =SUMIFS(DADOS_MercadoBase[Daj],DADOS_MercadoBase[OPÇÃO],$B143,DADOS_MercadoBase[Subgrupo],$C143,DADOS_MercadoBase[AnoMes],G$71) -> 0 | H175: =SUMIFS(DADOS_MercadoBase[Daj],DADOS_MercadoBase[OPÇÃO],$B143,DADOS_MercadoBase[Subgrupo],$C143,DADOS_MercadoBase[AnoMes],H$71) -> 0 | I175: =SUMIFS(DADOS_MercadoBase[Daj],DADOS_MercadoBase[OPÇÃO],$B143,DADOS_MercadoBase[Subgrupo],$C143,DADOS_MercadoBase[AnoMes],I$71) -> 0 | J175: =SUMIFS(DADOS_MercadoBase[Daj],DADOS_MercadoBase[OPÇÃO],$B143,DADOS_MercadoBase[Subgrupo],$C143,DADOS_MercadoBase[AnoMes],J$71) -> 0 | K175: =SUMIFS(DADOS_MercadoBase[Daj],DADOS_MercadoBase[OPÇÃO],$B143,DADOS_MercadoBase[Subgrupo],$C143,DADOS_MercadoBase[AnoMes],K$71) -> 0 | L175: =SUMIFS(DADOS_MercadoBase[Daj],DADOS_MercadoBase[OPÇÃO],$B143,DADOS_MercadoBase[Subgrupo],$C143,DADOS_MercadoBase[AnoMes],L$71) -> 0 | M175: =SUMIFS(DADOS_MercadoBase[Daj],DADOS_MercadoBase[OPÇÃO],$B143,DADOS_MercadoBase[Subgrupo],$C143,DADOS_MercadoBase[AnoMes],M$71) -> 0 | N175: =SUMIFS(DADOS_MercadoBase[Daj],DADOS_MercadoBase[OPÇÃO],$B143,DADOS_MercadoBase[Subgrupo],$C143,DADOS_MercadoBase[AnoMes],N$71) -> 0 | O175: =SUMIFS(DADOS_MercadoBase[Daj],DADOS_MercadoBase[OPÇÃO],$B143,DADOS_MercadoBase[Subgrupo],$C143,DADOS_MercadoBase[AnoMes],O$71) -> 0 | P175: 0 | S175: cativo | T175: B4 | U175: 0 | V175: 0 | W175: 0 | X175: 0 | Y175: 0 | Z175: 0 | AA175: 0 | AB175: 0 | AC175: 0 | AD175: 0 | AE175: 0 | AF175: 0 | AG175: 0
B176: cativo | C176: B3 | D176: =SUMIFS(DADOS_MercadoBase[Daj],DADOS_MercadoBase[OPÇÃO],$B144,DADOS_MercadoBase[Subgrupo],$C144,DADOS_MercadoBase[AnoMes],D$71) -> 0 | E176: =SUMIFS(DADOS_MercadoBase[Daj],DADOS_MercadoBase[OPÇÃO],$B144,DADOS_MercadoBase[Subgrupo],$C144,DADOS_MercadoBase[AnoMes],E$71) -> 0 | F176: =SUMIFS(DADOS_MercadoBase[Daj],DADOS_MercadoBase[OPÇÃO],$B144,DADOS_MercadoBase[Subgrupo],$C144,DADOS_MercadoBase[AnoMes],F$71) -> 0 | G176: =SUMIFS(DADOS_MercadoBase[Daj],DADOS_MercadoBase[OPÇÃO],$B144,DADOS_MercadoBase[Subgrupo],$C144,DADOS_MercadoBase[AnoMes],G$71) -> 0 | H176: =SUMIFS(DADOS_MercadoBase[Daj],DADOS_MercadoBase[OPÇÃO],$B144,DADOS_MercadoBase[Subgrupo],$C144,DADOS_MercadoBase[AnoMes],H$71) -> 0 | I176: =SUMIFS(DADOS_MercadoBase[Daj],DADOS_MercadoBase[OPÇÃO],$B144,DADOS_MercadoBase[Subgrupo],$C144,DADOS_MercadoBase[AnoMes],I$71) -> 0 | J176: =SUMIFS(DADOS_MercadoBase[Daj],DADOS_MercadoBase[OPÇÃO],$B144,DADOS_MercadoBase[Subgrupo],$C144,DADOS_MercadoBase[AnoMes],J$71) -> 0 | K176: =SUMIFS(DADOS_MercadoBase[Daj],DADOS_MercadoBase[OPÇÃO],$B144,DADOS_MercadoBase[Subgrupo],$C144,DADOS_MercadoBase[AnoMes],K$71) -> 0 | L176: =SUMIFS(DADOS_MercadoBase[Daj],DADOS_MercadoBase[OPÇÃO],$B144,DADOS_MercadoBase[Subgrupo],$C144,DADOS_MercadoBase[AnoMes],L$71) -> 0 | M176: =SUMIFS(DADOS_MercadoBase[Daj],DADOS_MercadoBase[OPÇÃO],$B144,DADOS_MercadoBase[Subgrupo],$C144,DADOS_MercadoBase[AnoMes],M$71) -> 0 | N176: =SUMIFS(DADOS_MercadoBase[Daj],DADOS_MercadoBase[OPÇÃO],$B144,DADOS_MercadoBase[Subgrupo],$C144,DADOS_MercadoBase[AnoMes],N$71) -> 0 | O176: =SUMIFS(DADOS_MercadoBase[Daj],DADOS_MercadoBase[OPÇÃO],$B144,DADOS_MercadoBase[Subgrupo],$C144,DADOS_MercadoBase[AnoMes],O$71) -> 0 | P176: 0 | S176: cativo | T176: B3 | U176: 0 | V176: 0 | W176: 0 | X176: 0 | Y176: 0 | Z176: 0 | AA176: 0 | AB176: 0 | AC176: 0 | AD176: 0 | AE176: 0 | AF176: 0 | AG176: 0
B177: cativo | C177: B2 | D177: =SUMIFS(DADOS_MercadoBase[Daj],DADOS_MercadoBase[OPÇÃO],$B145,DADOS_MercadoBase[Subgrupo],$C145,DADOS_MercadoBase[AnoMes],D$71) -> 0 | E177: =SUMIFS(DADOS_MercadoBase[Daj],DADOS_MercadoBase[OPÇÃO],$B145,DADOS_MercadoBase[Subgrupo],$C145,DADOS_MercadoBase[AnoMes],E$71) -> 0 | F177: =SUMIFS(DADOS_MercadoBase[Daj],DADOS_MercadoBase[OPÇÃO],$B145,DADOS_MercadoBase[Subgrupo],$C145,DADOS_MercadoBase[AnoMes],F$71) -> 0 | G177: =SUMIFS(DADOS_MercadoBase[Daj],DADOS_MercadoBase[OPÇÃO],$B145,DADOS_MercadoBase[Subgrupo],$C145,DADOS_MercadoBase[AnoMes],G$71) -> 0 | H177: =SUMIFS(DADOS_MercadoBase[Daj],DADOS_MercadoBase[OPÇÃO],$B145,DADOS_MercadoBase[Subgrupo],$C145,DADOS_MercadoBase[AnoMes],H$71) -> 0 | I177: =SUMIFS(DADOS_MercadoBase[Daj],DADOS_MercadoBase[OPÇÃO],$B145,DADOS_MercadoBase[Subgrupo],$C145,DADOS_MercadoBase[AnoMes],I$71) -> 0 | J177: =SUMIFS(DADOS_MercadoBase[Daj],DADOS_MercadoBase[OPÇÃO],$B145,DADOS_MercadoBase[Subgrupo],$C145,DADOS_MercadoBase[AnoMes],J$71) -> 0 | K177: =SUMIFS(DADOS_MercadoBase[Daj],DADOS_MercadoBase[OPÇÃO],$B145,DADOS_MercadoBase[Subgrupo],$C145,DADOS_MercadoBase[AnoMes],K$71) -> 0 | L177: =SUMIFS(DADOS_MercadoBase[Daj],DADOS_MercadoBase[OPÇÃO],$B145,DADOS_MercadoBase[Subgrupo],$C145,DADOS_MercadoBase[AnoMes],L$71) -> 0 | M177: =SUMIFS(DADOS_MercadoBase[Daj],DADOS_MercadoBase[OPÇÃO],$B145,DADOS_MercadoBase[Subgrupo],$C145,DADOS_MercadoBase[AnoMes],M$71) -> 0 | N177: =SUMIFS(DADOS_MercadoBase[Daj],DADOS_MercadoBase[OPÇÃO],$B145,DADOS_MercadoBase[Subgrupo],$C145,DADOS_MercadoBase[AnoMes],N$71) -> 0 | O177: =SUMIFS(DADOS_MercadoBase[Daj],DADOS_MercadoBase[OPÇÃO],$B145,DADOS_MercadoBase[Subgrupo],$C145,DADOS_MercadoBase[AnoMes],O$71) -> 0 | P177: 0 | S177: cativo | T177: B2 | U177: 0 | V177: 0 | W177: 0 | X177: 0 | Y177: 0 | Z177: 0 | AA177: 0 | AB177: 0 | AC177: 0 | AD177: 0 | AE177: 0 | AF177: 0 | AG177: 0
B178: cativo | C178: B1 | D178: =SUMIFS(DADOS_MercadoBase[Daj],DADOS_MercadoBase[OPÇÃO],$B146,DADOS_MercadoBase[Subgrupo],$C146,DADOS_MercadoBase[AnoMes],D$71) -> 0 | E178: =SUMIFS(DADOS_MercadoBase[Daj],DADOS_MercadoBase[OPÇÃO],$B146,DADOS_MercadoBase[Subgrupo],$C146,DADOS_MercadoBase[AnoMes],E$71) -> 0 | F178: =SUMIFS(DADOS_MercadoBase[Daj],DADOS_MercadoBase[OPÇÃO],$B146,DADOS_MercadoBase[Subgrupo],$C146,DADOS_MercadoBase[AnoMes],F$71) -> 0 | G178: =SUMIFS(DADOS_MercadoBase[Daj],DADOS_MercadoBase[OPÇÃO],$B146,DADOS_MercadoBase[Subgrupo],$C146,DADOS_MercadoBase[AnoMes],G$71) -> 0 | H178: =SUMIFS(DADOS_MercadoBase[Daj],DADOS_MercadoBase[OPÇÃO],$B146,DADOS_MercadoBase[Subgrupo],$C146,DADOS_MercadoBase[AnoMes],H$71) -> 0 | I178: =SUMIFS(DADOS_MercadoBase[Daj],DADOS_MercadoBase[OPÇÃO],$B146,DADOS_MercadoBase[Subgrupo],$C146,DADOS_MercadoBase[AnoMes],I$71) -> 0 | J178: =SUMIFS(DADOS_MercadoBase[Daj],DADOS_MercadoBase[OPÇÃO],$B146,DADOS_MercadoBase[Subgrupo],$C146,DADOS_MercadoBase[AnoMes],J$71) -> 0 | K178: =SUMIFS(DADOS_MercadoBase[Daj],DADOS_MercadoBase[OPÇÃO],$B146,DADOS_MercadoBase[Subgrupo],$C146,DADOS_MercadoBase[AnoMes],K$71) -> 0 | L178: =SUMIFS(DADOS_MercadoBase[Daj],DADOS_MercadoBase[OPÇÃO],$B146,DADOS_MercadoBase[Subgrupo],$C146,DADOS_MercadoBase[AnoMes],L$71) -> 0 | M178: =SUMIFS(DADOS_MercadoBase[Daj],DADOS_MercadoBase[OPÇÃO],$B146,DADOS_MercadoBase[Subgrupo],$C146,DADOS_MercadoBase[AnoMes],M$71) -> 0 | N178: =SUMIFS(DADOS_MercadoBase[Daj],DADOS_MercadoBase[OPÇÃO],$B146,DADOS_MercadoBase[Subgrupo],$C146,DADOS_MercadoBase[AnoMes],N$71) -> 0 | O178: =SUMIFS(DADOS_MercadoBase[Daj],DADOS_MercadoBase[OPÇÃO],$B146,DADOS_MercadoBase[Subgrupo],$C146,DADOS_MercadoBase[AnoMes],O$71) -> 0 | P178: 0 | S178: cativo | T178: B1 | U178: 0 | V178: 0 | W178: 0 | X178: 0 | Y178: 0 | Z178: 0 | AA178: 0 | AB178: 0 | AC178: 0 | AD178: 0 | AE178: 0 | AF178: 0 | AG178: 0
B179: cativo | C179: Total BT Cativo | D179: =SUM(D175:D178) -> 0 | E179: =SUM(E175:E178) -> 0 | F179: 0 | G179: 0 | H179: 0 | I179: 0 | J179: 0 | K179: 0 | L179: 0 | M179: 0 | N179: 0 | O179: 0 | P179: 0 | S179: cativo | T179: Total BT Cativo | U179: 0 | V179: 0 | W179: 0 | X179: 0 | Y179: 0 | Z179: 0 | AA179: 0 | AB179: 0 | AC179: 0 | AD179: 0 | AE179: 0 | AF179: 0 | AG179: 0
B180: Suprimento | C180: Suprimento (TE) | D180: =SUMIFS(DADOS_MercadoBase[Daj],DADOS_MercadoBase[OPÇÃO],$B148,DADOS_MercadoBase[AnoMes],D$71) -> 0 | E180: =SUMIFS(DADOS_MercadoBase[Daj],DADOS_MercadoBase[OPÇÃO],$B148,DADOS_MercadoBase[AnoMes],E$71) -> 0 | F180: =SUMIFS(DADOS_MercadoBase[Daj],DADOS_MercadoBase[OPÇÃO],$B148,DADOS_MercadoBase[AnoMes],F$71) -> 0 | G180: =SUMIFS(DADOS_MercadoBase[Daj],DADOS_MercadoBase[OPÇÃO],$B148,DADOS_MercadoBase[AnoMes],G$71) -> 0 | H180: =SUMIFS(DADOS_MercadoBase[Daj],DADOS_MercadoBase[OPÇÃO],$B148,DADOS_MercadoBase[AnoMes],H$71) -> 0 | I180: =SUMIFS(DADOS_MercadoBase[Daj],DADOS_MercadoBase[OPÇÃO],$B148,DADOS_MercadoBase[AnoMes],I$71) -> 0 | J180: =SUMIFS(DADOS_MercadoBase[Daj],DADOS_MercadoBase[OPÇÃO],$B148,DADOS_MercadoBase[AnoMes],J$71) -> 0 | K180: =SUMIFS(DADOS_MercadoBase[Daj],DADOS_MercadoBase[OPÇÃO],$B148,DADOS_MercadoBase[AnoMes],K$71) -> 0 | L180: =SUMIFS(DADOS_MercadoBase[Daj],DADOS_MercadoBase[OPÇÃO],$B148,DADOS_MercadoBase[AnoMes],L$71) -> 0 | M180: =SUMIFS(DADOS_MercadoBase[Daj],DADOS_MercadoBase[OPÇÃO],$B148,DADOS_MercadoBase[AnoMes],M$71) -> 0 | N180: =SUMIFS(DADOS_MercadoBase[Daj],DADOS_MercadoBase[OPÇÃO],$B148,DADOS_MercadoBase[AnoMes],N$71) -> 0 | O180: =SUMIFS(DADOS_MercadoBase[Daj],DADOS_MercadoBase[OPÇÃO],$B148,DADOS_MercadoBase[AnoMes],O$71) -> 0 | P180: 0 | S180: Suprimento | T180: Suprimento (TE) | U180: 0 | V180: 0 | W180: 0 | X180: 0 | Y180: 0 | Z180: 0 | AA180: 0 | AB180: 0 | AC180: 0 | AD180: 0 | AE180: 0 | AF180: 0 | AG180: 0
B181: Livre | C181: A1 | D181: =SUMIFS(DADOS_MercadoBase[Daj],DADOS_MercadoBase[OPÇÃO],$B149,DADOS_MercadoBase[Subgrupo],$C149,DADOS_MercadoBase[AnoMes],D$71) -> 0 | E181: =SUMIFS(DADOS_MercadoBase[Daj],DADOS_MercadoBase[OPÇÃO],$B149,DADOS_MercadoBase[Subgrupo],$C149,DADOS_MercadoBase[AnoMes],E$71) -> 0 | F181: =SUMIFS(DADOS_MercadoBase[Daj],DADOS_MercadoBase[OPÇÃO],$B149,DADOS_MercadoBase[Subgrupo],$C149,DADOS_MercadoBase[AnoMes],F$71) -> 0 | G181: =SUMIFS(DADOS_MercadoBase[Daj],DADOS_MercadoBase[OPÇÃO],$B149,DADOS_MercadoBase[Subgrupo],$C149,DADOS_MercadoBase[AnoMes],G$71) -> 0 | H181: =SUMIFS(DADOS_MercadoBase[Daj],DADOS_MercadoBase[OPÇÃO],$B149,DADOS_MercadoBase[Subgrupo],$C149,DADOS_MercadoBase[AnoMes],H$71) -> 0 | I181: =SUMIFS(DADOS_MercadoBase[Daj],DADOS_MercadoBase[OPÇÃO],$B149,DADOS_MercadoBase[Subgrupo],$C149,DADOS_MercadoBase[AnoMes],I$71) -> 0 | J181: =SUMIFS(DADOS_MercadoBase[Daj],DADOS_MercadoBase[OPÇÃO],$B149,DADOS_MercadoBase[Subgrupo],$C149,DADOS_MercadoBase[AnoMes],J$71) -> 0 | K181: =SUMIFS(DADOS_MercadoBase[Daj],DADOS_MercadoBase[OPÇÃO],$B149,DADOS_MercadoBase[Subgrupo],$C149,DADOS_MercadoBase[AnoMes],K$71) -> 0 | L181: =SUMIFS(DADOS_MercadoBase[Daj],DADOS_MercadoBase[OPÇÃO],$B149,DADOS_MercadoBase[Subgrupo],$C149,DADOS_MercadoBase[AnoMes],L$71) -> 0 | M181: =SUMIFS(DADOS_MercadoBase[Daj],DADOS_MercadoBase[OPÇÃO],$B149,DADOS_MercadoBase[Subgrupo],$C149,DADOS_MercadoBase[AnoMes],M$71) -> 0 | N181: =SUMIFS(DADOS_MercadoBase[Daj],DADOS_MercadoBase[OPÇÃO],$B149,DADOS_MercadoBase[Subgrupo],$C149,DADOS_MercadoBase[AnoMes],N$71) -> 0 | O181: =SUMIFS(DADOS_MercadoBase[Daj],DADOS_MercadoBase[OPÇÃO],$B149,DADOS_MercadoBase[Subgrupo],$C149,DADOS_MercadoBase[AnoMes],O$71) -> 0 | P181: 0 | S181: Livre | T181: A1 | U181: 0 | V181: 0 | W181: 0 | X181: 0 | Y181: 0 | Z181: 0 | AA181: 0 | AB181: 0 | AC181: 0 | AD181: 0 | AE181: 0 | AF181: 0 | AG181: 0
B182: Livre | D182: =SUMIFS(DADOS_MercadoBase[Daj],DADOS_MercadoBase[OPÇÃO],$B150,DADOS_MercadoBase[AnoMes],D$71)-D181 -> 369931.8062 | E182: =SUMIFS(DADOS_MercadoBase[Daj],DADOS_MercadoBase[OPÇÃO],$B150,DADOS_MercadoBase[AnoMes],E$71)-E181 -> 369931.8062 | F182: =SUMIFS(DADOS_MercadoBase[Daj],DADOS_MercadoBase[OPÇÃO],$B150,DADOS_MercadoBase[AnoMes],F$71)-F181 -> 374601.9111 | G182: =SUMIFS(DADOS_MercadoBase[Daj],DADOS_MercadoBase[OPÇÃO],$B150,DADOS_MercadoBase[AnoMes],G$71)-G181 -> 364423.351 | H182: =SUMIFS(DADOS_MercadoBase[Daj],DADOS_MercadoBase[OPÇÃO],$B150,DADOS_MercadoBase[AnoMes],H$71)-H181 -> 376243.1319 | I182: =SUMIFS(DADOS_MercadoBase[Daj],DADOS_MercadoBase[OPÇÃO],$B150,DADOS_MercadoBase[AnoMes],I$71)-I181 -> 375791.5897 | J182: =SUMIFS(DADOS_MercadoBase[Daj],DADOS_MercadoBase[OPÇÃO],$B150,DADOS_MercadoBase[AnoMes],J$71)-J181 -> 400474.5685 | K182: =SUMIFS(DADOS_MercadoBase[Daj],DADOS_MercadoBase[OPÇÃO],$B150,DADOS_MercadoBase[AnoMes],K$71)-K181 -> 380284.9789 | L182: =SUMIFS(DADOS_MercadoBase[Daj],DADOS_MercadoBase[OPÇÃO],$B150,DADOS_MercadoBase[AnoMes],L$71)-L181 -> 370825.5152 | M182: =SUMIFS(DADOS_MercadoBase[Daj],DADOS_MercadoBase[OPÇÃO],$B150,DADOS_MercadoBase[AnoMes],M$71)-M181 -> 367262.3524 | N182: =SUMIFS(DADOS_MercadoBase[Daj],DADOS_MercadoBase[OPÇÃO],$B150,DADOS_MercadoBase[AnoMes],N$71)-N181 -> 376055.403 | O182: =SUMIFS(DADOS_MercadoBase[Daj],DADOS_MercadoBase[OPÇÃO],$B150,DADOS_MercadoBase[AnoMes],O$71)-O181 -> 365011.5937 | P182: 4490838.008 | S182: Livre | U182: 341307.9298 | V182: 341307.9298 | W182: 340202.0463 | X182: 342913.2108 | Y182: 346044.8295 | Z182: 352420.2613 | AA182: 354221.8097 | AB182: 324171.1679 | AC182: 347339.8401 | AD182: 338106.739 | AE182: 337279.8731 | AF182: 336976.6866 | AG182: 4102292.324
B183: Livre APE | D183: =SUMIFS(DADOS_MercadoBase[Daj],DADOS_MercadoBase[OPÇÃO],$B151,DADOS_MercadoBase[AnoMes],D$71) -> 0 | E183: =SUMIFS(DADOS_MercadoBase[Daj],DADOS_MercadoBase[OPÇÃO],$B151,DADOS_MercadoBase[AnoMes],E$71) -> 0 | F183: =SUMIFS(DADOS_MercadoBase[Daj],DADOS_MercadoBase[OPÇÃO],$B151,DADOS_MercadoBase[AnoMes],F$71) -> 0 | G183: =SUMIFS(DADOS_MercadoBase[Daj],DADOS_MercadoBase[OPÇÃO],$B151,DADOS_MercadoBase[AnoMes],G$71) -> 0 | H183: =SUMIFS(DADOS_MercadoBase[Daj],DADOS_MercadoBase[OPÇÃO],$B151,DADOS_MercadoBase[AnoMes],H$71) -> 0 | I183: =SUMIFS(DADOS_MercadoBase[Daj],DADOS_MercadoBase[OPÇÃO],$B151,DADOS_MercadoBase[AnoMes],I$71) -> 0 | J183: =SUMIFS(DADOS_MercadoBase[Daj],DADOS_MercadoBase[OPÇÃO],$B151,DADOS_MercadoBase[AnoMes],J$71) -> 0 | K183: =SUMIFS(DADOS_MercadoBase[Daj],DADOS_MercadoBase[OPÇÃO],$B151,DADOS_MercadoBase[AnoMes],K$71) -> 0 | L183: =SUMIFS(DADOS_MercadoBase[Daj],DADOS_MercadoBase[OPÇÃO],$B151,DADOS_MercadoBase[AnoMes],L$71) -> 0 | M183: =SUMIFS(DADOS_MercadoBase[Daj],DADOS_MercadoBase[OPÇÃO],$B151,DADOS_MercadoBase[AnoMes],M$71) -> 0 | N183: =SUMIFS(DADOS_MercadoBase[Daj],DADOS_MercadoBase[OPÇÃO],$B151,DADOS_MercadoBase[AnoMes],N$71) -> 0 | O183: =SUMIFS(DADOS_MercadoBase[Daj],DADOS_MercadoBase[OPÇÃO],$B151,DADOS_MercadoBase[AnoMes],O$71) -> 0 | P183: 0 | S183: Livre APE | U183: 0 | V183: 0 | W183: 0 | X183: 0 | Y183: 0 | Z183: 0 | AA183: 0 | AB183: 0 | AC183: 0 | AD183: 0 | AE183: 0 | AF183: 0 | AG183: 0
B184: ERC | D184: =SUMIFS(DADOS_MercadoBase[Daj],DADOS_MercadoBase[OPÇÃO],$B152,DADOS_MercadoBase[AnoMes],D$71) -> 0 | E184: =SUMIFS(DADOS_MercadoBase[Daj],DADOS_MercadoBase[OPÇÃO],$B152,DADOS_MercadoBase[AnoMes],E$71) -> 0 | F184: =SUMIFS(DADOS_MercadoBase[Daj],DADOS_MercadoBase[OPÇÃO],$B152,DADOS_MercadoBase[AnoMes],F$71) -> 0 | G184: =SUMIFS(DADOS_MercadoBase[Daj],DADOS_MercadoBase[OPÇÃO],$B152,DADOS_MercadoBase[AnoMes],G$71) -> 0 | H184: =SUMIFS(DADOS_MercadoBase[Daj],DADOS_MercadoBase[OPÇÃO],$B152,DADOS_MercadoBase[AnoMes],H$71) -> 0 | I184: =SUMIFS(DADOS_MercadoBase[Daj],DADOS_MercadoBase[OPÇÃO],$B152,DADOS_MercadoBase[AnoMes],I$71) -> 0 | J184: =SUMIFS(DADOS_MercadoBase[Daj],DADOS_MercadoBase[OPÇÃO],$B152,DADOS_MercadoBase[AnoMes],J$71) -> 0 | K184: =SUMIFS(DADOS_MercadoBase[Daj],DADOS_MercadoBase[OPÇÃO],$B152,DADOS_MercadoBase[AnoMes],K$71) -> 0 | L184: =SUMIFS(DADOS_MercadoBase[Daj],DADOS_MercadoBase[OPÇÃO],$B152,DADOS_MercadoBase[AnoMes],L$71) -> 0 | M184: =SUMIFS(DADOS_MercadoBase[Daj],DADOS_MercadoBase[OPÇÃO],$B152,DADOS_MercadoBase[AnoMes],M$71) -> 0 | N184: =SUMIFS(DADOS_MercadoBase[Daj],DADOS_MercadoBase[OPÇÃO],$B152,DADOS_MercadoBase[AnoMes],N$71) -> 0 | O184: =SUMIFS(DADOS_MercadoBase[Daj],DADOS_MercadoBase[OPÇÃO],$B152,DADOS_MercadoBase[AnoMes],O$71) -> 0 | P184: 0 | S184: ERC | U184: 0 | V184: 0 | W184: 0 | X184: 0 | Y184: 0 | Z184: 0 | AA184: 0 | AB184: 0 | AC184: 0 | AD184: 0 | AE184: 0 | AF184: 0 | AG184: 0
B185: Livres | C185: Total Livres | D185: =SUM(D181:D184) -> 369931.8062 | E185: =SUM(E181:E184) -> 369931.8062 | F185: 374601.9111 | G185: 364423.351 | H185: 376243.1319 | I185: 375791.5897 | J185: 400474.5685 | K185: 380284.9789 | L185: 370825.5152 | M185: 367262.3524 | N185: 376055.403 | O185: 365011.5937 | P185: 4490838.008 | S185: Livres | T185: Total Livres | U185: 341307.9298 | V185: 341307.9298 | W185: 340202.0463 | X185: 342913.2108 | Y185: 346044.8295 | Z185: 352420.2613 | AA185: 354221.8097 | AB185: 324171.1679 | AC185: 347339.8401 | AD185: 338106.739 | AE185: 337279.8731 | AF185: 336976.6866 | AG185: 4102292.324
B186: Distribuição | C186: DISTRIBUIÇÃO | D186: =SUMIFS(DADOS_MercadoBase[Daj],DADOS_MercadoBase[OPÇÃO],$B154,DADOS_MercadoBase[AnoMes],D$71) -> 11800 | E186: =SUMIFS(DADOS_MercadoBase[Daj],DADOS_MercadoBase[OPÇÃO],$B154,DADOS_MercadoBase[AnoMes],E$71) -> 11800 | F186: =SUMIFS(DADOS_MercadoBase[Daj],DADOS_MercadoBase[OPÇÃO],$B154,DADOS_MercadoBase[AnoMes],F$71) -> 11209 | G186: =SUMIFS(DADOS_MercadoBase[Daj],DADOS_MercadoBase[OPÇÃO],$B154,DADOS_MercadoBase[AnoMes],G$71) -> 11032 | H186: =SUMIFS(DADOS_MercadoBase[Daj],DADOS_MercadoBase[OPÇÃO],$B154,DADOS_MercadoBase[AnoMes],H$71) -> 10912 | I186: =SUMIFS(DADOS_MercadoBase[Daj],DADOS_MercadoBase[OPÇÃO],$B154,DADOS_MercadoBase[AnoMes],I$71) -> 10900 | J186: =SUMIFS(DADOS_MercadoBase[Daj],DADOS_MercadoBase[OPÇÃO],$B154,DADOS_MercadoBase[AnoMes],J$71) -> 10900 | K186: =SUMIFS(DADOS_MercadoBase[Daj],DADOS_MercadoBase[OPÇÃO],$B154,DADOS_MercadoBase[AnoMes],K$71) -> 12066 | L186: =SUMIFS(DADOS_MercadoBase[Daj],DADOS_MercadoBase[OPÇÃO],$B154,DADOS_MercadoBase[AnoMes],L$71) -> 11125 | M186: =SUMIFS(DADOS_MercadoBase[Daj],DADOS_MercadoBase[OPÇÃO],$B154,DADOS_MercadoBase[AnoMes],M$71) -> 10900 | N186: =SUMIFS(DADOS_MercadoBase[Daj],DADOS_MercadoBase[OPÇÃO],$B154,DADOS_MercadoBase[AnoMes],N$71) -> 11300 | O186: =SUMIFS(DADOS_MercadoBase[Daj],DADOS_MercadoBase[OPÇÃO],$B154,DADOS_MercadoBase[AnoMes],O$71) -> 10900 | P186: 134844 | S186: Distribuição | T186: DISTRIBUIÇÃO | U186: 10977 | V186: 10977 | W186: 11469 | X186: 10900 | Y186: 10900 | Z186: 10900 | AA186: 10900 | AB186: 10900 | AC186: 10900 | AD186: 10900 | AE186: 10900 | AF186: 10900 | AG186: 131523
B187: Geração | C187: GERADOR | D187: =SUMIFS(DADOS_MercadoBase[Daj],DADOS_MercadoBase[OPÇÃO],$B155,DADOS_MercadoBase[AnoMes],D$71) -> 404542.514 | E187: =SUMIFS(DADOS_MercadoBase[Daj],DADOS_MercadoBase[OPÇÃO],$B155,DADOS_MercadoBase[AnoMes],E$71) -> 404542.514 | F187: =SUMIFS(DADOS_MercadoBase[Daj],DADOS_MercadoBase[OPÇÃO],$B155,DADOS_MercadoBase[AnoMes],F$71) -> 409589.114 | G187: =SUMIFS(DADOS_MercadoBase[Daj],DADOS_MercadoBase[OPÇÃO],$B155,DADOS_MercadoBase[AnoMes],G$71) -> 410076.014 | H187: =SUMIFS(DADOS_MercadoBase[Daj],DADOS_MercadoBase[OPÇÃO],$B155,DADOS_MercadoBase[AnoMes],H$71) -> 413575.514 | I187: =SUMIFS(DADOS_MercadoBase[Daj],DADOS_MercadoBase[OPÇÃO],$B155,DADOS_MercadoBase[AnoMes],I$71) -> 424781.714 | J187: =SUMIFS(DADOS_MercadoBase[Daj],DADOS_MercadoBase[OPÇÃO],$B155,DADOS_MercadoBase[AnoMes],J$71) -> 426645.114 | K187: =SUMIFS(DADOS_MercadoBase[Daj],DADOS_MercadoBase[OPÇÃO],$B155,DADOS_MercadoBase[AnoMes],K$71) -> 427254.414 | L187: =SUMIFS(DADOS_MercadoBase[Daj],DADOS_MercadoBase[OPÇÃO],$B155,DADOS_MercadoBase[AnoMes],L$71) -> 426879.214 | M187: =SUMIFS(DADOS_MercadoBase[Daj],DADOS_MercadoBase[OPÇÃO],$B155,DADOS_MercadoBase[AnoMes],M$71) -> 428019.814 | N187: =SUMIFS(DADOS_MercadoBase[Daj],DADOS_MercadoBase[OPÇÃO],$B155,DADOS_MercadoBase[AnoMes],N$71) -> 426504.414 | O187: =SUMIFS(DADOS_MercadoBase[Daj],DADOS_MercadoBase[OPÇÃO],$B155,DADOS_MercadoBase[AnoMes],O$71) -> 414695.914 | P187: 5017106.268 | S187: Geração | T187: GERADOR | U187: 461283.214 | V187: 461283.214 | W187: 420165.124 | X187: 485909.814 | Y187: 560264.814 | Z187: 569331.814 | AA187: 576936.914 | AB187: 529778.314 | AC187: 411703.314 | AD187: 412082.414 | AE187: 408515.914 | AF187: 411768.8 | AG187: 5709023.664
C188: TOTAL Geral | D188: =SUMIFS(DADOS_MercadoBase[Daj],DADOS_MercadoBase[AnoMes],D$71) -> 1212663.637 | E188: =SUMIFS(DADOS_MercadoBase[Daj],DADOS_MercadoBase[AnoMes],E$71) -> 1212663.637 | F188: =SUMIFS(DADOS_MercadoBase[Daj],DADOS_MercadoBase[AnoMes],F$71) -> 1228792.691 | G188: =SUMIFS(DADOS_MercadoBase[Daj],DADOS_MercadoBase[AnoMes],G$71) -> 1224427.948 | H188: =SUMIFS(DADOS_MercadoBase[Daj],DADOS_MercadoBase[AnoMes],H$71) -> 1231696.725 | I188: =SUMIFS(DADOS_MercadoBase[Daj],DADOS_MercadoBase[AnoMes],I$71) -> 1235370.452 | J188: =SUMIFS(DADOS_MercadoBase[Daj],DADOS_MercadoBase[AnoMes],J$71) -> 1271145.421 | K188: =SUMIFS(DADOS_MercadoBase[Daj],DADOS_MercadoBase[AnoMes],K$71) -> 1259448.403 | L188: =SUMIFS(DADOS_MercadoBase[Daj],DADOS_MercadoBase[AnoMes],L$71) -> 1236609.779 | M188: =SUMIFS(DADOS_MercadoBase[Daj],DADOS_MercadoBase[AnoMes],M$71) -> 1216588.443 | N188: =SUMIFS(DADOS_MercadoBase[Daj],DADOS_MercadoBase[AnoMes],N$71) -> 1231899.918 | O188: =SUMIFS(DADOS_MercadoBase[Daj],DADOS_MercadoBase[AnoMes],O$71) -> 1221177.147 | P188: 14782484.2 | T188: TOTAL Geral | U188: 1225427.736 | V188: 1225427.736 | W188: 1184978.214 | X188: 1249526.854 | Y188: 1331647.151 | Z188: 1361940.311 | AA188: 1375607.105 | AB188: 1305895.946 | AC188: 1183282.41 | AD188: 1170846.179 | AE188: 1184017.02 | AF188: 1191518.033 | AG188: 14990114.69
B190: Residencial baixa renda – faixa 01 | D190: =SUMIFS(DADOS_MercadoBase[Daj],DADOS_MercadoBase[Subclasse],$B158,DADOS_MercadoBase[AnoMes],D$71) -> 0 | E190: =SUMIFS(DADOS_MercadoBase[Daj],DADOS_MercadoBase[Subclasse],$B158,DADOS_MercadoBase[AnoMes],E$71) -> 0 | F190: =SUMIFS(DADOS_MercadoBase[Daj],DADOS_MercadoBase[Subclasse],$B158,DADOS_MercadoBase[AnoMes],F$71) -> 0 | G190: =SUMIFS(DADOS_MercadoBase[Daj],DADOS_MercadoBase[Subclasse],$B158,DADOS_MercadoBase[AnoMes],G$71) -> 0 | H190: =SUMIFS(DADOS_MercadoBase[Daj],DADOS_MercadoBase[Subclasse],$B158,DADOS_MercadoBase[AnoMes],H$71) -> 0 | I190: =SUMIFS(DADOS_MercadoBase[Daj],DADOS_MercadoBase[Subclasse],$B158,DADOS_MercadoBase[AnoMes],I$71) -> 0 | J190: =SUMIFS(DADOS_MercadoBase[Daj],DADOS_MercadoBase[Subclasse],$B158,DADOS_MercadoBase[AnoMes],J$71) -> 0 | K190: =SUMIFS(DADOS_MercadoBase[Daj],DADOS_MercadoBase[Subclasse],$B158,DADOS_MercadoBase[AnoMes],K$71) -> 0 | L190: =SUMIFS(DADOS_MercadoBase[Daj],DADOS_MercadoBase[Subclasse],$B158,DADOS_MercadoBase[AnoMes],L$71) -> 0 | M190: =SUMIFS(DADOS_MercadoBase[Daj],DADOS_MercadoBase[Subclasse],$B158,DADOS_MercadoBase[AnoMes],M$71) -> 0 | N190: =SUMIFS(DADOS_MercadoBase[Daj],DADOS_MercadoBase[Subclasse],$B158,DADOS_MercadoBase[AnoMes],N$71) -> 0 | O190: =SUMIFS(DADOS_MercadoBase[Daj],DADOS_MercadoBase[Subclasse],$B158,DADOS_MercadoBase[AnoMes],O$71) -> 0 | P190: =SUM(D190:O190) -> 0 | S190: Residencial baixa renda – faixa 01 | U190: 0 | V190: 0 | W190: 0 | X190: 0 | Y190: 0 | Z190: 0 | AA190: 0 | AB190: 0 | AC190: 0 | AD190: 0 | AE190: 0 | AF190: 0 | AG190: 0
B191: Residencial baixa renda – faixa 02 | D191: =SUMIFS(DADOS_MercadoBase[Daj],DADOS_MercadoBase[Subclasse],$B159,DADOS_MercadoBase[AnoMes],D$71) -> 0 | E191: =SUMIFS(DADOS_MercadoBase[Daj],DADOS_MercadoBase[Subclasse],$B159,DADOS_MercadoBase[AnoMes],E$71) -> 0 | F191: =SUMIFS(DADOS_MercadoBase[Daj],DADOS_MercadoBase[Subclasse],$B159,DADOS_MercadoBase[AnoMes],F$71) -> 0 | G191: =SUMIFS(DADOS_MercadoBase[Daj],DADOS_MercadoBase[Subclasse],$B159,DADOS_MercadoBase[AnoMes],G$71) -> 0 | H191: =SUMIFS(DADOS_MercadoBase[Daj],DADOS_MercadoBase[Subclasse],$B159,DADOS_MercadoBase[AnoMes],H$71) -> 0 | I191: =SUMIFS(DADOS_MercadoBase[Daj],DADOS_MercadoBase[Subclasse],$B159,DADOS_MercadoBase[AnoMes],I$71) -> 0 | J191: =SUMIFS(DADOS_MercadoBase[Daj],DADOS_MercadoBase[Subclasse],$B159,DADOS_MercadoBase[AnoMes],J$71) -> 0 | K191: =SUMIFS(DADOS_MercadoBase[Daj],DADOS_MercadoBase[Subclasse],$B159,DADOS_MercadoBase[AnoMes],K$71) -> 0 | L191: =SUMIFS(DADOS_MercadoBase[Daj],DADOS_MercadoBase[Subclasse],$B159,DADOS_MercadoBase[AnoMes],L$71) -> 0 | M191: =SUMIFS(DADOS_MercadoBase[Daj],DADOS_MercadoBase[Subclasse],$B159,DADOS_MercadoBase[AnoMes],M$71) -> 0 | N191: =SUMIFS(DADOS_MercadoBase[Daj],DADOS_MercadoBase[Subclasse],$B159,DADOS_MercadoBase[AnoMes],N$71) -> 0 | O191: =SUMIFS(DADOS_MercadoBase[Daj],DADOS_MercadoBase[Subclasse],$B159,DADOS_MercadoBase[AnoMes],O$71) -> 0 | P191: 0 | S191: Residencial baixa renda – faixa 02 | U191: 0 | V191: 0 | W191: 0 | X191: 0 | Y191: 0 | Z191: 0 | AA191: 0 | AB191: 0 | AC191: 0 | AD191: 0 | AE191: 0 | AF191: 0 | AG191: 0
B192: Residencial baixa renda – faixa 03 | D192: =SUMIFS(DADOS_MercadoBase[Daj],DADOS_MercadoBase[Subclasse],$B160,DADOS_MercadoBase[AnoMes],D$71) -> 0 | E192: =SUMIFS(DADOS_MercadoBase[Daj],DADOS_MercadoBase[Subclasse],$B160,DADOS_MercadoBase[AnoMes],E$71) -> 0 | F192: =SUMIFS(DADOS_MercadoBase[Daj],DADOS_MercadoBase[Subclasse],$B160,DADOS_MercadoBase[AnoMes],F$71) -> 0 | G192: =SUMIFS(DADOS_MercadoBase[Daj],DADOS_MercadoBase[Subclasse],$B160,DADOS_MercadoBase[AnoMes],G$71) -> 0 | H192: =SUMIFS(DADOS_MercadoBase[Daj],DADOS_MercadoBase[Subclasse],$B160,DADOS_MercadoBase[AnoMes],H$71) -> 0 | I192: =SUMIFS(DADOS_MercadoBase[Daj],DADOS_MercadoBase[Subclasse],$B160,DADOS_MercadoBase[AnoMes],I$71) -> 0 | J192: =SUMIFS(DADOS_MercadoBase[Daj],DADOS_MercadoBase[Subclasse],$B160,DADOS_MercadoBase[AnoMes],J$71) -> 0 | K192: =SUMIFS(DADOS_MercadoBase[Daj],DADOS_MercadoBase[Subclasse],$B160,DADOS_MercadoBase[AnoMes],K$71) -> 0 | L192: =SUMIFS(DADOS_MercadoBase[Daj],DADOS_MercadoBase[Subclasse],$B160,DADOS_MercadoBase[AnoMes],L$71) -> 0 | M192: =SUMIFS(DADOS_MercadoBase[Daj],DADOS_MercadoBase[Subclasse],$B160,DADOS_MercadoBase[AnoMes],M$71) -> 0 | N192: =SUMIFS(DADOS_MercadoBase[Daj],DADOS_MercadoBase[Subclasse],$B160,DADOS_MercadoBase[AnoMes],N$71) -> 0 | O192: =SUMIFS(DADOS_MercadoBase[Daj],DADOS_MercadoBase[Subclasse],$B160,DADOS_MercadoBase[AnoMes],O$71) -> 0 | P192: 0 | S192: Residencial baixa renda – faixa 03 | U192: 0 | V192: 0 | W192: 0 | X192: 0 | Y192: 0 | Z192: 0 | AA192: 0 | AB192: 0 | AC192: 0 | AD192: 0 | AE192: 0 | AF192: 0 | AG192: 0
B193: Residencial baixa renda – faixa 04 | D193: =SUMIFS(DADOS_MercadoBase[Daj],DADOS_MercadoBase[Subclasse],$B161,DADOS_MercadoBase[AnoMes],D$71) -> 0 | E193: =SUMIFS(DADOS_MercadoBase[Daj],DADOS_MercadoBase[Subclasse],$B161,DADOS_MercadoBase[AnoMes],E$71) -> 0 | F193: =SUMIFS(DADOS_MercadoBase[Daj],DADOS_MercadoBase[Subclasse],$B161,DADOS_MercadoBase[AnoMes],F$71) -> 0 | G193: =SUMIFS(DADOS_MercadoBase[Daj],DADOS_MercadoBase[Subclasse],$B161,DADOS_MercadoBase[AnoMes],G$71) -> 0 | H193: =SUMIFS(DADOS_MercadoBase[Daj],DADOS_MercadoBase[Subclasse],$B161,DADOS_MercadoBase[AnoMes],H$71) -> 0 | I193: =SUMIFS(DADOS_MercadoBase[Daj],DADOS_MercadoBase[Subclasse],$B161,DADOS_MercadoBase[AnoMes],I$71) -> 0 | J193: =SUMIFS(DADOS_MercadoBase[Daj],DADOS_MercadoBase[Subclasse],$B161,DADOS_MercadoBase[AnoMes],J$71) -> 0 | K193: =SUMIFS(DADOS_MercadoBase[Daj],DADOS_MercadoBase[Subclasse],$B161,DADOS_MercadoBase[AnoMes],K$71) -> 0 | L193: =SUMIFS(DADOS_MercadoBase[Daj],DADOS_MercadoBase[Subclasse],$B161,DADOS_MercadoBase[AnoMes],L$71) -> 0 | M193: =SUMIFS(DADOS_MercadoBase[Daj],DADOS_MercadoBase[Subclasse],$B161,DADOS_MercadoBase[AnoMes],M$71) -> 0 | N193: =SUMIFS(DADOS_MercadoBase[Daj],DADOS_MercadoBase[Subclasse],$B161,DADOS_MercadoBase[AnoMes],N$71) -> 0 | O193: =SUMIFS(DADOS_MercadoBase[Daj],DADOS_MercadoBase[Subclasse],$B161,DADOS_MercadoBase[AnoMes],O$71) -> 0 | P193: 0 | S193: Residencial baixa renda – faixa 04 | U193: 0 | V193: 0 | W193: 0 | X193: 0 | Y193: 0 | Z193: 0 | AA193: 0 | AB193: 0 | AC193: 0 | AD193: 0 | AE193: 0 | AF193: 0 | AG193: 0
C194: Total Baixa renda | D194: =SUM(D190:D193) -> 0 | E194: =SUM(E190:E193) -> 0 | F194: 0 | G194: 0 | H194: 0 | I194: 0 | J194: 0 | K194: 0 | L194: 0 | M194: 0 | N194: 0 | O194: 0 | P194: =SUM(P190:P193) -> 0 | T194: Total Baixa renda | U194: 0 | V194: 0 | W194: 0 | X194: 0 | Y194: 0 | Z194: 0 | AA194: 0 | AB194: 0 | AC194: 0 | AD194: 0 | AE194: 0 | AF194: 0 | AG194: 0
B196: Descontos médios (Mercado TUSD MW) | S196: Descontos médios (Mercado TUSD MW)
D198: =D167 -> 44986 | E198: 44958 | F198: 44927 | G198: 44896 | H198: 44866 | I198: 44835 | J198: 44805 | K198: 44774 | L198: 44743 | M198: 44713 | N198: 44682 | O198: 44652 | P198: Total | U198: 44621 | V198: 44593 | W198: 44562 | X198: 44531 | Y198: 44501 | Z198: 44470 | AA198: 44440 | AB198: 44409 | AC198: 44378 | AD198: 44348 | AE198: 44317 | AF198: 44287 | AG198: Total
D199: =IF(D136=0,"",(D168-D136)/D136) -> 
D200: 0 | E200: 0 | F200: 0 | G200: 0 | H200: 0 | I200: 0 | J200: 0 | K200: 0 | L200: 0 | M200: 0 | N200: 0 | O200: 0 | P200: 0 | U200: 0 | V200: 0 | W200: 0 | X200: 0 | Y200: 0 | Z200: 0 | AA200: 0 | AB200: 0 | AC200: 0 | AD200: 0 | AE200: 0 | AF200: 0 | AG200: 0
D201: -0.03 | E201: -0.03 | F201: -0.03 | G201: -0.03 | H201: -0.03 | I201: -0.03 | J201: -0.03 | K201: -0.03 | L201: -0.03 | M201: -0.03 | N201: -0.03 | O201: -0.03 | P201: -0.03 | U201: -0.06 | V201: -0.06 | W201: -0.06 | X201: -0.06 | Y201: -0.06 | Z201: -0.06 | AA201: -0.06 | AB201: -0.06 | AC201: -0.05583815029 | AD201: -0.05583815029 | AE201: -0.05580989331 | AF201: -0.05572277228 | AG201: -0.05853235944
D202: -0.007705727847 | E202: -0.007705727847 | F202: -0.01043491674 | G202: -0.01054588465 | H202: -0.01010591647 | I202: -0.008775119201 | J202: -0.009891117505 | K202: -0.009822780001 | L202: -0.009149704967 | M202: -0.009299747908 | N202: -0.01017224685 | O202: -0.009987737165 | P202: -0.009493582625 | U202: -0.01679980516 | V202: -0.01679980516 | W202: -0.02025234597 | X202: -0.01900332946 | Y202: -0.02060118726 | Z202: -0.0209415173 | AA202: -0.01781521575 | AB202: -0.01733627876 | AC202: -0.01589289969 | AD202: -0.01672398349 | AE202: -0.01729075928 | AF202: -0.01745114881 | AG202: -0.01807076273
D203: -0.004588169196 | E203: -0.004588169196 | F203: -0.004988440521 | G203: -0.005112094314 | H203: -0.005701998026 | I203: -0.004615109546 | J203: -0.004703215332 | K203: -0.00432352781 | L203: -0.005357443647 | M203: -0.004875589544 | N203: -0.004629780375 | O203: -0.004826238769 | P203: -0.004859367796 | U203: -0.009261789663 | V203: -0.009261789663 | W203: -0.008533141806 | X203: -0.009328209567 | Y203: -0.01139193399 | Z203: -0.009323589047 | AA203: -0.009314044919 | AB203: -0.008525398171 | AC203: -0.008834847331 | AD203: -0.008159233159 | AE203: -0.009238088501 | AF203: -0.007925486965 | AG203: -0.009090105473
D205: -0.005603377162 | E205: -0.005603377162 | F205: -0.006627182753 | G205: -0.006787608623 | H205: -0.007068388652 | I205: -0.005946658678 | J205: -0.006357606269 | K205: -0.006121292187 | L205: -0.006615788997 | M205: -0.006195980531 | N205: -0.006261141169 | O205: -0.006390748813 | P205: -0.006301095686 | U205: -0.01154963184 | V205: -0.01154963184 | W205: -0.0118015777 | X205: -0.01209002095 | Y205: -0.0140070003 | Z205: -0.01263340578 | AA205: -0.01195012398 | AB205: -0.01104006189 | AC205: -0.0109655486 | AD205: -0.01073619183 | AE205: -0.01161295363 | AF205: -0.01058086879 | AG205: -0.01170736677
D213: -0.2824145456 | E213: -0.2824145456 | F213: -0.2764531491 | G213: -0.2800760356 | H213: -0.2739170178 | I213: -0.2756802172 | J213: -0.2694389583 | K213: -0.2727914611 | L213: -0.2710258304 | M213: -0.2644631966 | N213: -0.2656171949 | O213: -0.2673230567 | P213: -0.2734862403 | U213: -0.2660423337 | V213: -0.2660423337 | W213: -0.2588562092 | X213: -0.2609533511 | Y213: -0.2596261179 | Z213: -0.2648369419 | AA213: -0.2654291651 | AB213: -0.275016789 | AC213: -0.2594143795 | AD213: -0.2610157192 | AE213: -0.2626150566 | AF213: -0.264463061 | AG213: -0.2636696356
D215: =IF(D152=0,"",(D184-D152)/D152) -> 
D216: -0.2824145456 | E216: -0.2824145456 | F216: -0.2764531491 | G216: -0.2800760356 | H216: -0.2739170178 | I216: -0.2756802172 | J216: -0.2694389583 | K216: -0.2727914611 | L216: -0.2710258304 | M216: -0.2644631966 | N216: -0.2656171949 | O216: -0.2673230567 | P216: -0.2734862403 | U216: -0.2660423337 | V216: -0.2660423337 | W216: -0.2588562092 | X216: -0.2609533511 | Y216: -0.2596261179 | Z216: -0.2648369419 | AA216: -0.2654291651 | AB216: -0.275016789 | AC216: -0.2594143795 | AD216: -0.2610157192 | AE216: -0.2626150566 | AF216: -0.264463061 | AG216: -0.2636696356
D217: 0 | E217: 0 | F217: 0 | G217: 0 | H217: 0 | I217: 0 | J217: 0 | K217: 0 | L217: 0 | M217: 0 | N217: 0 | O217: 0 | P217: 0 | U217: 0 | V217: 0 | W217: 0 | X217: 0 | Y217: 0 | Z217: 0 | AA217: 0 | AB217: 0 | AC217: 0 | AD217: 0 | AE217: 0 | AF217: 0 | AG217: 0
D218: -0.363415395 | E218: -0.363415395 | F218: -0.3604586925 | G218: -0.360236865 | H218: -0.3265865654 | I218: -0.3344337052 | J218: -0.3328207563 | K218: -0.3329204992 | L218: -0.3324859907 | M218: -0.3327786704 | N218: -0.332699552 | O218: -0.3270272323 | P218: -0.3416823094 | U218: -0.3038810623 | V218: -0.3038810623 | W218: -0.323279189 | X218: -0.2921275892 | Y218: -0.2630208519 | Z218: -0.2595020953 | AA218: -0.2566290121 | AB218: -0.2733973916 | AC218: -0.3255608038 | AD218: -0.3263666317 | AE218: -0.3259402824 | AF218: -0.3278264688 | AG218: -0.2958542447
D219: -0.2380870889 | E219: -0.2380870889 | F219: -0.2347141581 | G219: -0.2347832281 | H219: -0.2190987976 | I219: -0.2251713976 | J219: -0.2222779808 | K219: -0.2216214528 | L219: -0.2222359887 | M219: -0.2224647301 | N219: -0.2218889815 | O219: -0.2165126029 | P219: -0.2264361875 | U219: -0.2121072371 | V219: -0.2121072371 | W219: -0.2149613145 | X219: -0.2072284653 | Y219: -0.1972395379 | Z219: -0.1959774022 | AA219: -0.1946174394 | AB219: -0.2003723246 | AC219: -0.2154688725 | AD219: -0.2164919796 | AE219: -0.2141627738 | AF219: -0.2151363214 | AG219: -0.207609497
B229: Mercado TE | S229: Mercado TE
D231: =D39 -> 44986 | E231: =EDATE(D231,-1) -> 44958 | F231: =EDATE(E231,-1) -> 44927 | G231: 44896 | H231: 44866 | I231: 44835 | J231: 44805 | K231: 44774 | L231: 44743 | M231: 44713 | N231: 44682 | O231: 44652 | P231: Total | U231: 44621 | V231: 44593 | W231: 44562 | X231: 44531 | Y231: 44501 | Z231: 44470 | AA231: 44440 | AB231: 44409 | AC231: 44378 | AD231: 44348 | AE231: 44317 | AF231: 44287 | AG231: Total
B232: cativo | C232: A1 | D232: =SUMIFS(DADOS_MercadoBase[TE_E],DADOS_MercadoBase[OPÇÃO],$B232,DADOS_MercadoBase[Subgrupo],CAPA!$C75,DADOS_MercadoBase[AnoMes],CAPA!D$4) -> 0 | E232: =SUMIFS(DADOS_MercadoBase[TE_E],DADOS_MercadoBase[OPÇÃO],$B232,DADOS_MercadoBase[Subgrupo],$C232,DADOS_MercadoBase[AnoMes],E$39) -> 0 | F232: =SUMIFS(DADOS_MercadoBase[TE_E],DADOS_MercadoBase[OPÇÃO],$B232,DADOS_MercadoBase[Subgrupo],$C232,DADOS_MercadoBase[AnoMes],F$39) -> 0 | G232: =SUMIFS(DADOS_MercadoBase[TE_E],DADOS_MercadoBase[OPÇÃO],$B232,DADOS_MercadoBase[Subgrupo],$C232,DADOS_MercadoBase[AnoMes],G$39) -> 0 | H232: =SUMIFS(DADOS_MercadoBase[TE_E],DADOS_MercadoBase[OPÇÃO],$B232,DADOS_MercadoBase[Subgrupo],$C232,DADOS_MercadoBase[AnoMes],H$39) -> 0 | I232: =SUMIFS(DADOS_MercadoBase[TE_E],DADOS_MercadoBase[OPÇÃO],$B232,DADOS_MercadoBase[Subgrupo],$C232,DADOS_MercadoBase[AnoMes],I$39) -> 0 | J232: =SUMIFS(DADOS_MercadoBase[TE_E],DADOS_MercadoBase[OPÇÃO],$B232,DADOS_MercadoBase[Subgrupo],$C232,DADOS_MercadoBase[AnoMes],J$39) -> 0 | K232: =SUMIFS(DADOS_MercadoBase[TE_E],DADOS_MercadoBase[OPÇÃO],$B232,DADOS_MercadoBase[Subgrupo],$C232,DADOS_MercadoBase[AnoMes],K$39) -> 0 | L232: =SUMIFS(DADOS_MercadoBase[TE_E],DADOS_MercadoBase[OPÇÃO],$B232,DADOS_MercadoBase[Subgrupo],$C232,DADOS_MercadoBase[AnoMes],L$39) -> 0 | M232: =SUMIFS(DADOS_MercadoBase[TE_E],DADOS_MercadoBase[OPÇÃO],$B232,DADOS_MercadoBase[Subgrupo],$C232,DADOS_MercadoBase[AnoMes],M$39) -> 0 | N232: =SUMIFS(DADOS_MercadoBase[TE_E],DADOS_MercadoBase[OPÇÃO],$B232,DADOS_MercadoBase[Subgrupo],$C232,DADOS_MercadoBase[AnoMes],N$39) -> 0 | O232: =SUMIFS(DADOS_MercadoBase[TE_E],DADOS_MercadoBase[OPÇÃO],$B232,DADOS_MercadoBase[Subgrupo],$C232,DADOS_MercadoBase[AnoMes],O$39) -> 0 | P232: =SUM(D232:O232) -> 0 | S232: cativo | T232: A1 | U232: 0 | V232: 0 | W232: 0 | X232: 0 | Y232: 0 | Z232: 0 | AA232: 0 | AB232: 0 | AC232: 0 | AD232: 0 | AE232: 0 | AF232: 0 | AG232: 0
B233: cativo | C233: A2 | D233: =SUMIFS(DADOS_MercadoBase[TE_E],DADOS_MercadoBase[OPÇÃO],$B233,DADOS_MercadoBase[Subgrupo],$C233,DADOS_MercadoBase[AnoMes],D$39) -> 82.458 | E233: =SUMIFS(DADOS_MercadoBase[TE_E],DADOS_MercadoBase[OPÇÃO],$B233,DADOS_MercadoBase[Subgrupo],$C233,DADOS_MercadoBase[AnoMes],E$39) -> 82.458 | F233: =SUMIFS(DADOS_MercadoBase[TE_E],DADOS_MercadoBase[OPÇÃO],$B233,DADOS_MercadoBase[Subgrupo],$C233,DADOS_MercadoBase[AnoMes],F$39) -> 85.495 | G233: =SUMIFS(DADOS_MercadoBase[TE_E],DADOS_MercadoBase[OPÇÃO],$B233,DADOS_MercadoBase[Subgrupo],$C233,DADOS_MercadoBase[AnoMes],G$39) -> 86.755 | H233: =SUMIFS(DADOS_MercadoBase[TE_E],DADOS_MercadoBase[OPÇÃO],$B233,DADOS_MercadoBase[Subgrupo],$C233,DADOS_MercadoBase[AnoMes],H$39) -> 88.67 | I233: =SUMIFS(DADOS_MercadoBase[TE_E],DADOS_MercadoBase[OPÇÃO],$B233,DADOS_MercadoBase[Subgrupo],$C233,DADOS_MercadoBase[AnoMes],I$39) -> 83.992 | J233: =SUMIFS(DADOS_MercadoBase[TE_E],DADOS_MercadoBase[OPÇÃO],$B233,DADOS_MercadoBase[Subgrupo],$C233,DADOS_MercadoBase[AnoMes],J$39) -> 106.717 | K233: =SUMIFS(DADOS_MercadoBase[TE_E],DADOS_MercadoBase[OPÇÃO],$B233,DADOS_MercadoBase[Subgrupo],$C233,DADOS_MercadoBase[AnoMes],K$39) -> 113.022 | L233: =SUMIFS(DADOS_MercadoBase[TE_E],DADOS_MercadoBase[OPÇÃO],$B233,DADOS_MercadoBase[Subgrupo],$C233,DADOS_MercadoBase[AnoMes],L$39) -> 290.258 | M233: =SUMIFS(DADOS_MercadoBase[TE_E],DADOS_MercadoBase[OPÇÃO],$B233,DADOS_MercadoBase[Subgrupo],$C233,DADOS_MercadoBase[AnoMes],M$39) -> 343.998 | N233: =SUMIFS(DADOS_MercadoBase[TE_E],DADOS_MercadoBase[OPÇÃO],$B233,DADOS_MercadoBase[Subgrupo],$C233,DADOS_MercadoBase[AnoMes],N$39) -> 326.68 | O233: =SUMIFS(DADOS_MercadoBase[TE_E],DADOS_MercadoBase[OPÇÃO],$B233,DADOS_MercadoBase[Subgrupo],$C233,DADOS_MercadoBase[AnoMes],O$39) -> 339.503 | P233: =SUM(D233:O233) -> 2030.006 | S233: cativo | T233: A2 | U233: 287.569 | V233: 287.569 | W233: 315.76 | X233: 339.254 | Y233: 294.95 | Z233: 306.042 | AA233: 359.065 | AB233: 333.529 | AC233: 312.384 | AD233: 342.744 | AE233: 326.365 | AF233: 343.907 | AG233: 3849.138
B234: cativo | C234: A3 | D234: =SUMIFS(DADOS_MercadoBase[TE_E],DADOS_MercadoBase[OPÇÃO],$B234,DADOS_MercadoBase[Subgrupo],$C234,DADOS_MercadoBase[AnoMes],D$39) -> 1365.441 | E234: =SUMIFS(DADOS_MercadoBase[TE_E],DADOS_MercadoBase[OPÇÃO],$B234,DADOS_MercadoBase[Subgrupo],$C234,DADOS_MercadoBase[AnoMes],E$39) -> 1365.441 | F234: =SUMIFS(DADOS_MercadoBase[TE_E],DADOS_MercadoBase[OPÇÃO],$B234,DADOS_MercadoBase[Subgrupo],$C234,DADOS_MercadoBase[AnoMes],F$39) -> 1451.543 | G234: =SUMIFS(DADOS_MercadoBase[TE_E],DADOS_MercadoBase[OPÇÃO],$B234,DADOS_MercadoBase[Subgrupo],$C234,DADOS_MercadoBase[AnoMes],G$39) -> 1402.771 | H234: =SUMIFS(DADOS_MercadoBase[TE_E],DADOS_MercadoBase[OPÇÃO],$B234,DADOS_MercadoBase[Subgrupo],$C234,DADOS_MercadoBase[AnoMes],H$39) -> 1346.416 | I234: =SUMIFS(DADOS_MercadoBase[TE_E],DADOS_MercadoBase[OPÇÃO],$B234,DADOS_MercadoBase[Subgrupo],$C234,DADOS_MercadoBase[AnoMes],I$39) -> 1286.803 | J234: =SUMIFS(DADOS_MercadoBase[TE_E],DADOS_MercadoBase[OPÇÃO],$B234,DADOS_MercadoBase[Subgrupo],$C234,DADOS_MercadoBase[AnoMes],J$39) -> 1367.473 | K234: =SUMIFS(DADOS_MercadoBase[TE_E],DADOS_MercadoBase[OPÇÃO],$B234,DADOS_MercadoBase[Subgrupo],$C234,DADOS_MercadoBase[AnoMes],K$39) -> 1402.705 | L234: =SUMIFS(DADOS_MercadoBase[TE_E],DADOS_MercadoBase[OPÇÃO],$B234,DADOS_MercadoBase[Subgrupo],$C234,DADOS_MercadoBase[AnoMes],L$39) -> 1325.158 | M234: =SUMIFS(DADOS_MercadoBase[TE_E],DADOS_MercadoBase[OPÇÃO],$B234,DADOS_MercadoBase[Subgrupo],$C234,DADOS_MercadoBase[AnoMes],M$39) -> 1409.779 | N234: =SUMIFS(DADOS_MercadoBase[TE_E],DADOS_MercadoBase[OPÇÃO],$B234,DADOS_MercadoBase[Subgrupo],$C234,DADOS_MercadoBase[AnoMes],N$39) -> 1426.458 | O234: =SUMIFS(DADOS_MercadoBase[TE_E],DADOS_MercadoBase[OPÇÃO],$B234,DADOS_MercadoBase[Subgrupo],$C234,DADOS_MercadoBase[AnoMes],O$39) -> 1554.85 | P234: 16704.838 | S234: cativo | T234: A3 | U234: 1607.225 | V234: 1607.225 | W234: 1582 | X234: 1512 | Y234: 1442 | Z234: 1456 | AA234: 1505 | AB234: 1522.5 | AC234: 1373.971 | AD234: 1589.937 | AE234: 1505.084 | AF234: 1550.663 | AG234: 18253.605
B235: cativo | C235: A3a | D235: =SUMIFS(DADOS_MercadoBase[TE_E],DADOS_MercadoBase[OPÇÃO],$B235,DADOS_MercadoBase[Subgrupo],$C235,DADOS_MercadoBase[AnoMes],D$39) -> 12218.636 | E235: =SUMIFS(DADOS_MercadoBase[TE_E],DADOS_MercadoBase[OPÇÃO],$B235,DADOS_MercadoBase[Subgrupo],$C235,DADOS_MercadoBase[AnoMes],E$39) -> 12218.636 | F235: =SUMIFS(DADOS_MercadoBase[TE_E],DADOS_MercadoBase[OPÇÃO],$B235,DADOS_MercadoBase[Subgrupo],$C235,DADOS_MercadoBase[AnoMes],F$39) -> 13872.92 | G235: =SUMIFS(DADOS_MercadoBase[TE_E],DADOS_MercadoBase[OPÇÃO],$B235,DADOS_MercadoBase[Subgrupo],$C235,DADOS_MercadoBase[AnoMes],G$39) -> 14435.908 | H235: =SUMIFS(DADOS_MercadoBase[TE_E],DADOS_MercadoBase[OPÇÃO],$B235,DADOS_MercadoBase[Subgrupo],$C235,DADOS_MercadoBase[AnoMes],H$39) -> 14120.772 | I235: =SUMIFS(DADOS_MercadoBase[TE_E],DADOS_MercadoBase[OPÇÃO],$B235,DADOS_MercadoBase[Subgrupo],$C235,DADOS_MercadoBase[AnoMes],I$39) -> 13909.172 | J235: =SUMIFS(DADOS_MercadoBase[TE_E],DADOS_MercadoBase[OPÇÃO],$B235,DADOS_MercadoBase[Subgrupo],$C235,DADOS_MercadoBase[AnoMes],J$39) -> 19613.716 | K235: =SUMIFS(DADOS_MercadoBase[TE_E],DADOS_MercadoBase[OPÇÃO],$B235,DADOS_MercadoBase[Subgrupo],$C235,DADOS_MercadoBase[AnoMes],K$39) -> 21919.742 | L235: =SUMIFS(DADOS_MercadoBase[TE_E],DADOS_MercadoBase[OPÇÃO],$B235,DADOS_MercadoBase[Subgrupo],$C235,DADOS_MercadoBase[AnoMes],L$39) -> 16347.774 | M235: =SUMIFS(DADOS_MercadoBase[TE_E],DADOS_MercadoBase[OPÇÃO],$B235,DADOS_MercadoBase[Subgrupo],$C235,DADOS_MercadoBase[AnoMes],M$39) -> 14154.657 | N235: =SUMIFS(DADOS_MercadoBase[TE_E],DADOS_MercadoBase[OPÇÃO],$B235,DADOS_MercadoBase[Subgrupo],$C235,DADOS_MercadoBase[AnoMes],N$39) -> 15398.935 | O235: =SUMIFS(DADOS_MercadoBase[TE_E],DADOS_MercadoBase[OPÇÃO],$B235,DADOS_MercadoBase[Subgrupo],$C235,DADOS_MercadoBase[AnoMes],O$39) -> 17086.511 | P235: 185297.379 | S235: cativo | T235: A3a | U235: 15717.535 | V235: 15717.535 | W235: 15408.369 | X235: 15355.997 | Y235: 14103.13 | Z235: 16727.112 | AA235: 20656.872 | AB235: 18136.836 | AC235: 15759.638 | AD235: 17068.33 | AE235: 19712.688 | AF235: 20777.05 | AG235: 205141.092
B236: cativo | C236: A4 | D236: =SUMIFS(DADOS_MercadoBase[TE_E],DADOS_MercadoBase[OPÇÃO],$B236,DADOS_MercadoBase[Subgrupo],$C236,DADOS_MercadoBase[AnoMes],D$39) -> 52161.636 | E236: =SUMIFS(DADOS_MercadoBase[TE_E],DADOS_MercadoBase[OPÇÃO],$B236,DADOS_MercadoBase[Subgrupo],$C236,DADOS_MercadoBase[AnoMes],E$39) -> 52161.636 | F236: =SUMIFS(DADOS_MercadoBase[TE_E],DADOS_MercadoBase[OPÇÃO],$B236,DADOS_MercadoBase[Subgrupo],$C236,DADOS_MercadoBase[AnoMes],F$39) -> 56951.673 | G236: =SUMIFS(DADOS_MercadoBase[TE_E],DADOS_MercadoBase[OPÇÃO],$B236,DADOS_MercadoBase[Subgrupo],$C236,DADOS_MercadoBase[AnoMes],G$39) -> 53427.229 | H236: =SUMIFS(DADOS_MercadoBase[TE_E],DADOS_MercadoBase[OPÇÃO],$B236,DADOS_MercadoBase[Subgrupo],$C236,DADOS_MercadoBase[AnoMes],H$39) -> 51290.473 | I236: =SUMIFS(DADOS_MercadoBase[TE_E],DADOS_MercadoBase[OPÇÃO],$B236,DADOS_MercadoBase[Subgrupo],$C236,DADOS_MercadoBase[AnoMes],I$39) -> 51101.364 | J236: =SUMIFS(DADOS_MercadoBase[TE_E],DADOS_MercadoBase[OPÇÃO],$B236,DADOS_MercadoBase[Subgrupo],$C236,DADOS_MercadoBase[AnoMes],J$39) -> 53096.925 | K236: =SUMIFS(DADOS_MercadoBase[TE_E],DADOS_MercadoBase[OPÇÃO],$B236,DADOS_MercadoBase[Subgrupo],$C236,DADOS_MercadoBase[AnoMes],K$39) -> 55025.649 | L236: =SUMIFS(DADOS_MercadoBase[TE_E],DADOS_MercadoBase[OPÇÃO],$B236,DADOS_MercadoBase[Subgrupo],$C236,DADOS_MercadoBase[AnoMes],L$39) -> 46481.436 | M236: =SUMIFS(DADOS_MercadoBase[TE_E],DADOS_MercadoBase[OPÇÃO],$B236,DADOS_MercadoBase[Subgrupo],$C236,DADOS_MercadoBase[AnoMes],M$39) -> 47860.947 | N236: =SUMIFS(DADOS_MercadoBase[TE_E],DADOS_MercadoBase[OPÇÃO],$B236,DADOS_MercadoBase[Subgrupo],$C236,DADOS_MercadoBase[AnoMes],N$39) -> 53238.104 | O236: =SUMIFS(DADOS_MercadoBase[TE_E],DADOS_MercadoBase[OPÇÃO],$B236,DADOS_MercadoBase[Subgrupo],$C236,DADOS_MercadoBase[AnoMes],O$39) -> 60978.876 | P236: 633775.948 | S236: cativo | T236: A4 | U236: 60250.474 | V236: 60250.474 | W236: 61581.494 | X236: 59503.494 | Y236: 56418.231 | Z236: 59484.431 | AA236: 57277.312 | AB236: 49152.282 | AC236: 46647.279 | AD236: 51422.435 | AE236: 56053.387 | AF236: 65672.67 | AG236: 683713.963
B237: cativo | C237: As | D237: =SUMIFS(DADOS_MercadoBase[TE_E],DADOS_MercadoBase[OPÇÃO],$B237,DADOS_MercadoBase[Subgrupo],$C237,DADOS_MercadoBase[AnoMes],D$39) -> 0 | E237: =SUMIFS(DADOS_MercadoBase[TE_E],DADOS_MercadoBase[OPÇÃO],$B237,DADOS_MercadoBase[Subgrupo],$C237,DADOS_MercadoBase[AnoMes],E$39) -> 0 | F237: =SUMIFS(DADOS_MercadoBase[TE_E],DADOS_MercadoBase[OPÇÃO],$B237,DADOS_MercadoBase[Subgrupo],$C237,DADOS_MercadoBase[AnoMes],F$39) -> 0 | G237: =SUMIFS(DADOS_MercadoBase[TE_E],DADOS_MercadoBase[OPÇÃO],$B237,DADOS_MercadoBase[Subgrupo],$C237,DADOS_MercadoBase[AnoMes],G$39) -> 0 | H237: =SUMIFS(DADOS_MercadoBase[TE_E],DADOS_MercadoBase[OPÇÃO],$B237,DADOS_MercadoBase[Subgrupo],$C237,DADOS_MercadoBase[AnoMes],H$39) -> 0 | I237: =SUMIFS(DADOS_MercadoBase[TE_E],DADOS_MercadoBase[OPÇÃO],$B237,DADOS_MercadoBase[Subgrupo],$C237,DADOS_MercadoBase[AnoMes],I$39) -> 0 | J237: =SUMIFS(DADOS_MercadoBase[TE_E],DADOS_MercadoBase[OPÇÃO],$B237,DADOS_MercadoBase[Subgrupo],$C237,DADOS_MercadoBase[AnoMes],J$39) -> 0 | K237: =SUMIFS(DADOS_MercadoBase[TE_E],DADOS_MercadoBase[OPÇÃO],$B237,DADOS_MercadoBase[Subgrupo],$C237,DADOS_MercadoBase[AnoMes],K$39) -> 0 | L237: =SUMIFS(DADOS_MercadoBase[TE_E],DADOS_MercadoBase[OPÇÃO],$B237,DADOS_MercadoBase[Subgrupo],$C237,DADOS_MercadoBase[AnoMes],L$39) -> 0 | M237: =SUMIFS(DADOS_MercadoBase[TE_E],DADOS_MercadoBase[OPÇÃO],$B237,DADOS_MercadoBase[Subgrupo],$C237,DADOS_MercadoBase[AnoMes],M$39) -> 0 | N237: =SUMIFS(DADOS_MercadoBase[TE_E],DADOS_MercadoBase[OPÇÃO],$B237,DADOS_MercadoBase[Subgrupo],$C237,DADOS_MercadoBase[AnoMes],N$39) -> 0 | O237: =SUMIFS(DADOS_MercadoBase[TE_E],DADOS_MercadoBase[OPÇÃO],$B237,DADOS_MercadoBase[Subgrupo],$C237,DADOS_MercadoBase[AnoMes],O$39) -> 0 | P237: 0 | S237: cativo | T237: As | U237: 0 | V237: 0 | W237: 0 | X237: 0 | Y237: 0 | Z237: 0 | AA237: 0 | AB237: 0 | AC237: 0 | AD237: 0 | AE237: 0 | AF237: 0 | AG237: 0
B238: cativo | C238: Total AT Cativo | D238: =SUM(D232:D237) -> 65828.171 | E238: =SUM(E232:E237) -> 65828.171 | F238: 72361.631 | G238: 69352.663 | H238: 66846.331 | I238: 66381.331 | J238: 74184.831 | K238: 78461.118 | L238: 64444.626 | M238: 63769.381 | N238: 70390.177 | O238: 79959.74 | P238: 837808.171 | S238: cativo | T238: Total AT Cativo | U238: 77862.803 | V238: 77862.803 | W238: 78887.623 | X238: 76710.745 | Y238: 72258.311 | Z238: 77973.585 | AA238: 79798.249 | AB238: 69145.147 | AC238: 64093.272 | AD238: 70423.446 | AE238: 77597.524 | AF238: 88344.29 | AG238: 910957.798
B239: cativo | C239: B4 | D239: =SUMIFS(DADOS_MercadoBase[TE_E],DADOS_MercadoBase[OPÇÃO],$B239,DADOS_MercadoBase[Subgrupo],$C239,DADOS_MercadoBase[AnoMes],D$39) -> 16847.306 | E239: =SUMIFS(DADOS_MercadoBase[TE_E],DADOS_MercadoBase[OPÇÃO],$B239,DADOS_MercadoBase[Subgrupo],$C239,DADOS_MercadoBase[AnoMes],E$39) -> 16847.306 | F239: =SUMIFS(DADOS_MercadoBase[TE_E],DADOS_MercadoBase[OPÇÃO],$B239,DADOS_MercadoBase[Subgrupo],$C239,DADOS_MercadoBase[AnoMes],F$39) -> 17005.625 | G239: =SUMIFS(DADOS_MercadoBase[TE_E],DADOS_MercadoBase[OPÇÃO],$B239,DADOS_MercadoBase[Subgrupo],$C239,DADOS_MercadoBase[AnoMes],G$39) -> 17671.137 | H239: =SUMIFS(DADOS_MercadoBase[TE_E],DADOS_MercadoBase[OPÇÃO],$B239,DADOS_MercadoBase[Subgrupo],$C239,DADOS_MercadoBase[AnoMes],H$39) -> 16349.771 | I239: =SUMIFS(DADOS_MercadoBase[TE_E],DADOS_MercadoBase[OPÇÃO],$B239,DADOS_MercadoBase[Subgrupo],$C239,DADOS_MercadoBase[AnoMes],I$39) -> 17171.807 | J239: =SUMIFS(DADOS_MercadoBase[TE_E],DADOS_MercadoBase[OPÇÃO],$B239,DADOS_MercadoBase[Subgrupo],$C239,DADOS_MercadoBase[AnoMes],J$39) -> 17356.082 | K239: =SUMIFS(DADOS_MercadoBase[TE_E],DADOS_MercadoBase[OPÇÃO],$B239,DADOS_MercadoBase[Subgrupo],$C239,DADOS_MercadoBase[AnoMes],K$39) -> 18494.043 | L239: =SUMIFS(DADOS_MercadoBase[TE_E],DADOS_MercadoBase[OPÇÃO],$B239,DADOS_MercadoBase[Subgrupo],$C239,DADOS_MercadoBase[AnoMes],L$39) -> 18578.798 | M239: =SUMIFS(DADOS_MercadoBase[TE_E],DADOS_MercadoBase[OPÇÃO],$B239,DADOS_MercadoBase[Subgrupo],$C239,DADOS_MercadoBase[AnoMes],M$39) -> 17295.443 | N239: =SUMIFS(DADOS_MercadoBase[TE_E],DADOS_MercadoBase[OPÇÃO],$B239,DADOS_MercadoBase[Subgrupo],$C239,DADOS_MercadoBase[AnoMes],N$39) -> 17894.051 | O239: =SUMIFS(DADOS_MercadoBase[TE_E],DADOS_MercadoBase[OPÇÃO],$B239,DADOS_MercadoBase[Subgrupo],$C239,DADOS_MercadoBase[AnoMes],O$39) -> 17112.343 | P239: 208623.712 | S239: cativo | T239: B4 | U239: 14877.607 | V239: 14877.607 | W239: 17182.457 | X239: 17316.809 | Y239: 17014.244 | Z239: 18710.093 | AA239: 17686.204 | AB239: 18426.401 | AC239: 18531.176 | AD239: 17620.49 | AE239: 17621.257 | AF239: 17191.985 | AG239: 207056.33
B240: cativo | C240: B3 | D240: =SUMIFS(DADOS_MercadoBase[TE_E],DADOS_MercadoBase[OPÇÃO],$B240,DADOS_MercadoBase[Subgrupo],$C240,DADOS_MercadoBase[AnoMes],D$39) -> 65132.243 | E240: =SUMIFS(DADOS_MercadoBase[TE_E],DADOS_MercadoBase[OPÇÃO],$B240,DADOS_MercadoBase[Subgrupo],$C240,DADOS_MercadoBase[AnoMes],E$39) -> 65132.243 | F240: =SUMIFS(DADOS_MercadoBase[TE_E],DADOS_MercadoBase[OPÇÃO],$B240,DADOS_MercadoBase[Subgrupo],$C240,DADOS_MercadoBase[AnoMes],F$39) -> 64332.396 | G240: =SUMIFS(DADOS_MercadoBase[TE_E],DADOS_MercadoBase[OPÇÃO],$B240,DADOS_MercadoBase[Subgrupo],$C240,DADOS_MercadoBase[AnoMes],G$39) -> 67695.238 | H240: =SUMIFS(DADOS_MercadoBase[TE_E],DADOS_MercadoBase[OPÇÃO],$B240,DADOS_MercadoBase[Subgrupo],$C240,DADOS_MercadoBase[AnoMes],H$39) -> 60160.534 | I240: =SUMIFS(DADOS_MercadoBase[TE_E],DADOS_MercadoBase[OPÇÃO],$B240,DADOS_MercadoBase[Subgrupo],$C240,DADOS_MercadoBase[AnoMes],I$39) -> 58374.766 | J240: =SUMIFS(DADOS_MercadoBase[TE_E],DADOS_MercadoBase[OPÇÃO],$B240,DADOS_MercadoBase[Subgrupo],$C240,DADOS_MercadoBase[AnoMes],J$39) -> 57953.83 | K240: =SUMIFS(DADOS_MercadoBase[TE_E],DADOS_MercadoBase[OPÇÃO],$B240,DADOS_MercadoBase[Subgrupo],$C240,DADOS_MercadoBase[AnoMes],K$39) -> 58716.634 | L240: =SUMIFS(DADOS_MercadoBase[TE_E],DADOS_MercadoBase[OPÇÃO],$B240,DADOS_MercadoBase[Subgrupo],$C240,DADOS_MercadoBase[AnoMes],L$39) -> 53865.98 | M240: =SUMIFS(DADOS_MercadoBase[TE_E],DADOS_MercadoBase[OPÇÃO],$B240,DADOS_MercadoBase[Subgrupo],$C240,DADOS_MercadoBase[AnoMes],M$39) -> 52313.066 | N240: =SUMIFS(DADOS_MercadoBase[TE_E],DADOS_MercadoBase[OPÇÃO],$B240,DADOS_MercadoBase[Subgrupo],$C240,DADOS_MercadoBase[AnoMes],N$39) -> 63584.978 | O240: =SUMIFS(DADOS_MercadoBase[TE_E],DADOS_MercadoBase[OPÇÃO],$B240,DADOS_MercadoBase[Subgrupo],$C240,DADOS_MercadoBase[AnoMes],O$39) -> 72785.828 | P240: 740047.736 | S240: cativo | T240: B3 | U240: 72046.259 | V240: 72046.259 | W240: 74492.803 | X240: 74100.373 | Y240: 69459.192 | Z240: 71142.35 | AA240: 67644.445 | AB240: 53896.884 | AC240: 52107.648 | AD240: 56918.161 | AE240: 60834.554 | AF240: 70359.288 | AG240: 795048.216
B241: cativo | C241: B2 | D241: =SUMIFS(DADOS_MercadoBase[TE_E],DADOS_MercadoBase[OPÇÃO],$B241,DADOS_MercadoBase[Subgrupo],$C241,DADOS_MercadoBase[AnoMes],D$39) -> 30292.726 | E241: =SUMIFS(DADOS_MercadoBase[TE_E],DADOS_MercadoBase[OPÇÃO],$B241,DADOS_MercadoBase[Subgrupo],$C241,DADOS_MercadoBase[AnoMes],E$39) -> 30292.726 | F241: =SUMIFS(DADOS_MercadoBase[TE_E],DADOS_MercadoBase[OPÇÃO],$B241,DADOS_MercadoBase[Subgrupo],$C241,DADOS_MercadoBase[AnoMes],F$39) -> 29826.461 | G241: =SUMIFS(DADOS_MercadoBase[TE_E],DADOS_MercadoBase[OPÇÃO],$B241,DADOS_MercadoBase[Subgrupo],$C241,DADOS_MercadoBase[AnoMes],G$39) -> 27956.218 | H241: =SUMIFS(DADOS_MercadoBase[TE_E],DADOS_MercadoBase[OPÇÃO],$B241,DADOS_MercadoBase[Subgrupo],$C241,DADOS_MercadoBase[AnoMes],H$39) -> 27306.393 | I241: =SUMIFS(DADOS_MercadoBase[TE_E],DADOS_MercadoBase[OPÇÃO],$B241,DADOS_MercadoBase[Subgrupo],$C241,DADOS_MercadoBase[AnoMes],I$39) -> 27926.429 | J241: =SUMIFS(DADOS_MercadoBase[TE_E],DADOS_MercadoBase[OPÇÃO],$B241,DADOS_MercadoBase[Subgrupo],$C241,DADOS_MercadoBase[AnoMes],J$39) -> 28345.941 | K241: =SUMIFS(DADOS_MercadoBase[TE_E],DADOS_MercadoBase[OPÇÃO],$B241,DADOS_MercadoBase[Subgrupo],$C241,DADOS_MercadoBase[AnoMes],K$39) -> 28210.503 | L241: =SUMIFS(DADOS_MercadoBase[TE_E],DADOS_MercadoBase[OPÇÃO],$B241,DADOS_MercadoBase[Subgrupo],$C241,DADOS_MercadoBase[AnoMes],L$39) -> 27681.887 | M241: =SUMIFS(DADOS_MercadoBase[TE_E],DADOS_MercadoBase[OPÇÃO],$B241,DADOS_MercadoBase[Subgrupo],$C241,DADOS_MercadoBase[AnoMes],M$39) -> 28969.719 | N241: =SUMIFS(DADOS_MercadoBase[TE_E],DADOS_MercadoBase[OPÇÃO],$B241,DADOS_MercadoBase[Subgrupo],$C241,DADOS_MercadoBase[AnoMes],N$39) -> 32490.014 | O241: =SUMIFS(DADOS_MercadoBase[TE_E],DADOS_MercadoBase[OPÇÃO],$B241,DADOS_MercadoBase[Subgrupo],$C241,DADOS_MercadoBase[AnoMes],O$39) -> 35552.84 | P241: 354851.857 | S241: cativo | T241: B2 | U241: 37874.324 | V241: 37874.324 | W241: 37230.668 | X241: 35045.406 | Y241: 35246.684 | Z241: 35768.214 | AA241: 35158.501 | AB241: 33701.07 | AC241: 34167.265 | AD241: 35707.36 | AE241: 37758.384 | AF241: 38655.66 | AG241: 434187.86
... 119 more rows

Sheet Postergação
B2: Cálculo do financeiro de compensação pela prorrogação das tarifas de 08/04/2022 para 16/04/2022.
C4: 2022-04-01 | D4: Atualização SELIC
B5: TE | C5: =T92 -> 596174.9357 | D5: =C5*VLOOKUP(DATE(YEAR(CAPA!$C$10),MONTH(CAPA!$C$10)-1,1),Índices!$B$7:$F$500,5)/VLOOKUP(DATE(YEAR($C$4),MONTH($C$4)-1,1),Índices!$B$7:$F$500,5) -> 675389.8881
B6: TUSD | C6: =T194 -> 12298666.47 | D6: =C6*VLOOKUP(DATE(YEAR(CAPA!$C$10),MONTH(CAPA!$C$10)-1,1),Índices!$B$7:$F$500,5)/VLOOKUP(DATE(YEAR($C$4),MONTH($C$4)-1,1),Índices!$B$7:$F$500,5) -> 13932814.81
B7: TOTAL | C7: =SUM(C6) -> 12298666.47 | D7: =SUM(D5:D6) -> 14608204.7
B10: TUSD | G10: TE
B11: Componente | D11: Partic % | E11: Valor Componente | G11: Componente | I11: Partic % | J11: Valor Componente
B12: Encargo TUSD | C12: =Mercado!H66+Mercado!G66+Mercado!I66+Mercado!E66+Mercado!AD66 -> 525414112.3 | D12: =C12/$C$18 -> 0.5680578025 | E12: =D12*$D$6 -> 7914644.162 | G12: Energia de revenda | H12: =Mercado!AH66 -> 971789062.6 | I12: =H12/$H$16 -> 0.9665672299 | J12: =$D$5*I12 -> 652809.7333
B13: Transporte | C13: =Mercado!AO67+Mercado!AO66+Mercado!AP66+Mercado!AQ66+Mercado!AR66+Mercado!AS66 -> 354055556.7 | D13: =C13/$C$18 -> 0.382791434 | E13: =D13*$D$6 -> 5333362.16 | G13: Encargo TE (ESS/EER) | H13: =Mercado!E66+Mercado!AB66 -> 116368.8817 | I13: =H13/$H$16 -> 0.0001157435826 | J13: =$D$5*I13 -> 78.1720453
B14: Parcela B | C14: =Mercado!AN66 -> 42771372.21 | D14: 0.04624278476 | E14: 644292.1563 | G14: Energia - Perda RB sobre mercado Cat. | H14: =Mercado!AK66 -> 13354944.1 | I14: 0.01328318235 | J14: 8971.327043
B15: Energia - Perda Não Técnica | C15: =Mercado!AJ66 -> 2689678.928 | D15: 0.002907978803 | E15: 40516.33013 | G15: Itaipu | H15: =Mercado!AT66 -> 20142075.99 | I15: 0.02003384412 | J15: 13530.65574
B16: Energia - Perda Técnica | C16: =Mercado!AM75 -> 0 | D16: 0 | E16: 0 | G16: Total | H16: =SUM(H12:H15) -> 1005402452 | J16: =SUM(J12:J15) -> 675389.8881
B17: Energia - Perda RB sobre Dist. | C17: =Mercado!AK75 -> 0 | D17: 0 | E17: 0
B18: Total | C18: =SUM(C12:C17) -> 924930720.1 | E18: =SUM(E12:E17) -> 13932814.81
B21: Financeiros de postergação das tarifas (08/04/2022 - 15/04/2022) - Encargo TUSD (CDE USO) | G21: =E12 -> 7914644.162
B22: Financeiros de postergação das tarifas (08/04/2022 - 15/04/2022) - Encargo TE (ESS/EER) | G22: =J13 -> 78.1720453
B23: Financeiros de postergação das tarifas (08/04/2022 - 15/04/2022) - Transporte (RB) | G23: =E13 -> 5333362.16
B24: Financeiros de postergação das tarifas (08/04/2022 - 15/04/2022) - Parcela B | G24: =E14 -> 644292.1563
B25: Financeiros de postergação das tarifas (08/04/2022 - 15/04/2022) - Energia Revenda | G25: =J12+J15 -> 666340.389
B26: Financeiros de postergação das tarifas (08/04/2022 - 15/04/2022) - Perdas Não Técnicas | G26: =E15 -> 40516.33013
B27: Financeiros de postergação das tarifas (08/04/2022 - 15/04/2022) - Perda Técnica | G27: =E16 -> 0
B28: Financeiros de postergação das tarifas (08/04/2022 - 15/04/2022) - Perda Rede Básica sobre Dist | G28: =E17 -> 0
B29: Financeiros de postergação das tarifas (08/04/2022 - 15/04/2022) - Perda Rede Básica sobre mercado cat | G29: =J14 -> 8971.327043
B30: Total | G30: =SUM(G21:G29) -> 14608204.7
A33: MERCADO TE (PCAT 2023)
K34: Tarifas (PCAT 2021) | O34: Tarifas (PCAT 2022) | T34: TOTAL
T35: TE
A36: SUBGRUPO | B36: MODALIDADE | C36: CLASSE | D36: SUBCLASSE | E36: DETALHE | F36: NOME UC | G36: POSTO | H36: UNIDADE | I36: 2022-04-01 | K36: TE BE | L36: TE BF | M36: TE CVA | N36: TE Total | O36: TE BE | P36: TE BF | Q36: TE CVA | R36: TE Total
A37: A2 | B37: Energia horária | C37: Não se aplica | D37: Não se aplica | E37: Não se aplica | F37: Não se aplica | G37: EP | H37: MWh | I37: 29.971 | K37: 434.0396094 | L37: -73.35031601 | M37: 42.19015027 | N37: =K37+L37+M37 -> 402.8794437 | O37: 441.4334647 | P37: -91.02519643 | Q37: 68.26611073 | R37: =O37+P37+Q37 -> 418.674379 | T37: =8/30*(R37-N37)*I37 -> 126.2373352 | U37: =R37/N37-1 -> 0.03920511604
G38: EFP | H38: MWh | I38: 309.532 | K38: 270.7202346 | L38: -36.07039029 | M38: 23.85397739 | N38: =K38+L38+M38 -> 258.5038217 | O38: 276.3255096 | P38: -69.12266753 | Q38: 56.35061375 | R38: =O38+P38+Q38 -> 263.5534559 | T38: =8/30*(R38-N38)*I38 -> 416.806233 | U38: =R38/N38-1 -> 0.0195340795
A39: A3 | B39: Energia horária | C39: Não se aplica | D39: Não se aplica | E39: Não se aplica | F39: Não se aplica | G39: EP | H39: MWh | I39: 148.778 | K39: 434.0396094 | L39: -73.35031601 | M39: 42.19015027 | N39: 402.8794437 | O39: 441.4334647 | P39: -91.02519643 | Q39: 68.26611073 | R39: 418.674379 | T39: 626.6503707 | U39: 0.03920511604
G40: EFP | H40: MWh | I40: 1406.072 | K40: 270.7202346 | L40: -36.07039029 | M40: 23.85397739 | N40: 258.5038217 | O40: 276.3255096 | P40: -69.12266753 | Q40: 56.35061375 | R40: 263.5534559 | T40: 1893.373137 | U40: 0.0195340795
A41: A3a | B41: Energia horária | C41: Não se aplica | D41: Não se aplica | E41: Não se aplica | F41: Não se aplica | G41: EP | H41: MWh | I41: 920.037 | K41: 434.0396094 | L41: -73.35031601 | M41: 42.19015027 | N41: 402.8794437 | O41: 441.4334647 | P41: -91.02519643 | Q41: 68.26611073 | R41: 418.674379 | T41: 3875.17998 | U41: 0.03920511604
G42: EFP | H42: MWh | I42: 16166.474 | K42: 270.7202346 | L42: -36.07039029 | M42: 23.85397739 | N42: 258.5038217 | O42: 276.3255096 | P42: -69.12266753 | Q42: 56.35061375 | R42: 263.5534559 | T42: 21769.27468 | U42: 0.0195340795
B43: Energia convencional | C43: Não se aplica | D43: Não se aplica | E43: Não se aplica | F43: Não se aplica | G43: E | H43: MWh | I43: 0 | K43: 284.3301825 | L43: -39.17705076 | M43: 25.3819918 | N43: 270.5351235 | O43: 290.0845059 | P43: -70.94787827 | Q43: 57.34357183 | R43: 276.4801995 | T43: 0 | U43: 0.02197524627
A44: A4 | B44: Energia horária | C44: Não se aplica | D44: Não se aplica | E44: Não se aplica | F44: Não se aplica | G44: EP | H44: MWh | I44: 4667.13 | K44: 434.0396094 | L44: -73.35031601 | M44: 42.19015027 | N44: 402.8794437 | O44: 441.4334647 | P44: -91.02519643 | Q44: 68.26611073 | R44: 418.674379 | T44: 19657.87109 | U44: 0.03920511604
G45: EFP | H45: MWh | I45: 56311.746 | K45: 270.7202346 | L45: -36.07039029 | M45: 23.85397739 | N45: 258.5038217 | O45: 276.3255096 | P45: -69.12266753 | Q45: 56.35061375 | R45: 263.5534559 | T45: 75827.65829 | U45: 0.0195340795
B46: Energia convencional | C46: Não se aplica | D46: Não se aplica | E46: Não se aplica | F46: Não se aplica | G46: E | H46: MWh | I46: 0 | K46: 284.3301825 | L46: -39.17705076 | M46: 25.3819918 | N46: 270.5351235 | O46: 290.0845059 | P46: -70.94787827 | Q46: 57.34357183 | R46: 276.4801995 | T46: 0 | U46: 0.02197524627
A47: B1 | B47: Energia horária | C47: Residencial | D47: Residencial | E47: Não se aplica | F47: Não se aplica | G47: EP | H47: MWh | I47: 5.857 | K47: 434.0396094 | L47: -73.35031601 | M47: 42.19015027 | N47: 402.8794437 | O47: 441.4334647 | P47: -91.02519643 | Q47: 68.26611073 | R47: 418.674379 | T47: 24.66958301 | U47: 0.03920511604
G48: EINT | H48: MWh | I48: 9.515 | K48: 270.7202346 | L48: -36.07039029 | M48: 23.85397739 | N48: 258.5038217 | O48: 276.3255096 | P48: -69.12266753 | Q48: 56.35061375 | R48: 263.5534559 | T48: 12.81260518 | U48: 0.0195340795
G49: EFP | H49: MWh | I49: 85.909 | K49: 270.7202346 | L49: -36.07039029 | M49: 23.85397739 | N49: 258.5038217 | O49: 276.3255096 | P49: -69.12266753 | Q49: 56.35061375 | R49: 263.5534559 | T49: 115.6824066 | U49: 0.0195340795
B50: Energia convencional | C50: Residencial | D50: Residencial | E50: Não se aplica | F50: Não se aplica | G50: E | H50: MWh | I50: 144395.293 | K50: 284.3301825 | L50: -39.17705076 | M50: 25.3819918 | N50: 270.5351235 | O50: 290.0845059 | P50: -70.94787827 | Q50: 57.34357183 | R50: 276.4801995 | T50: 228917.5962 | U50: 0.02197524627
D51: Residencial baixa renda – faixa 01 | E51: Não se aplica | F51: Não se aplica | G51: E | H51: MWh | I51: 6237.02 | K51: 284.3301825 | L51: -39.17705076 | M51: 25.3819918 | N51: 270.5351235 | O51: 290.0845059 | P51: -70.94787827 | Q51: 57.34357183 | R51: 276.4801995 | T51: 9887.88205 | U51: 0.02197524627
D52: Residencial baixa renda – faixa 02 | E52: Não se aplica | F52: Não se aplica | G52: E | H52: MWh | I52: 12603.698 | K52: 284.3301825 | L52: -39.17705076 | M52: 25.3819918 | N52: 270.5351235 | O52: 290.0845059 | P52: -70.94787827 | Q52: 57.34357183 | R52: 276.4801995 | T52: 19981.31788 | U52: 0.02197524627
D53: Residencial baixa renda – faixa 03 | E53: Não se aplica | F53: Não se aplica | G53: E | H53: MWh | I53: 11756.059 | K53: 284.3301825 | L53: -39.17705076 | M53: 25.3819918 | N53: 270.5351235 | O53: 290.0845059 | P53: -70.94787827 | Q53: 57.34357183 | R53: 276.4801995 | T53: 18637.51034 | U53: 0.02197524627
D54: Residencial baixa renda – faixa 04 | E54: Não se aplica | F54: Não se aplica | G54: E | H54: MWh | I54: 4891.028 | K54: 284.3301825 | L54: -39.17705076 | M54: 25.3819918 | N54: 270.5351235 | O54: 290.0845059 | P54: -70.94787827 | Q54: 57.34357183 | R54: 276.4801995 | T54: 7754.0088 | U54: 0.02197524627
B55: Energia convencional pré-pagamento | C55: Residencial | D55: Residencial | E55: Não se aplica | F55: Não se aplica | G55: E | H55: MWh | I55: 0 | K55: 284.3301825 | L55: -39.17705076 | M55: 25.3819918 | N55: 270.5351235 | O55: 290.0845059 | P55: -70.94787827 | Q55: 57.34357183 | R55: 276.4801995 | T55: 0 | U55: 0.02197524627
D56: Residencial baixa renda – faixa 01 | E56: Não se aplica | F56: Não se aplica | G56: E | H56: MWh | I56: 0 | K56: 284.3301825 | L56: -39.17705076 | M56: 25.3819918 | N56: 270.5351235 | O56: 290.0845059 | P56: -70.94787827 | Q56: 57.34357183 | R56: 276.4801995 | T56: 0 | U56: 0.02197524627
D57: Residencial baixa renda – faixa 02 | E57: Não se aplica | F57: Não se aplica | G57: E | H57: MWh | I57: 0 | K57: 284.3301825 | L57: -39.17705076 | M57: 25.3819918 | N57: 270.5351235 | O57: 290.0845059 | P57: -70.94787827 | Q57: 57.34357183 | R57: 276.4801995 | T57: 0 | U57: 0.02197524627
D58: Residencial baixa renda – faixa 03 | E58: Não se aplica | F58: Não se aplica | G58: E | H58: MWh | I58: 0 | K58: 284.3301825 | L58: -39.17705076 | M58: 25.3819918 | N58: 270.5351235 | O58: 290.0845059 | P58: -70.94787827 | Q58: 57.34357183 | R58: 276.4801995 | T58: 0 | U58: 0.02197524627
D59: Residencial baixa renda – faixa 04 | E59: Não se aplica | F59: Não se aplica | G59: E | H59: MWh | I59: 0 | K59: 284.3301825 | L59: -39.17705076 | M59: 25.3819918 | N59: 270.5351235 | O59: 290.0845059 | P59: -70.94787827 | Q59: 57.34357183 | R59: 276.4801995 | T59: 0 | U59: 0.02197524627
A60: B2 | B60: Energia horária | C60: Rural | D60: Não se aplica | E60: Não se aplica | F60: Não se aplica | G60: EP | H60: MWh | I60: 2.171 | K60: 434.0396094 | L60: -73.35031601 | M60: 42.19015027 | N60: 402.8794437 | O60: 441.4334647 | P60: -91.02519643 | Q60: 68.26611073 | R60: 418.674379 | T60: 9.144214566 | U60: 0.03920511604
G61: EINT | H61: MWh | I61: 2.385 | K61: 270.7202346 | L61: -36.07039029 | M61: 23.85397739 | N61: 258.5038217 | O61: 276.3255096 | P61: -69.12266753 | Q61: 56.35061375 | R61: 263.5534559 | T61: 3.211567353 | U61: 0.0195340795
G62: EFP | H62: MWh | I62: 29.091 | K62: 270.7202346 | L62: -36.07039029 | M62: 23.85397739 | N62: 258.5038217 | O62: 276.3255096 | P62: -69.12266753 | Q62: 56.35061375 | R62: 263.5534559 | T62: 39.17304229 | U62: 0.0195340795
B63: Energia convencional | C63: Rural | D63: Não se aplica | E63: Não se aplica | F63: Não se aplica | G63: E | H63: MWh | I63: 35519.193 | K63: 284.3301825 | L63: -39.17705076 | M63: 25.3819918 | N63: 270.5351235 | O63: 290.0845059 | P63: -70.94787827 | Q63: 57.34357183 | R63: 276.4801995 | T63: 56310.48015 | U63: 0.02197524627
B64: Energia horária | C64: Rural | D64: Cooperativa de eletrificação rural | E64: Não se aplica | F64: Não se aplica | G64: EP | H64: MWh | I64: 0 | K64: 434.0396094 | L64: -73.35031601 | M64: 42.19015027 | N64: 402.8794437 | O64: 441.4334647 | P64: -91.02519643 | Q64: 68.26611073 | R64: 418.674379 | T64: 0 | U64: 0.03920511604
G65: EINT | H65: MWh | I65: 0 | K65: 270.7202346 | L65: -36.07039029 | M65: 23.85397739 | N65: 258.5038217 | O65: 276.3255096 | P65: -69.12266753 | Q65: 56.35061375 | R65: 263.5534559 | T65: 0 | U65: 0.0195340795
G66: EFP | H66: MWh | I66: 0 | K66: 270.7202346 | L66: -36.07039029 | M66: 23.85397739 | N66: 258.5038217 | O66: 276.3255096 | P66: -69.12266753 | Q66: 56.35061375 | R66: 263.5534559 | T66: 0 | U66: 0.0195340795
B67: Energia convencional | C67: Rural | D67: Cooperativa de eletrificação rural | E67: Não se aplica | F67: Não se aplica | G67: E | H67: MWh | I67: 0 | K67: 284.3301825 | L67: -39.17705076 | M67: 25.3819918 | N67: 270.5351235 | O67: 290.0845059 | P67: -70.94787827 | Q67: 57.34357183 | R67: 276.4801995 | T67: 0 | U67: 0.02197524627
B68: Energia horária | C68: Rural | D68: Serviço público de irrigação rural | E68: Não se aplica | F68: Não se aplica | G68: EP | H68: MWh | I68: 0 | K68: 434.0396094 | L68: -73.35031601 | M68: 42.19015027 | N68: 402.8794437 | O68: 441.4334647 | P68: -91.02519643 | Q68: 68.26611073 | R68: 418.674379 | T68: 0 | U68: 0.03920511604
G69: EINT | H69: MWh | I69: 0 | K69: 270.7202346 | L69: -36.07039029 | M69: 23.85397739 | N69: 258.5038217 | O69: 276.3255096 | P69: -69.12266753 | Q69: 56.35061375 | R69: 263.5534559 | T69: 0 | U69: 0.0195340795
G70: EFP | H70: MWh | I70: 0 | K70: 270.7202346 | L70: -36.07039029 | M70: 23.85397739 | N70: 258.5038217 | O70: 276.3255096 | P70: -69.12266753 | Q70: 56.35061375 | R70: 263.5534559 | T70: 0 | U70: 0.0195340795
B71: Energia convencional | C71: Rural | D71: Serviço público de irrigação rural | E71: Não se aplica | F71: Não se aplica | G71: E | H71: MWh | I71: 0 | K71: 284.3301825 | L71: -39.17705076 | M71: 25.3819918 | N71: 270.5351235 | O71: 290.0845059 | P71: -70.94787827 | Q71: 57.34357183 | R71: 276.4801995 | T71: 0 | U71: 0.02197524627
B72: Energia convencional pré-pagamento | C72: Rural | D72: Não se aplica | E72: Não se aplica | F72: Não se aplica | G72: E | H72: MWh | I72: 0 | K72: 284.3301825 | L72: -39.17705076 | M72: 25.3819918 | N72: 270.5351235 | O72: 290.0845059 | P72: -70.94787827 | Q72: 57.34357183 | R72: 276.4801995 | T72: 0 | U72: 0.02197524627
D73: Cooperativa de eletrificação rural | E73: Não se aplica | F73: Não se aplica | G73: E | H73: MWh | I73: 0 | K73: 284.3301825 | L73: -39.17705076 | M73: 25.3819918 | N73: 270.5351235 | O73: 290.0845059 | P73: -70.94787827 | Q73: 57.34357183 | R73: 276.4801995 | T73: 0 | U73: 0.02197524627
D74: Serviço público de irrigação rural | E74: Não se aplica | F74: Não se aplica | G74: E | H74: MWh | I74: 0 | K74: 284.3301825 | L74: -39.17705076 | M74: 25.3819918 | N74: 270.5351235 | O74: 290.0845059 | P74: -70.94787827 | Q74: 57.34357183 | R74: 276.4801995 | T74: 0 | U74: 0.02197524627
A75: B3 | B75: Energia horária | C75: Não se aplica | D75: Não se aplica | E75: Não se aplica | F75: Não se aplica | G75: EP | H75: MWh | I75: 21.284 | K75: 434.0396094 | L75: -73.35031601 | M75: 42.19015027 | N75: 402.8794437 | O75: 441.4334647 | P75: -91.02519643 | Q75: 68.26611073 | R75: 418.674379 | T75: 89.64784101 | U75: 0.03920511604
G76: EINT | H76: MWh | I76: 39.892 | K76: 270.7202346 | L76: -36.07039029 | M76: 23.85397739 | N76: 258.5038217 | O76: 276.3255096 | P76: -69.12266753 | Q76: 56.35061375 | R76: 263.5534559 | T76: 53.71733536 | U76: 0.0195340795
G77: EFP | H77: MWh | I77: 294.284 | K77: 270.7202346 | L77: -36.07039029 | M77: 23.85397739 | N77: 258.5038217 | O77: 276.3255096 | P77: -69.12266753 | Q77: 56.35061375 | R77: 263.5534559 | T77: 396.2737471 | U77: 0.0195340795
B78: Energia convencional | C78: Não se aplica | D78: Não se aplica | E78: Não se aplica | F78: Não se aplica | G78: E | H78: MWh | I78: 72430.368 | K78: 284.3301825 | L78: -39.17705076 | M78: 25.3819918 | N78: 270.5351235 | O78: 290.0845059 | P78: -70.94787827 | Q78: 57.34357183 | R78: 276.4801995 | T78: 114827.744 | U78: 0.02197524627
B79: Energia convencional pré-pagamento | C79: Não se aplica | D79: Não se aplica | E79: Não se aplica | F79: Não se aplica | G79: E | H79: MWh | I79: 0 | K79: 284.3301825 | L79: -39.17705076 | M79: 25.3819918 | N79: 270.5351235 | O79: 290.0845059 | P79: -70.94787827 | Q79: 57.34357183 | R79: 276.4801995 | T79: 0 | U79: 0.02197524627
A80: B4 | B80: Energia convencional | C80: Iluminação pública | D80: Iluminação pública – B4a | E80: Não se aplica | F80: Não se aplica | G80: E | H80: MWh | I80: 17112.343 | K80: 156.3816004 | L80: -21.54737792 | M80: 13.96009549 | N80: 148.7943179 | O80: 159.5464782 | P80: -39.02133305 | Q80: 31.53896451 | R80: 152.0641097 | T80: 14921.01293 | U80: 0.02197524627
D81: Iluminação pública – B4b | E81: Não se aplica | F81: Não se aplica | G81: E | H81: MWh | I81: 0 | K81: 170.5981095 | L81: -23.50623046 | M81: 15.22919508 | N81: 162.3210741 | O81: 174.0507035 | P81: -42.56872696 | Q81: 34.4061431 | R81: 165.8881197 | T81: 0 | U81: 0.02197524627
N82: 0 | R82: 0
N83: 0 | R83: 0
N84: 0 | R84: 0
N85: 0 | R85: 0
N86: 0 | R86: 0
N87: 0 | R87: 0
N88: 0 | R88: 0
N89: 0 | R89: 0
N90: 0 | R90: 0
N91: 0 | R91: 0
T92: =SUM(T37:T91) -> 596174.9357
A95: MERCADO TUSD (PCAT 2023)
K96: Tarifas (PCAT 2021) | O96: Tarifas (PCAT 2022) | T96: TOTAL Prorrogação
T97: TUSD
A98: SUBGRUPO | B98: MODALIDADE | C98: CLASSE | D98: SUBCLASSE | E98: DETALHE | F98: NOME UC | G98: POSTO | H98: UNIDADE | I98: 2022-04-01 | K98: TUSD BE | L98: TUSD BF | M98: TUSD CVA | N98: TUSD Total | O98: TUSD BE | P98: TUSD BF | Q98: TUSD CVA | R98: TUSD Total
A99: A2 | B99: Azul | C99: Não se aplica | D99: Não se aplica | E99: Não se aplica | F99: Não se aplica | G99: DP | H99: kW | I99: 99418 | K99: 27.53824299 | L99: -3.686701738 | M99: 0.7481419935 | N99: =K99+L99+M99 -> 24.59968324 | O99: 30.1384515 | P99: 1.148543785 | Q99: 0.3419539398 | R99: =O99+P99+Q99 -> 31.62894922 | T99: =8/31*(R99-N99)*I99 -> 180344.662 | U99: =R99/N99-1 -> 0.2857461988
G100: DFP | H100: kW | I100: 132711 | K100: 9.316384048 | L100: -2.269329838 | M100: 0.7623615924 | N100: =K100+L100+M100 -> 7.809415803 | O100: 8.799791227 | P100: 1.328779906 | Q100: 0.3485156253 | R100: =O100+P100+Q100 -> 10.47708676 | T100: =8/31*(R100-N100)*I100 -> 91362.3949 | U100: =R100/N100-1 -> 0.341596737
G101: E | H101: MWh | I101: 54019.607 | K101: 66.83240233 | L101: -4.634412579 | M101: 4.315291354 | N101: 66.5132811 | O101: 83.77339091 | P101: -2.826594529 | Q101: 3.445796933 | R101: 84.39259331 | T101: 249247.3339 | U101: 0.2688081525
E102: APE | F102: Não se aplica | G102: E | H102: MWh | I102: 8052.879 | K102: 8.758775494 | L102: -1.91989716 | M102: 0.9440243662 | N102: 7.782902701 | O102: 8.738009095 | P102: -1.120726238 | Q102: 0.5999294946 | R102: 8.217212352 | T102: 902.5659531 | U102: 0.0558030426
B103: Geração | C103: Não se aplica | D103: Não se aplica | E103: Não se aplica | F103: UTE PASSA TEMPO | G103: D | H103: kW | I103: 45982 | K103: 10.157 | L103: -0.5214626071 | M103: 0.1412789064 | N103: 9.776816299 | O103: 8.0354 | P103: -0.1155207703 | Q103: 0.05152152103 | R103: 7.971400751 | T103: -21423.64329 | U103: -0.1846629305
F104: UTE ANGELICA | G104: D | H104: kW | I104: 64525 | K104: 8.7518 | L104: -0.4686474622 | M104: 0.1213654511 | N104: 8.404517989 | O104: 8.0353 | P104: -0.1118320725 | Q104: 0.05151465149 | R104: 7.974982579 | T104: -7152.457373 | U104: -0.05110767928
F105: UTE LDC BIONERGIA RIO BRILHANTE | G105: D | H105: kW | I105: 54208 | K105: 9.6266 | L105: -0.4933883458 | M105: 0.1363794108 | N105: 9.269591065 | O105: 8.0356 | P105: -0.1156803854 | Q105: 0.05237334351 | R105: 7.972292958 | T105: -18148.11246 | U105: -0.1399520322
F106: UTE MONTEVERDE | G106: D | H106: kW | I106: 13807 | K106: 9.3019 | L106: -0.4762046892 | M106: 0.1333860591 | N106: 8.95908137 | O106: 8.0354 | P106: -0.1157774054 | Q106: 0.05293664547 | R106: 7.97255924 | T106: -3515.073819 | U106: -0.1101142058
F107: UTE VISTA ALEGRE II | G107: D | H107: kW | I107: 29102 | K107: 6.042 | L107: 0 | M107: 0 | N107: 6.042 | O107: 6.9345 | P107: 0 | Q107: 0 | R107: 6.9345 | T107: 6702.847742 | U107: 0.1477159881
F108: PCH COSTA RICA | G108: D | H108: kW | I108: 15810 | K108: 10.8681 | L108: -0.5608200214 | M108: 0.1427372292 | N108: 10.45001721 | O108: 8.0354 | P108: -0.1150629712 | Q108: 0.04895918405 | R108: 7.969296213 | T108: -10121.34166 | U108: -0.237389178
F109: PCH PARAISO I | G109: D | H109: kW | I109: 21380 | K109: 10.868 | L109: -0.5619105515 | M109: 0.1395242319 | N109: 10.44561368 | O109: 8.0354 | P109: -0.1148881008 | Q109: 0.04798370992 | R109: 7.968495609 | T109: -13667.29919 | U109: -0.2371443313
F110: UHE MIMOSO | G110: D | H110: kW | I110: 29350 | K110: 10.273 | L110: -0.5275985431 | M110: 0.1423519947 | N110: 9.887753452 | O110: 8.0354 | P110: -0.1154913719 | Q110: 0.05134978262 | R110: 7.971258411 | T110: -14515.90437 | U110: -0.1938251242
F111: PCH PLANALTO | G111: D | H111: kW | I111: 16830 | K111: 10.8681 | L111: -0.5607573684 | M111: 0.1429219321 | N111: 10.45026456 | O111: 8.0354 | P111: -0.1150707008 | Q111: 0.04902100987 | R111: 7.969350309 | T111: -10775.17081 | U111: -0.2374020523
F112: PCH BURITI | G112: D | H112: kW | I112: 30000 | K112: 10.868 | L112: -0.5619105515 | M112: 0.1395242319 | N112: 10.44561368 | O112: 8.0354 | P112: -0.1148881008 | Q112: 0.04798370992 | R112: 7.968495609 | T112: -19177.68829 | U112: -0.2371443313
F113: UHE SAO DOMINGOS | G113: D | H113: kW | I113: 47400 | K113: 10.868 | L113: -0.5600980613 | M113: 0.1448634751 | N113: 10.45276541 | O113: 8.0354 | P113: -0.1151795515 | Q113: 0.04960492044 | R113: 7.969825369 | T113: -30371.96339 | U113: -0.2375390575
F114: PCH RETIRO VELHO | G114: D | H114: kW | I114: 18000 | K114: 10.8681 | L114: -0.5607573684 | M114: 0.1429219321 | N114: 10.45026456 | O114: 8.0354 | P114: -0.1150707008 | Q114: 0.04902100987 | R114: 7.969350309 | T114: -11524.24686 | U114: -0.2374020523
F115: PCH ALTO SUCURIU | G115: D | H115: kW | I115: 29000 | K115: 10.868 | L115: -0.5619105515 | M115: 0.1395242319 | N115: 10.44561368 | O115: 8.0354 | P115: -0.1148881008 | Q115: 0.04798370992 | R115: 7.968495609 | T115: -18538.43202 | U115: -0.2371443313
F116: PCH PORTO DAS PEDRAS | G116: D | H116: kW | I116: 28030 | K116: 10.868 | L116: -0.5619105515 | M116: 0.1395242319 | N116: 10.44561368 | O116: 8.0354 | P116: -0.1148881008 | Q116: 0.04798370992 | R116: 7.968495609 | T116: -17918.35343 | U116: -0.2371443313
F117: PCH VERDE 4 | G117: D | H117: kW | I117: 18550 | K117: 6.576 | L117: 0 | M117: 0 | N117: 6.576 | O117: 7.5472 | P117: 0 | Q117: 0 | R117: 7.5472 | T117: 4649.228387 | U117: 0.1476885645
F118: PCH VERDE 4A | G118: D | H118: kW | I118: 27440 | K118: 6.577 | L118: 0 | M118: 0 | N118: 6.577 | O118: 7.5484 | P118: 0 | Q118: 0 | R118: 7.5484 | T118: 6878.765419 | U118: 0.1476965182
F119: UTE VISTA ALEGRE I | G119: D | H119: kW | I119: 30000 | K119: 9.4207 | L119: -0.4824972576 | M119: 0.134473267 | N119: 9.072676009 | O119: 8.0354 | P119: -0.1157407841 | Q119: 0.05272368985 | R119: 7.972382906 | T119: -8518.398221 | U119: -0.1212754762
F120: UTE CAARAPO | G120: D | H120: kW | I120: 58651 | K120: 8.1417 | L120: -0.4290994744 | M120: 0.1143470701 | N120: 7.826947596 | O120: 8.0354 | P120: -0.1131614161 | Q120: 0.05172760711 | R120: 7.973966191 | T120: 2225.235518 | U120: 0.01878364375
F121: UTE INPASA DOURADOS | G121: D | H121: kW | I121: 2600 | K121: 9.738 | L121: -0.5434132171 | M121: 0.1307451301 | N121: 9.325331913 | O121: 11.009 | P121: -0.1380059171 | Q121: 0.04881492379 | R121: 10.91980901 | T121: 1069.842695 | U121: 0.1709834147
F122: UTE ANGÉLICA I | G122: D | H122: kW | I122: 0 | N122: 0 | R122: 0 | T122: 0
F123: NOVO GERADOR | G123: D | H123: kW | I123: 0 | N123: 0 | R123: 0 | T123: 0
A124: A3 | B124: Azul | C124: Não se aplica | D124: Não se aplica | E124: Não se aplica | F124: Não se aplica | G124: DP | H124: kW | I124: 2389 | K124: 64.59445127 | L124: -7.525403181 | M124: 1.20613453 | N124: 58.27518262 | O124: 72.10981219 | P124: 1.674870835 | Q124: 0.5512894313 | R124: 74.33597246 | T124: 9901.735981 | U124: 0.2756025656
G125: DFP | H125: kW | I125: 2394 | K125: 21.28521455 | L125: -3.203561633 | M125: 0.7608164293 | N125: 18.84246935 | O125: 22.74210708 | P125: 1.221179937 | Q125: 0.3478092822 | R125: 24.3110963 | T125: 3378.553015 | U125: 0.2902287835
G126: E | H126: MWh | I126: 1554.85 | K126: 73.58740561 | L126: -6.083964724 | M126: 5.027578238 | N126: 72.53101912 | O126: 90.67549493 | P126: -3.7006703 | Q126: 3.908658687 | R126: 90.88348332 | T126: 7363.955858 | U126: 0.2530291786
